Workbook

Sheet комментарий

Sheet Вар-ты разреза 24тыс
A1: Оптимизация. Варюхин С.Е. 2015 гг | C1: Нарезка труб
B2: 1 | C2: 2 | D2: 3 | E2: 4 | F2: 5 | G2: 6 | H2: 7 | I2: 8 | J2: 9 | K2: 10 | L2: 11 | M2: 12 | N2: Номер детали | P2: 6000 | Q2: = L — длина труб, мм
B3: 21 | C3: 18 | D3: 32 | E3: 96 | F3: 12 | G3: 6 | H3: 63 | I3: 76 | J3: 30 | K3: 27 | L3: 0 | M3: 0 | N3: Количество деталей | O3: =SUM(B3:M3) -> 381
B4: 1135 | C4: 935 | D4: 800 | E4: 735 | F4: 700 | G4: 635 | H4: 600 | I4: 535 | J4: 500 | K4: 435 | L4: 6000 | M4: 6000 | N4: Размеры деталей, мм | P4: 400 | Q4: = Δ - максимальный размер обрезка
P5: 0 | Q5: = Δm - максимальный размер остатка
B6: =B4+$P$6 -> 1138 | C6: 938 | D6: 803 | E6: 738 | F6: 703 | G6: 638 | H6: 603 | I6: 538 | J6: 503 | K6: 438 | L6: 6003 | M6: 6003 | N6: Длина детали + ширина реза | P6: 3 | Q6: = d - ширина реза
A7: вариантов | B7: =SUMPRODUCT(B6:M6,B3:M3)/(P2+P6) -> 42.54256205 | C7: Теоретич. мин. число труб | M7: Суммарная длина обрезков, м = | N7: =SUMPRODUCT(N13:N24270,O13:O24270)/1000 -> 0.000
A8: 24,258 | B8: =SUM(O13:O24270) -> 0 | C8: Количество труб длины L | M8: Суммарная длина остатков, м = | N8: 0.000 | O8: =N7*1000/(P2*B8) ->  | P8: Процент потерь в обрезки
B10: =SUMPRODUCT(B13:B24270,$O$13:$O$24270) -> 0 | C10: =SUMPRODUCT(C13:C24270,$O$13:$O$24270) -> 0 | D10: 0 | E10: 0 | F10: 0 | G10: 0 | H10: 0 | I10: 0 | J10: 0 | K10: 0 | L10: 0 | M10: 0 | N10: Количество полученных деталей | O10: =SUM(B10:M10) -> 0 | P10: 1.000 | Q10: = макс. суммарная длина обрезков
B11: =B10-B3 -> -21 | C11: -18 | D11: -32 | E11: -96 | F11: -12 | G11: -6 | H11: -63 | I11: -76 | J11: -30 | K11: =K10-K3 -> -27 | L11: 0 | M11: =M10-M3 -> 0 | N11: Количество лишних деталей | O11: =SUM(B11:M11) -> -381 | P11: 3 | Q11: = максимальный избыток деталей
A12: Номер варианта разреза | B12: 1 | C12: 2 | D12: 3 | E12: 4 | F12: 5 | G12: 6 | H12: 7 | I12: 8 | J12: 9 | K12: 10 | L12: 11 | M12: 12 | N12: Обрезок или остаток | O12: Сколько труб так разрезать?
A13: 1 | B13: 0 | C13: 0 | D13: 0 | E13: 0 | F13: 0 | G13: 0 | H13: 0 | I13: 0 | J13: 0 | K13: 0 | L13: 0 | M13: 1 | N13: =IF(SUMPRODUCT($B$6:$M$6,B13:M13)<$P$2,$P$2-SUMPRODUCT($B$6:$M$6,B13:M13),0) -> 0 | O13: 0
A14: 2 | B14: 0 | C14: 0 | D14: 0 | E14: 0 | F14: 0 | G14: 0 | H14: 0 | I14: 0 | J14: 0 | K14: 0 | L14: 1 | M14: 0 | N14: =IF(SUMPRODUCT($B$6:$M$6,B14:M14)<$P$2,$P$2-SUMPRODUCT($B$6:$M$6,B14:M14),0) -> 0 | O14: 0
A15: 3 | B15: 0 | C15: 0 | D15: 0 | E15: 0 | F15: 0 | G15: 0 | H15: 4 | I15: 2 | J15: 5 | K15: 0 | L15: 0 | M15: 0 | N15: =IF(SUMPRODUCT($B$6:$M$6,B15:M15)<$P$2,$P$2-SUMPRODUCT($B$6:$M$6,B15:M15),0) -> 0 | O15: 0
A16: 4 | B16: 0 | C16: 0 | D16: 0 | E16: 0 | F16: 0 | G16: 0 | H16: 5 | I16: 1 | J16: 4 | K16: 1 | L16: 0 | M16: 0 | N16: =IF(SUMPRODUCT($B$6:$M$6,B16:M16)<$P$2,$P$2-SUMPRODUCT($B$6:$M$6,B16:M16),0) -> 0 | O16: 0
A17: 5 | B17: 0 | C17: 0 | D17: 0 | E17: 0 | F17: 0 | G17: 0 | H17: 6 | I17: 0 | J17: 3 | K17: 2 | L17: 0 | M17: 0 | N17: =IF(SUMPRODUCT($B$6:$M$6,B17:M17)<$P$2,$P$2-SUMPRODUCT($B$6:$M$6,B17:M17),0) -> 0 | O17: 0
A18: 6 | B18: 0 | C18: 0 | D18: 0 | E18: 0 | F18: 0 | G18: 1 | H18: 3 | I18: 1 | J18: 6 | K18: 0 | L18: 0 | M18: 0 | N18: =IF(SUMPRODUCT($B$6:$M$6,B18:M18)<$P$2,$P$2-SUMPRODUCT($B$6:$M$6,B18:M18),0) -> 0 | O18: 0
A19: 7 | B19: 0 | C19: 0 | D19: 0 | E19: 0 | F19: 0 | G19: 1 | H19: 4 | I19: 0 | J19: 5 | K19: 1 | L19: 0 | M19: 0 | N19: =IF(SUMPRODUCT($B$6:$M$6,B19:M19)<$P$2,$P$2-SUMPRODUCT($B$6:$M$6,B19:M19),0) -> 0 | O19: 0
A20: 8 | B20: 0 | C20: 0 | D20: 0 | E20: 0 | F20: 0 | G20: 1 | H20: 8 | I20: 1 | J20: 0 | K20: 0 | L20: 0 | M20: 0 | N20: =IF(SUMPRODUCT($B$6:$M$6,B20:M20)<$P$2,$P$2-SUMPRODUCT($B$6:$M$6,B20:M20),0) -> 0 | O20: 0
A21: 9 | B21: 0 | C21: 0 | D21: 0 | E21: 0 | F21: 0 | G21: 2 | H21: 2 | I21: 0 | J21: 7 | K21: 0 | L21: 0 | M21: 0 | N21: =IF(SUMPRODUCT($B$6:$M$6,B21:M21)<$P$2,$P$2-SUMPRODUCT($B$6:$M$6,B21:M21),0) -> 0 | O21: 0
A22: 10 | B22: 0 | C22: 0 | D22: 0 | E22: 0 | F22: 0 | G22: 2 | H22: 7 | I22: 0 | J22: 1 | K22: 0 | L22: 0 | M22: 0 | N22: =IF(SUMPRODUCT($B$6:$M$6,B22:M22)<$P$2,$P$2-SUMPRODUCT($B$6:$M$6,B22:M22),0) -> 0 | O22: 0
A23: 11 | B23: 0 | C23: 0 | D23: 0 | E23: 0 | F23: 1 | G23: 0 | H23: 2 | I23: 2 | J23: 6 | K23: 0 | L23: 0 | M23: 0 | N23: =IF(SUMPRODUCT($B$6:$M$6,B23:M23)<$P$2,$P$2-SUMPRODUCT($B$6:$M$6,B23:M23),0) -> 0 | O23: 0
A24: 12 | B24: 0 | C24: 0 | D24: 0 | E24: 0 | F24: 1 | G24: 0 | H24: 3 | I24: 1 | J24: 5 | K24: 1 | L24: 0 | M24: 0 | N24: =IF(SUMPRODUCT($B$6:$M$6,B24:M24)<$P$2,$P$2-SUMPRODUCT($B$6:$M$6,B24:M24),0) -> 0 | O24: 0
A25: 13 | B25: 0 | C25: 0 | D25: 0 | E25: 0 | F25: 1 | G25: 0 | H25: 4 | I25: 0 | J25: 4 | K25: 2 | L25: 0 | M25: 0 | N25: =IF(SUMPRODUCT($B$6:$M$6,B25:M25)<$P$2,$P$2-SUMPRODUCT($B$6:$M$6,B25:M25),0) -> 0 | O25: 0
A26: 14 | B26: 0 | C26: 0 | D26: 0 | E26: 0 | F26: 1 | G26: 0 | H26: 7 | I26: 2 | J26: 0 | K26: 0 | L26: 0 | M26: 0 | N26: =IF(SUMPRODUCT($B$6:$M$6,B26:M26)<$P$2,$P$2-SUMPRODUCT($B$6:$M$6,B26:M26),0) -> 0 | O26: 0
A27: 15 | B27: 0 | C27: 0 | D27: 0 | E27: 0 | F27: 1 | G27: 1 | H27: 1 | I27: 1 | J27: 7 | K27: 0 | L27: 0 | M27: 0 | N27: =IF(SUMPRODUCT($B$6:$M$6,B27:M27)<$P$2,$P$2-SUMPRODUCT($B$6:$M$6,B27:M27),0) -> 0 | O27: 0
A28: 16 | B28: 0 | C28: 0 | D28: 0 | E28: 0 | F28: 1 | G28: 1 | H28: 2 | I28: 0 | J28: 6 | K28: 1 | L28: 0 | M28: 0 | N28: =IF(SUMPRODUCT($B$6:$M$6,B28:M28)<$P$2,$P$2-SUMPRODUCT($B$6:$M$6,B28:M28),0) -> 0 | O28: 0
A29: 17 | B29: 0 | C29: 0 | D29: 0 | E29: 0 | F29: 1 | G29: 1 | H29: 6 | I29: 1 | J29: 1 | K29: 0 | L29: 0 | M29: 0 | N29: =IF(SUMPRODUCT($B$6:$M$6,B29:M29)<$P$2,$P$2-SUMPRODUCT($B$6:$M$6,B29:M29),0) -> 0 | O29: 0
A30: 18 | B30: 0 | C30: 0 | D30: 0 | E30: 0 | F30: 1 | G30: 1 | H30: 7 | I30: 0 | J30: 0 | K30: 1 | L30: 0 | M30: 0 | N30: =IF(SUMPRODUCT($B$6:$M$6,B30:M30)<$P$2,$P$2-SUMPRODUCT($B$6:$M$6,B30:M30),0) -> 0 | O30: 0
A31: 19 | B31: 0 | C31: 0 | D31: 0 | E31: 0 | F31: 1 | G31: 2 | H31: 0 | I31: 0 | J31: 8 | K31: 0 | L31: 0 | M31: 0 | N31: =IF(SUMPRODUCT($B$6:$M$6,B31:M31)<$P$2,$P$2-SUMPRODUCT($B$6:$M$6,B31:M31),0) -> 0 | O31: 0
A32: 20 | B32: 0 | C32: 0 | D32: 0 | E32: 0 | F32: 1 | G32: 2 | H32: 5 | I32: 0 | J32: 2 | K32: 0 | L32: 0 | M32: 0 | N32: =IF(SUMPRODUCT($B$6:$M$6,B32:M32)<$P$2,$P$2-SUMPRODUCT($B$6:$M$6,B32:M32),0) -> 0 | O32: 0
A33: 21 | B33: 0 | C33: 0 | D33: 0 | E33: 0 | F33: 2 | G33: 0 | H33: 0 | I33: 2 | J33: 7 | K33: 0 | L33: 0 | M33: 0 | N33: =IF(SUMPRODUCT($B$6:$M$6,B33:M33)<$P$2,$P$2-SUMPRODUCT($B$6:$M$6,B33:M33),0) -> 0 | O33: 0
A34: 22 | B34: 0 | C34: 0 | D34: 0 | E34: 0 | F34: 2 | G34: 0 | H34: 1 | I34: 1 | J34: 6 | K34: 1 | L34: 0 | M34: 0 | N34: =IF(SUMPRODUCT($B$6:$M$6,B34:M34)<$P$2,$P$2-SUMPRODUCT($B$6:$M$6,B34:M34),0) -> 0 | O34: 0
A35: 23 | B35: 0 | C35: 0 | D35: 0 | E35: 0 | F35: 2 | G35: 0 | H35: 2 | I35: 0 | J35: 5 | K35: 2 | L35: 0 | M35: 0 | N35: =IF(SUMPRODUCT($B$6:$M$6,B35:M35)<$P$2,$P$2-SUMPRODUCT($B$6:$M$6,B35:M35),0) -> 0 | O35: 0
A36: 24 | B36: 0 | C36: 0 | D36: 0 | E36: 0 | F36: 2 | G36: 0 | H36: 5 | I36: 2 | J36: 1 | K36: 0 | L36: 0 | M36: 0 | N36: =IF(SUMPRODUCT($B$6:$M$6,B36:M36)<$P$2,$P$2-SUMPRODUCT($B$6:$M$6,B36:M36),0) -> 0 | O36: 0
A37: 25 | B37: 0 | C37: 0 | D37: 0 | E37: 0 | F37: 2 | G37: 0 | H37: 6 | I37: 1 | J37: 0 | K37: 1 | L37: 0 | M37: 0 | N37: =IF(SUMPRODUCT($B$6:$M$6,B37:M37)<$P$2,$P$2-SUMPRODUCT($B$6:$M$6,B37:M37),0) -> 0 | O37: 0
A38: 26 | B38: 0 | C38: 0 | D38: 0 | E38: 0 | F38: 2 | G38: 1 | H38: 0 | I38: 0 | J38: 7 | K38: 1 | L38: 0 | M38: 0 | N38: =IF(SUMPRODUCT($B$6:$M$6,B38:M38)<$P$2,$P$2-SUMPRODUCT($B$6:$M$6,B38:M38),0) -> 0 | O38: 0
A39: 27 | B39: 0 | C39: 0 | D39: 0 | E39: 0 | F39: 2 | G39: 1 | H39: 4 | I39: 1 | J39: 2 | K39: 0 | L39: 0 | M39: 0 | N39: =IF(SUMPRODUCT($B$6:$M$6,B39:M39)<$P$2,$P$2-SUMPRODUCT($B$6:$M$6,B39:M39),0) -> 0 | O39: 0
A40: 28 | B40: 0 | C40: 0 | D40: 0 | E40: 0 | F40: 2 | G40: 1 | H40: 5 | I40: 0 | J40: 1 | K40: 1 | L40: 0 | M40: 0 | N40: =IF(SUMPRODUCT($B$6:$M$6,B40:M40)<$P$2,$P$2-SUMPRODUCT($B$6:$M$6,B40:M40),0) -> 0 | O40: 0
A41: 29 | B41: 0 | C41: 0 | D41: 0 | E41: 0 | F41: 2 | G41: 2 | H41: 3 | I41: 0 | J41: 3 | K41: 0 | L41: 0 | M41: 0 | N41: =IF(SUMPRODUCT($B$6:$M$6,B41:M41)<$P$2,$P$2-SUMPRODUCT($B$6:$M$6,B41:M41),0) -> 0 | O41: 0
A42: 30 | B42: 0 | C42: 0 | D42: 0 | E42: 0 | F42: 3 | G42: 0 | H42: 0 | I42: 0 | J42: 6 | K42: 2 | L42: 0 | M42: 0 | N42: =IF(SUMPRODUCT($B$6:$M$6,B42:M42)<$P$2,$P$2-SUMPRODUCT($B$6:$M$6,B42:M42),0) -> 0 | O42: 0
A43: 31 | B43: 0 | C43: 0 | D43: 0 | E43: 0 | F43: 3 | G43: 0 | H43: 3 | I43: 2 | J43: 2 | K43: 0 | L43: 0 | M43: 0 | N43: =IF(SUMPRODUCT($B$6:$M$6,B43:M43)<$P$2,$P$2-SUMPRODUCT($B$6:$M$6,B43:M43),0) -> 0 | O43: 0
A44: 32 | B44: 0 | C44: 0 | D44: 0 | E44: 0 | F44: 3 | G44: 0 | H44: 4 | I44: 1 | J44: 1 | K44: 1 | L44: 0 | M44: 0 | N44: =IF(SUMPRODUCT($B$6:$M$6,B44:M44)<$P$2,$P$2-SUMPRODUCT($B$6:$M$6,B44:M44),0) -> 0 | O44: 0
A45: 33 | B45: 0 | C45: 0 | D45: 0 | E45: 0 | F45: 3 | G45: 0 | H45: 5 | I45: 0 | J45: 0 | K45: 2 | L45: 0 | M45: 0 | N45: =IF(SUMPRODUCT($B$6:$M$6,B45:M45)<$P$2,$P$2-SUMPRODUCT($B$6:$M$6,B45:M45),0) -> 0 | O45: 0
A46: 34 | B46: 0 | C46: 0 | D46: 0 | E46: 0 | F46: 3 | G46: 1 | H46: 2 | I46: 1 | J46: 3 | K46: 0 | L46: 0 | M46: 0 | N46: =IF(SUMPRODUCT($B$6:$M$6,B46:M46)<$P$2,$P$2-SUMPRODUCT($B$6:$M$6,B46:M46),0) -> 0 | O46: 0
A47: 35 | B47: 0 | C47: 0 | D47: 0 | E47: 0 | F47: 3 | G47: 1 | H47: 3 | I47: 0 | J47: 2 | K47: 1 | L47: 0 | M47: 0 | N47: =IF(SUMPRODUCT($B$6:$M$6,B47:M47)<$P$2,$P$2-SUMPRODUCT($B$6:$M$6,B47:M47),0) -> 0 | O47: 0
A48: 36 | B48: 0 | C48: 0 | D48: 0 | E48: 0 | F48: 3 | G48: 2 | H48: 1 | I48: 0 | J48: 4 | K48: 0 | L48: 0 | M48: 0 | N48: =IF(SUMPRODUCT($B$6:$M$6,B48:M48)<$P$2,$P$2-SUMPRODUCT($B$6:$M$6,B48:M48),0) -> 0 | O48: 0
A49: 37 | B49: 0 | C49: 0 | D49: 0 | E49: 0 | F49: 4 | G49: 0 | H49: 1 | I49: 2 | J49: 3 | K49: 0 | L49: 0 | M49: 0 | N49: =IF(SUMPRODUCT($B$6:$M$6,B49:M49)<$P$2,$P$2-SUMPRODUCT($B$6:$M$6,B49:M49),0) -> 0 | O49: 0
A50: 38 | B50: 0 | C50: 0 | D50: 0 | E50: 0 | F50: 4 | G50: 0 | H50: 2 | I50: 1 | J50: 2 | K50: 1 | L50: 0 | M50: 0 | N50: =IF(SUMPRODUCT($B$6:$M$6,B50:M50)<$P$2,$P$2-SUMPRODUCT($B$6:$M$6,B50:M50),0) -> 0 | O50: 0
A51: 39 | B51: 0 | C51: 0 | D51: 0 | E51: 0 | F51: 4 | G51: 0 | H51: 3 | I51: 0 | J51: 1 | K51: 2 | L51: 0 | M51: 0 | N51: =IF(SUMPRODUCT($B$6:$M$6,B51:M51)<$P$2,$P$2-SUMPRODUCT($B$6:$M$6,B51:M51),0) -> 0 | O51: 0
A52: 40 | B52: 0 | C52: 0 | D52: 0 | E52: 0 | F52: 4 | G52: 1 | H52: 0 | I52: 1 | J52: 4 | K52: 0 | L52: 0 | M52: 0 | N52: =IF(SUMPRODUCT($B$6:$M$6,B52:M52)<$P$2,$P$2-SUMPRODUCT($B$6:$M$6,B52:M52),0) -> 0 | O52: 0
A53: 41 | B53: 0 | C53: 0 | D53: 0 | E53: 0 | F53: 4 | G53: 1 | H53: 1 | I53: 0 | J53: 3 | K53: 1 | L53: 0 | M53: 0 | N53: =IF(SUMPRODUCT($B$6:$M$6,B53:M53)<$P$2,$P$2-SUMPRODUCT($B$6:$M$6,B53:M53),0) -> 0 | O53: 0
A54: 42 | B54: 0 | C54: 0 | D54: 0 | E54: 0 | F54: 4 | G54: 5 | H54: 0 | I54: 0 | J54: 0 | K54: 0 | L54: 0 | M54: 0 | N54: =IF(SUMPRODUCT($B$6:$M$6,B54:M54)<$P$2,$P$2-SUMPRODUCT($B$6:$M$6,B54:M54),0) -> 0 | O54: 0
A55: 43 | B55: 0 | C55: 0 | D55: 0 | E55: 0 | F55: 5 | G55: 0 | H55: 0 | I55: 1 | J55: 3 | K55: 1 | L55: 0 | M55: 0 | N55: =IF(SUMPRODUCT($B$6:$M$6,B55:M55)<$P$2,$P$2-SUMPRODUCT($B$6:$M$6,B55:M55),0) -> 0 | O55: 0
A56: 44 | B56: 0 | C56: 0 | D56: 0 | E56: 0 | F56: 5 | G56: 0 | H56: 1 | I56: 0 | J56: 2 | K56: 2 | L56: 0 | M56: 0 | N56: =IF(SUMPRODUCT($B$6:$M$6,B56:M56)<$P$2,$P$2-SUMPRODUCT($B$6:$M$6,B56:M56),0) -> 0 | O56: 0
A57: 45 | B57: 0 | C57: 0 | D57: 0 | E57: 1 | F57: 0 | G57: 0 | H57: 2 | I57: 1 | J57: 7 | K57: 0 | L57: 0 | M57: 0 | N57: =IF(SUMPRODUCT($B$6:$M$6,B57:M57)<$P$2,$P$2-SUMPRODUCT($B$6:$M$6,B57:M57),0) -> 0 | O57: 0
A58: 46 | B58: 0 | C58: 0 | D58: 0 | E58: 1 | F58: 0 | G58: 0 | H58: 3 | I58: 0 | J58: 6 | K58: 1 | L58: 0 | M58: 0 | N58: =IF(SUMPRODUCT($B$6:$M$6,B58:M58)<$P$2,$P$2-SUMPRODUCT($B$6:$M$6,B58:M58),0) -> 0 | O58: 0
A59: 47 | B59: 0 | C59: 0 | D59: 0 | E59: 1 | F59: 0 | G59: 0 | H59: 7 | I59: 1 | J59: 1 | K59: 0 | L59: 0 | M59: 0 | N59: =IF(SUMPRODUCT($B$6:$M$6,B59:M59)<$P$2,$P$2-SUMPRODUCT($B$6:$M$6,B59:M59),0) -> 0 | O59: 0
A60: 48 | B60: 0 | C60: 0 | D60: 0 | E60: 1 | F60: 0 | G60: 0 | H60: 8 | I60: 0 | J60: 0 | K60: 1 | L60: 0 | M60: 0 | N60: =IF(SUMPRODUCT($B$6:$M$6,B60:M60)<$P$2,$P$2-SUMPRODUCT($B$6:$M$6,B60:M60),0) -> 0 | O60: 0
A61: 49 | B61: 0 | C61: 0 | D61: 0 | E61: 1 | F61: 0 | G61: 1 | H61: 1 | I61: 0 | J61: 8 | K61: 0 | L61: 0 | M61: 0 | N61: =IF(SUMPRODUCT($B$6:$M$6,B61:M61)<$P$2,$P$2-SUMPRODUCT($B$6:$M$6,B61:M61),0) -> 0 | O61: 0
A62: 50 | B62: 0 | C62: 0 | D62: 0 | E62: 1 | F62: 0 | G62: 1 | H62: 6 | I62: 0 | J62: 2 | K62: 0 | L62: 0 | M62: 0 | N62: =IF(SUMPRODUCT($B$6:$M$6,B62:M62)<$P$2,$P$2-SUMPRODUCT($B$6:$M$6,B62:M62),0) -> 0 | O62: 0
A63: 51 | B63: 0 | C63: 0 | D63: 0 | E63: 1 | F63: 1 | G63: 0 | H63: 0 | I63: 1 | J63: 8 | K63: 0 | L63: 0 | M63: 0 | N63: =IF(SUMPRODUCT($B$6:$M$6,B63:M63)<$P$2,$P$2-SUMPRODUCT($B$6:$M$6,B63:M63),0) -> 0 | O63: 0
A64: 52 | B64: 0 | C64: 0 | D64: 0 | E64: 1 | F64: 1 | G64: 0 | H64: 1 | I64: 0 | J64: 7 | K64: 1 | L64: 0 | M64: 0 | N64: =IF(SUMPRODUCT($B$6:$M$6,B64:M64)<$P$2,$P$2-SUMPRODUCT($B$6:$M$6,B64:M64),0) -> 0 | O64: 0
A65: 53 | B65: 0 | C65: 0 | D65: 0 | E65: 1 | F65: 1 | G65: 0 | H65: 5 | I65: 1 | J65: 2 | K65: 0 | L65: 0 | M65: 0 | N65: =IF(SUMPRODUCT($B$6:$M$6,B65:M65)<$P$2,$P$2-SUMPRODUCT($B$6:$M$6,B65:M65),0) -> 0 | O65: 0
A66: 54 | B66: 0 | C66: 0 | D66: 0 | E66: 1 | F66: 1 | G66: 0 | H66: 6 | I66: 0 | J66: 1 | K66: 1 | L66: 0 | M66: 0 | N66: =IF(SUMPRODUCT($B$6:$M$6,B66:M66)<$P$2,$P$2-SUMPRODUCT($B$6:$M$6,B66:M66),0) -> 0 | O66: 0
A67: 55 | B67: 0 | C67: 0 | D67: 0 | E67: 1 | F67: 1 | G67: 1 | H67: 4 | I67: 0 | J67: 3 | K67: 0 | L67: 0 | M67: 0 | N67: =IF(SUMPRODUCT($B$6:$M$6,B67:M67)<$P$2,$P$2-SUMPRODUCT($B$6:$M$6,B67:M67),0) -> 0 | O67: 0
A68: 56 | B68: 0 | C68: 0 | D68: 0 | E68: 1 | F68: 2 | G68: 0 | H68: 3 | I68: 1 | J68: 3 | K68: 0 | L68: 0 | M68: 0 | N68: =IF(SUMPRODUCT($B$6:$M$6,B68:M68)<$P$2,$P$2-SUMPRODUCT($B$6:$M$6,B68:M68),0) -> 0 | O68: 0
A69: 57 | B69: 0 | C69: 0 | D69: 0 | E69: 1 | F69: 2 | G69: 0 | H69: 4 | I69: 0 | J69: 2 | K69: 1 | L69: 0 | M69: 0 | N69: =IF(SUMPRODUCT($B$6:$M$6,B69:M69)<$P$2,$P$2-SUMPRODUCT($B$6:$M$6,B69:M69),0) -> 0 | O69: 0
A70: 58 | B70: 0 | C70: 0 | D70: 0 | E70: 1 | F70: 2 | G70: 1 | H70: 2 | I70: 0 | J70: 4 | K70: 0 | L70: 0 | M70: 0 | N70: =IF(SUMPRODUCT($B$6:$M$6,B70:M70)<$P$2,$P$2-SUMPRODUCT($B$6:$M$6,B70:M70),0) -> 0 | O70: 0
A71: 59 | B71: 0 | C71: 0 | D71: 0 | E71: 1 | F71: 3 | G71: 0 | H71: 1 | I71: 1 | J71: 4 | K71: 0 | L71: 0 | M71: 0 | N71: =IF(SUMPRODUCT($B$6:$M$6,B71:M71)<$P$2,$P$2-SUMPRODUCT($B$6:$M$6,B71:M71),0) -> 0 | O71: 0
A72: 60 | B72: 0 | C72: 0 | D72: 0 | E72: 1 | F72: 3 | G72: 0 | H72: 2 | I72: 0 | J72: 3 | K72: 1 | L72: 0 | M72: 0 | N72: =IF(SUMPRODUCT($B$6:$M$6,B72:M72)<$P$2,$P$2-SUMPRODUCT($B$6:$M$6,B72:M72),0) -> 0 | O72: 0
A73: 61 | B73: 0 | C73: 0 | D73: 0 | E73: 1 | F73: 3 | G73: 1 | H73: 0 | I73: 0 | J73: 5 | K73: 0 | L73: 0 | M73: 0 | N73: =IF(SUMPRODUCT($B$6:$M$6,B73:M73)<$P$2,$P$2-SUMPRODUCT($B$6:$M$6,B73:M73),0) -> 0 | O73: 0
A74: 62 | B74: 0 | C74: 0 | D74: 0 | E74: 1 | F74: 3 | G74: 4 | H74: 1 | I74: 0 | J74: 0 | K74: 0 | L74: 0 | M74: 0 | N74: =IF(SUMPRODUCT($B$6:$M$6,B74:M74)<$P$2,$P$2-SUMPRODUCT($B$6:$M$6,B74:M74),0) -> 0 | O74: 0
A75: 63 | B75: 0 | C75: 0 | D75: 0 | E75: 1 | F75: 4 | G75: 0 | H75: 0 | I75: 0 | J75: 4 | K75: 1 | L75: 0 | M75: 0 | N75: =IF(SUMPRODUCT($B$6:$M$6,B75:M75)<$P$2,$P$2-SUMPRODUCT($B$6:$M$6,B75:M75),0) -> 0 | O75: 0
A76: 64 | B76: 0 | C76: 0 | D76: 0 | E76: 1 | F76: 4 | G76: 3 | H76: 0 | I76: 1 | J76: 0 | K76: 0 | L76: 0 | M76: 0 | N76: =IF(SUMPRODUCT($B$6:$M$6,B76:M76)<$P$2,$P$2-SUMPRODUCT($B$6:$M$6,B76:M76),0) -> 0 | O76: 0
A77: 65 | B77: 0 | C77: 0 | D77: 0 | E77: 2 | F77: 0 | G77: 0 | H77: 0 | I77: 0 | J77: 9 | K77: 0 | L77: 0 | M77: 0 | N77: =IF(SUMPRODUCT($B$6:$M$6,B77:M77)<$P$2,$P$2-SUMPRODUCT($B$6:$M$6,B77:M77),0) -> 0 | O77: 0
A78: 66 | B78: 0 | C78: 0 | D78: 0 | E78: 2 | F78: 0 | G78: 0 | H78: 5 | I78: 0 | J78: 3 | K78: 0 | L78: 0 | M78: 0 | N78: =IF(SUMPRODUCT($B$6:$M$6,B78:M78)<$P$2,$P$2-SUMPRODUCT($B$6:$M$6,B78:M78),0) -> 0 | O78: 0
A79: 67 | B79: 0 | C79: 0 | D79: 0 | E79: 2 | F79: 1 | G79: 0 | H79: 3 | I79: 0 | J79: 4 | K79: 0 | L79: 0 | M79: 0 | N79: =IF(SUMPRODUCT($B$6:$M$6,B79:M79)<$P$2,$P$2-SUMPRODUCT($B$6:$M$6,B79:M79),0) -> 0 | O79: 0
A80: 68 | B80: 0 | C80: 0 | D80: 0 | E80: 2 | F80: 2 | G80: 0 | H80: 1 | I80: 0 | J80: 5 | K80: 0 | L80: 0 | M80: 0 | N80: =IF(SUMPRODUCT($B$6:$M$6,B80:M80)<$P$2,$P$2-SUMPRODUCT($B$6:$M$6,B80:M80),0) -> 0 | O80: 0
A81: 69 | B81: 0 | C81: 0 | D81: 0 | E81: 2 | F81: 2 | G81: 3 | H81: 2 | I81: 0 | J81: 0 | K81: 0 | L81: 0 | M81: 0 | N81: =IF(SUMPRODUCT($B$6:$M$6,B81:M81)<$P$2,$P$2-SUMPRODUCT($B$6:$M$6,B81:M81),0) -> 0 | O81: 0
A82: 70 | B82: 0 | C82: 0 | D82: 0 | E82: 2 | F82: 3 | G82: 2 | H82: 1 | I82: 1 | J82: 0 | K82: 0 | L82: 0 | M82: 0 | N82: =IF(SUMPRODUCT($B$6:$M$6,B82:M82)<$P$2,$P$2-SUMPRODUCT($B$6:$M$6,B82:M82),0) -> 0 | O82: 0
A83: 71 | B83: 0 | C83: 0 | D83: 0 | E83: 2 | F83: 3 | G83: 3 | H83: 0 | I83: 0 | J83: 1 | K83: 0 | L83: 0 | M83: 0 | N83: =IF(SUMPRODUCT($B$6:$M$6,B83:M83)<$P$2,$P$2-SUMPRODUCT($B$6:$M$6,B83:M83),0) -> 0 | O83: 0
A84: 72 | B84: 0 | C84: 0 | D84: 0 | E84: 2 | F84: 4 | G84: 1 | H84: 0 | I84: 2 | J84: 0 | K84: 0 | L84: 0 | M84: 0 | N84: =IF(SUMPRODUCT($B$6:$M$6,B84:M84)<$P$2,$P$2-SUMPRODUCT($B$6:$M$6,B84:M84),0) -> 0 | O84: 0
A85: 73 | B85: 0 | C85: 0 | D85: 0 | E85: 2 | F85: 4 | G85: 2 | H85: 0 | I85: 0 | J85: 0 | K85: 1 | L85: 0 | M85: 0 | N85: =IF(SUMPRODUCT($B$6:$M$6,B85:M85)<$P$2,$P$2-SUMPRODUCT($B$6:$M$6,B85:M85),0) -> 0 | O85: 0
A86: 74 | B86: 0 | C86: 0 | D86: 0 | E86: 3 | F86: 1 | G86: 2 | H86: 3 | I86: 0 | J86: 0 | K86: 0 | L86: 0 | M86: 0 | N86: =IF(SUMPRODUCT($B$6:$M$6,B86:M86)<$P$2,$P$2-SUMPRODUCT($B$6:$M$6,B86:M86),0) -> 0 | O86: 0
A87: 75 | B87: 0 | C87: 0 | D87: 0 | E87: 3 | F87: 2 | G87: 1 | H87: 2 | I87: 1 | J87: 0 | K87: 0 | L87: 0 | M87: 0 | N87: =IF(SUMPRODUCT($B$6:$M$6,B87:M87)<$P$2,$P$2-SUMPRODUCT($B$6:$M$6,B87:M87),0) -> 0 | O87: 0
A88: 76 | B88: 0 | C88: 0 | D88: 0 | E88: 3 | F88: 2 | G88: 2 | H88: 1 | I88: 0 | J88: 1 | K88: 0 | L88: 0 | M88: 0 | N88: =IF(SUMPRODUCT($B$6:$M$6,B88:M88)<$P$2,$P$2-SUMPRODUCT($B$6:$M$6,B88:M88),0) -> 0 | O88: 0
A89: 77 | B89: 0 | C89: 0 | D89: 0 | E89: 3 | F89: 3 | G89: 0 | H89: 1 | I89: 2 | J89: 0 | K89: 0 | L89: 0 | M89: 0 | N89: =IF(SUMPRODUCT($B$6:$M$6,B89:M89)<$P$2,$P$2-SUMPRODUCT($B$6:$M$6,B89:M89),0) -> 0 | O89: 0
A90: 78 | B90: 0 | C90: 0 | D90: 0 | E90: 3 | F90: 3 | G90: 1 | H90: 0 | I90: 1 | J90: 1 | K90: 0 | L90: 0 | M90: 0 | N90: =IF(SUMPRODUCT($B$6:$M$6,B90:M90)<$P$2,$P$2-SUMPRODUCT($B$6:$M$6,B90:M90),0) -> 0 | O90: 0
A91: 79 | B91: 0 | C91: 0 | D91: 0 | E91: 3 | F91: 3 | G91: 1 | H91: 1 | I91: 0 | J91: 0 | K91: 1 | L91: 0 | M91: 0 | N91: =IF(SUMPRODUCT($B$6:$M$6,B91:M91)<$P$2,$P$2-SUMPRODUCT($B$6:$M$6,B91:M91),0) -> 0 | O91: 0
A92: 80 | B92: 0 | C92: 0 | D92: 0 | E92: 3 | F92: 4 | G92: 0 | H92: 0 | I92: 1 | J92: 0 | K92: 1 | L92: 0 | M92: 0 | N92: =IF(SUMPRODUCT($B$6:$M$6,B92:M92)<$P$2,$P$2-SUMPRODUCT($B$6:$M$6,B92:M92),0) -> 0 | O92: 0
A93: 81 | B93: 0 | C93: 0 | D93: 0 | E93: 4 | F93: 0 | G93: 1 | H93: 4 | I93: 0 | J93: 0 | K93: 0 | L93: 0 | M93: 0 | N93: =IF(SUMPRODUCT($B$6:$M$6,B93:M93)<$P$2,$P$2-SUMPRODUCT($B$6:$M$6,B93:M93),0) -> 0 | O93: 0
A94: 82 | B94: 0 | C94: 0 | D94: 0 | E94: 4 | F94: 1 | G94: 0 | H94: 3 | I94: 1 | J94: 0 | K94: 0 | L94: 0 | M94: 0 | N94: =IF(SUMPRODUCT($B$6:$M$6,B94:M94)<$P$2,$P$2-SUMPRODUCT($B$6:$M$6,B94:M94),0) -> 0 | O94: 0
A95: 83 | B95: 0 | C95: 0 | D95: 0 | E95: 4 | F95: 1 | G95: 1 | H95: 2 | I95: 0 | J95: 1 | K95: 0 | L95: 0 | M95: 0 | N95: =IF(SUMPRODUCT($B$6:$M$6,B95:M95)<$P$2,$P$2-SUMPRODUCT($B$6:$M$6,B95:M95),0) -> 0 | O95: 0
A96: 84 | B96: 0 | C96: 0 | D96: 0 | E96: 4 | F96: 2 | G96: 0 | H96: 1 | I96: 1 | J96: 1 | K96: 0 | L96: 0 | M96: 0 | N96: =IF(SUMPRODUCT($B$6:$M$6,B96:M96)<$P$2,$P$2-SUMPRODUCT($B$6:$M$6,B96:M96),0) -> 0 | O96: 0
A97: 85 | B97: 0 | C97: 0 | D97: 0 | E97: 4 | F97: 2 | G97: 0 | H97: 2 | I97: 0 | J97: 0 | K97: 1 | L97: 0 | M97: 0 | N97: =IF(SUMPRODUCT($B$6:$M$6,B97:M97)<$P$2,$P$2-SUMPRODUCT($B$6:$M$6,B97:M97),0) -> 0 | O97: 0
A98: 86 | B98: 0 | C98: 0 | D98: 0 | E98: 4 | F98: 2 | G98: 1 | H98: 0 | I98: 0 | J98: 2 | K98: 0 | L98: 0 | M98: 0 | N98: =IF(SUMPRODUCT($B$6:$M$6,B98:M98)<$P$2,$P$2-SUMPRODUCT($B$6:$M$6,B98:M98),0) -> 0 | O98: 0
A99: 87 | B99: 0 | C99: 0 | D99: 0 | E99: 4 | F99: 3 | G99: 0 | H99: 0 | I99: 0 | J99: 1 | K99: 1 | L99: 0 | M99: 0 | N99: =IF(SUMPRODUCT($B$6:$M$6,B99:M99)<$P$2,$P$2-SUMPRODUCT($B$6:$M$6,B99:M99),0) -> 0 | O99: 0
A100: 88 | B100: 0 | C100: 0 | D100: 0 | E100: 5 | F100: 0 | G100: 0 | H100: 3 | I100: 0 | J100: 1 | K100: 0 | L100: 0 | M100: 0 | N100: =IF(SUMPRODUCT($B$6:$M$6,B100:M100)<$P$2,$P$2-SUMPRODUCT($B$6:$M$6,B100:M100),0) -> 0 | O100: 0
A101: 89 | B101: 0 | C101: 0 | D101: 0 | E101: 5 | F101: 1 | G101: 0 | H101: 1 | I101: 0 | J101: 2 | K101: 0 | L101: 0 | M101: 0 | N101: =IF(SUMPRODUCT($B$6:$M$6,B101:M101)<$P$2,$P$2-SUMPRODUCT($B$6:$M$6,B101:M101),0) -> 0 | O101: 0
A102: 90 | B102: 0 | C102: 0 | D102: 1 | E102: 0 | F102: 0 | G102: 0 | H102: 1 | I102: 2 | J102: 7 | K102: 0 | L102: 0 | M102: 0 | N102: =IF(SUMPRODUCT($B$6:$M$6,B102:M102)<$P$2,$P$2-SUMPRODUCT($B$6:$M$6,B102:M102),0) -> 0 | O102: 0
A103: 91 | B103: 0 | C103: 0 | D103: 1 | E103: 0 | F103: 0 | G103: 0 | H103: 2 | I103: 1 | J103: 6 | K103: 1 | L103: 0 | M103: 0 | N103: =IF(SUMPRODUCT($B$6:$M$6,B103:M103)<$P$2,$P$2-SUMPRODUCT($B$6:$M$6,B103:M103),0) -> 0 | O103: 0
A104: 92 | B104: 0 | C104: 0 | D104: 1 | E104: 0 | F104: 0 | G104: 0 | H104: 3 | I104: 0 | J104: 5 | K104: 2 | L104: 0 | M104: 0 | N104: =IF(SUMPRODUCT($B$6:$M$6,B104:M104)<$P$2,$P$2-SUMPRODUCT($B$6:$M$6,B104:M104),0) -> 0 | O104: 0
A105: 93 | B105: 0 | C105: 0 | D105: 1 | E105: 0 | F105: 0 | G105: 0 | H105: 6 | I105: 2 | J105: 1 | K105: 0 | L105: 0 | M105: 0 | N105: =IF(SUMPRODUCT($B$6:$M$6,B105:M105)<$P$2,$P$2-SUMPRODUCT($B$6:$M$6,B105:M105),0) -> 0 | O105: 0
A106: 94 | B106: 0 | C106: 0 | D106: 1 | E106: 0 | F106: 0 | G106: 0 | H106: 7 | I106: 1 | J106: 0 | K106: 1 | L106: 0 | M106: 0 | N106: =IF(SUMPRODUCT($B$6:$M$6,B106:M106)<$P$2,$P$2-SUMPRODUCT($B$6:$M$6,B106:M106),0) -> 0 | O106: 0
A107: 95 | B107: 0 | C107: 0 | D107: 1 | E107: 0 | F107: 0 | G107: 1 | H107: 0 | I107: 1 | J107: 8 | K107: 0 | L107: 0 | M107: 0 | N107: =IF(SUMPRODUCT($B$6:$M$6,B107:M107)<$P$2,$P$2-SUMPRODUCT($B$6:$M$6,B107:M107),0) -> 0 | O107: 0
A108: 96 | B108: 0 | C108: 0 | D108: 1 | E108: 0 | F108: 0 | G108: 1 | H108: 1 | I108: 0 | J108: 7 | K108: 1 | L108: 0 | M108: 0 | N108: =IF(SUMPRODUCT($B$6:$M$6,B108:M108)<$P$2,$P$2-SUMPRODUCT($B$6:$M$6,B108:M108),0) -> 0 | O108: 0
A109: 97 | B109: 0 | C109: 0 | D109: 1 | E109: 0 | F109: 0 | G109: 1 | H109: 5 | I109: 1 | J109: 2 | K109: 0 | L109: 0 | M109: 0 | N109: =IF(SUMPRODUCT($B$6:$M$6,B109:M109)<$P$2,$P$2-SUMPRODUCT($B$6:$M$6,B109:M109),0) -> 0 | O109: 0
A110: 98 | B110: 0 | C110: 0 | D110: 1 | E110: 0 | F110: 0 | G110: 1 | H110: 6 | I110: 0 | J110: 1 | K110: 1 | L110: 0 | M110: 0 | N110: =IF(SUMPRODUCT($B$6:$M$6,B110:M110)<$P$2,$P$2-SUMPRODUCT($B$6:$M$6,B110:M110),0) -> 0 | O110: 0
A111: 99 | B111: 0 | C111: 0 | D111: 1 | E111: 0 | F111: 0 | G111: 2 | H111: 4 | I111: 0 | J111: 3 | K111: 0 | L111: 0 | M111: 0 | N111: =IF(SUMPRODUCT($B$6:$M$6,B111:M111)<$P$2,$P$2-SUMPRODUCT($B$6:$M$6,B111:M111),0) -> 0 | O111: 0
A112: 100 | B112: 0 | C112: 0 | D112: 1 | E112: 0 | F112: 1 | G112: 0 | H112: 0 | I112: 1 | J112: 7 | K112: 1 | L112: 0 | M112: 0 | N112: =IF(SUMPRODUCT($B$6:$M$6,B112:M112)<$P$2,$P$2-SUMPRODUCT($B$6:$M$6,B112:M112),0) -> 0 | O112: 0
A113: 101 | B113: 0 | C113: 0 | D113: 1 | E113: 0 | F113: 1 | G113: 0 | H113: 1 | I113: 0 | J113: 6 | K113: 2 | L113: 0 | M113: 0 | N113: =IF(SUMPRODUCT($B$6:$M$6,B113:M113)<$P$2,$P$2-SUMPRODUCT($B$6:$M$6,B113:M113),0) -> 0 | O113: 0
A114: 102 | B114: 0 | C114: 0 | D114: 1 | E114: 0 | F114: 1 | G114: 0 | H114: 4 | I114: 2 | J114: 2 | K114: 0 | L114: 0 | M114: 0 | N114: =IF(SUMPRODUCT($B$6:$M$6,B114:M114)<$P$2,$P$2-SUMPRODUCT($B$6:$M$6,B114:M114),0) -> 0 | O114: 0
A115: 103 | B115: 0 | C115: 0 | D115: 1 | E115: 0 | F115: 1 | G115: 0 | H115: 5 | I115: 1 | J115: 1 | K115: 1 | L115: 0 | M115: 0 | N115: =IF(SUMPRODUCT($B$6:$M$6,B115:M115)<$P$2,$P$2-SUMPRODUCT($B$6:$M$6,B115:M115),0) -> 0 | O115: 0
A116: 104 | B116: 0 | C116: 0 | D116: 1 | E116: 0 | F116: 1 | G116: 0 | H116: 6 | I116: 0 | J116: 0 | K116: 2 | L116: 0 | M116: 0 | N116: =IF(SUMPRODUCT($B$6:$M$6,B116:M116)<$P$2,$P$2-SUMPRODUCT($B$6:$M$6,B116:M116),0) -> 0 | O116: 0
A117: 105 | B117: 0 | C117: 0 | D117: 1 | E117: 0 | F117: 1 | G117: 1 | H117: 3 | I117: 1 | J117: 3 | K117: 0 | L117: 0 | M117: 0 | N117: =IF(SUMPRODUCT($B$6:$M$6,B117:M117)<$P$2,$P$2-SUMPRODUCT($B$6:$M$6,B117:M117),0) -> 0 | O117: 0
A118: 106 | B118: 0 | C118: 0 | D118: 1 | E118: 0 | F118: 1 | G118: 1 | H118: 4 | I118: 0 | J118: 2 | K118: 1 | L118: 0 | M118: 0 | N118: =IF(SUMPRODUCT($B$6:$M$6,B118:M118)<$P$2,$P$2-SUMPRODUCT($B$6:$M$6,B118:M118),0) -> 0 | O118: 0
A119: 107 | B119: 0 | C119: 0 | D119: 1 | E119: 0 | F119: 1 | G119: 2 | H119: 2 | I119: 0 | J119: 4 | K119: 0 | L119: 0 | M119: 0 | N119: =IF(SUMPRODUCT($B$6:$M$6,B119:M119)<$P$2,$P$2-SUMPRODUCT($B$6:$M$6,B119:M119),0) -> 0 | O119: 0
A120: 108 | B120: 0 | C120: 0 | D120: 1 | E120: 0 | F120: 2 | G120: 0 | H120: 2 | I120: 2 | J120: 3 | K120: 0 | L120: 0 | M120: 0 | N120: =IF(SUMPRODUCT($B$6:$M$6,B120:M120)<$P$2,$P$2-SUMPRODUCT($B$6:$M$6,B120:M120),0) -> 0 | O120: 0
A121: 109 | B121: 0 | C121: 0 | D121: 1 | E121: 0 | F121: 2 | G121: 0 | H121: 3 | I121: 1 | J121: 2 | K121: 1 | L121: 0 | M121: 0 | N121: =IF(SUMPRODUCT($B$6:$M$6,B121:M121)<$P$2,$P$2-SUMPRODUCT($B$6:$M$6,B121:M121),0) -> 0 | O121: 0
A122: 110 | B122: 0 | C122: 0 | D122: 1 | E122: 0 | F122: 2 | G122: 0 | H122: 4 | I122: 0 | J122: 1 | K122: 2 | L122: 0 | M122: 0 | N122: =IF(SUMPRODUCT($B$6:$M$6,B122:M122)<$P$2,$P$2-SUMPRODUCT($B$6:$M$6,B122:M122),0) -> 0 | O122: 0
A123: 111 | B123: 0 | C123: 0 | D123: 1 | E123: 0 | F123: 2 | G123: 1 | H123: 1 | I123: 1 | J123: 4 | K123: 0 | L123: 0 | M123: 0 | N123: =IF(SUMPRODUCT($B$6:$M$6,B123:M123)<$P$2,$P$2-SUMPRODUCT($B$6:$M$6,B123:M123),0) -> 0 | O123: 0
A124: 112 | B124: 0 | C124: 0 | D124: 1 | E124: 0 | F124: 2 | G124: 1 | H124: 2 | I124: 0 | J124: 3 | K124: 1 | L124: 0 | M124: 0 | N124: =IF(SUMPRODUCT($B$6:$M$6,B124:M124)<$P$2,$P$2-SUMPRODUCT($B$6:$M$6,B124:M124),0) -> 0 | O124: 0
A125: 113 | B125: 0 | C125: 0 | D125: 1 | E125: 0 | F125: 2 | G125: 2 | H125: 0 | I125: 0 | J125: 5 | K125: 0 | L125: 0 | M125: 0 | N125: =IF(SUMPRODUCT($B$6:$M$6,B125:M125)<$P$2,$P$2-SUMPRODUCT($B$6:$M$6,B125:M125),0) -> 0 | O125: 0
A126: 114 | B126: 0 | C126: 0 | D126: 1 | E126: 0 | F126: 2 | G126: 5 | H126: 1 | I126: 0 | J126: 0 | K126: 0 | L126: 0 | M126: 0 | N126: =IF(SUMPRODUCT($B$6:$M$6,B126:M126)<$P$2,$P$2-SUMPRODUCT($B$6:$M$6,B126:M126),0) -> 0 | O126: 0
A127: 115 | B127: 0 | C127: 0 | D127: 1 | E127: 0 | F127: 3 | G127: 0 | H127: 0 | I127: 2 | J127: 4 | K127: 0 | L127: 0 | M127: 0 | N127: =IF(SUMPRODUCT($B$6:$M$6,B127:M127)<$P$2,$P$2-SUMPRODUCT($B$6:$M$6,B127:M127),0) -> 0 | O127: 0
A128: 116 | B128: 0 | C128: 0 | D128: 1 | E128: 0 | F128: 3 | G128: 0 | H128: 1 | I128: 1 | J128: 3 | K128: 1 | L128: 0 | M128: 0 | N128: =IF(SUMPRODUCT($B$6:$M$6,B128:M128)<$P$2,$P$2-SUMPRODUCT($B$6:$M$6,B128:M128),0) -> 0 | O128: 0
A129: 117 | B129: 0 | C129: 0 | D129: 1 | E129: 0 | F129: 3 | G129: 0 | H129: 2 | I129: 0 | J129: 2 | K129: 2 | L129: 0 | M129: 0 | N129: =IF(SUMPRODUCT($B$6:$M$6,B129:M129)<$P$2,$P$2-SUMPRODUCT($B$6:$M$6,B129:M129),0) -> 0 | O129: 0
A130: 118 | B130: 0 | C130: 0 | D130: 1 | E130: 0 | F130: 3 | G130: 1 | H130: 0 | I130: 0 | J130: 4 | K130: 1 | L130: 0 | M130: 0 | N130: =IF(SUMPRODUCT($B$6:$M$6,B130:M130)<$P$2,$P$2-SUMPRODUCT($B$6:$M$6,B130:M130),0) -> 0 | O130: 0
A131: 119 | B131: 0 | C131: 0 | D131: 1 | E131: 0 | F131: 3 | G131: 4 | H131: 0 | I131: 1 | J131: 0 | K131: 0 | L131: 0 | M131: 0 | N131: =IF(SUMPRODUCT($B$6:$M$6,B131:M131)<$P$2,$P$2-SUMPRODUCT($B$6:$M$6,B131:M131),0) -> 0 | O131: 0
A132: 120 | B132: 0 | C132: 0 | D132: 1 | E132: 0 | F132: 4 | G132: 0 | H132: 0 | I132: 0 | J132: 3 | K132: 2 | L132: 0 | M132: 0 | N132: =IF(SUMPRODUCT($B$6:$M$6,B132:M132)<$P$2,$P$2-SUMPRODUCT($B$6:$M$6,B132:M132),0) -> 0 | O132: 0
A133: 121 | B133: 0 | C133: 0 | D133: 1 | E133: 1 | F133: 0 | G133: 0 | H133: 0 | I133: 0 | J133: 8 | K133: 1 | L133: 0 | M133: 0 | N133: =IF(SUMPRODUCT($B$6:$M$6,B133:M133)<$P$2,$P$2-SUMPRODUCT($B$6:$M$6,B133:M133),0) -> 0 | O133: 0
A134: 122 | B134: 0 | C134: 0 | D134: 1 | E134: 1 | F134: 0 | G134: 0 | H134: 4 | I134: 1 | J134: 3 | K134: 0 | L134: 0 | M134: 0 | N134: =IF(SUMPRODUCT($B$6:$M$6,B134:M134)<$P$2,$P$2-SUMPRODUCT($B$6:$M$6,B134:M134),0) -> 0 | O134: 0
A135: 123 | B135: 0 | C135: 0 | D135: 1 | E135: 1 | F135: 0 | G135: 0 | H135: 5 | I135: 0 | J135: 2 | K135: 1 | L135: 0 | M135: 0 | N135: =IF(SUMPRODUCT($B$6:$M$6,B135:M135)<$P$2,$P$2-SUMPRODUCT($B$6:$M$6,B135:M135),0) -> 0 | O135: 0
A136: 124 | B136: 0 | C136: 0 | D136: 1 | E136: 1 | F136: 0 | G136: 1 | H136: 3 | I136: 0 | J136: 4 | K136: 0 | L136: 0 | M136: 0 | N136: =IF(SUMPRODUCT($B$6:$M$6,B136:M136)<$P$2,$P$2-SUMPRODUCT($B$6:$M$6,B136:M136),0) -> 0 | O136: 0
A137: 125 | B137: 0 | C137: 0 | D137: 1 | E137: 1 | F137: 1 | G137: 0 | H137: 2 | I137: 1 | J137: 4 | K137: 0 | L137: 0 | M137: 0 | N137: =IF(SUMPRODUCT($B$6:$M$6,B137:M137)<$P$2,$P$2-SUMPRODUCT($B$6:$M$6,B137:M137),0) -> 0 | O137: 0
A138: 126 | B138: 0 | C138: 0 | D138: 1 | E138: 1 | F138: 1 | G138: 0 | H138: 3 | I138: 0 | J138: 3 | K138: 1 | L138: 0 | M138: 0 | N138: =IF(SUMPRODUCT($B$6:$M$6,B138:M138)<$P$2,$P$2-SUMPRODUCT($B$6:$M$6,B138:M138),0) -> 0 | O138: 0
A139: 127 | B139: 0 | C139: 0 | D139: 1 | E139: 1 | F139: 1 | G139: 1 | H139: 1 | I139: 0 | J139: 5 | K139: 0 | L139: 0 | M139: 0 | N139: =IF(SUMPRODUCT($B$6:$M$6,B139:M139)<$P$2,$P$2-SUMPRODUCT($B$6:$M$6,B139:M139),0) -> 0 | O139: 0
A140: 128 | B140: 0 | C140: 0 | D140: 1 | E140: 1 | F140: 1 | G140: 4 | H140: 2 | I140: 0 | J140: 0 | K140: 0 | L140: 0 | M140: 0 | N140: =IF(SUMPRODUCT($B$6:$M$6,B140:M140)<$P$2,$P$2-SUMPRODUCT($B$6:$M$6,B140:M140),0) -> 0 | O140: 0
A141: 129 | B141: 0 | C141: 0 | D141: 1 | E141: 1 | F141: 2 | G141: 0 | H141: 0 | I141: 1 | J141: 5 | K141: 0 | L141: 0 | M141: 0 | N141: =IF(SUMPRODUCT($B$6:$M$6,B141:M141)<$P$2,$P$2-SUMPRODUCT($B$6:$M$6,B141:M141),0) -> 0 | O141: 0
A142: 130 | B142: 0 | C142: 0 | D142: 1 | E142: 1 | F142: 2 | G142: 0 | H142: 1 | I142: 0 | J142: 4 | K142: 1 | L142: 0 | M142: 0 | N142: =IF(SUMPRODUCT($B$6:$M$6,B142:M142)<$P$2,$P$2-SUMPRODUCT($B$6:$M$6,B142:M142),0) -> 0 | O142: 0
A143: 131 | B143: 0 | C143: 0 | D143: 1 | E143: 1 | F143: 2 | G143: 3 | H143: 1 | I143: 1 | J143: 0 | K143: 0 | L143: 0 | M143: 0 | N143: =IF(SUMPRODUCT($B$6:$M$6,B143:M143)<$P$2,$P$2-SUMPRODUCT($B$6:$M$6,B143:M143),0) -> 0 | O143: 0
A144: 132 | B144: 0 | C144: 0 | D144: 1 | E144: 1 | F144: 2 | G144: 4 | H144: 0 | I144: 0 | J144: 1 | K144: 0 | L144: 0 | M144: 0 | N144: =IF(SUMPRODUCT($B$6:$M$6,B144:M144)<$P$2,$P$2-SUMPRODUCT($B$6:$M$6,B144:M144),0) -> 0 | O144: 0
A145: 133 | B145: 0 | C145: 0 | D145: 1 | E145: 1 | F145: 3 | G145: 2 | H145: 0 | I145: 2 | J145: 0 | K145: 0 | L145: 0 | M145: 0 | N145: =IF(SUMPRODUCT($B$6:$M$6,B145:M145)<$P$2,$P$2-SUMPRODUCT($B$6:$M$6,B145:M145),0) -> 0 | O145: 0
A146: 134 | B146: 0 | C146: 0 | D146: 1 | E146: 1 | F146: 3 | G146: 3 | H146: 0 | I146: 0 | J146: 0 | K146: 1 | L146: 0 | M146: 0 | N146: =IF(SUMPRODUCT($B$6:$M$6,B146:M146)<$P$2,$P$2-SUMPRODUCT($B$6:$M$6,B146:M146),0) -> 0 | O146: 0
A147: 135 | B147: 0 | C147: 0 | D147: 1 | E147: 2 | F147: 0 | G147: 0 | H147: 2 | I147: 0 | J147: 5 | K147: 0 | L147: 0 | M147: 0 | N147: =IF(SUMPRODUCT($B$6:$M$6,B147:M147)<$P$2,$P$2-SUMPRODUCT($B$6:$M$6,B147:M147),0) -> 0 | O147: 0
A148: 136 | B148: 0 | C148: 0 | D148: 1 | E148: 2 | F148: 0 | G148: 3 | H148: 3 | I148: 0 | J148: 0 | K148: 0 | L148: 0 | M148: 0 | N148: =IF(SUMPRODUCT($B$6:$M$6,B148:M148)<$P$2,$P$2-SUMPRODUCT($B$6:$M$6,B148:M148),0) -> 0 | O148: 0
A149: 137 | B149: 0 | C149: 0 | D149: 1 | E149: 2 | F149: 1 | G149: 0 | H149: 0 | I149: 0 | J149: 6 | K149: 0 | L149: 0 | M149: 0 | N149: =IF(SUMPRODUCT($B$6:$M$6,B149:M149)<$P$2,$P$2-SUMPRODUCT($B$6:$M$6,B149:M149),0) -> 0 | O149: 0
A150: 138 | B150: 0 | C150: 0 | D150: 1 | E150: 2 | F150: 1 | G150: 2 | H150: 2 | I150: 1 | J150: 0 | K150: 0 | L150: 0 | M150: 0 | N150: =IF(SUMPRODUCT($B$6:$M$6,B150:M150)<$P$2,$P$2-SUMPRODUCT($B$6:$M$6,B150:M150),0) -> 0 | O150: 0
A151: 139 | B151: 0 | C151: 0 | D151: 1 | E151: 2 | F151: 1 | G151: 3 | H151: 1 | I151: 0 | J151: 1 | K151: 0 | L151: 0 | M151: 0 | N151: =IF(SUMPRODUCT($B$6:$M$6,B151:M151)<$P$2,$P$2-SUMPRODUCT($B$6:$M$6,B151:M151),0) -> 0 | O151: 0
A152: 140 | B152: 0 | C152: 0 | D152: 1 | E152: 2 | F152: 2 | G152: 1 | H152: 1 | I152: 2 | J152: 0 | K152: 0 | L152: 0 | M152: 0 | N152: =IF(SUMPRODUCT($B$6:$M$6,B152:M152)<$P$2,$P$2-SUMPRODUCT($B$6:$M$6,B152:M152),0) -> 0 | O152: 0
A153: 141 | B153: 0 | C153: 0 | D153: 1 | E153: 2 | F153: 2 | G153: 2 | H153: 0 | I153: 1 | J153: 1 | K153: 0 | L153: 0 | M153: 0 | N153: =IF(SUMPRODUCT($B$6:$M$6,B153:M153)<$P$2,$P$2-SUMPRODUCT($B$6:$M$6,B153:M153),0) -> 0 | O153: 0
A154: 142 | B154: 0 | C154: 0 | D154: 1 | E154: 2 | F154: 2 | G154: 2 | H154: 1 | I154: 0 | J154: 0 | K154: 1 | L154: 0 | M154: 0 | N154: =IF(SUMPRODUCT($B$6:$M$6,B154:M154)<$P$2,$P$2-SUMPRODUCT($B$6:$M$6,B154:M154),0) -> 0 | O154: 0
A155: 143 | B155: 0 | C155: 0 | D155: 1 | E155: 2 | F155: 3 | G155: 0 | H155: 0 | I155: 3 | J155: 0 | K155: 0 | L155: 0 | M155: 0 | N155: =IF(SUMPRODUCT($B$6:$M$6,B155:M155)<$P$2,$P$2-SUMPRODUCT($B$6:$M$6,B155:M155),0) -> 0 | O155: 0
A156: 144 | B156: 0 | C156: 0 | D156: 1 | E156: 2 | F156: 3 | G156: 1 | H156: 0 | I156: 1 | J156: 0 | K156: 1 | L156: 0 | M156: 0 | N156: =IF(SUMPRODUCT($B$6:$M$6,B156:M156)<$P$2,$P$2-SUMPRODUCT($B$6:$M$6,B156:M156),0) -> 0 | O156: 0
A157: 145 | B157: 0 | C157: 0 | D157: 1 | E157: 3 | F157: 0 | G157: 1 | H157: 3 | I157: 1 | J157: 0 | K157: 0 | L157: 0 | M157: 0 | N157: =IF(SUMPRODUCT($B$6:$M$6,B157:M157)<$P$2,$P$2-SUMPRODUCT($B$6:$M$6,B157:M157),0) -> 0 | O157: 0
A158: 146 | B158: 0 | C158: 0 | D158: 1 | E158: 3 | F158: 0 | G158: 2 | H158: 2 | I158: 0 | J158: 1 | K158: 0 | L158: 0 | M158: 0 | N158: =IF(SUMPRODUCT($B$6:$M$6,B158:M158)<$P$2,$P$2-SUMPRODUCT($B$6:$M$6,B158:M158),0) -> 0 | O158: 0
A159: 147 | B159: 0 | C159: 0 | D159: 1 | E159: 3 | F159: 1 | G159: 0 | H159: 2 | I159: 2 | J159: 0 | K159: 0 | L159: 0 | M159: 0 | N159: =IF(SUMPRODUCT($B$6:$M$6,B159:M159)<$P$2,$P$2-SUMPRODUCT($B$6:$M$6,B159:M159),0) -> 0 | O159: 0
A160: 148 | B160: 0 | C160: 0 | D160: 1 | E160: 3 | F160: 1 | G160: 1 | H160: 1 | I160: 1 | J160: 1 | K160: 0 | L160: 0 | M160: 0 | N160: =IF(SUMPRODUCT($B$6:$M$6,B160:M160)<$P$2,$P$2-SUMPRODUCT($B$6:$M$6,B160:M160),0) -> 0 | O160: 0
A161: 149 | B161: 0 | C161: 0 | D161: 1 | E161: 3 | F161: 1 | G161: 1 | H161: 2 | I161: 0 | J161: 0 | K161: 1 | L161: 0 | M161: 0 | N161: =IF(SUMPRODUCT($B$6:$M$6,B161:M161)<$P$2,$P$2-SUMPRODUCT($B$6:$M$6,B161:M161),0) -> 0 | O161: 0
A162: 150 | B162: 0 | C162: 0 | D162: 1 | E162: 3 | F162: 1 | G162: 2 | H162: 0 | I162: 0 | J162: 2 | K162: 0 | L162: 0 | M162: 0 | N162: =IF(SUMPRODUCT($B$6:$M$6,B162:M162)<$P$2,$P$2-SUMPRODUCT($B$6:$M$6,B162:M162),0) -> 0 | O162: 0
A163: 151 | B163: 0 | C163: 0 | D163: 1 | E163: 3 | F163: 2 | G163: 0 | H163: 0 | I163: 2 | J163: 1 | K163: 0 | L163: 0 | M163: 0 | N163: =IF(SUMPRODUCT($B$6:$M$6,B163:M163)<$P$2,$P$2-SUMPRODUCT($B$6:$M$6,B163:M163),0) -> 0 | O163: 0
A164: 152 | B164: 0 | C164: 0 | D164: 1 | E164: 3 | F164: 2 | G164: 0 | H164: 1 | I164: 1 | J164: 0 | K164: 1 | L164: 0 | M164: 0 | N164: =IF(SUMPRODUCT($B$6:$M$6,B164:M164)<$P$2,$P$2-SUMPRODUCT($B$6:$M$6,B164:M164),0) -> 0 | O164: 0
A165: 153 | B165: 0 | C165: 0 | D165: 1 | E165: 3 | F165: 2 | G165: 1 | H165: 0 | I165: 0 | J165: 1 | K165: 1 | L165: 0 | M165: 0 | N165: =IF(SUMPRODUCT($B$6:$M$6,B165:M165)<$P$2,$P$2-SUMPRODUCT($B$6:$M$6,B165:M165),0) -> 0 | O165: 0
A166: 154 | B166: 0 | C166: 0 | D166: 1 | E166: 3 | F166: 3 | G166: 0 | H166: 0 | I166: 0 | J166: 0 | K166: 2 | L166: 0 | M166: 0 | N166: =IF(SUMPRODUCT($B$6:$M$6,B166:M166)<$P$2,$P$2-SUMPRODUCT($B$6:$M$6,B166:M166),0) -> 0 | O166: 0
A167: 155 | B167: 0 | C167: 0 | D167: 1 | E167: 4 | F167: 0 | G167: 0 | H167: 2 | I167: 1 | J167: 1 | K167: 0 | L167: 0 | M167: 0 | N167: =IF(SUMPRODUCT($B$6:$M$6,B167:M167)<$P$2,$P$2-SUMPRODUCT($B$6:$M$6,B167:M167),0) -> 0 | O167: 0
A168: 156 | B168: 0 | C168: 0 | D168: 1 | E168: 4 | F168: 0 | G168: 0 | H168: 3 | I168: 0 | J168: 0 | K168: 1 | L168: 0 | M168: 0 | N168: =IF(SUMPRODUCT($B$6:$M$6,B168:M168)<$P$2,$P$2-SUMPRODUCT($B$6:$M$6,B168:M168),0) -> 0 | O168: 0
A169: 157 | B169: 0 | C169: 0 | D169: 1 | E169: 4 | F169: 0 | G169: 1 | H169: 1 | I169: 0 | J169: 2 | K169: 0 | L169: 0 | M169: 0 | N169: =IF(SUMPRODUCT($B$6:$M$6,B169:M169)<$P$2,$P$2-SUMPRODUCT($B$6:$M$6,B169:M169),0) -> 0 | O169: 0
A170: 158 | B170: 0 | C170: 0 | D170: 1 | E170: 4 | F170: 1 | G170: 0 | H170: 0 | I170: 1 | J170: 2 | K170: 0 | L170: 0 | M170: 0 | N170: =IF(SUMPRODUCT($B$6:$M$6,B170:M170)<$P$2,$P$2-SUMPRODUCT($B$6:$M$6,B170:M170),0) -> 0 | O170: 0
A171: 159 | B171: 0 | C171: 0 | D171: 1 | E171: 4 | F171: 1 | G171: 0 | H171: 1 | I171: 0 | J171: 1 | K171: 1 | L171: 0 | M171: 0 | N171: =IF(SUMPRODUCT($B$6:$M$6,B171:M171)<$P$2,$P$2-SUMPRODUCT($B$6:$M$6,B171:M171),0) -> 0 | O171: 0
A172: 160 | B172: 0 | C172: 0 | D172: 1 | E172: 5 | F172: 0 | G172: 0 | H172: 0 | I172: 0 | J172: 3 | K172: 0 | L172: 0 | M172: 0 | N172: =IF(SUMPRODUCT($B$6:$M$6,B172:M172)<$P$2,$P$2-SUMPRODUCT($B$6:$M$6,B172:M172),0) -> 0 | O172: 0
A173: 161 | B173: 0 | C173: 0 | D173: 2 | E173: 0 | F173: 0 | G173: 0 | H173: 0 | I173: 0 | J173: 7 | K173: 2 | L173: 0 | M173: 0 | N173: =IF(SUMPRODUCT($B$6:$M$6,B173:M173)<$P$2,$P$2-SUMPRODUCT($B$6:$M$6,B173:M173),0) -> 0 | O173: 0
A174: 162 | B174: 0 | C174: 0 | D174: 2 | E174: 0 | F174: 0 | G174: 0 | H174: 3 | I174: 2 | J174: 3 | K174: 0 | L174: 0 | M174: 0 | N174: =IF(SUMPRODUCT($B$6:$M$6,B174:M174)<$P$2,$P$2-SUMPRODUCT($B$6:$M$6,B174:M174),0) -> 0 | O174: 0
A175: 163 | B175: 0 | C175: 0 | D175: 2 | E175: 0 | F175: 0 | G175: 0 | H175: 4 | I175: 1 | J175: 2 | K175: 1 | L175: 0 | M175: 0 | N175: =IF(SUMPRODUCT($B$6:$M$6,B175:M175)<$P$2,$P$2-SUMPRODUCT($B$6:$M$6,B175:M175),0) -> 0 | O175: 0
A176: 164 | B176: 0 | C176: 0 | D176: 2 | E176: 0 | F176: 0 | G176: 0 | H176: 5 | I176: 0 | J176: 1 | K176: 2 | L176: 0 | M176: 0 | N176: =IF(SUMPRODUCT($B$6:$M$6,B176:M176)<$P$2,$P$2-SUMPRODUCT($B$6:$M$6,B176:M176),0) -> 0 | O176: 0
A177: 165 | B177: 0 | C177: 0 | D177: 2 | E177: 0 | F177: 0 | G177: 1 | H177: 2 | I177: 1 | J177: 4 | K177: 0 | L177: 0 | M177: 0 | N177: =IF(SUMPRODUCT($B$6:$M$6,B177:M177)<$P$2,$P$2-SUMPRODUCT($B$6:$M$6,B177:M177),0) -> 0 | O177: 0
A178: 166 | B178: 0 | C178: 0 | D178: 2 | E178: 0 | F178: 0 | G178: 1 | H178: 3 | I178: 0 | J178: 3 | K178: 1 | L178: 0 | M178: 0 | N178: =IF(SUMPRODUCT($B$6:$M$6,B178:M178)<$P$2,$P$2-SUMPRODUCT($B$6:$M$6,B178:M178),0) -> 0 | O178: 0
A179: 167 | B179: 0 | C179: 0 | D179: 2 | E179: 0 | F179: 0 | G179: 2 | H179: 1 | I179: 0 | J179: 5 | K179: 0 | L179: 0 | M179: 0 | N179: =IF(SUMPRODUCT($B$6:$M$6,B179:M179)<$P$2,$P$2-SUMPRODUCT($B$6:$M$6,B179:M179),0) -> 0 | O179: 0
A180: 168 | B180: 0 | C180: 0 | D180: 2 | E180: 0 | F180: 0 | G180: 5 | H180: 2 | I180: 0 | J180: 0 | K180: 0 | L180: 0 | M180: 0 | N180: =IF(SUMPRODUCT($B$6:$M$6,B180:M180)<$P$2,$P$2-SUMPRODUCT($B$6:$M$6,B180:M180),0) -> 0 | O180: 0
A181: 169 | B181: 0 | C181: 0 | D181: 2 | E181: 0 | F181: 1 | G181: 0 | H181: 1 | I181: 2 | J181: 4 | K181: 0 | L181: 0 | M181: 0 | N181: =IF(SUMPRODUCT($B$6:$M$6,B181:M181)<$P$2,$P$2-SUMPRODUCT($B$6:$M$6,B181:M181),0) -> 0 | O181: 0
A182: 170 | B182: 0 | C182: 0 | D182: 2 | E182: 0 | F182: 1 | G182: 0 | H182: 2 | I182: 1 | J182: 3 | K182: 1 | L182: 0 | M182: 0 | N182: =IF(SUMPRODUCT($B$6:$M$6,B182:M182)<$P$2,$P$2-SUMPRODUCT($B$6:$M$6,B182:M182),0) -> 0 | O182: 0
A183: 171 | B183: 0 | C183: 0 | D183: 2 | E183: 0 | F183: 1 | G183: 0 | H183: 3 | I183: 0 | J183: 2 | K183: 2 | L183: 0 | M183: 0 | N183: =IF(SUMPRODUCT($B$6:$M$6,B183:M183)<$P$2,$P$2-SUMPRODUCT($B$6:$M$6,B183:M183),0) -> 0 | O183: 0
A184: 172 | B184: 0 | C184: 0 | D184: 2 | E184: 0 | F184: 1 | G184: 1 | H184: 0 | I184: 1 | J184: 5 | K184: 0 | L184: 0 | M184: 0 | N184: =IF(SUMPRODUCT($B$6:$M$6,B184:M184)<$P$2,$P$2-SUMPRODUCT($B$6:$M$6,B184:M184),0) -> 0 | O184: 0
A185: 173 | B185: 0 | C185: 0 | D185: 2 | E185: 0 | F185: 1 | G185: 1 | H185: 1 | I185: 0 | J185: 4 | K185: 1 | L185: 0 | M185: 0 | N185: =IF(SUMPRODUCT($B$6:$M$6,B185:M185)<$P$2,$P$2-SUMPRODUCT($B$6:$M$6,B185:M185),0) -> 0 | O185: 0
A186: 174 | B186: 0 | C186: 0 | D186: 2 | E186: 0 | F186: 1 | G186: 4 | H186: 1 | I186: 1 | J186: 0 | K186: 0 | L186: 0 | M186: 0 | N186: =IF(SUMPRODUCT($B$6:$M$6,B186:M186)<$P$2,$P$2-SUMPRODUCT($B$6:$M$6,B186:M186),0) -> 0 | O186: 0
A187: 175 | B187: 0 | C187: 0 | D187: 2 | E187: 0 | F187: 1 | G187: 5 | H187: 0 | I187: 0 | J187: 1 | K187: 0 | L187: 0 | M187: 0 | N187: =IF(SUMPRODUCT($B$6:$M$6,B187:M187)<$P$2,$P$2-SUMPRODUCT($B$6:$M$6,B187:M187),0) -> 0 | O187: 0
A188: 176 | B188: 0 | C188: 0 | D188: 2 | E188: 0 | F188: 2 | G188: 0 | H188: 0 | I188: 1 | J188: 4 | K188: 1 | L188: 0 | M188: 0 | N188: =IF(SUMPRODUCT($B$6:$M$6,B188:M188)<$P$2,$P$2-SUMPRODUCT($B$6:$M$6,B188:M188),0) -> 0 | O188: 0
A189: 177 | B189: 0 | C189: 0 | D189: 2 | E189: 0 | F189: 2 | G189: 0 | H189: 1 | I189: 0 | J189: 3 | K189: 2 | L189: 0 | M189: 0 | N189: =IF(SUMPRODUCT($B$6:$M$6,B189:M189)<$P$2,$P$2-SUMPRODUCT($B$6:$M$6,B189:M189),0) -> 0 | O189: 0
A190: 178 | B190: 0 | C190: 0 | D190: 2 | E190: 0 | F190: 2 | G190: 3 | H190: 0 | I190: 2 | J190: 0 | K190: 0 | L190: 0 | M190: 0 | N190: =IF(SUMPRODUCT($B$6:$M$6,B190:M190)<$P$2,$P$2-SUMPRODUCT($B$6:$M$6,B190:M190),0) -> 0 | O190: 0
A191: 179 | B191: 0 | C191: 0 | D191: 2 | E191: 0 | F191: 2 | G191: 4 | H191: 0 | I191: 0 | J191: 0 | K191: 1 | L191: 0 | M191: 0 | N191: =IF(SUMPRODUCT($B$6:$M$6,B191:M191)<$P$2,$P$2-SUMPRODUCT($B$6:$M$6,B191:M191),0) -> 0 | O191: 0
A192: 180 | B192: 0 | C192: 0 | D192: 2 | E192: 1 | F192: 0 | G192: 0 | H192: 1 | I192: 1 | J192: 5 | K192: 0 | L192: 0 | M192: 0 | N192: =IF(SUMPRODUCT($B$6:$M$6,B192:M192)<$P$2,$P$2-SUMPRODUCT($B$6:$M$6,B192:M192),0) -> 0 | O192: 0
A193: 181 | B193: 0 | C193: 0 | D193: 2 | E193: 1 | F193: 0 | G193: 0 | H193: 2 | I193: 0 | J193: 4 | K193: 1 | L193: 0 | M193: 0 | N193: =IF(SUMPRODUCT($B$6:$M$6,B193:M193)<$P$2,$P$2-SUMPRODUCT($B$6:$M$6,B193:M193),0) -> 0 | O193: 0
A194: 182 | B194: 0 | C194: 0 | D194: 2 | E194: 1 | F194: 0 | G194: 1 | H194: 0 | I194: 0 | J194: 6 | K194: 0 | L194: 0 | M194: 0 | N194: =IF(SUMPRODUCT($B$6:$M$6,B194:M194)<$P$2,$P$2-SUMPRODUCT($B$6:$M$6,B194:M194),0) -> 0 | O194: 0
A195: 183 | B195: 0 | C195: 0 | D195: 2 | E195: 1 | F195: 0 | G195: 3 | H195: 2 | I195: 1 | J195: 0 | K195: 0 | L195: 0 | M195: 0 | N195: =IF(SUMPRODUCT($B$6:$M$6,B195:M195)<$P$2,$P$2-SUMPRODUCT($B$6:$M$6,B195:M195),0) -> 0 | O195: 0
A196: 184 | B196: 0 | C196: 0 | D196: 2 | E196: 1 | F196: 0 | G196: 4 | H196: 1 | I196: 0 | J196: 1 | K196: 0 | L196: 0 | M196: 0 | N196: =IF(SUMPRODUCT($B$6:$M$6,B196:M196)<$P$2,$P$2-SUMPRODUCT($B$6:$M$6,B196:M196),0) -> 0 | O196: 0
A197: 185 | B197: 0 | C197: 0 | D197: 2 | E197: 1 | F197: 1 | G197: 0 | H197: 0 | I197: 0 | J197: 5 | K197: 1 | L197: 0 | M197: 0 | N197: =IF(SUMPRODUCT($B$6:$M$6,B197:M197)<$P$2,$P$2-SUMPRODUCT($B$6:$M$6,B197:M197),0) -> 0 | O197: 0
A198: 186 | B198: 0 | C198: 0 | D198: 2 | E198: 1 | F198: 1 | G198: 2 | H198: 1 | I198: 2 | J198: 0 | K198: 0 | L198: 0 | M198: 0 | N198: =IF(SUMPRODUCT($B$6:$M$6,B198:M198)<$P$2,$P$2-SUMPRODUCT($B$6:$M$6,B198:M198),0) -> 0 | O198: 0
A199: 187 | B199: 0 | C199: 0 | D199: 2 | E199: 1 | F199: 1 | G199: 3 | H199: 0 | I199: 1 | J199: 1 | K199: 0 | L199: 0 | M199: 0 | N199: =IF(SUMPRODUCT($B$6:$M$6,B199:M199)<$P$2,$P$2-SUMPRODUCT($B$6:$M$6,B199:M199),0) -> 0 | O199: 0
A200: 188 | B200: 0 | C200: 0 | D200: 2 | E200: 1 | F200: 1 | G200: 3 | H200: 1 | I200: 0 | J200: 0 | K200: 1 | L200: 0 | M200: 0 | N200: =IF(SUMPRODUCT($B$6:$M$6,B200:M200)<$P$2,$P$2-SUMPRODUCT($B$6:$M$6,B200:M200),0) -> 0 | O200: 0
A201: 189 | B201: 0 | C201: 0 | D201: 2 | E201: 1 | F201: 2 | G201: 1 | H201: 0 | I201: 3 | J201: 0 | K201: 0 | L201: 0 | M201: 0 | N201: =IF(SUMPRODUCT($B$6:$M$6,B201:M201)<$P$2,$P$2-SUMPRODUCT($B$6:$M$6,B201:M201),0) -> 0 | O201: 0
... 4299 more rows

Sheet Варианты разреза
A1: Оптимизация. Варюхин С.Е. 2015 гг | C1: Нарезка труб
B2: 1 | C2: 2 | D2: 3 | E2: 4 | F2: 5 | G2: 6 | H2: 7 | I2: 8 | J2: 9 | K2: 10 | L2: 11 | M2: 12 | N2: Номер детали | P2: 6000 | Q2: = L — длина труб, мм
B3: 28 | C3: 18 | D3: 31 | E3: 96 | F3: 12 | G3: 27 | H3: 63 | I3: 76 | J3: 6 | K3: 14 | L3: 0 | M3: 0 | N3: Количество деталей | O3: =SUM(B3:M3) -> 371
B4: 1135 | C4: 980 | D4: 890 | E4: 847 | F4: 800 | G4: 735 | H4: 700 | I4: 635 | J4: 600 | K4: 555 | L4: 6000 | M4: 6000 | N4: Размеры деталей, мм | P4: 427 | Q4: = Δ - максимальный размер обрезка
P5: 0 | Q5: = Δm - максимальный размер остатка
B6: =B4+$P$6 -> 1138 | C6: 983 | D6: 893 | E6: 850 | F6: 803 | G6: 738 | H6: 703 | I6: 638 | J6: 603 | K6: 558 | L6: 6003 | M6: 6003 | N6: Длина детали + ширина реза | P6: 3 | Q6: = d - ширина реза
A7: вариантов | B7: =SUMPRODUCT(B6:M6,B3:M3)/(P2+P6) -> 48.74396135 | C7: Теоретич. мин. число труб | M7: Суммарная длина обрезков, м = | N7: =SUMPRODUCT(N13:N10014,O13:O10014)/1000 -> 0.000
A8: 10,002 | B8: =SUM(O13:O10014) -> 0 | C8: Количество труб длины L | M8: Суммарная длина остатков, м = | N8: 0.000 | O8: =N7*1000/(P2*B8) ->  | P8: Процент потерь в обрезки
B10: =SUMPRODUCT(B13:B10014,$O$13:$O$10014) -> 0 | C10: =SUMPRODUCT(C13:C10014,$O$13:$O$10014) -> 0 | D10: 0 | E10: 0 | F10: 0 | G10: 0 | H10: 0 | I10: 0 | J10: 0 | K10: 0 | L10: 0 | M10: 0 | N10: Количество полученных деталей | O10: =SUM(B10:M10) -> 0 | P10: 1.000 | Q10: = макс. суммарная длина обрезков
B11: =B10-B3 -> -28 | C11: -18 | D11: -31 | E11: -96 | F11: -12 | G11: -27 | H11: -63 | I11: -76 | J11: -6 | K11: =K10-K3 -> -14 | L11: 0 | M11: =M10-M3 -> 0 | N11: Количество лишних деталей | O11: =SUM(B11:M11) -> -371 | P11: 3 | Q11: = максимальный избыток деталей
A12: Номер варианта разреза | B12: 1 | C12: 2 | D12: 3 | E12: 4 | F12: 5 | G12: 6 | H12: 7 | I12: 8 | J12: 9 | K12: 10 | L12: 11 | M12: 12 | N12: Обрезок или остаток | O12: Сколько труб так разрезать?
A13: 1 | B13: 0 | C13: 0 | D13: 0 | E13: 0 | F13: 0 | G13: 0 | H13: 0 | I13: 0 | J13: 0 | K13: 0 | L13: 0 | M13: 1 | N13: =IF(SUMPRODUCT($B$6:$M$6,B13:M13)<$P$2,$P$2-SUMPRODUCT($B$6:$M$6,B13:M13),0) -> 0 | O13: 0
A14: 2 | B14: 0 | C14: 0 | D14: 0 | E14: 0 | F14: 0 | G14: 0 | H14: 0 | I14: 0 | J14: 0 | K14: 0 | L14: 1 | M14: 0 | N14: =IF(SUMPRODUCT($B$6:$M$6,B14:M14)<$P$2,$P$2-SUMPRODUCT($B$6:$M$6,B14:M14),0) -> 0 | O14: 0
A15: 3 | B15: 0 | C15: 0 | D15: 0 | E15: 0 | F15: 0 | G15: 0 | H15: 0 | I15: 3 | J15: 4 | K15: 3 | L15: 0 | M15: 0 | N15: =IF(SUMPRODUCT($B$6:$M$6,B15:M15)<$P$2,$P$2-SUMPRODUCT($B$6:$M$6,B15:M15),0) -> 0 | O15: 0
A16: 4 | B16: 0 | C16: 0 | D16: 0 | E16: 0 | F16: 0 | G16: 0 | H16: 4 | I16: 5 | J16: 0 | K16: 0 | L16: 0 | M16: 0 | N16: =IF(SUMPRODUCT($B$6:$M$6,B16:M16)<$P$2,$P$2-SUMPRODUCT($B$6:$M$6,B16:M16),0) -> 0 | O16: 0
A17: 5 | B17: 0 | C17: 0 | D17: 0 | E17: 0 | F17: 0 | G17: 1 | H17: 0 | I17: 3 | J17: 0 | K17: 6 | L17: 0 | M17: 0 | N17: =IF(SUMPRODUCT($B$6:$M$6,B17:M17)<$P$2,$P$2-SUMPRODUCT($B$6:$M$6,B17:M17),0) -> 0 | O17: 0
A18: 6 | B18: 0 | C18: 0 | D18: 0 | E18: 0 | F18: 0 | G18: 1 | H18: 3 | I18: 4 | J18: 1 | K18: 0 | L18: 0 | M18: 0 | N18: =IF(SUMPRODUCT($B$6:$M$6,B18:M18)<$P$2,$P$2-SUMPRODUCT($B$6:$M$6,B18:M18),0) -> 0 | O18: 0
A19: 7 | B19: 0 | C19: 0 | D19: 0 | E19: 0 | F19: 0 | G19: 2 | H19: 2 | I19: 3 | J19: 2 | K19: 0 | L19: 0 | M19: 0 | N19: =IF(SUMPRODUCT($B$6:$M$6,B19:M19)<$P$2,$P$2-SUMPRODUCT($B$6:$M$6,B19:M19),0) -> 0 | O19: 0
A20: 8 | B20: 0 | C20: 0 | D20: 0 | E20: 0 | F20: 0 | G20: 3 | H20: 1 | I20: 2 | J20: 3 | K20: 0 | L20: 0 | M20: 0 | N20: =IF(SUMPRODUCT($B$6:$M$6,B20:M20)<$P$2,$P$2-SUMPRODUCT($B$6:$M$6,B20:M20),0) -> 0 | O20: 0
A21: 9 | B21: 0 | C21: 0 | D21: 0 | E21: 0 | F21: 0 | G21: 4 | H21: 0 | I21: 1 | J21: 4 | K21: 0 | L21: 0 | M21: 0 | N21: =IF(SUMPRODUCT($B$6:$M$6,B21:M21)<$P$2,$P$2-SUMPRODUCT($B$6:$M$6,B21:M21),0) -> 0 | O21: 0
A22: 10 | B22: 0 | C22: 0 | D22: 0 | E22: 0 | F22: 0 | G22: 5 | H22: 0 | I22: 1 | J22: 0 | K22: 3 | L22: 0 | M22: 0 | N22: =IF(SUMPRODUCT($B$6:$M$6,B22:M22)<$P$2,$P$2-SUMPRODUCT($B$6:$M$6,B22:M22),0) -> 0 | O22: 0
A23: 11 | B23: 0 | C23: 0 | D23: 0 | E23: 0 | F23: 1 | G23: 0 | H23: 2 | I23: 5 | J23: 1 | K23: 0 | L23: 0 | M23: 0 | N23: =IF(SUMPRODUCT($B$6:$M$6,B23:M23)<$P$2,$P$2-SUMPRODUCT($B$6:$M$6,B23:M23),0) -> 0 | O23: 0
A24: 12 | B24: 0 | C24: 0 | D24: 0 | E24: 0 | F24: 1 | G24: 1 | H24: 1 | I24: 4 | J24: 2 | K24: 0 | L24: 0 | M24: 0 | N24: =IF(SUMPRODUCT($B$6:$M$6,B24:M24)<$P$2,$P$2-SUMPRODUCT($B$6:$M$6,B24:M24),0) -> 0 | O24: 0
A25: 13 | B25: 0 | C25: 0 | D25: 0 | E25: 0 | F25: 1 | G25: 2 | H25: 0 | I25: 3 | J25: 3 | K25: 0 | L25: 0 | M25: 0 | N25: =IF(SUMPRODUCT($B$6:$M$6,B25:M25)<$P$2,$P$2-SUMPRODUCT($B$6:$M$6,B25:M25),0) -> 0 | O25: 0
A26: 14 | B26: 0 | C26: 0 | D26: 0 | E26: 0 | F26: 2 | G26: 0 | H26: 0 | I26: 5 | J26: 2 | K26: 0 | L26: 0 | M26: 0 | N26: =IF(SUMPRODUCT($B$6:$M$6,B26:M26)<$P$2,$P$2-SUMPRODUCT($B$6:$M$6,B26:M26),0) -> 0 | O26: 0
A27: 15 | B27: 0 | C27: 0 | D27: 0 | E27: 0 | F27: 4 | G27: 0 | H27: 0 | I27: 0 | J27: 0 | K27: 5 | L27: 0 | M27: 0 | N27: =IF(SUMPRODUCT($B$6:$M$6,B27:M27)<$P$2,$P$2-SUMPRODUCT($B$6:$M$6,B27:M27),0) -> 0 | O27: 0
A28: 16 | B28: 0 | C28: 0 | D28: 0 | E28: 2 | F28: 0 | G28: 0 | H28: 1 | I28: 2 | J28: 2 | K28: 2 | L28: 0 | M28: 0 | N28: =IF(SUMPRODUCT($B$6:$M$6,B28:M28)<$P$2,$P$2-SUMPRODUCT($B$6:$M$6,B28:M28),0) -> 0 | O28: 0
A29: 17 | B29: 0 | C29: 0 | D29: 0 | E29: 2 | F29: 0 | G29: 1 | H29: 0 | I29: 1 | J29: 3 | K29: 2 | L29: 0 | M29: 0 | N29: =IF(SUMPRODUCT($B$6:$M$6,B29:M29)<$P$2,$P$2-SUMPRODUCT($B$6:$M$6,B29:M29),0) -> 0 | O29: 0
A30: 18 | B30: 0 | C30: 0 | D30: 0 | E30: 3 | F30: 0 | G30: 0 | H30: 4 | I30: 1 | J30: 0 | K30: 0 | L30: 0 | M30: 0 | N30: =IF(SUMPRODUCT($B$6:$M$6,B30:M30)<$P$2,$P$2-SUMPRODUCT($B$6:$M$6,B30:M30),0) -> 0 | O30: 0
A31: 19 | B31: 0 | C31: 0 | D31: 0 | E31: 3 | F31: 0 | G31: 1 | H31: 3 | I31: 0 | J31: 1 | K31: 0 | L31: 0 | M31: 0 | N31: =IF(SUMPRODUCT($B$6:$M$6,B31:M31)<$P$2,$P$2-SUMPRODUCT($B$6:$M$6,B31:M31),0) -> 0 | O31: 0
A32: 20 | B32: 0 | C32: 0 | D32: 0 | E32: 3 | F32: 1 | G32: 0 | H32: 2 | I32: 1 | J32: 1 | K32: 0 | L32: 0 | M32: 0 | N32: =IF(SUMPRODUCT($B$6:$M$6,B32:M32)<$P$2,$P$2-SUMPRODUCT($B$6:$M$6,B32:M32),0) -> 0 | O32: 0
A33: 21 | B33: 0 | C33: 0 | D33: 0 | E33: 3 | F33: 1 | G33: 1 | H33: 1 | I33: 0 | J33: 2 | K33: 0 | L33: 0 | M33: 0 | N33: =IF(SUMPRODUCT($B$6:$M$6,B33:M33)<$P$2,$P$2-SUMPRODUCT($B$6:$M$6,B33:M33),0) -> 0 | O33: 0
A34: 22 | B34: 0 | C34: 0 | D34: 0 | E34: 3 | F34: 2 | G34: 0 | H34: 0 | I34: 1 | J34: 2 | K34: 0 | L34: 0 | M34: 0 | N34: =IF(SUMPRODUCT($B$6:$M$6,B34:M34)<$P$2,$P$2-SUMPRODUCT($B$6:$M$6,B34:M34),0) -> 0 | O34: 0
A35: 23 | B35: 0 | C35: 0 | D35: 0 | E35: 4 | F35: 0 | G35: 0 | H35: 2 | I35: 1 | J35: 0 | K35: 1 | L35: 0 | M35: 0 | N35: =IF(SUMPRODUCT($B$6:$M$6,B35:M35)<$P$2,$P$2-SUMPRODUCT($B$6:$M$6,B35:M35),0) -> 0 | O35: 0
A36: 24 | B36: 0 | C36: 0 | D36: 0 | E36: 4 | F36: 0 | G36: 1 | H36: 1 | I36: 0 | J36: 1 | K36: 1 | L36: 0 | M36: 0 | N36: =IF(SUMPRODUCT($B$6:$M$6,B36:M36)<$P$2,$P$2-SUMPRODUCT($B$6:$M$6,B36:M36),0) -> 0 | O36: 0
A37: 25 | B37: 0 | C37: 0 | D37: 0 | E37: 4 | F37: 1 | G37: 0 | H37: 0 | I37: 1 | J37: 1 | K37: 1 | L37: 0 | M37: 0 | N37: =IF(SUMPRODUCT($B$6:$M$6,B37:M37)<$P$2,$P$2-SUMPRODUCT($B$6:$M$6,B37:M37),0) -> 0 | O37: 0
A38: 26 | B38: 0 | C38: 0 | D38: 1 | E38: 0 | F38: 0 | G38: 1 | H38: 1 | I38: 4 | J38: 0 | K38: 2 | L38: 0 | M38: 0 | N38: =IF(SUMPRODUCT($B$6:$M$6,B38:M38)<$P$2,$P$2-SUMPRODUCT($B$6:$M$6,B38:M38),0) -> 0 | O38: 0
A39: 27 | B39: 0 | C39: 0 | D39: 1 | E39: 0 | F39: 0 | G39: 2 | H39: 0 | I39: 3 | J39: 1 | K39: 2 | L39: 0 | M39: 0 | N39: =IF(SUMPRODUCT($B$6:$M$6,B39:M39)<$P$2,$P$2-SUMPRODUCT($B$6:$M$6,B39:M39),0) -> 0 | O39: 0
A40: 28 | B40: 0 | C40: 0 | D40: 1 | E40: 0 | F40: 1 | G40: 0 | H40: 0 | I40: 5 | J40: 0 | K40: 2 | L40: 0 | M40: 0 | N40: =IF(SUMPRODUCT($B$6:$M$6,B40:M40)<$P$2,$P$2-SUMPRODUCT($B$6:$M$6,B40:M40),0) -> 0 | O40: 0
A41: 29 | B41: 0 | C41: 0 | D41: 1 | E41: 1 | F41: 0 | G41: 3 | H41: 2 | I41: 1 | J41: 0 | K41: 0 | L41: 0 | M41: 0 | N41: =IF(SUMPRODUCT($B$6:$M$6,B41:M41)<$P$2,$P$2-SUMPRODUCT($B$6:$M$6,B41:M41),0) -> 0 | O41: 0
A42: 30 | B42: 0 | C42: 0 | D42: 1 | E42: 1 | F42: 0 | G42: 4 | H42: 1 | I42: 0 | J42: 1 | K42: 0 | L42: 0 | M42: 0 | N42: =IF(SUMPRODUCT($B$6:$M$6,B42:M42)<$P$2,$P$2-SUMPRODUCT($B$6:$M$6,B42:M42),0) -> 0 | O42: 0
A43: 31 | B43: 0 | C43: 0 | D43: 1 | E43: 1 | F43: 1 | G43: 2 | H43: 1 | I43: 2 | J43: 0 | K43: 0 | L43: 0 | M43: 0 | N43: =IF(SUMPRODUCT($B$6:$M$6,B43:M43)<$P$2,$P$2-SUMPRODUCT($B$6:$M$6,B43:M43),0) -> 0 | O43: 0
A44: 32 | B44: 0 | C44: 0 | D44: 1 | E44: 1 | F44: 1 | G44: 3 | H44: 0 | I44: 1 | J44: 1 | K44: 0 | L44: 0 | M44: 0 | N44: =IF(SUMPRODUCT($B$6:$M$6,B44:M44)<$P$2,$P$2-SUMPRODUCT($B$6:$M$6,B44:M44),0) -> 0 | O44: 0
A45: 33 | B45: 0 | C45: 0 | D45: 1 | E45: 1 | F45: 2 | G45: 1 | H45: 0 | I45: 3 | J45: 0 | K45: 0 | L45: 0 | M45: 0 | N45: =IF(SUMPRODUCT($B$6:$M$6,B45:M45)<$P$2,$P$2-SUMPRODUCT($B$6:$M$6,B45:M45),0) -> 0 | O45: 0
A46: 34 | B46: 0 | C46: 0 | D46: 1 | E46: 2 | F46: 0 | G46: 3 | H46: 0 | I46: 1 | J46: 0 | K46: 1 | L46: 0 | M46: 0 | N46: =IF(SUMPRODUCT($B$6:$M$6,B46:M46)<$P$2,$P$2-SUMPRODUCT($B$6:$M$6,B46:M46),0) -> 0 | O46: 0
A47: 35 | B47: 0 | C47: 0 | D47: 1 | E47: 3 | F47: 0 | G47: 1 | H47: 1 | I47: 0 | J47: 0 | K47: 2 | L47: 0 | M47: 0 | N47: =IF(SUMPRODUCT($B$6:$M$6,B47:M47)<$P$2,$P$2-SUMPRODUCT($B$6:$M$6,B47:M47),0) -> 0 | O47: 0
A48: 36 | B48: 0 | C48: 0 | D48: 1 | E48: 3 | F48: 1 | G48: 0 | H48: 0 | I48: 1 | J48: 0 | K48: 2 | L48: 0 | M48: 0 | N48: =IF(SUMPRODUCT($B$6:$M$6,B48:M48)<$P$2,$P$2-SUMPRODUCT($B$6:$M$6,B48:M48),0) -> 0 | O48: 0
A49: 37 | B49: 0 | C49: 0 | D49: 2 | E49: 2 | F49: 0 | G49: 0 | H49: 0 | I49: 3 | J49: 1 | K49: 0 | L49: 0 | M49: 0 | N49: =IF(SUMPRODUCT($B$6:$M$6,B49:M49)<$P$2,$P$2-SUMPRODUCT($B$6:$M$6,B49:M49),0) -> 0 | O49: 0
A50: 38 | B50: 0 | C50: 0 | D50: 3 | E50: 1 | F50: 0 | G50: 0 | H50: 0 | I50: 3 | J50: 0 | K50: 1 | L50: 0 | M50: 0 | N50: =IF(SUMPRODUCT($B$6:$M$6,B50:M50)<$P$2,$P$2-SUMPRODUCT($B$6:$M$6,B50:M50),0) -> 0 | O50: 0
A51: 39 | B51: 0 | C51: 1 | D51: 0 | E51: 0 | F51: 0 | G51: 0 | H51: 1 | I51: 4 | J51: 2 | K51: 1 | L51: 0 | M51: 0 | N51: =IF(SUMPRODUCT($B$6:$M$6,B51:M51)<$P$2,$P$2-SUMPRODUCT($B$6:$M$6,B51:M51),0) -> 0 | O51: 0
A52: 40 | B52: 0 | C52: 1 | D52: 0 | E52: 0 | F52: 0 | G52: 1 | H52: 0 | I52: 3 | J52: 3 | K52: 1 | L52: 0 | M52: 0 | N52: =IF(SUMPRODUCT($B$6:$M$6,B52:M52)<$P$2,$P$2-SUMPRODUCT($B$6:$M$6,B52:M52),0) -> 0 | O52: 0
A53: 41 | B53: 0 | C53: 1 | D53: 0 | E53: 2 | F53: 0 | G53: 0 | H53: 2 | I53: 3 | J53: 0 | K53: 0 | L53: 0 | M53: 0 | N53: =IF(SUMPRODUCT($B$6:$M$6,B53:M53)<$P$2,$P$2-SUMPRODUCT($B$6:$M$6,B53:M53),0) -> 0 | O53: 0
A54: 42 | B54: 0 | C54: 1 | D54: 0 | E54: 2 | F54: 0 | G54: 1 | H54: 1 | I54: 2 | J54: 1 | K54: 0 | L54: 0 | M54: 0 | N54: =IF(SUMPRODUCT($B$6:$M$6,B54:M54)<$P$2,$P$2-SUMPRODUCT($B$6:$M$6,B54:M54),0) -> 0 | O54: 0
A55: 43 | B55: 0 | C55: 1 | D55: 0 | E55: 2 | F55: 0 | G55: 2 | H55: 0 | I55: 1 | J55: 2 | K55: 0 | L55: 0 | M55: 0 | N55: =IF(SUMPRODUCT($B$6:$M$6,B55:M55)<$P$2,$P$2-SUMPRODUCT($B$6:$M$6,B55:M55),0) -> 0 | O55: 0
A56: 44 | B56: 0 | C56: 1 | D56: 0 | E56: 2 | F56: 1 | G56: 0 | H56: 0 | I56: 3 | J56: 1 | K56: 0 | L56: 0 | M56: 0 | N56: =IF(SUMPRODUCT($B$6:$M$6,B56:M56)<$P$2,$P$2-SUMPRODUCT($B$6:$M$6,B56:M56),0) -> 0 | O56: 0
A57: 45 | B57: 0 | C57: 1 | D57: 0 | E57: 3 | F57: 0 | G57: 0 | H57: 1 | I57: 0 | J57: 2 | K57: 1 | L57: 0 | M57: 0 | N57: =IF(SUMPRODUCT($B$6:$M$6,B57:M57)<$P$2,$P$2-SUMPRODUCT($B$6:$M$6,B57:M57),0) -> 0 | O57: 0
A58: 46 | B58: 0 | C58: 1 | D58: 1 | E58: 1 | F58: 0 | G58: 1 | H58: 1 | I58: 2 | J58: 0 | K58: 1 | L58: 0 | M58: 0 | N58: =IF(SUMPRODUCT($B$6:$M$6,B58:M58)<$P$2,$P$2-SUMPRODUCT($B$6:$M$6,B58:M58),0) -> 0 | O58: 0
A59: 47 | B59: 0 | C59: 1 | D59: 1 | E59: 1 | F59: 0 | G59: 2 | H59: 0 | I59: 1 | J59: 1 | K59: 1 | L59: 0 | M59: 0 | N59: =IF(SUMPRODUCT($B$6:$M$6,B59:M59)<$P$2,$P$2-SUMPRODUCT($B$6:$M$6,B59:M59),0) -> 0 | O59: 0
A60: 48 | B60: 0 | C60: 1 | D60: 1 | E60: 1 | F60: 1 | G60: 0 | H60: 0 | I60: 3 | J60: 0 | K60: 1 | L60: 0 | M60: 0 | N60: =IF(SUMPRODUCT($B$6:$M$6,B60:M60)<$P$2,$P$2-SUMPRODUCT($B$6:$M$6,B60:M60),0) -> 0 | O60: 0
A61: 49 | B61: 0 | C61: 1 | D61: 3 | E61: 2 | F61: 0 | G61: 0 | H61: 0 | I61: 1 | J61: 0 | K61: 0 | L61: 0 | M61: 0 | N61: =IF(SUMPRODUCT($B$6:$M$6,B61:M61)<$P$2,$P$2-SUMPRODUCT($B$6:$M$6,B61:M61),0) -> 0 | O61: 0
A62: 50 | B62: 0 | C62: 2 | D62: 0 | E62: 1 | F62: 0 | G62: 0 | H62: 1 | I62: 2 | J62: 2 | K62: 0 | L62: 0 | M62: 0 | N62: =IF(SUMPRODUCT($B$6:$M$6,B62:M62)<$P$2,$P$2-SUMPRODUCT($B$6:$M$6,B62:M62),0) -> 0 | O62: 0
A63: 51 | B63: 0 | C63: 2 | D63: 0 | E63: 1 | F63: 0 | G63: 1 | H63: 0 | I63: 1 | J63: 3 | K63: 0 | L63: 0 | M63: 0 | N63: =IF(SUMPRODUCT($B$6:$M$6,B63:M63)<$P$2,$P$2-SUMPRODUCT($B$6:$M$6,B63:M63),0) -> 0 | O63: 0
A64: 52 | B64: 0 | C64: 2 | D64: 1 | E64: 2 | F64: 0 | G64: 1 | H64: 1 | I64: 0 | J64: 0 | K64: 0 | L64: 0 | M64: 0 | N64: =IF(SUMPRODUCT($B$6:$M$6,B64:M64)<$P$2,$P$2-SUMPRODUCT($B$6:$M$6,B64:M64),0) -> 0 | O64: 0
A65: 53 | B65: 0 | C65: 2 | D65: 1 | E65: 2 | F65: 1 | G65: 0 | H65: 0 | I65: 1 | J65: 0 | K65: 0 | L65: 0 | M65: 0 | N65: =IF(SUMPRODUCT($B$6:$M$6,B65:M65)<$P$2,$P$2-SUMPRODUCT($B$6:$M$6,B65:M65),0) -> 0 | O65: 0
A66: 54 | B66: 1 | C66: 0 | D66: 0 | E66: 0 | F66: 0 | G66: 0 | H66: 0 | I66: 5 | J66: 0 | K66: 3 | L66: 0 | M66: 0 | N66: =IF(SUMPRODUCT($B$6:$M$6,B66:M66)<$P$2,$P$2-SUMPRODUCT($B$6:$M$6,B66:M66),0) -> 0 | O66: 0
A67: 55 | B67: 1 | C67: 0 | D67: 0 | E67: 1 | F67: 0 | G67: 2 | H67: 1 | I67: 2 | J67: 0 | K67: 1 | L67: 0 | M67: 0 | N67: =IF(SUMPRODUCT($B$6:$M$6,B67:M67)<$P$2,$P$2-SUMPRODUCT($B$6:$M$6,B67:M67),0) -> 0 | O67: 0
A68: 56 | B68: 1 | C68: 0 | D68: 0 | E68: 1 | F68: 0 | G68: 3 | H68: 0 | I68: 1 | J68: 1 | K68: 1 | L68: 0 | M68: 0 | N68: =IF(SUMPRODUCT($B$6:$M$6,B68:M68)<$P$2,$P$2-SUMPRODUCT($B$6:$M$6,B68:M68),0) -> 0 | O68: 0
A69: 57 | B69: 1 | C69: 0 | D69: 0 | E69: 1 | F69: 1 | G69: 1 | H69: 0 | I69: 3 | J69: 0 | K69: 1 | L69: 0 | M69: 0 | N69: =IF(SUMPRODUCT($B$6:$M$6,B69:M69)<$P$2,$P$2-SUMPRODUCT($B$6:$M$6,B69:M69),0) -> 0 | O69: 0
A70: 58 | B70: 1 | C70: 0 | D70: 0 | E70: 1 | F70: 5 | G70: 0 | H70: 0 | I70: 0 | J70: 0 | K70: 0 | L70: 0 | M70: 0 | N70: =IF(SUMPRODUCT($B$6:$M$6,B70:M70)<$P$2,$P$2-SUMPRODUCT($B$6:$M$6,B70:M70),0) -> 0 | O70: 0
A71: 59 | B71: 1 | C71: 0 | D71: 0 | E71: 3 | F71: 0 | G71: 0 | H71: 0 | I71: 1 | J71: 0 | K71: 3 | L71: 0 | M71: 0 | N71: =IF(SUMPRODUCT($B$6:$M$6,B71:M71)<$P$2,$P$2-SUMPRODUCT($B$6:$M$6,B71:M71),0) -> 0 | O71: 0
A72: 60 | B72: 1 | C72: 0 | D72: 1 | E72: 1 | F72: 0 | G72: 0 | H72: 0 | I72: 3 | J72: 2 | K72: 0 | L72: 0 | M72: 0 | N72: =IF(SUMPRODUCT($B$6:$M$6,B72:M72)<$P$2,$P$2-SUMPRODUCT($B$6:$M$6,B72:M72),0) -> 0 | O72: 0
A73: 61 | B73: 1 | C73: 0 | D73: 2 | E73: 2 | F73: 0 | G73: 1 | H73: 0 | I73: 1 | J73: 0 | K73: 0 | L73: 0 | M73: 0 | N73: =IF(SUMPRODUCT($B$6:$M$6,B73:M73)<$P$2,$P$2-SUMPRODUCT($B$6:$M$6,B73:M73),0) -> 0 | O73: 0
A74: 62 | B74: 1 | C74: 1 | D74: 0 | E74: 1 | F74: 0 | G74: 0 | H74: 0 | I74: 3 | J74: 0 | K74: 2 | L74: 0 | M74: 0 | N74: =IF(SUMPRODUCT($B$6:$M$6,B74:M74)<$P$2,$P$2-SUMPRODUCT($B$6:$M$6,B74:M74),0) -> 0 | O74: 0
A75: 63 | B75: 1 | C75: 1 | D75: 0 | E75: 2 | F75: 0 | G75: 2 | H75: 1 | I75: 0 | J75: 0 | K75: 0 | L75: 0 | M75: 0 | N75: =IF(SUMPRODUCT($B$6:$M$6,B75:M75)<$P$2,$P$2-SUMPRODUCT($B$6:$M$6,B75:M75),0) -> 0 | O75: 0
A76: 64 | B76: 1 | C76: 1 | D76: 0 | E76: 2 | F76: 1 | G76: 1 | H76: 0 | I76: 1 | J76: 0 | K76: 0 | L76: 0 | M76: 0 | N76: =IF(SUMPRODUCT($B$6:$M$6,B76:M76)<$P$2,$P$2-SUMPRODUCT($B$6:$M$6,B76:M76),0) -> 0 | O76: 0
A77: 65 | B77: 1 | C77: 2 | D77: 0 | E77: 2 | F77: 0 | G77: 0 | H77: 0 | I77: 1 | J77: 0 | K77: 1 | L77: 0 | M77: 0 | N77: =IF(SUMPRODUCT($B$6:$M$6,B77:M77)<$P$2,$P$2-SUMPRODUCT($B$6:$M$6,B77:M77),0) -> 0 | O77: 0
A78: 66 | B78: 1 | C78: 3 | D78: 0 | E78: 0 | F78: 0 | G78: 0 | H78: 0 | I78: 3 | J78: 0 | K78: 0 | L78: 0 | M78: 0 | N78: =IF(SUMPRODUCT($B$6:$M$6,B78:M78)<$P$2,$P$2-SUMPRODUCT($B$6:$M$6,B78:M78),0) -> 0 | O78: 0
A79: 67 | B79: 3 | C79: 0 | D79: 2 | E79: 0 | F79: 1 | G79: 0 | H79: 0 | I79: 0 | J79: 0 | K79: 0 | L79: 0 | M79: 0 | N79: =IF(SUMPRODUCT($B$6:$M$6,B79:M79)<$P$2,$P$2-SUMPRODUCT($B$6:$M$6,B79:M79),0) -> 0 | O79: 0
A80: 68 | B80: 3 | C80: 1 | D80: 0 | E80: 0 | F80: 2 | G80: 0 | H80: 0 | I80: 0 | J80: 0 | K80: 0 | L80: 0 | M80: 0 | N80: =IF(SUMPRODUCT($B$6:$M$6,B80:M80)<$P$2,$P$2-SUMPRODUCT($B$6:$M$6,B80:M80),0) -> 0 | O80: 0
A81: 69 | B81: 4 | C81: 0 | D81: 1 | E81: 0 | F81: 0 | G81: 0 | H81: 0 | I81: 0 | J81: 0 | K81: 1 | L81: 0 | M81: 0 | N81: =IF(SUMPRODUCT($B$6:$M$6,B81:M81)<$P$2,$P$2-SUMPRODUCT($B$6:$M$6,B81:M81),0) -> 0 | O81: 0
A82: 70 | B82: 0 | C82: 0 | D82: 0 | E82: 0 | F82: 2 | G82: 5 | H82: 1 | I82: 0 | J82: 0 | K82: 0 | L82: 0 | M82: 0 | N82: =IF(SUMPRODUCT($B$6:$M$6,B82:M82)<$P$2,$P$2-SUMPRODUCT($B$6:$M$6,B82:M82),0) -> 1 | O82: 0
A83: 71 | B83: 0 | C83: 0 | D83: 0 | E83: 0 | F83: 3 | G83: 4 | H83: 0 | I83: 1 | J83: 0 | K83: 0 | L83: 0 | M83: 0 | N83: =IF(SUMPRODUCT($B$6:$M$6,B83:M83)<$P$2,$P$2-SUMPRODUCT($B$6:$M$6,B83:M83),0) -> 1 | O83: 0
A84: 72 | B84: 0 | C84: 0 | D84: 0 | E84: 1 | F84: 0 | G84: 0 | H84: 3 | I84: 2 | J84: 2 | K84: 1 | L84: 0 | M84: 0 | N84: =IF(SUMPRODUCT($B$6:$M$6,B84:M84)<$P$2,$P$2-SUMPRODUCT($B$6:$M$6,B84:M84),0) -> 1 | O84: 0
A85: 73 | B85: 0 | C85: 0 | D85: 0 | E85: 1 | F85: 0 | G85: 1 | H85: 2 | I85: 1 | J85: 3 | K85: 1 | L85: 0 | M85: 0 | N85: =IF(SUMPRODUCT($B$6:$M$6,B85:M85)<$P$2,$P$2-SUMPRODUCT($B$6:$M$6,B85:M85),0) -> 1 | O85: 0
A86: 74 | B86: 0 | C86: 0 | D86: 0 | E86: 1 | F86: 0 | G86: 2 | H86: 1 | I86: 0 | J86: 4 | K86: 1 | L86: 0 | M86: 0 | N86: =IF(SUMPRODUCT($B$6:$M$6,B86:M86)<$P$2,$P$2-SUMPRODUCT($B$6:$M$6,B86:M86),0) -> 1 | O86: 0
A87: 75 | B87: 0 | C87: 0 | D87: 0 | E87: 1 | F87: 0 | G87: 3 | H87: 1 | I87: 0 | J87: 0 | K87: 4 | L87: 0 | M87: 0 | N87: =IF(SUMPRODUCT($B$6:$M$6,B87:M87)<$P$2,$P$2-SUMPRODUCT($B$6:$M$6,B87:M87),0) -> 1 | O87: 0
A88: 76 | B88: 0 | C88: 0 | D88: 0 | E88: 1 | F88: 1 | G88: 0 | H88: 1 | I88: 2 | J88: 3 | K88: 1 | L88: 0 | M88: 0 | N88: =IF(SUMPRODUCT($B$6:$M$6,B88:M88)<$P$2,$P$2-SUMPRODUCT($B$6:$M$6,B88:M88),0) -> 1 | O88: 0
A89: 77 | B89: 0 | C89: 0 | D89: 0 | E89: 1 | F89: 1 | G89: 1 | H89: 0 | I89: 1 | J89: 4 | K89: 1 | L89: 0 | M89: 0 | N89: =IF(SUMPRODUCT($B$6:$M$6,B89:M89)<$P$2,$P$2-SUMPRODUCT($B$6:$M$6,B89:M89),0) -> 1 | O89: 0
A90: 78 | B90: 0 | C90: 0 | D90: 0 | E90: 1 | F90: 1 | G90: 2 | H90: 0 | I90: 1 | J90: 0 | K90: 4 | L90: 0 | M90: 0 | N90: =IF(SUMPRODUCT($B$6:$M$6,B90:M90)<$P$2,$P$2-SUMPRODUCT($B$6:$M$6,B90:M90),0) -> 1 | O90: 0
A91: 79 | B91: 0 | C91: 0 | D91: 1 | E91: 1 | F91: 0 | G91: 0 | H91: 0 | I91: 1 | J91: 6 | K91: 0 | L91: 0 | M91: 0 | N91: =IF(SUMPRODUCT($B$6:$M$6,B91:M91)<$P$2,$P$2-SUMPRODUCT($B$6:$M$6,B91:M91),0) -> 1 | O91: 0
A92: 80 | B92: 0 | C92: 0 | D92: 1 | E92: 1 | F92: 0 | G92: 0 | H92: 1 | I92: 2 | J92: 1 | K92: 3 | L92: 0 | M92: 0 | N92: =IF(SUMPRODUCT($B$6:$M$6,B92:M92)<$P$2,$P$2-SUMPRODUCT($B$6:$M$6,B92:M92),0) -> 1 | O92: 0
A93: 81 | B93: 0 | C93: 0 | D93: 1 | E93: 1 | F93: 0 | G93: 1 | H93: 0 | I93: 1 | J93: 2 | K93: 3 | L93: 0 | M93: 0 | N93: =IF(SUMPRODUCT($B$6:$M$6,B93:M93)<$P$2,$P$2-SUMPRODUCT($B$6:$M$6,B93:M93),0) -> 1 | O93: 0
A94: 82 | B94: 0 | C94: 0 | D94: 2 | E94: 0 | F94: 0 | G94: 4 | H94: 1 | I94: 0 | J94: 0 | K94: 1 | L94: 0 | M94: 0 | N94: =IF(SUMPRODUCT($B$6:$M$6,B94:M94)<$P$2,$P$2-SUMPRODUCT($B$6:$M$6,B94:M94),0) -> 1 | O94: 0
A95: 83 | B95: 0 | C95: 0 | D95: 2 | E95: 0 | F95: 1 | G95: 3 | H95: 0 | I95: 1 | J95: 0 | K95: 1 | L95: 0 | M95: 0 | N95: =IF(SUMPRODUCT($B$6:$M$6,B95:M95)<$P$2,$P$2-SUMPRODUCT($B$6:$M$6,B95:M95),0) -> 1 | O95: 0
A96: 84 | B96: 0 | C96: 0 | D96: 3 | E96: 0 | F96: 0 | G96: 0 | H96: 2 | I96: 3 | J96: 0 | K96: 0 | L96: 0 | M96: 0 | N96: =IF(SUMPRODUCT($B$6:$M$6,B96:M96)<$P$2,$P$2-SUMPRODUCT($B$6:$M$6,B96:M96),0) -> 1 | O96: 0
A97: 85 | B97: 0 | C97: 0 | D97: 3 | E97: 0 | F97: 0 | G97: 1 | H97: 1 | I97: 2 | J97: 1 | K97: 0 | L97: 0 | M97: 0 | N97: =IF(SUMPRODUCT($B$6:$M$6,B97:M97)<$P$2,$P$2-SUMPRODUCT($B$6:$M$6,B97:M97),0) -> 1 | O97: 0
A98: 86 | B98: 0 | C98: 0 | D98: 3 | E98: 0 | F98: 0 | G98: 2 | H98: 0 | I98: 1 | J98: 2 | K98: 0 | L98: 0 | M98: 0 | N98: =IF(SUMPRODUCT($B$6:$M$6,B98:M98)<$P$2,$P$2-SUMPRODUCT($B$6:$M$6,B98:M98),0) -> 1 | O98: 0
A99: 87 | B99: 0 | C99: 0 | D99: 3 | E99: 0 | F99: 1 | G99: 0 | H99: 0 | I99: 3 | J99: 1 | K99: 0 | L99: 0 | M99: 0 | N99: =IF(SUMPRODUCT($B$6:$M$6,B99:M99)<$P$2,$P$2-SUMPRODUCT($B$6:$M$6,B99:M99),0) -> 1 | O99: 0
A100: 88 | B100: 0 | C100: 1 | D100: 0 | E100: 0 | F100: 1 | G100: 4 | H100: 1 | I100: 0 | J100: 0 | K100: 1 | L100: 0 | M100: 0 | N100: =IF(SUMPRODUCT($B$6:$M$6,B100:M100)<$P$2,$P$2-SUMPRODUCT($B$6:$M$6,B100:M100),0) -> 1 | O100: 0
A101: 89 | B101: 0 | C101: 1 | D101: 0 | E101: 0 | F101: 2 | G101: 3 | H101: 0 | I101: 1 | J101: 0 | K101: 1 | L101: 0 | M101: 0 | N101: =IF(SUMPRODUCT($B$6:$M$6,B101:M101)<$P$2,$P$2-SUMPRODUCT($B$6:$M$6,B101:M101),0) -> 1 | O101: 0
A102: 90 | B102: 0 | C102: 1 | D102: 0 | E102: 1 | F102: 0 | G102: 0 | H102: 0 | I102: 1 | J102: 4 | K102: 2 | L102: 0 | M102: 0 | N102: =IF(SUMPRODUCT($B$6:$M$6,B102:M102)<$P$2,$P$2-SUMPRODUCT($B$6:$M$6,B102:M102),0) -> 1 | O102: 0
A103: 91 | B103: 0 | C103: 1 | D103: 0 | E103: 1 | F103: 0 | G103: 1 | H103: 0 | I103: 1 | J103: 0 | K103: 5 | L103: 0 | M103: 0 | N103: =IF(SUMPRODUCT($B$6:$M$6,B103:M103)<$P$2,$P$2-SUMPRODUCT($B$6:$M$6,B103:M103),0) -> 1 | O103: 0
A104: 92 | B104: 0 | C104: 1 | D104: 1 | E104: 0 | F104: 0 | G104: 1 | H104: 3 | I104: 2 | J104: 0 | K104: 0 | L104: 0 | M104: 0 | N104: =IF(SUMPRODUCT($B$6:$M$6,B104:M104)<$P$2,$P$2-SUMPRODUCT($B$6:$M$6,B104:M104),0) -> 1 | O104: 0
A105: 93 | B105: 0 | C105: 1 | D105: 1 | E105: 0 | F105: 0 | G105: 2 | H105: 2 | I105: 1 | J105: 1 | K105: 0 | L105: 0 | M105: 0 | N105: =IF(SUMPRODUCT($B$6:$M$6,B105:M105)<$P$2,$P$2-SUMPRODUCT($B$6:$M$6,B105:M105),0) -> 1 | O105: 0
A106: 94 | B106: 0 | C106: 1 | D106: 1 | E106: 0 | F106: 0 | G106: 3 | H106: 1 | I106: 0 | J106: 2 | K106: 0 | L106: 0 | M106: 0 | N106: =IF(SUMPRODUCT($B$6:$M$6,B106:M106)<$P$2,$P$2-SUMPRODUCT($B$6:$M$6,B106:M106),0) -> 1 | O106: 0
A107: 95 | B107: 0 | C107: 1 | D107: 1 | E107: 0 | F107: 1 | G107: 0 | H107: 2 | I107: 3 | J107: 0 | K107: 0 | L107: 0 | M107: 0 | N107: =IF(SUMPRODUCT($B$6:$M$6,B107:M107)<$P$2,$P$2-SUMPRODUCT($B$6:$M$6,B107:M107),0) -> 1 | O107: 0
A108: 96 | B108: 0 | C108: 1 | D108: 1 | E108: 0 | F108: 1 | G108: 1 | H108: 1 | I108: 2 | J108: 1 | K108: 0 | L108: 0 | M108: 0 | N108: =IF(SUMPRODUCT($B$6:$M$6,B108:M108)<$P$2,$P$2-SUMPRODUCT($B$6:$M$6,B108:M108),0) -> 1 | O108: 0
A109: 97 | B109: 0 | C109: 1 | D109: 1 | E109: 0 | F109: 1 | G109: 2 | H109: 0 | I109: 1 | J109: 2 | K109: 0 | L109: 0 | M109: 0 | N109: =IF(SUMPRODUCT($B$6:$M$6,B109:M109)<$P$2,$P$2-SUMPRODUCT($B$6:$M$6,B109:M109),0) -> 1 | O109: 0
A110: 98 | B110: 0 | C110: 1 | D110: 1 | E110: 0 | F110: 2 | G110: 0 | H110: 0 | I110: 3 | J110: 1 | K110: 0 | L110: 0 | M110: 0 | N110: =IF(SUMPRODUCT($B$6:$M$6,B110:M110)<$P$2,$P$2-SUMPRODUCT($B$6:$M$6,B110:M110),0) -> 1 | O110: 0
A111: 99 | B111: 0 | C111: 1 | D111: 2 | E111: 0 | F111: 0 | G111: 2 | H111: 0 | I111: 1 | J111: 0 | K111: 2 | L111: 0 | M111: 0 | N111: =IF(SUMPRODUCT($B$6:$M$6,B111:M111)<$P$2,$P$2-SUMPRODUCT($B$6:$M$6,B111:M111),0) -> 1 | O111: 0
A112: 100 | B112: 0 | C112: 2 | D112: 0 | E112: 0 | F112: 0 | G112: 3 | H112: 1 | I112: 0 | J112: 0 | K112: 2 | L112: 0 | M112: 0 | N112: =IF(SUMPRODUCT($B$6:$M$6,B112:M112)<$P$2,$P$2-SUMPRODUCT($B$6:$M$6,B112:M112),0) -> 1 | O112: 0
A113: 101 | B113: 0 | C113: 2 | D113: 0 | E113: 0 | F113: 1 | G113: 2 | H113: 0 | I113: 1 | J113: 0 | K113: 2 | L113: 0 | M113: 0 | N113: =IF(SUMPRODUCT($B$6:$M$6,B113:M113)<$P$2,$P$2-SUMPRODUCT($B$6:$M$6,B113:M113),0) -> 1 | O113: 0
A114: 102 | B114: 0 | C114: 2 | D114: 1 | E114: 0 | F114: 0 | G114: 0 | H114: 1 | I114: 2 | J114: 1 | K114: 1 | L114: 0 | M114: 0 | N114: =IF(SUMPRODUCT($B$6:$M$6,B114:M114)<$P$2,$P$2-SUMPRODUCT($B$6:$M$6,B114:M114),0) -> 1 | O114: 0
A115: 103 | B115: 0 | C115: 2 | D115: 1 | E115: 0 | F115: 0 | G115: 1 | H115: 0 | I115: 1 | J115: 2 | K115: 1 | L115: 0 | M115: 0 | N115: =IF(SUMPRODUCT($B$6:$M$6,B115:M115)<$P$2,$P$2-SUMPRODUCT($B$6:$M$6,B115:M115),0) -> 1 | O115: 0
A116: 104 | B116: 0 | C116: 3 | D116: 0 | E116: 0 | F116: 0 | G116: 0 | H116: 0 | I116: 1 | J116: 4 | K116: 0 | L116: 0 | M116: 0 | N116: =IF(SUMPRODUCT($B$6:$M$6,B116:M116)<$P$2,$P$2-SUMPRODUCT($B$6:$M$6,B116:M116),0) -> 1 | O116: 0
A117: 105 | B117: 0 | C117: 3 | D117: 0 | E117: 0 | F117: 0 | G117: 1 | H117: 0 | I117: 1 | J117: 0 | K117: 3 | L117: 0 | M117: 0 | N117: =IF(SUMPRODUCT($B$6:$M$6,B117:M117)<$P$2,$P$2-SUMPRODUCT($B$6:$M$6,B117:M117),0) -> 1 | O117: 0
A118: 106 | B118: 1 | C118: 0 | D118: 0 | E118: 0 | F118: 0 | G118: 2 | H118: 3 | I118: 2 | J118: 0 | K118: 0 | L118: 0 | M118: 0 | N118: =IF(SUMPRODUCT($B$6:$M$6,B118:M118)<$P$2,$P$2-SUMPRODUCT($B$6:$M$6,B118:M118),0) -> 1 | O118: 0
A119: 107 | B119: 1 | C119: 0 | D119: 0 | E119: 0 | F119: 0 | G119: 3 | H119: 2 | I119: 1 | J119: 1 | K119: 0 | L119: 0 | M119: 0 | N119: =IF(SUMPRODUCT($B$6:$M$6,B119:M119)<$P$2,$P$2-SUMPRODUCT($B$6:$M$6,B119:M119),0) -> 1 | O119: 0
A120: 108 | B120: 1 | C120: 0 | D120: 0 | E120: 0 | F120: 0 | G120: 4 | H120: 1 | I120: 0 | J120: 2 | K120: 0 | L120: 0 | M120: 0 | N120: =IF(SUMPRODUCT($B$6:$M$6,B120:M120)<$P$2,$P$2-SUMPRODUCT($B$6:$M$6,B120:M120),0) -> 1 | O120: 0
A121: 109 | B121: 1 | C121: 0 | D121: 0 | E121: 0 | F121: 1 | G121: 1 | H121: 2 | I121: 3 | J121: 0 | K121: 0 | L121: 0 | M121: 0 | N121: =IF(SUMPRODUCT($B$6:$M$6,B121:M121)<$P$2,$P$2-SUMPRODUCT($B$6:$M$6,B121:M121),0) -> 1 | O121: 0
A122: 110 | B122: 1 | C122: 0 | D122: 0 | E122: 0 | F122: 1 | G122: 2 | H122: 1 | I122: 2 | J122: 1 | K122: 0 | L122: 0 | M122: 0 | N122: =IF(SUMPRODUCT($B$6:$M$6,B122:M122)<$P$2,$P$2-SUMPRODUCT($B$6:$M$6,B122:M122),0) -> 1 | O122: 0
A123: 111 | B123: 1 | C123: 0 | D123: 0 | E123: 0 | F123: 1 | G123: 3 | H123: 0 | I123: 1 | J123: 2 | K123: 0 | L123: 0 | M123: 0 | N123: =IF(SUMPRODUCT($B$6:$M$6,B123:M123)<$P$2,$P$2-SUMPRODUCT($B$6:$M$6,B123:M123),0) -> 1 | O123: 0
A124: 112 | B124: 1 | C124: 0 | D124: 0 | E124: 0 | F124: 2 | G124: 0 | H124: 1 | I124: 4 | J124: 0 | K124: 0 | L124: 0 | M124: 0 | N124: =IF(SUMPRODUCT($B$6:$M$6,B124:M124)<$P$2,$P$2-SUMPRODUCT($B$6:$M$6,B124:M124),0) -> 1 | O124: 0
A125: 113 | B125: 1 | C125: 0 | D125: 0 | E125: 0 | F125: 2 | G125: 1 | H125: 0 | I125: 3 | J125: 1 | K125: 0 | L125: 0 | M125: 0 | N125: =IF(SUMPRODUCT($B$6:$M$6,B125:M125)<$P$2,$P$2-SUMPRODUCT($B$6:$M$6,B125:M125),0) -> 1 | O125: 0
A126: 114 | B126: 1 | C126: 0 | D126: 1 | E126: 0 | F126: 0 | G126: 3 | H126: 0 | I126: 1 | J126: 0 | K126: 2 | L126: 0 | M126: 0 | N126: =IF(SUMPRODUCT($B$6:$M$6,B126:M126)<$P$2,$P$2-SUMPRODUCT($B$6:$M$6,B126:M126),0) -> 1 | O126: 0
A127: 115 | B127: 1 | C127: 0 | D127: 2 | E127: 0 | F127: 0 | G127: 0 | H127: 0 | I127: 3 | J127: 1 | K127: 1 | L127: 0 | M127: 0 | N127: =IF(SUMPRODUCT($B$6:$M$6,B127:M127)<$P$2,$P$2-SUMPRODUCT($B$6:$M$6,B127:M127),0) -> 1 | O127: 0
A128: 116 | B128: 1 | C128: 1 | D128: 0 | E128: 0 | F128: 0 | G128: 0 | H128: 2 | I128: 3 | J128: 0 | K128: 1 | L128: 0 | M128: 0 | N128: =IF(SUMPRODUCT($B$6:$M$6,B128:M128)<$P$2,$P$2-SUMPRODUCT($B$6:$M$6,B128:M128),0) -> 1 | O128: 0
A129: 117 | B129: 1 | C129: 1 | D129: 0 | E129: 0 | F129: 0 | G129: 1 | H129: 1 | I129: 2 | J129: 1 | K129: 1 | L129: 0 | M129: 0 | N129: =IF(SUMPRODUCT($B$6:$M$6,B129:M129)<$P$2,$P$2-SUMPRODUCT($B$6:$M$6,B129:M129),0) -> 1 | O129: 0
A130: 118 | B130: 1 | C130: 1 | D130: 0 | E130: 0 | F130: 0 | G130: 2 | H130: 0 | I130: 1 | J130: 2 | K130: 1 | L130: 0 | M130: 0 | N130: =IF(SUMPRODUCT($B$6:$M$6,B130:M130)<$P$2,$P$2-SUMPRODUCT($B$6:$M$6,B130:M130),0) -> 1 | O130: 0
A131: 119 | B131: 1 | C131: 1 | D131: 0 | E131: 0 | F131: 1 | G131: 0 | H131: 0 | I131: 3 | J131: 1 | K131: 1 | L131: 0 | M131: 0 | N131: =IF(SUMPRODUCT($B$6:$M$6,B131:M131)<$P$2,$P$2-SUMPRODUCT($B$6:$M$6,B131:M131),0) -> 1 | O131: 0
A132: 120 | B132: 2 | C132: 0 | D132: 0 | E132: 0 | F132: 0 | G132: 0 | H132: 0 | I132: 3 | J132: 3 | K132: 0 | L132: 0 | M132: 0 | N132: =IF(SUMPRODUCT($B$6:$M$6,B132:M132)<$P$2,$P$2-SUMPRODUCT($B$6:$M$6,B132:M132),0) -> 1 | O132: 0
A133: 121 | B133: 0 | C133: 0 | D133: 1 | E133: 2 | F133: 0 | G133: 1 | H133: 3 | I133: 0 | J133: 0 | K133: 1 | L133: 0 | M133: 0 | N133: =IF(SUMPRODUCT($B$6:$M$6,B133:M133)<$P$2,$P$2-SUMPRODUCT($B$6:$M$6,B133:M133),0) -> 2 | O133: 0
A134: 122 | B134: 0 | C134: 0 | D134: 1 | E134: 2 | F134: 1 | G134: 0 | H134: 2 | I134: 1 | J134: 0 | K134: 1 | L134: 0 | M134: 0 | N134: =IF(SUMPRODUCT($B$6:$M$6,B134:M134)<$P$2,$P$2-SUMPRODUCT($B$6:$M$6,B134:M134),0) -> 2 | O134: 0
A135: 123 | B135: 0 | C135: 0 | D135: 1 | E135: 2 | F135: 1 | G135: 1 | H135: 1 | I135: 0 | J135: 1 | K135: 1 | L135: 0 | M135: 0 | N135: =IF(SUMPRODUCT($B$6:$M$6,B135:M135)<$P$2,$P$2-SUMPRODUCT($B$6:$M$6,B135:M135),0) -> 2 | O135: 0
A136: 124 | B136: 0 | C136: 0 | D136: 1 | E136: 2 | F136: 2 | G136: 0 | H136: 0 | I136: 1 | J136: 1 | K136: 1 | L136: 0 | M136: 0 | N136: =IF(SUMPRODUCT($B$6:$M$6,B136:M136)<$P$2,$P$2-SUMPRODUCT($B$6:$M$6,B136:M136),0) -> 2 | O136: 0
A137: 125 | B137: 0 | C137: 0 | D137: 2 | E137: 2 | F137: 0 | G137: 0 | H137: 1 | I137: 0 | J137: 3 | K137: 0 | L137: 0 | M137: 0 | N137: =IF(SUMPRODUCT($B$6:$M$6,B137:M137)<$P$2,$P$2-SUMPRODUCT($B$6:$M$6,B137:M137),0) -> 2 | O137: 0
A138: 126 | B138: 0 | C138: 1 | D138: 0 | E138: 2 | F138: 0 | G138: 0 | H138: 3 | I138: 0 | J138: 2 | K138: 0 | L138: 0 | M138: 0 | N138: =IF(SUMPRODUCT($B$6:$M$6,B138:M138)<$P$2,$P$2-SUMPRODUCT($B$6:$M$6,B138:M138),0) -> 2 | O138: 0
A139: 127 | B139: 0 | C139: 1 | D139: 0 | E139: 2 | F139: 1 | G139: 0 | H139: 1 | I139: 0 | J139: 3 | K139: 0 | L139: 0 | M139: 0 | N139: =IF(SUMPRODUCT($B$6:$M$6,B139:M139)<$P$2,$P$2-SUMPRODUCT($B$6:$M$6,B139:M139),0) -> 2 | O139: 0
A140: 128 | B140: 0 | C140: 1 | D140: 1 | E140: 2 | F140: 0 | G140: 0 | H140: 1 | I140: 0 | J140: 1 | K140: 2 | L140: 0 | M140: 0 | N140: =IF(SUMPRODUCT($B$6:$M$6,B140:M140)<$P$2,$P$2-SUMPRODUCT($B$6:$M$6,B140:M140),0) -> 2 | O140: 0
A141: 129 | B141: 0 | C141: 3 | D141: 1 | E141: 1 | F141: 0 | G141: 0 | H141: 1 | I141: 0 | J141: 1 | K141: 0 | L141: 0 | M141: 0 | N141: =IF(SUMPRODUCT($B$6:$M$6,B141:M141)<$P$2,$P$2-SUMPRODUCT($B$6:$M$6,B141:M141),0) -> 2 | O141: 0
A142: 130 | B142: 1 | C142: 0 | D142: 0 | E142: 2 | F142: 0 | G142: 0 | H142: 2 | I142: 1 | J142: 0 | K142: 2 | L142: 0 | M142: 0 | N142: =IF(SUMPRODUCT($B$6:$M$6,B142:M142)<$P$2,$P$2-SUMPRODUCT($B$6:$M$6,B142:M142),0) -> 2 | O142: 0
A143: 131 | B143: 1 | C143: 0 | D143: 0 | E143: 2 | F143: 0 | G143: 1 | H143: 1 | I143: 0 | J143: 1 | K143: 2 | L143: 0 | M143: 0 | N143: =IF(SUMPRODUCT($B$6:$M$6,B143:M143)<$P$2,$P$2-SUMPRODUCT($B$6:$M$6,B143:M143),0) -> 2 | O143: 0
A144: 132 | B144: 1 | C144: 0 | D144: 0 | E144: 2 | F144: 1 | G144: 0 | H144: 0 | I144: 1 | J144: 1 | K144: 2 | L144: 0 | M144: 0 | N144: =IF(SUMPRODUCT($B$6:$M$6,B144:M144)<$P$2,$P$2-SUMPRODUCT($B$6:$M$6,B144:M144),0) -> 2 | O144: 0
A145: 133 | B145: 1 | C145: 1 | D145: 2 | E145: 1 | F145: 0 | G145: 0 | H145: 0 | I145: 1 | J145: 1 | K145: 0 | L145: 0 | M145: 0 | N145: =IF(SUMPRODUCT($B$6:$M$6,B145:M145)<$P$2,$P$2-SUMPRODUCT($B$6:$M$6,B145:M145),0) -> 2 | O145: 0
A146: 134 | B146: 1 | C146: 2 | D146: 0 | E146: 1 | F146: 0 | G146: 0 | H146: 2 | I146: 1 | J146: 0 | K146: 0 | L146: 0 | M146: 0 | N146: =IF(SUMPRODUCT($B$6:$M$6,B146:M146)<$P$2,$P$2-SUMPRODUCT($B$6:$M$6,B146:M146),0) -> 2 | O146: 0
A147: 135 | B147: 1 | C147: 2 | D147: 0 | E147: 1 | F147: 0 | G147: 1 | H147: 1 | I147: 0 | J147: 1 | K147: 0 | L147: 0 | M147: 0 | N147: =IF(SUMPRODUCT($B$6:$M$6,B147:M147)<$P$2,$P$2-SUMPRODUCT($B$6:$M$6,B147:M147),0) -> 2 | O147: 0
A148: 136 | B148: 1 | C148: 2 | D148: 0 | E148: 1 | F148: 1 | G148: 0 | H148: 0 | I148: 1 | J148: 1 | K148: 0 | L148: 0 | M148: 0 | N148: =IF(SUMPRODUCT($B$6:$M$6,B148:M148)<$P$2,$P$2-SUMPRODUCT($B$6:$M$6,B148:M148),0) -> 2 | O148: 0
A149: 137 | B149: 2 | C149: 0 | D149: 1 | E149: 1 | F149: 0 | G149: 0 | H149: 1 | I149: 2 | J149: 0 | K149: 0 | L149: 0 | M149: 0 | N149: =IF(SUMPRODUCT($B$6:$M$6,B149:M149)<$P$2,$P$2-SUMPRODUCT($B$6:$M$6,B149:M149),0) -> 2 | O149: 0
A150: 138 | B150: 2 | C150: 0 | D150: 1 | E150: 1 | F150: 0 | G150: 1 | H150: 0 | I150: 1 | J150: 1 | K150: 0 | L150: 0 | M150: 0 | N150: =IF(SUMPRODUCT($B$6:$M$6,B150:M150)<$P$2,$P$2-SUMPRODUCT($B$6:$M$6,B150:M150),0) -> 2 | O150: 0
A151: 139 | B151: 0 | C151: 0 | D151: 0 | E151: 0 | F151: 0 | G151: 0 | H151: 5 | I151: 2 | J151: 2 | K151: 0 | L151: 0 | M151: 0 | N151: =IF(SUMPRODUCT($B$6:$M$6,B151:M151)<$P$2,$P$2-SUMPRODUCT($B$6:$M$6,B151:M151),0) -> 3 | O151: 0
A152: 140 | B152: 0 | C152: 0 | D152: 0 | E152: 0 | F152: 0 | G152: 1 | H152: 4 | I152: 1 | J152: 3 | K152: 0 | L152: 0 | M152: 0 | N152: =IF(SUMPRODUCT($B$6:$M$6,B152:M152)<$P$2,$P$2-SUMPRODUCT($B$6:$M$6,B152:M152),0) -> 3 | O152: 0
A153: 141 | B153: 0 | C153: 0 | D153: 0 | E153: 0 | F153: 0 | G153: 2 | H153: 3 | I153: 0 | J153: 4 | K153: 0 | L153: 0 | M153: 0 | N153: =IF(SUMPRODUCT($B$6:$M$6,B153:M153)<$P$2,$P$2-SUMPRODUCT($B$6:$M$6,B153:M153),0) -> 3 | O153: 0
A154: 142 | B154: 0 | C154: 0 | D154: 0 | E154: 0 | F154: 0 | G154: 3 | H154: 3 | I154: 0 | J154: 0 | K154: 3 | L154: 0 | M154: 0 | N154: =IF(SUMPRODUCT($B$6:$M$6,B154:M154)<$P$2,$P$2-SUMPRODUCT($B$6:$M$6,B154:M154),0) -> 3 | O154: 0
A155: 143 | B155: 0 | C155: 0 | D155: 0 | E155: 0 | F155: 1 | G155: 0 | H155: 3 | I155: 2 | J155: 3 | K155: 0 | L155: 0 | M155: 0 | N155: =IF(SUMPRODUCT($B$6:$M$6,B155:M155)<$P$2,$P$2-SUMPRODUCT($B$6:$M$6,B155:M155),0) -> 3 | O155: 0
A156: 144 | B156: 0 | C156: 0 | D156: 0 | E156: 0 | F156: 1 | G156: 1 | H156: 2 | I156: 1 | J156: 4 | K156: 0 | L156: 0 | M156: 0 | N156: =IF(SUMPRODUCT($B$6:$M$6,B156:M156)<$P$2,$P$2-SUMPRODUCT($B$6:$M$6,B156:M156),0) -> 3 | O156: 0
A157: 145 | B157: 0 | C157: 0 | D157: 0 | E157: 0 | F157: 1 | G157: 2 | H157: 1 | I157: 0 | J157: 5 | K157: 0 | L157: 0 | M157: 0 | N157: =IF(SUMPRODUCT($B$6:$M$6,B157:M157)<$P$2,$P$2-SUMPRODUCT($B$6:$M$6,B157:M157),0) -> 3 | O157: 0
A158: 146 | B158: 0 | C158: 0 | D158: 0 | E158: 0 | F158: 1 | G158: 2 | H158: 2 | I158: 1 | J158: 0 | K158: 3 | L158: 0 | M158: 0 | N158: =IF(SUMPRODUCT($B$6:$M$6,B158:M158)<$P$2,$P$2-SUMPRODUCT($B$6:$M$6,B158:M158),0) -> 3 | O158: 0
A159: 147 | B159: 0 | C159: 0 | D159: 0 | E159: 0 | F159: 1 | G159: 3 | H159: 1 | I159: 0 | J159: 1 | K159: 3 | L159: 0 | M159: 0 | N159: =IF(SUMPRODUCT($B$6:$M$6,B159:M159)<$P$2,$P$2-SUMPRODUCT($B$6:$M$6,B159:M159),0) -> 3 | O159: 0
A160: 148 | B160: 0 | C160: 0 | D160: 0 | E160: 0 | F160: 2 | G160: 0 | H160: 1 | I160: 2 | J160: 4 | K160: 0 | L160: 0 | M160: 0 | N160: =IF(SUMPRODUCT($B$6:$M$6,B160:M160)<$P$2,$P$2-SUMPRODUCT($B$6:$M$6,B160:M160),0) -> 3 | O160: 0
A161: 149 | B161: 0 | C161: 0 | D161: 0 | E161: 0 | F161: 2 | G161: 1 | H161: 0 | I161: 1 | J161: 5 | K161: 0 | L161: 0 | M161: 0 | N161: =IF(SUMPRODUCT($B$6:$M$6,B161:M161)<$P$2,$P$2-SUMPRODUCT($B$6:$M$6,B161:M161),0) -> 3 | O161: 0
A162: 150 | B162: 0 | C162: 0 | D162: 0 | E162: 0 | F162: 2 | G162: 1 | H162: 1 | I162: 2 | J162: 0 | K162: 3 | L162: 0 | M162: 0 | N162: =IF(SUMPRODUCT($B$6:$M$6,B162:M162)<$P$2,$P$2-SUMPRODUCT($B$6:$M$6,B162:M162),0) -> 3 | O162: 0
A163: 151 | B163: 0 | C163: 0 | D163: 0 | E163: 0 | F163: 2 | G163: 2 | H163: 0 | I163: 1 | J163: 1 | K163: 3 | L163: 0 | M163: 0 | N163: =IF(SUMPRODUCT($B$6:$M$6,B163:M163)<$P$2,$P$2-SUMPRODUCT($B$6:$M$6,B163:M163),0) -> 3 | O163: 0
A164: 152 | B164: 0 | C164: 0 | D164: 0 | E164: 0 | F164: 3 | G164: 0 | H164: 0 | I164: 3 | J164: 0 | K164: 3 | L164: 0 | M164: 0 | N164: =IF(SUMPRODUCT($B$6:$M$6,B164:M164)<$P$2,$P$2-SUMPRODUCT($B$6:$M$6,B164:M164),0) -> 3 | O164: 0
A165: 153 | B165: 0 | C165: 0 | D165: 0 | E165: 1 | F165: 0 | G165: 0 | H165: 0 | I165: 1 | J165: 1 | K165: 7 | L165: 0 | M165: 0 | N165: =IF(SUMPRODUCT($B$6:$M$6,B165:M165)<$P$2,$P$2-SUMPRODUCT($B$6:$M$6,B165:M165),0) -> 3 | O165: 0
A166: 154 | B166: 0 | C166: 0 | D166: 1 | E166: 0 | F166: 0 | G166: 0 | H166: 0 | I166: 8 | J166: 0 | K166: 0 | L166: 0 | M166: 0 | N166: =IF(SUMPRODUCT($B$6:$M$6,B166:M166)<$P$2,$P$2-SUMPRODUCT($B$6:$M$6,B166:M166),0) -> 3 | O166: 0
A167: 155 | B167: 0 | C167: 0 | D167: 1 | E167: 0 | F167: 0 | G167: 0 | H167: 3 | I167: 2 | J167: 1 | K167: 2 | L167: 0 | M167: 0 | N167: =IF(SUMPRODUCT($B$6:$M$6,B167:M167)<$P$2,$P$2-SUMPRODUCT($B$6:$M$6,B167:M167),0) -> 3 | O167: 0
A168: 156 | B168: 0 | C168: 0 | D168: 1 | E168: 0 | F168: 0 | G168: 1 | H168: 2 | I168: 1 | J168: 2 | K168: 2 | L168: 0 | M168: 0 | N168: =IF(SUMPRODUCT($B$6:$M$6,B168:M168)<$P$2,$P$2-SUMPRODUCT($B$6:$M$6,B168:M168),0) -> 3 | O168: 0
A169: 157 | B169: 0 | C169: 0 | D169: 1 | E169: 0 | F169: 0 | G169: 2 | H169: 1 | I169: 0 | J169: 3 | K169: 2 | L169: 0 | M169: 0 | N169: =IF(SUMPRODUCT($B$6:$M$6,B169:M169)<$P$2,$P$2-SUMPRODUCT($B$6:$M$6,B169:M169),0) -> 3 | O169: 0
A170: 158 | B170: 0 | C170: 0 | D170: 1 | E170: 0 | F170: 1 | G170: 0 | H170: 1 | I170: 2 | J170: 2 | K170: 2 | L170: 0 | M170: 0 | N170: =IF(SUMPRODUCT($B$6:$M$6,B170:M170)<$P$2,$P$2-SUMPRODUCT($B$6:$M$6,B170:M170),0) -> 3 | O170: 0
A171: 159 | B171: 0 | C171: 0 | D171: 1 | E171: 0 | F171: 1 | G171: 1 | H171: 0 | I171: 1 | J171: 3 | K171: 2 | L171: 0 | M171: 0 | N171: =IF(SUMPRODUCT($B$6:$M$6,B171:M171)<$P$2,$P$2-SUMPRODUCT($B$6:$M$6,B171:M171),0) -> 3 | O171: 0
A172: 160 | B172: 0 | C172: 0 | D172: 2 | E172: 0 | F172: 0 | G172: 0 | H172: 0 | I172: 1 | J172: 5 | K172: 1 | L172: 0 | M172: 0 | N172: =IF(SUMPRODUCT($B$6:$M$6,B172:M172)<$P$2,$P$2-SUMPRODUCT($B$6:$M$6,B172:M172),0) -> 3 | O172: 0
A173: 161 | B173: 0 | C173: 0 | D173: 2 | E173: 0 | F173: 0 | G173: 0 | H173: 1 | I173: 2 | J173: 0 | K173: 4 | L173: 0 | M173: 0 | N173: =IF(SUMPRODUCT($B$6:$M$6,B173:M173)<$P$2,$P$2-SUMPRODUCT($B$6:$M$6,B173:M173),0) -> 3 | O173: 0
A174: 162 | B174: 0 | C174: 0 | D174: 2 | E174: 0 | F174: 0 | G174: 1 | H174: 0 | I174: 1 | J174: 1 | K174: 4 | L174: 0 | M174: 0 | N174: =IF(SUMPRODUCT($B$6:$M$6,B174:M174)<$P$2,$P$2-SUMPRODUCT($B$6:$M$6,B174:M174),0) -> 3 | O174: 0
A175: 163 | B175: 0 | C175: 1 | D175: 0 | E175: 0 | F175: 0 | G175: 0 | H175: 2 | I175: 1 | J175: 4 | K175: 1 | L175: 0 | M175: 0 | N175: =IF(SUMPRODUCT($B$6:$M$6,B175:M175)<$P$2,$P$2-SUMPRODUCT($B$6:$M$6,B175:M175),0) -> 3 | O175: 0
A176: 164 | B176: 0 | C176: 1 | D176: 0 | E176: 0 | F176: 0 | G176: 1 | H176: 1 | I176: 0 | J176: 5 | K176: 1 | L176: 0 | M176: 0 | N176: =IF(SUMPRODUCT($B$6:$M$6,B176:M176)<$P$2,$P$2-SUMPRODUCT($B$6:$M$6,B176:M176),0) -> 3 | O176: 0
A177: 165 | B177: 0 | C177: 1 | D177: 0 | E177: 0 | F177: 0 | G177: 1 | H177: 2 | I177: 1 | J177: 0 | K177: 4 | L177: 0 | M177: 0 | N177: =IF(SUMPRODUCT($B$6:$M$6,B177:M177)<$P$2,$P$2-SUMPRODUCT($B$6:$M$6,B177:M177),0) -> 3 | O177: 0
A178: 166 | B178: 0 | C178: 1 | D178: 0 | E178: 0 | F178: 0 | G178: 2 | H178: 1 | I178: 0 | J178: 1 | K178: 4 | L178: 0 | M178: 0 | N178: =IF(SUMPRODUCT($B$6:$M$6,B178:M178)<$P$2,$P$2-SUMPRODUCT($B$6:$M$6,B178:M178),0) -> 3 | O178: 0
A179: 167 | B179: 0 | C179: 1 | D179: 0 | E179: 0 | F179: 1 | G179: 0 | H179: 0 | I179: 1 | J179: 5 | K179: 1 | L179: 0 | M179: 0 | N179: =IF(SUMPRODUCT($B$6:$M$6,B179:M179)<$P$2,$P$2-SUMPRODUCT($B$6:$M$6,B179:M179),0) -> 3 | O179: 0
A180: 168 | B180: 0 | C180: 1 | D180: 0 | E180: 0 | F180: 1 | G180: 0 | H180: 1 | I180: 2 | J180: 0 | K180: 4 | L180: 0 | M180: 0 | N180: =IF(SUMPRODUCT($B$6:$M$6,B180:M180)<$P$2,$P$2-SUMPRODUCT($B$6:$M$6,B180:M180),0) -> 3 | O180: 0
A181: 169 | B181: 0 | C181: 1 | D181: 0 | E181: 0 | F181: 1 | G181: 1 | H181: 0 | I181: 1 | J181: 1 | K181: 4 | L181: 0 | M181: 0 | N181: =IF(SUMPRODUCT($B$6:$M$6,B181:M181)<$P$2,$P$2-SUMPRODUCT($B$6:$M$6,B181:M181),0) -> 3 | O181: 0
A182: 170 | B182: 0 | C182: 1 | D182: 1 | E182: 0 | F182: 0 | G182: 0 | H182: 0 | I182: 1 | J182: 3 | K182: 3 | L182: 0 | M182: 0 | N182: =IF(SUMPRODUCT($B$6:$M$6,B182:M182)<$P$2,$P$2-SUMPRODUCT($B$6:$M$6,B182:M182),0) -> 3 | O182: 0
A183: 171 | B183: 0 | C183: 2 | D183: 0 | E183: 0 | F183: 0 | G183: 0 | H183: 0 | I183: 1 | J183: 1 | K183: 5 | L183: 0 | M183: 0 | N183: =IF(SUMPRODUCT($B$6:$M$6,B183:M183)<$P$2,$P$2-SUMPRODUCT($B$6:$M$6,B183:M183),0) -> 3 | O183: 0
A184: 172 | B184: 1 | C184: 0 | D184: 0 | E184: 0 | F184: 0 | G184: 0 | H184: 0 | I184: 1 | J184: 7 | K184: 0 | L184: 0 | M184: 0 | N184: =IF(SUMPRODUCT($B$6:$M$6,B184:M184)<$P$2,$P$2-SUMPRODUCT($B$6:$M$6,B184:M184),0) -> 3 | O184: 0
A185: 173 | B185: 1 | C185: 0 | D185: 0 | E185: 0 | F185: 0 | G185: 0 | H185: 1 | I185: 2 | J185: 2 | K185: 3 | L185: 0 | M185: 0 | N185: =IF(SUMPRODUCT($B$6:$M$6,B185:M185)<$P$2,$P$2-SUMPRODUCT($B$6:$M$6,B185:M185),0) -> 3 | O185: 0
A186: 174 | B186: 1 | C186: 0 | D186: 0 | E186: 0 | F186: 0 | G186: 1 | H186: 0 | I186: 1 | J186: 3 | K186: 3 | L186: 0 | M186: 0 | N186: =IF(SUMPRODUCT($B$6:$M$6,B186:M186)<$P$2,$P$2-SUMPRODUCT($B$6:$M$6,B186:M186),0) -> 3 | O186: 0
A187: 175 | B187: 1 | C187: 0 | D187: 0 | E187: 3 | F187: 2 | G187: 0 | H187: 1 | I187: 0 | J187: 0 | K187: 0 | L187: 0 | M187: 0 | N187: =IF(SUMPRODUCT($B$6:$M$6,B187:M187)<$P$2,$P$2-SUMPRODUCT($B$6:$M$6,B187:M187),0) -> 3 | O187: 0
A188: 176 | B188: 0 | C188: 0 | D188: 0 | E188: 1 | F188: 3 | G188: 2 | H188: 1 | I188: 0 | J188: 0 | K188: 1 | L188: 0 | M188: 0 | N188: =IF(SUMPRODUCT($B$6:$M$6,B188:M188)<$P$2,$P$2-SUMPRODUCT($B$6:$M$6,B188:M188),0) -> 4 | O188: 0
A189: 177 | B189: 0 | C189: 0 | D189: 0 | E189: 1 | F189: 4 | G189: 1 | H189: 0 | I189: 1 | J189: 0 | K189: 1 | L189: 0 | M189: 0 | N189: =IF(SUMPRODUCT($B$6:$M$6,B189:M189)<$P$2,$P$2-SUMPRODUCT($B$6:$M$6,B189:M189),0) -> 4 | O189: 0
A190: 178 | B190: 0 | C190: 0 | D190: 0 | E190: 2 | F190: 1 | G190: 0 | H190: 1 | I190: 0 | J190: 0 | K190: 5 | L190: 0 | M190: 0 | N190: =IF(SUMPRODUCT($B$6:$M$6,B190:M190)<$P$2,$P$2-SUMPRODUCT($B$6:$M$6,B190:M190),0) -> 4 | O190: 0
A191: 179 | B191: 0 | C191: 0 | D191: 1 | E191: 1 | F191: 0 | G191: 1 | H191: 5 | I191: 0 | J191: 0 | K191: 0 | L191: 0 | M191: 0 | N191: =IF(SUMPRODUCT($B$6:$M$6,B191:M191)<$P$2,$P$2-SUMPRODUCT($B$6:$M$6,B191:M191),0) -> 4 | O191: 0
A192: 180 | B192: 0 | C192: 0 | D192: 1 | E192: 1 | F192: 1 | G192: 0 | H192: 4 | I192: 1 | J192: 0 | K192: 0 | L192: 0 | M192: 0 | N192: =IF(SUMPRODUCT($B$6:$M$6,B192:M192)<$P$2,$P$2-SUMPRODUCT($B$6:$M$6,B192:M192),0) -> 4 | O192: 0
A193: 181 | B193: 0 | C193: 0 | D193: 1 | E193: 1 | F193: 1 | G193: 1 | H193: 3 | I193: 0 | J193: 1 | K193: 0 | L193: 0 | M193: 0 | N193: =IF(SUMPRODUCT($B$6:$M$6,B193:M193)<$P$2,$P$2-SUMPRODUCT($B$6:$M$6,B193:M193),0) -> 4 | O193: 0
A194: 182 | B194: 0 | C194: 0 | D194: 1 | E194: 1 | F194: 2 | G194: 0 | H194: 2 | I194: 1 | J194: 1 | K194: 0 | L194: 0 | M194: 0 | N194: =IF(SUMPRODUCT($B$6:$M$6,B194:M194)<$P$2,$P$2-SUMPRODUCT($B$6:$M$6,B194:M194),0) -> 4 | O194: 0
A195: 183 | B195: 0 | C195: 0 | D195: 1 | E195: 1 | F195: 2 | G195: 1 | H195: 1 | I195: 0 | J195: 2 | K195: 0 | L195: 0 | M195: 0 | N195: =IF(SUMPRODUCT($B$6:$M$6,B195:M195)<$P$2,$P$2-SUMPRODUCT($B$6:$M$6,B195:M195),0) -> 4 | O195: 0
A196: 184 | B196: 0 | C196: 0 | D196: 1 | E196: 1 | F196: 3 | G196: 0 | H196: 0 | I196: 1 | J196: 2 | K196: 0 | L196: 0 | M196: 0 | N196: =IF(SUMPRODUCT($B$6:$M$6,B196:M196)<$P$2,$P$2-SUMPRODUCT($B$6:$M$6,B196:M196),0) -> 4 | O196: 0
A197: 185 | B197: 0 | C197: 0 | D197: 2 | E197: 1 | F197: 1 | G197: 1 | H197: 1 | I197: 0 | J197: 0 | K197: 2 | L197: 0 | M197: 0 | N197: =IF(SUMPRODUCT($B$6:$M$6,B197:M197)<$P$2,$P$2-SUMPRODUCT($B$6:$M$6,B197:M197),0) -> 4 | O197: 0
A198: 186 | B198: 0 | C198: 0 | D198: 2 | E198: 1 | F198: 2 | G198: 0 | H198: 0 | I198: 1 | J198: 0 | K198: 2 | L198: 0 | M198: 0 | N198: =IF(SUMPRODUCT($B$6:$M$6,B198:M198)<$P$2,$P$2-SUMPRODUCT($B$6:$M$6,B198:M198),0) -> 4 | O198: 0
A199: 187 | B199: 0 | C199: 0 | D199: 3 | E199: 1 | F199: 0 | G199: 0 | H199: 1 | I199: 0 | J199: 2 | K199: 1 | L199: 0 | M199: 0 | N199: =IF(SUMPRODUCT($B$6:$M$6,B199:M199)<$P$2,$P$2-SUMPRODUCT($B$6:$M$6,B199:M199),0) -> 4 | O199: 0
A200: 188 | B200: 0 | C200: 0 | D200: 6 | E200: 0 | F200: 0 | G200: 0 | H200: 0 | I200: 1 | J200: 0 | K200: 0 | L200: 0 | M200: 0 | N200: =IF(SUMPRODUCT($B$6:$M$6,B200:M200)<$P$2,$P$2-SUMPRODUCT($B$6:$M$6,B200:M200),0) -> 4 | O200: 0
A201: 189 | B201: 0 | C201: 1 | D201: 0 | E201: 1 | F201: 2 | G201: 1 | H201: 1 | I201: 0 | J201: 0 | K201: 2 | L201: 0 | M201: 0 | N201: =IF(SUMPRODUCT($B$6:$M$6,B201:M201)<$P$2,$P$2-SUMPRODUCT($B$6:$M$6,B201:M201),0) -> 4 | O201: 0
... 4299 more rows

Sheet минимум обрезков
A1: Оптимизация. Варюхин С.Е. 2015 гг | C1: Нарезка труб
B2: 1 | C2: 2 | D2: 3 | E2: 4 | F2: 5 | G2: 6 | H2: 7 | I2: 8 | J2: 9 | K2: 10 | L2: 11 | M2: 12 | N2: Номер детали | P2: 6000 | Q2: = L — длина труб, мм
B3: 28 | C3: 18 | D3: 31 | E3: 96 | F3: 12 | G3: 27 | H3: 63 | I3: 76 | J3: 6 | K3: 14 | L3: 0 | M3: 0 | N3: Количество деталей | O3: =SUM(B3:M3) -> 371
B4: 1135 | C4: 980 | D4: 890 | E4: 847 | F4: 800 | G4: 735 | H4: 700 | I4: 635 | J4: 600 | K4: 555 | L4: 6000 | M4: 6000 | N4: Размеры деталей, мм | P4: 427 | Q4: = Δ - максимальный размер обрезка
P5: 0 | Q5: = Δm - максимальный размер остатка
B6: =B4+$P$6 -> 1138 | C6: 983 | D6: 893 | E6: 850 | F6: 803 | G6: 738 | H6: 703 | I6: 638 | J6: 603 | K6: 558 | L6: 6003 | M6: 6003 | N6: Длина детали + ширина реза | P6: 3 | Q6: = d - ширина реза
A7: вариантов | B7: =SUMPRODUCT(B6:M6,B3:M3)/(P2+P6) -> 48.74396135 | C7: Теоретич. мин. число труб | M7: Суммарная длина обрезков, м = | N7: =SUMPRODUCT(N13:N10014,O13:O10014)/1000 -> 0.000
A8: 10,002 | B8: =SUM(O13:O10014) -> 85 | C8: Количество труб длины L | M8: Суммарная длина остатков, м = | N8: 0.000 | O8: =N7*1000/(P2*B8) -> 0.00% | P8: Процент потерь в обрезки
B10: =SUMPRODUCT(B13:B10014,$O$13:$O$10014) -> 28 | C10: =SUMPRODUCT(C13:C10014,$O$13:$O$10014) -> 32 | D10: 31 | E10: 142 | F10: 140 | G10: 57 | H10: 64 | I10: 133 | J10: 6 | K10: 19 | L10: 0 | M10: 0 | N10: Количество полученных деталей | O10: =SUM(B10:M10) -> 652 | P10: 1.000 | Q10: = макс. суммарная длина обрезков
B11: =B10-B3 -> 0 | C11: 14 | D11: 0 | E11: 46 | F11: 128 | G11: 30 | H11: 1 | I11: 57 | J11: 0 | K11: =K10-K3 -> 5 | L11: 0 | M11: =M10-M3 -> 0 | N11: Количество лишних деталей | O11: =SUM(B11:M11) -> 281 | P11: 3 | Q11: = максимальный избыток деталей
A12: Номер варианта разреза | B12: 1 | C12: 2 | D12: 3 | E12: 4 | F12: 5 | G12: 6 | H12: 7 | I12: 8 | J12: 9 | K12: 10 | L12: 11 | M12: 12 | N12: Обрезок или остаток | O12: Сколько труб так разрезать?
A13: 1 | B13: 0 | C13: 0 | D13: 0 | E13: 0 | F13: 0 | G13: 0 | H13: 0 | I13: 0 | J13: 0 | K13: 0 | L13: 0 | M13: 1 | N13: =IF(SUMPRODUCT($B$6:$M$6,B13:M13)<$P$2,$P$2-SUMPRODUCT($B$6:$M$6,B13:M13),0) -> 0 | O13: 0
A14: 2 | B14: 0 | C14: 0 | D14: 0 | E14: 0 | F14: 0 | G14: 0 | H14: 0 | I14: 0 | J14: 0 | K14: 0 | L14: 1 | M14: 0 | N14: =IF(SUMPRODUCT($B$6:$M$6,B14:M14)<$P$2,$P$2-SUMPRODUCT($B$6:$M$6,B14:M14),0) -> 0 | O14: 0
A15: 3 | B15: 0 | C15: 0 | D15: 1 | E15: 2 | F15: 0 | G15: 3 | H15: 0 | I15: 1 | J15: 0 | K15: 1 | L15: 0 | M15: 0 | N15: 0 | O15: 19
A16: 4 | B16: 0 | C16: 0 | D16: 2 | E16: 2 | F16: 0 | G16: 0 | H16: 0 | I16: 3 | J16: 1 | K16: 0 | L16: 0 | M16: 0 | N16: 0 | O16: 6
A17: 5 | B17: 0 | C17: 1 | D17: 0 | E17: 2 | F17: 0 | G17: 0 | H17: 2 | I17: 3 | J17: 0 | K17: 0 | L17: 0 | M17: 0 | N17: 0 | O17: 32
A18: 6 | B18: 0 | C18: 1 | D18: 0 | E18: 2 | F18: 0 | G18: 1 | H18: 1 | I18: 2 | J18: 1 | K18: 0 | L18: 0 | M18: 0 | N18: 0 | O18: 0
A19: 7 | B19: 0 | C19: 1 | D19: 0 | E19: 2 | F19: 0 | G19: 2 | H19: 0 | I19: 1 | J19: 2 | K19: 0 | L19: 0 | M19: 0 | N19: 0 | O19: 0
A20: 8 | B20: 0 | C20: 1 | D20: 0 | E20: 2 | F20: 1 | G20: 0 | H20: 0 | I20: 3 | J20: 1 | K20: 0 | L20: 0 | M20: 0 | N20: 0 | O20: 0
A21: 9 | B21: 1 | C21: 0 | D21: 0 | E21: 1 | F21: 5 | G21: 0 | H21: 0 | I21: 0 | J21: 0 | K21: 0 | L21: 0 | M21: 0 | N21: 0 | O21: 28
A22: 10 | B22: 3 | C22: 0 | D22: 2 | E22: 0 | F22: 1 | G22: 0 | H22: 0 | I22: 0 | J22: 0 | K22: 0 | L22: 0 | M22: 0 | N22: 0 | O22: 0
A23: 11 | B23: 3 | C23: 1 | D23: 0 | E23: 0 | F23: 2 | G23: 0 | H23: 0 | I23: 0 | J23: 0 | K23: 0 | L23: 0 | M23: 0 | N23: 0 | O23: 0
A24: 12 | B24: 4 | C24: 0 | D24: 1 | E24: 0 | F24: 0 | G24: 0 | H24: 0 | I24: 0 | J24: 0 | K24: 1 | L24: 0 | M24: 0 | N24: 0 | O24: 0
A25: 13 | B25: 0 | C25: 0 | D25: 0 | E25: 0 | F25: 0 | G25: 0 | H25: 4 | I25: 5 | J25: 0 | K25: 0 | L25: 0 | M25: 0 | N25: 0 | O25: 0
A26: 14 | B26: 0 | C26: 0 | D26: 0 | E26: 0 | F26: 0 | G26: 1 | H26: 3 | I26: 4 | J26: 1 | K26: 0 | L26: 0 | M26: 0 | N26: 0 | O26: 0
A27: 15 | B27: 0 | C27: 0 | D27: 0 | E27: 0 | F27: 0 | G27: 2 | H27: 2 | I27: 3 | J27: 2 | K27: 0 | L27: 0 | M27: 0 | N27: 0 | O27: 0
A28: 16 | B28: 0 | C28: 0 | D28: 0 | E28: 0 | F28: 0 | G28: 3 | H28: 1 | I28: 2 | J28: 3 | K28: 0 | L28: 0 | M28: 0 | N28: 0 | O28: 0
A29: 17 | B29: 0 | C29: 0 | D29: 0 | E29: 0 | F29: 0 | G29: 4 | H29: 0 | I29: 1 | J29: 4 | K29: 0 | L29: 0 | M29: 0 | N29: 0 | O29: 0
A30: 18 | B30: 0 | C30: 0 | D30: 0 | E30: 0 | F30: 0 | G30: 5 | H30: 0 | I30: 1 | J30: 0 | K30: 3 | L30: 0 | M30: 0 | N30: 0 | O30: 0
A31: 19 | B31: 0 | C31: 0 | D31: 0 | E31: 0 | F31: 1 | G31: 0 | H31: 2 | I31: 5 | J31: 1 | K31: 0 | L31: 0 | M31: 0 | N31: 0 | O31: 0
A32: 20 | B32: 0 | C32: 0 | D32: 0 | E32: 0 | F32: 1 | G32: 1 | H32: 1 | I32: 4 | J32: 2 | K32: 0 | L32: 0 | M32: 0 | N32: 0 | O32: 0
A33: 21 | B33: 0 | C33: 0 | D33: 0 | E33: 0 | F33: 1 | G33: 2 | H33: 0 | I33: 3 | J33: 3 | K33: 0 | L33: 0 | M33: 0 | N33: 0 | O33: 0
A34: 22 | B34: 0 | C34: 0 | D34: 0 | E34: 0 | F34: 2 | G34: 0 | H34: 0 | I34: 5 | J34: 2 | K34: 0 | L34: 0 | M34: 0 | N34: 0 | O34: 0
A35: 23 | B35: 0 | C35: 0 | D35: 0 | E35: 0 | F35: 4 | G35: 0 | H35: 0 | I35: 0 | J35: 0 | K35: 5 | L35: 0 | M35: 0 | N35: 0 | O35: 0
A36: 24 | B36: 0 | C36: 0 | D36: 0 | E36: 4 | F36: 0 | G36: 0 | H36: 2 | I36: 1 | J36: 0 | K36: 1 | L36: 0 | M36: 0 | N36: 0 | O36: 0
A37: 25 | B37: 0 | C37: 0 | D37: 0 | E37: 4 | F37: 0 | G37: 1 | H37: 1 | I37: 0 | J37: 1 | K37: 1 | L37: 0 | M37: 0 | N37: 0 | O37: 0
A38: 26 | B38: 0 | C38: 0 | D38: 0 | E38: 4 | F38: 1 | G38: 0 | H38: 0 | I38: 1 | J38: 1 | K38: 1 | L38: 0 | M38: 0 | N38: 0 | O38: 0
A39: 27 | B39: 0 | C39: 0 | D39: 1 | E39: 0 | F39: 0 | G39: 1 | H39: 1 | I39: 4 | J39: 0 | K39: 2 | L39: 0 | M39: 0 | N39: 0 | O39: 0
A40: 28 | B40: 0 | C40: 0 | D40: 1 | E40: 0 | F40: 0 | G40: 2 | H40: 0 | I40: 3 | J40: 1 | K40: 2 | L40: 0 | M40: 0 | N40: 0 | O40: 0
A41: 29 | B41: 0 | C41: 0 | D41: 1 | E41: 0 | F41: 1 | G41: 0 | H41: 0 | I41: 5 | J41: 0 | K41: 2 | L41: 0 | M41: 0 | N41: 0 | O41: 0
A42: 30 | B42: 0 | C42: 1 | D42: 0 | E42: 0 | F42: 0 | G42: 0 | H42: 1 | I42: 4 | J42: 2 | K42: 1 | L42: 0 | M42: 0 | N42: 0 | O42: 0
A43: 31 | B43: 0 | C43: 1 | D43: 0 | E43: 0 | F43: 0 | G43: 1 | H43: 0 | I43: 3 | J43: 3 | K43: 1 | L43: 0 | M43: 0 | N43: 0 | O43: 0
A44: 32 | B44: 1 | C44: 0 | D44: 0 | E44: 0 | F44: 0 | G44: 0 | H44: 0 | I44: 5 | J44: 0 | K44: 3 | L44: 0 | M44: 0 | N44: 0 | O44: 0
A45: 33 | B45: 0 | C45: 0 | D45: 0 | E45: 2 | F45: 0 | G45: 0 | H45: 1 | I45: 2 | J45: 2 | K45: 2 | L45: 0 | M45: 0 | N45: 0 | O45: 0
A46: 34 | B46: 0 | C46: 0 | D46: 0 | E46: 2 | F46: 0 | G46: 1 | H46: 0 | I46: 1 | J46: 3 | K46: 2 | L46: 0 | M46: 0 | N46: 0 | O46: 0
A47: 35 | B47: 0 | C47: 0 | D47: 1 | E47: 1 | F47: 0 | G47: 3 | H47: 2 | I47: 1 | J47: 0 | K47: 0 | L47: 0 | M47: 0 | N47: 0 | O47: 0
A48: 36 | B48: 0 | C48: 0 | D48: 1 | E48: 1 | F48: 0 | G48: 4 | H48: 1 | I48: 0 | J48: 1 | K48: 0 | L48: 0 | M48: 0 | N48: 0 | O48: 0
A49: 37 | B49: 0 | C49: 0 | D49: 1 | E49: 1 | F49: 1 | G49: 2 | H49: 1 | I49: 2 | J49: 0 | K49: 0 | L49: 0 | M49: 0 | N49: 0 | O49: 0
A50: 38 | B50: 0 | C50: 0 | D50: 1 | E50: 1 | F50: 1 | G50: 3 | H50: 0 | I50: 1 | J50: 1 | K50: 0 | L50: 0 | M50: 0 | N50: 0 | O50: 0
A51: 39 | B51: 0 | C51: 0 | D51: 1 | E51: 1 | F51: 2 | G51: 1 | H51: 0 | I51: 3 | J51: 0 | K51: 0 | L51: 0 | M51: 0 | N51: 0 | O51: 0
A52: 40 | B52: 0 | C52: 0 | D52: 3 | E52: 1 | F52: 0 | G52: 0 | H52: 0 | I52: 3 | J52: 0 | K52: 1 | L52: 0 | M52: 0 | N52: 0 | O52: 0
A53: 41 | B53: 0 | C53: 1 | D53: 1 | E53: 1 | F53: 0 | G53: 1 | H53: 1 | I53: 2 | J53: 0 | K53: 1 | L53: 0 | M53: 0 | N53: 0 | O53: 0
A54: 42 | B54: 0 | C54: 1 | D54: 1 | E54: 1 | F54: 0 | G54: 2 | H54: 0 | I54: 1 | J54: 1 | K54: 1 | L54: 0 | M54: 0 | N54: 0 | O54: 0
A55: 43 | B55: 0 | C55: 1 | D55: 1 | E55: 1 | F55: 1 | G55: 0 | H55: 0 | I55: 3 | J55: 0 | K55: 1 | L55: 0 | M55: 0 | N55: 0 | O55: 0
A56: 44 | B56: 0 | C56: 2 | D56: 0 | E56: 1 | F56: 0 | G56: 0 | H56: 1 | I56: 2 | J56: 2 | K56: 0 | L56: 0 | M56: 0 | N56: 0 | O56: 0
A57: 45 | B57: 0 | C57: 2 | D57: 0 | E57: 1 | F57: 0 | G57: 1 | H57: 0 | I57: 1 | J57: 3 | K57: 0 | L57: 0 | M57: 0 | N57: 0 | O57: 0
A58: 46 | B58: 1 | C58: 0 | D58: 0 | E58: 1 | F58: 0 | G58: 2 | H58: 1 | I58: 2 | J58: 0 | K58: 1 | L58: 0 | M58: 0 | N58: 0 | O58: 0
A59: 47 | B59: 1 | C59: 0 | D59: 0 | E59: 1 | F59: 0 | G59: 3 | H59: 0 | I59: 1 | J59: 1 | K59: 1 | L59: 0 | M59: 0 | N59: 0 | O59: 0
A60: 48 | B60: 1 | C60: 0 | D60: 0 | E60: 1 | F60: 1 | G60: 1 | H60: 0 | I60: 3 | J60: 0 | K60: 1 | L60: 0 | M60: 0 | N60: 0 | O60: 0
A61: 49 | B61: 1 | C61: 0 | D61: 1 | E61: 1 | F61: 0 | G61: 0 | H61: 0 | I61: 3 | J61: 2 | K61: 0 | L61: 0 | M61: 0 | N61: 0 | O61: 0
A62: 50 | B62: 1 | C62: 1 | D62: 0 | E62: 1 | F62: 0 | G62: 0 | H62: 0 | I62: 3 | J62: 0 | K62: 2 | L62: 0 | M62: 0 | N62: 0 | O62: 0
A63: 51 | B63: 1 | C63: 3 | D63: 0 | E63: 0 | F63: 0 | G63: 0 | H63: 0 | I63: 3 | J63: 0 | K63: 0 | L63: 0 | M63: 0 | N63: 0 | O63: 0
A64: 52 | B64: 0 | C64: 0 | D64: 0 | E64: 0 | F64: 0 | G64: 0 | H64: 0 | I64: 3 | J64: 4 | K64: 3 | L64: 0 | M64: 0 | N64: 0 | O64: 0
A65: 53 | B65: 0 | C65: 0 | D65: 0 | E65: 0 | F65: 0 | G65: 1 | H65: 0 | I65: 3 | J65: 0 | K65: 6 | L65: 0 | M65: 0 | N65: 0 | O65: 0
A66: 54 | B66: 0 | C66: 0 | D66: 0 | E66: 3 | F66: 0 | G66: 0 | H66: 4 | I66: 1 | J66: 0 | K66: 0 | L66: 0 | M66: 0 | N66: 0 | O66: 0
A67: 55 | B67: 0 | C67: 0 | D67: 0 | E67: 3 | F67: 0 | G67: 1 | H67: 3 | I67: 0 | J67: 1 | K67: 0 | L67: 0 | M67: 0 | N67: 0 | O67: 0
A68: 56 | B68: 0 | C68: 0 | D68: 0 | E68: 3 | F68: 1 | G68: 0 | H68: 2 | I68: 1 | J68: 1 | K68: 0 | L68: 0 | M68: 0 | N68: 0 | O68: 0
A69: 57 | B69: 0 | C69: 0 | D69: 0 | E69: 3 | F69: 1 | G69: 1 | H69: 1 | I69: 0 | J69: 2 | K69: 0 | L69: 0 | M69: 0 | N69: 0 | O69: 0
A70: 58 | B70: 0 | C70: 0 | D70: 0 | E70: 3 | F70: 2 | G70: 0 | H70: 0 | I70: 1 | J70: 2 | K70: 0 | L70: 0 | M70: 0 | N70: 0 | O70: 0
A71: 59 | B71: 0 | C71: 0 | D71: 1 | E71: 3 | F71: 0 | G71: 1 | H71: 1 | I71: 0 | J71: 0 | K71: 2 | L71: 0 | M71: 0 | N71: 0 | O71: 0
A72: 60 | B72: 0 | C72: 0 | D72: 1 | E72: 3 | F72: 1 | G72: 0 | H72: 0 | I72: 1 | J72: 0 | K72: 2 | L72: 0 | M72: 0 | N72: 0 | O72: 0
A73: 61 | B73: 0 | C73: 1 | D73: 0 | E73: 3 | F73: 0 | G73: 0 | H73: 1 | I73: 0 | J73: 2 | K73: 1 | L73: 0 | M73: 0 | N73: 0 | O73: 0
A74: 62 | B74: 0 | C74: 1 | D74: 3 | E74: 2 | F74: 0 | G74: 0 | H74: 0 | I74: 1 | J74: 0 | K74: 0 | L74: 0 | M74: 0 | N74: 0 | O74: 0
A75: 63 | B75: 0 | C75: 2 | D75: 1 | E75: 2 | F75: 0 | G75: 1 | H75: 1 | I75: 0 | J75: 0 | K75: 0 | L75: 0 | M75: 0 | N75: 0 | O75: 0
A76: 64 | B76: 0 | C76: 2 | D76: 1 | E76: 2 | F76: 1 | G76: 0 | H76: 0 | I76: 1 | J76: 0 | K76: 0 | L76: 0 | M76: 0 | N76: 0 | O76: 0
A77: 65 | B77: 1 | C77: 0 | D77: 0 | E77: 3 | F77: 0 | G77: 0 | H77: 0 | I77: 1 | J77: 0 | K77: 3 | L77: 0 | M77: 0 | N77: 0 | O77: 0
A78: 66 | B78: 1 | C78: 0 | D78: 2 | E78: 2 | F78: 0 | G78: 1 | H78: 0 | I78: 1 | J78: 0 | K78: 0 | L78: 0 | M78: 0 | N78: =IF(SUMPRODUCT($B$6:$M$6,B78:M78)<$P$2,$P$2-SUMPRODUCT($B$6:$M$6,B78:M78),0) -> 0 | O78: 0
A79: 67 | B79: 1 | C79: 1 | D79: 0 | E79: 2 | F79: 0 | G79: 2 | H79: 1 | I79: 0 | J79: 0 | K79: 0 | L79: 0 | M79: 0 | N79: 0 | O79: 0
A80: 68 | B80: 1 | C80: 1 | D80: 0 | E80: 2 | F80: 1 | G80: 1 | H80: 0 | I80: 1 | J80: 0 | K80: 0 | L80: 0 | M80: 0 | N80: 0 | O80: 0
A81: 69 | B81: 1 | C81: 2 | D81: 0 | E81: 2 | F81: 0 | G81: 0 | H81: 0 | I81: 1 | J81: 0 | K81: 1 | L81: 0 | M81: 0 | N81: 0 | O81: 0
A82: 70 | B82: 0 | C82: 0 | D82: 0 | E82: 0 | F82: 2 | G82: 5 | H82: 1 | I82: 0 | J82: 0 | K82: 0 | L82: 0 | M82: 0 | N82: 1 | O82: 0
A83: 71 | B83: 0 | C83: 0 | D83: 0 | E83: 0 | F83: 3 | G83: 4 | H83: 0 | I83: 1 | J83: 0 | K83: 0 | L83: 0 | M83: 0 | N83: 1 | O83: 0
A84: 72 | B84: 0 | C84: 0 | D84: 0 | E84: 1 | F84: 0 | G84: 0 | H84: 3 | I84: 2 | J84: 2 | K84: 1 | L84: 0 | M84: 0 | N84: 1 | O84: 0
A85: 73 | B85: 0 | C85: 0 | D85: 0 | E85: 1 | F85: 0 | G85: 1 | H85: 2 | I85: 1 | J85: 3 | K85: 1 | L85: 0 | M85: 0 | N85: 1 | O85: 0
A86: 74 | B86: 0 | C86: 0 | D86: 0 | E86: 1 | F86: 0 | G86: 2 | H86: 1 | I86: 0 | J86: 4 | K86: 1 | L86: 0 | M86: 0 | N86: 1 | O86: 0
A87: 75 | B87: 0 | C87: 0 | D87: 0 | E87: 1 | F87: 0 | G87: 3 | H87: 1 | I87: 0 | J87: 0 | K87: 4 | L87: 0 | M87: 0 | N87: 1 | O87: 0
A88: 76 | B88: 0 | C88: 0 | D88: 0 | E88: 1 | F88: 1 | G88: 0 | H88: 1 | I88: 2 | J88: 3 | K88: 1 | L88: 0 | M88: 0 | N88: 1 | O88: 0
A89: 77 | B89: 0 | C89: 0 | D89: 0 | E89: 1 | F89: 1 | G89: 1 | H89: 0 | I89: 1 | J89: 4 | K89: 1 | L89: 0 | M89: 0 | N89: 1 | O89: 0
A90: 78 | B90: 0 | C90: 0 | D90: 0 | E90: 1 | F90: 1 | G90: 2 | H90: 0 | I90: 1 | J90: 0 | K90: 4 | L90: 0 | M90: 0 | N90: 1 | O90: 0
A91: 79 | B91: 0 | C91: 0 | D91: 1 | E91: 1 | F91: 0 | G91: 0 | H91: 0 | I91: 1 | J91: 6 | K91: 0 | L91: 0 | M91: 0 | N91: 1 | O91: 0
A92: 80 | B92: 0 | C92: 0 | D92: 1 | E92: 1 | F92: 0 | G92: 0 | H92: 1 | I92: 2 | J92: 1 | K92: 3 | L92: 0 | M92: 0 | N92: 1 | O92: 0
A93: 81 | B93: 0 | C93: 0 | D93: 1 | E93: 1 | F93: 0 | G93: 1 | H93: 0 | I93: 1 | J93: 2 | K93: 3 | L93: 0 | M93: 0 | N93: 1 | O93: 0
A94: 82 | B94: 0 | C94: 0 | D94: 2 | E94: 0 | F94: 0 | G94: 4 | H94: 1 | I94: 0 | J94: 0 | K94: 1 | L94: 0 | M94: 0 | N94: 1 | O94: 0
A95: 83 | B95: 0 | C95: 0 | D95: 2 | E95: 0 | F95: 1 | G95: 3 | H95: 0 | I95: 1 | J95: 0 | K95: 1 | L95: 0 | M95: 0 | N95: 1 | O95: 0
A96: 84 | B96: 0 | C96: 0 | D96: 3 | E96: 0 | F96: 0 | G96: 0 | H96: 2 | I96: 3 | J96: 0 | K96: 0 | L96: 0 | M96: 0 | N96: 1 | O96: 0
A97: 85 | B97: 0 | C97: 0 | D97: 3 | E97: 0 | F97: 0 | G97: 1 | H97: 1 | I97: 2 | J97: 1 | K97: 0 | L97: 0 | M97: 0 | N97: 1 | O97: 0
A98: 86 | B98: 0 | C98: 0 | D98: 3 | E98: 0 | F98: 0 | G98: 2 | H98: 0 | I98: 1 | J98: 2 | K98: 0 | L98: 0 | M98: 0 | N98: 1 | O98: 0
A99: 87 | B99: 0 | C99: 0 | D99: 3 | E99: 0 | F99: 1 | G99: 0 | H99: 0 | I99: 3 | J99: 1 | K99: 0 | L99: 0 | M99: 0 | N99: 1 | O99: 0
A100: 88 | B100: 0 | C100: 1 | D100: 0 | E100: 0 | F100: 1 | G100: 4 | H100: 1 | I100: 0 | J100: 0 | K100: 1 | L100: 0 | M100: 0 | N100: 1 | O100: 0
A101: 89 | B101: 0 | C101: 1 | D101: 0 | E101: 0 | F101: 2 | G101: 3 | H101: 0 | I101: 1 | J101: 0 | K101: 1 | L101: 0 | M101: 0 | N101: 1 | O101: 0
A102: 90 | B102: 0 | C102: 1 | D102: 0 | E102: 1 | F102: 0 | G102: 0 | H102: 0 | I102: 1 | J102: 4 | K102: 2 | L102: 0 | M102: 0 | N102: 1 | O102: 0
A103: 91 | B103: 0 | C103: 1 | D103: 0 | E103: 1 | F103: 0 | G103: 1 | H103: 0 | I103: 1 | J103: 0 | K103: 5 | L103: 0 | M103: 0 | N103: 1 | O103: 0
A104: 92 | B104: 0 | C104: 1 | D104: 1 | E104: 0 | F104: 0 | G104: 1 | H104: 3 | I104: 2 | J104: 0 | K104: 0 | L104: 0 | M104: 0 | N104: 1 | O104: 0
A105: 93 | B105: 0 | C105: 1 | D105: 1 | E105: 0 | F105: 0 | G105: 2 | H105: 2 | I105: 1 | J105: 1 | K105: 0 | L105: 0 | M105: 0 | N105: 1 | O105: 0
A106: 94 | B106: 0 | C106: 1 | D106: 1 | E106: 0 | F106: 0 | G106: 3 | H106: 1 | I106: 0 | J106: 2 | K106: 0 | L106: 0 | M106: 0 | N106: 1 | O106: 0
A107: 95 | B107: 0 | C107: 1 | D107: 1 | E107: 0 | F107: 1 | G107: 0 | H107: 2 | I107: 3 | J107: 0 | K107: 0 | L107: 0 | M107: 0 | N107: 1 | O107: 0
A108: 96 | B108: 0 | C108: 1 | D108: 1 | E108: 0 | F108: 1 | G108: 1 | H108: 1 | I108: 2 | J108: 1 | K108: 0 | L108: 0 | M108: 0 | N108: 1 | O108: 0
A109: 97 | B109: 0 | C109: 1 | D109: 1 | E109: 0 | F109: 1 | G109: 2 | H109: 0 | I109: 1 | J109: 2 | K109: 0 | L109: 0 | M109: 0 | N109: 1 | O109: 0
A110: 98 | B110: 0 | C110: 1 | D110: 1 | E110: 0 | F110: 2 | G110: 0 | H110: 0 | I110: 3 | J110: 1 | K110: 0 | L110: 0 | M110: 0 | N110: 1 | O110: 0
A111: 99 | B111: 0 | C111: 1 | D111: 2 | E111: 0 | F111: 0 | G111: 2 | H111: 0 | I111: 1 | J111: 0 | K111: 2 | L111: 0 | M111: 0 | N111: 1 | O111: 0
A112: 100 | B112: 0 | C112: 2 | D112: 0 | E112: 0 | F112: 0 | G112: 3 | H112: 1 | I112: 0 | J112: 0 | K112: 2 | L112: 0 | M112: 0 | N112: 1 | O112: 0
A113: 101 | B113: 0 | C113: 2 | D113: 0 | E113: 0 | F113: 1 | G113: 2 | H113: 0 | I113: 1 | J113: 0 | K113: 2 | L113: 0 | M113: 0 | N113: 1 | O113: 0
A114: 102 | B114: 0 | C114: 2 | D114: 1 | E114: 0 | F114: 0 | G114: 0 | H114: 1 | I114: 2 | J114: 1 | K114: 1 | L114: 0 | M114: 0 | N114: 1 | O114: 0
A115: 103 | B115: 0 | C115: 2 | D115: 1 | E115: 0 | F115: 0 | G115: 1 | H115: 0 | I115: 1 | J115: 2 | K115: 1 | L115: 0 | M115: 0 | N115: 1 | O115: 0
A116: 104 | B116: 0 | C116: 3 | D116: 0 | E116: 0 | F116: 0 | G116: 0 | H116: 0 | I116: 1 | J116: 4 | K116: 0 | L116: 0 | M116: 0 | N116: 1 | O116: 0
A117: 105 | B117: 0 | C117: 3 | D117: 0 | E117: 0 | F117: 0 | G117: 1 | H117: 0 | I117: 1 | J117: 0 | K117: 3 | L117: 0 | M117: 0 | N117: 1 | O117: 0
A118: 106 | B118: 1 | C118: 0 | D118: 0 | E118: 0 | F118: 0 | G118: 2 | H118: 3 | I118: 2 | J118: 0 | K118: 0 | L118: 0 | M118: 0 | N118: 1 | O118: 0
A119: 107 | B119: 1 | C119: 0 | D119: 0 | E119: 0 | F119: 0 | G119: 3 | H119: 2 | I119: 1 | J119: 1 | K119: 0 | L119: 0 | M119: 0 | N119: 1 | O119: 0
A120: 108 | B120: 1 | C120: 0 | D120: 0 | E120: 0 | F120: 0 | G120: 4 | H120: 1 | I120: 0 | J120: 2 | K120: 0 | L120: 0 | M120: 0 | N120: 1 | O120: 0
A121: 109 | B121: 1 | C121: 0 | D121: 0 | E121: 0 | F121: 1 | G121: 1 | H121: 2 | I121: 3 | J121: 0 | K121: 0 | L121: 0 | M121: 0 | N121: 1 | O121: 0
A122: 110 | B122: 1 | C122: 0 | D122: 0 | E122: 0 | F122: 1 | G122: 2 | H122: 1 | I122: 2 | J122: 1 | K122: 0 | L122: 0 | M122: 0 | N122: 1 | O122: 0
A123: 111 | B123: 1 | C123: 0 | D123: 0 | E123: 0 | F123: 1 | G123: 3 | H123: 0 | I123: 1 | J123: 2 | K123: 0 | L123: 0 | M123: 0 | N123: 1 | O123: 0
A124: 112 | B124: 1 | C124: 0 | D124: 0 | E124: 0 | F124: 2 | G124: 0 | H124: 1 | I124: 4 | J124: 0 | K124: 0 | L124: 0 | M124: 0 | N124: 1 | O124: 0
A125: 113 | B125: 1 | C125: 0 | D125: 0 | E125: 0 | F125: 2 | G125: 1 | H125: 0 | I125: 3 | J125: 1 | K125: 0 | L125: 0 | M125: 0 | N125: 1 | O125: 0
A126: 114 | B126: 1 | C126: 0 | D126: 1 | E126: 0 | F126: 0 | G126: 3 | H126: 0 | I126: 1 | J126: 0 | K126: 2 | L126: 0 | M126: 0 | N126: 1 | O126: 0
A127: 115 | B127: 1 | C127: 0 | D127: 2 | E127: 0 | F127: 0 | G127: 0 | H127: 0 | I127: 3 | J127: 1 | K127: 1 | L127: 0 | M127: 0 | N127: 1 | O127: 0
A128: 116 | B128: 1 | C128: 1 | D128: 0 | E128: 0 | F128: 0 | G128: 0 | H128: 2 | I128: 3 | J128: 0 | K128: 1 | L128: 0 | M128: 0 | N128: 1 | O128: 0
A129: 117 | B129: 1 | C129: 1 | D129: 0 | E129: 0 | F129: 0 | G129: 1 | H129: 1 | I129: 2 | J129: 1 | K129: 1 | L129: 0 | M129: 0 | N129: 1 | O129: 0
A130: 118 | B130: 1 | C130: 1 | D130: 0 | E130: 0 | F130: 0 | G130: 2 | H130: 0 | I130: 1 | J130: 2 | K130: 1 | L130: 0 | M130: 0 | N130: 1 | O130: 0
A131: 119 | B131: 1 | C131: 1 | D131: 0 | E131: 0 | F131: 1 | G131: 0 | H131: 0 | I131: 3 | J131: 1 | K131: 1 | L131: 0 | M131: 0 | N131: 1 | O131: 0
A132: 120 | B132: 2 | C132: 0 | D132: 0 | E132: 0 | F132: 0 | G132: 0 | H132: 0 | I132: 3 | J132: 3 | K132: 0 | L132: 0 | M132: 0 | N132: 1 | O132: 0
A133: 121 | B133: 0 | C133: 0 | D133: 1 | E133: 2 | F133: 0 | G133: 1 | H133: 3 | I133: 0 | J133: 0 | K133: 1 | L133: 0 | M133: 0 | N133: 2 | O133: 0
A134: 122 | B134: 0 | C134: 0 | D134: 1 | E134: 2 | F134: 1 | G134: 0 | H134: 2 | I134: 1 | J134: 0 | K134: 1 | L134: 0 | M134: 0 | N134: 2 | O134: 0
A135: 123 | B135: 0 | C135: 0 | D135: 1 | E135: 2 | F135: 1 | G135: 1 | H135: 1 | I135: 0 | J135: 1 | K135: 1 | L135: 0 | M135: 0 | N135: 2 | O135: 0
A136: 124 | B136: 0 | C136: 0 | D136: 1 | E136: 2 | F136: 2 | G136: 0 | H136: 0 | I136: 1 | J136: 1 | K136: 1 | L136: 0 | M136: 0 | N136: 2 | O136: 0
A137: 125 | B137: 0 | C137: 0 | D137: 2 | E137: 2 | F137: 0 | G137: 0 | H137: 1 | I137: 0 | J137: 3 | K137: 0 | L137: 0 | M137: 0 | N137: 2 | O137: 0
A138: 126 | B138: 0 | C138: 1 | D138: 0 | E138: 2 | F138: 0 | G138: 0 | H138: 3 | I138: 0 | J138: 2 | K138: 0 | L138: 0 | M138: 0 | N138: 2 | O138: 0
A139: 127 | B139: 0 | C139: 1 | D139: 0 | E139: 2 | F139: 1 | G139: 0 | H139: 1 | I139: 0 | J139: 3 | K139: 0 | L139: 0 | M139: 0 | N139: 2 | O139: 0
A140: 128 | B140: 0 | C140: 1 | D140: 1 | E140: 2 | F140: 0 | G140: 0 | H140: 1 | I140: 0 | J140: 1 | K140: 2 | L140: 0 | M140: 0 | N140: 2 | O140: 0
A141: 129 | B141: 0 | C141: 3 | D141: 1 | E141: 1 | F141: 0 | G141: 0 | H141: 1 | I141: 0 | J141: 1 | K141: 0 | L141: 0 | M141: 0 | N141: 2 | O141: 0
A142: 130 | B142: 1 | C142: 0 | D142: 0 | E142: 2 | F142: 0 | G142: 0 | H142: 2 | I142: 1 | J142: 0 | K142: 2 | L142: 0 | M142: 0 | N142: =IF(SUMPRODUCT($B$6:$M$6,B142:M142)<$P$2,$P$2-SUMPRODUCT($B$6:$M$6,B142:M142),0) -> 2 | O142: 0
A143: 131 | B143: 1 | C143: 0 | D143: 0 | E143: 2 | F143: 0 | G143: 1 | H143: 1 | I143: 0 | J143: 1 | K143: 2 | L143: 0 | M143: 0 | N143: 2 | O143: 0
A144: 132 | B144: 1 | C144: 0 | D144: 0 | E144: 2 | F144: 1 | G144: 0 | H144: 0 | I144: 1 | J144: 1 | K144: 2 | L144: 0 | M144: 0 | N144: 2 | O144: 0
A145: 133 | B145: 1 | C145: 1 | D145: 2 | E145: 1 | F145: 0 | G145: 0 | H145: 0 | I145: 1 | J145: 1 | K145: 0 | L145: 0 | M145: 0 | N145: 2 | O145: 0
A146: 134 | B146: 1 | C146: 2 | D146: 0 | E146: 1 | F146: 0 | G146: 0 | H146: 2 | I146: 1 | J146: 0 | K146: 0 | L146: 0 | M146: 0 | N146: 2 | O146: 0
A147: 135 | B147: 1 | C147: 2 | D147: 0 | E147: 1 | F147: 0 | G147: 1 | H147: 1 | I147: 0 | J147: 1 | K147: 0 | L147: 0 | M147: 0 | N147: 2 | O147: 0
A148: 136 | B148: 1 | C148: 2 | D148: 0 | E148: 1 | F148: 1 | G148: 0 | H148: 0 | I148: 1 | J148: 1 | K148: 0 | L148: 0 | M148: 0 | N148: 2 | O148: 0
A149: 137 | B149: 2 | C149: 0 | D149: 1 | E149: 1 | F149: 0 | G149: 0 | H149: 1 | I149: 2 | J149: 0 | K149: 0 | L149: 0 | M149: 0 | N149: 2 | O149: 0
A150: 138 | B150: 2 | C150: 0 | D150: 1 | E150: 1 | F150: 0 | G150: 1 | H150: 0 | I150: 1 | J150: 1 | K150: 0 | L150: 0 | M150: 0 | N150: 2 | O150: 0
A151: 139 | B151: 0 | C151: 0 | D151: 0 | E151: 0 | F151: 0 | G151: 0 | H151: 5 | I151: 2 | J151: 2 | K151: 0 | L151: 0 | M151: 0 | N151: 3 | O151: 0
A152: 140 | B152: 0 | C152: 0 | D152: 0 | E152: 0 | F152: 0 | G152: 1 | H152: 4 | I152: 1 | J152: 3 | K152: 0 | L152: 0 | M152: 0 | N152: 3 | O152: 0
A153: 141 | B153: 0 | C153: 0 | D153: 0 | E153: 0 | F153: 0 | G153: 2 | H153: 3 | I153: 0 | J153: 4 | K153: 0 | L153: 0 | M153: 0 | N153: 3 | O153: 0
A154: 142 | B154: 0 | C154: 0 | D154: 0 | E154: 0 | F154: 0 | G154: 3 | H154: 3 | I154: 0 | J154: 0 | K154: 3 | L154: 0 | M154: 0 | N154: 3 | O154: 0
A155: 143 | B155: 0 | C155: 0 | D155: 0 | E155: 0 | F155: 1 | G155: 0 | H155: 3 | I155: 2 | J155: 3 | K155: 0 | L155: 0 | M155: 0 | N155: 3 | O155: 0
A156: 144 | B156: 0 | C156: 0 | D156: 0 | E156: 0 | F156: 1 | G156: 1 | H156: 2 | I156: 1 | J156: 4 | K156: 0 | L156: 0 | M156: 0 | N156: 3 | O156: 0
A157: 145 | B157: 0 | C157: 0 | D157: 0 | E157: 0 | F157: 1 | G157: 2 | H157: 1 | I157: 0 | J157: 5 | K157: 0 | L157: 0 | M157: 0 | N157: 3 | O157: 0
A158: 146 | B158: 0 | C158: 0 | D158: 0 | E158: 0 | F158: 1 | G158: 2 | H158: 2 | I158: 1 | J158: 0 | K158: 3 | L158: 0 | M158: 0 | N158: 3 | O158: 0
A159: 147 | B159: 0 | C159: 0 | D159: 0 | E159: 0 | F159: 1 | G159: 3 | H159: 1 | I159: 0 | J159: 1 | K159: 3 | L159: 0 | M159: 0 | N159: 3 | O159: 0
A160: 148 | B160: 0 | C160: 0 | D160: 0 | E160: 0 | F160: 2 | G160: 0 | H160: 1 | I160: 2 | J160: 4 | K160: 0 | L160: 0 | M160: 0 | N160: 3 | O160: 0
A161: 149 | B161: 0 | C161: 0 | D161: 0 | E161: 0 | F161: 2 | G161: 1 | H161: 0 | I161: 1 | J161: 5 | K161: 0 | L161: 0 | M161: 0 | N161: 3 | O161: 0
A162: 150 | B162: 0 | C162: 0 | D162: 0 | E162: 0 | F162: 2 | G162: 1 | H162: 1 | I162: 2 | J162: 0 | K162: 3 | L162: 0 | M162: 0 | N162: 3 | O162: 0
A163: 151 | B163: 0 | C163: 0 | D163: 0 | E163: 0 | F163: 2 | G163: 2 | H163: 0 | I163: 1 | J163: 1 | K163: 3 | L163: 0 | M163: 0 | N163: 3 | O163: 0
A164: 152 | B164: 0 | C164: 0 | D164: 0 | E164: 0 | F164: 3 | G164: 0 | H164: 0 | I164: 3 | J164: 0 | K164: 3 | L164: 0 | M164: 0 | N164: 3 | O164: 0
A165: 153 | B165: 0 | C165: 0 | D165: 0 | E165: 1 | F165: 0 | G165: 0 | H165: 0 | I165: 1 | J165: 1 | K165: 7 | L165: 0 | M165: 0 | N165: 3 | O165: 0
A166: 154 | B166: 0 | C166: 0 | D166: 1 | E166: 0 | F166: 0 | G166: 0 | H166: 0 | I166: 8 | J166: 0 | K166: 0 | L166: 0 | M166: 0 | N166: 3 | O166: 0
A167: 155 | B167: 0 | C167: 0 | D167: 1 | E167: 0 | F167: 0 | G167: 0 | H167: 3 | I167: 2 | J167: 1 | K167: 2 | L167: 0 | M167: 0 | N167: 3 | O167: 0
A168: 156 | B168: 0 | C168: 0 | D168: 1 | E168: 0 | F168: 0 | G168: 1 | H168: 2 | I168: 1 | J168: 2 | K168: 2 | L168: 0 | M168: 0 | N168: 3 | O168: 0
A169: 157 | B169: 0 | C169: 0 | D169: 1 | E169: 0 | F169: 0 | G169: 2 | H169: 1 | I169: 0 | J169: 3 | K169: 2 | L169: 0 | M169: 0 | N169: 3 | O169: 0
A170: 158 | B170: 0 | C170: 0 | D170: 1 | E170: 0 | F170: 1 | G170: 0 | H170: 1 | I170: 2 | J170: 2 | K170: 2 | L170: 0 | M170: 0 | N170: 3 | O170: 0
A171: 159 | B171: 0 | C171: 0 | D171: 1 | E171: 0 | F171: 1 | G171: 1 | H171: 0 | I171: 1 | J171: 3 | K171: 2 | L171: 0 | M171: 0 | N171: 3 | O171: 0
A172: 160 | B172: 0 | C172: 0 | D172: 2 | E172: 0 | F172: 0 | G172: 0 | H172: 0 | I172: 1 | J172: 5 | K172: 1 | L172: 0 | M172: 0 | N172: 3 | O172: 0
A173: 161 | B173: 0 | C173: 0 | D173: 2 | E173: 0 | F173: 0 | G173: 0 | H173: 1 | I173: 2 | J173: 0 | K173: 4 | L173: 0 | M173: 0 | N173: 3 | O173: 0
A174: 162 | B174: 0 | C174: 0 | D174: 2 | E174: 0 | F174: 0 | G174: 1 | H174: 0 | I174: 1 | J174: 1 | K174: 4 | L174: 0 | M174: 0 | N174: 3 | O174: 0
A175: 163 | B175: 0 | C175: 1 | D175: 0 | E175: 0 | F175: 0 | G175: 0 | H175: 2 | I175: 1 | J175: 4 | K175: 1 | L175: 0 | M175: 0 | N175: 3 | O175: 0
A176: 164 | B176: 0 | C176: 1 | D176: 0 | E176: 0 | F176: 0 | G176: 1 | H176: 1 | I176: 0 | J176: 5 | K176: 1 | L176: 0 | M176: 0 | N176: 3 | O176: 0
A177: 165 | B177: 0 | C177: 1 | D177: 0 | E177: 0 | F177: 0 | G177: 1 | H177: 2 | I177: 1 | J177: 0 | K177: 4 | L177: 0 | M177: 0 | N177: 3 | O177: 0
A178: 166 | B178: 0 | C178: 1 | D178: 0 | E178: 0 | F178: 0 | G178: 2 | H178: 1 | I178: 0 | J178: 1 | K178: 4 | L178: 0 | M178: 0 | N178: 3 | O178: 0
A179: 167 | B179: 0 | C179: 1 | D179: 0 | E179: 0 | F179: 1 | G179: 0 | H179: 0 | I179: 1 | J179: 5 | K179: 1 | L179: 0 | M179: 0 | N179: 3 | O179: 0
A180: 168 | B180: 0 | C180: 1 | D180: 0 | E180: 0 | F180: 1 | G180: 0 | H180: 1 | I180: 2 | J180: 0 | K180: 4 | L180: 0 | M180: 0 | N180: 3 | O180: 0
A181: 169 | B181: 0 | C181: 1 | D181: 0 | E181: 0 | F181: 1 | G181: 1 | H181: 0 | I181: 1 | J181: 1 | K181: 4 | L181: 0 | M181: 0 | N181: 3 | O181: 0
A182: 170 | B182: 0 | C182: 1 | D182: 1 | E182: 0 | F182: 0 | G182: 0 | H182: 0 | I182: 1 | J182: 3 | K182: 3 | L182: 0 | M182: 0 | N182: 3 | O182: 0
A183: 171 | B183: 0 | C183: 2 | D183: 0 | E183: 0 | F183: 0 | G183: 0 | H183: 0 | I183: 1 | J183: 1 | K183: 5 | L183: 0 | M183: 0 | N183: 3 | O183: 0
A184: 172 | B184: 1 | C184: 0 | D184: 0 | E184: 0 | F184: 0 | G184: 0 | H184: 0 | I184: 1 | J184: 7 | K184: 0 | L184: 0 | M184: 0 | N184: 3 | O184: 0
A185: 173 | B185: 1 | C185: 0 | D185: 0 | E185: 0 | F185: 0 | G185: 0 | H185: 1 | I185: 2 | J185: 2 | K185: 3 | L185: 0 | M185: 0 | N185: 3 | O185: 0
A186: 174 | B186: 1 | C186: 0 | D186: 0 | E186: 0 | F186: 0 | G186: 1 | H186: 0 | I186: 1 | J186: 3 | K186: 3 | L186: 0 | M186: 0 | N186: 3 | O186: 0
A187: 175 | B187: 1 | C187: 0 | D187: 0 | E187: 3 | F187: 2 | G187: 0 | H187: 1 | I187: 0 | J187: 0 | K187: 0 | L187: 0 | M187: 0 | N187: 3 | O187: 0
A188: 176 | B188: 0 | C188: 0 | D188: 0 | E188: 1 | F188: 3 | G188: 2 | H188: 1 | I188: 0 | J188: 0 | K188: 1 | L188: 0 | M188: 0 | N188: 4 | O188: 0
A189: 177 | B189: 0 | C189: 0 | D189: 0 | E189: 1 | F189: 4 | G189: 1 | H189: 0 | I189: 1 | J189: 0 | K189: 1 | L189: 0 | M189: 0 | N189: 4 | O189: 0
A190: 178 | B190: 0 | C190: 0 | D190: 0 | E190: 2 | F190: 1 | G190: 0 | H190: 1 | I190: 0 | J190: 0 | K190: 5 | L190: 0 | M190: 0 | N190: 4 | O190: 0
A191: 179 | B191: 0 | C191: 0 | D191: 1 | E191: 1 | F191: 0 | G191: 1 | H191: 5 | I191: 0 | J191: 0 | K191: 0 | L191: 0 | M191: 0 | N191: 4 | O191: 0
A192: 180 | B192: 0 | C192: 0 | D192: 1 | E192: 1 | F192: 1 | G192: 0 | H192: 4 | I192: 1 | J192: 0 | K192: 0 | L192: 0 | M192: 0 | N192: 4 | O192: 0
A193: 181 | B193: 0 | C193: 0 | D193: 1 | E193: 1 | F193: 1 | G193: 1 | H193: 3 | I193: 0 | J193: 1 | K193: 0 | L193: 0 | M193: 0 | N193: 4 | O193: 0
A194: 182 | B194: 0 | C194: 0 | D194: 1 | E194: 1 | F194: 2 | G194: 0 | H194: 2 | I194: 1 | J194: 1 | K194: 0 | L194: 0 | M194: 0 | N194: 4 | O194: 0
A195: 183 | B195: 0 | C195: 0 | D195: 1 | E195: 1 | F195: 2 | G195: 1 | H195: 1 | I195: 0 | J195: 2 | K195: 0 | L195: 0 | M195: 0 | N195: 4 | O195: 0
A196: 184 | B196: 0 | C196: 0 | D196: 1 | E196: 1 | F196: 3 | G196: 0 | H196: 0 | I196: 1 | J196: 2 | K196: 0 | L196: 0 | M196: 0 | N196: 4 | O196: 0
A197: 185 | B197: 0 | C197: 0 | D197: 2 | E197: 1 | F197: 1 | G197: 1 | H197: 1 | I197: 0 | J197: 0 | K197: 2 | L197: 0 | M197: 0 | N197: 4 | O197: 0
A198: 186 | B198: 0 | C198: 0 | D198: 2 | E198: 1 | F198: 2 | G198: 0 | H198: 0 | I198: 1 | J198: 0 | K198: 2 | L198: 0 | M198: 0 | N198: 4 | O198: 0
A199: 187 | B199: 0 | C199: 0 | D199: 3 | E199: 1 | F199: 0 | G199: 0 | H199: 1 | I199: 0 | J199: 2 | K199: 1 | L199: 0 | M199: 0 | N199: 4 | O199: 0
A200: 188 | B200: 0 | C200: 0 | D200: 6 | E200: 0 | F200: 0 | G200: 0 | H200: 0 | I200: 1 | J200: 0 | K200: 0 | L200: 0 | M200: 0 | N200: 4 | O200: 0
A201: 189 | B201: 0 | C201: 1 | D201: 0 | E201: 1 | F201: 2 | G201: 1 | H201: 1 | I201: 0 | J201: 0 | K201: 2 | L201: 0 | M201: 0 | N201: 4 | O201: 0
... 4299 more rows

Sheet МО изб <=3
A1: Оптимизация. Варюхин С.Е. 2015 гг | C1: Нарезка труб
B2: 1 | C2: 2 | D2: 3 | E2: 4 | F2: 5 | G2: 6 | H2: 7 | I2: 8 | J2: 9 | K2: 10 | L2: 11 | M2: 12 | N2: Номер детали | P2: 6000 | Q2: = L — длина труб, мм
B3: 28 | C3: 18 | D3: 31 | E3: 96 | F3: 12 | G3: 27 | H3: 63 | I3: 76 | J3: 6 | K3: 14 | L3: 0 | M3: 0 | N3: Количество деталей | O3: =SUM(B3:M3) -> 371
B4: 1135 | C4: 980 | D4: 890 | E4: 847 | F4: 800 | G4: 735 | H4: 700 | I4: 635 | J4: 600 | K4: 555 | L4: 6000 | M4: 6000 | N4: Размеры деталей, мм | P4: 427 | Q4: = Δ - максимальный размер обрезка
P5: 0 | Q5: = Δm - максимальный размер остатка
B6: =B4+$P$6 -> 1138 | C6: 983 | D6: 893 | E6: 850 | F6: 803 | G6: 738 | H6: 703 | I6: 638 | J6: 603 | K6: 558 | L6: 6003 | M6: 6003 | N6: Длина детали + ширина реза | P6: 3 | Q6: = d - ширина реза
A7: вариантов | B7: =SUMPRODUCT(B6:M6,B3:M3)/(P2+P6) -> 48.74396135 | C7: Теоретич. мин. число труб | M7: Суммарная длина обрезков, м = | N7: =SUMPRODUCT(N13:N10014,O13:O10014)/1000 -> 0.000
A8: 10,002 | B8: =SUM(O13:O10014) -> 51 | C8: Количество труб длины L | M8: Суммарная длина остатков, м = | N8: 0.000 | O8: =N7*1000/(P2*B8) -> 0.00% | P8: Процент потерь в обрезки
B10: =SUMPRODUCT(B13:B10014,$O$13:$O$10014) -> 28 | C10: =SUMPRODUCT(C13:C10014,$O$13:$O$10014) -> 21 | D10: 33 | E10: 97 | F10: 15 | G10: 30 | H10: 64 | I10: 79 | J10: 7 | K10: 14 | L10: 0 | M10: 0 | N10: Количество полученных деталей | O10: =SUM(B10:M10) -> 388 | P10: 1.000 | Q10: = макс. суммарная длина обрезков
B11: =B10-B3 -> 0 | C11: 3 | D11: 2 | E11: 1 | F11: 3 | G11: 3 | H11: 1 | I11: 3 | J11: 1 | K11: =K10-K3 -> 0 | L11: 0 | M11: =M10-M3 -> 0 | N11: Количество лишних деталей | O11: =SUM(B11:M11) -> 17 | P11: 3 | Q11: = максимальный избыток деталей
A12: Номер варианта разреза | B12: 1 | C12: 2 | D12: 3 | E12: 4 | F12: 5 | G12: 6 | H12: 7 | I12: 8 | J12: 9 | K12: 10 | L12: 11 | M12: 12 | N12: Обрезок или остаток | O12: Сколько труб так разрезать?
A13: 1 | B13: 0 | C13: 0 | D13: 0 | E13: 0 | F13: 0 | G13: 0 | H13: 0 | I13: 0 | J13: 0 | K13: 0 | L13: 0 | M13: 1 | N13: =IF(SUMPRODUCT($B$6:$M$6,B13:M13)<$P$2,$P$2-SUMPRODUCT($B$6:$M$6,B13:M13),0) -> 0 | O13: 0
A14: 2 | B14: 0 | C14: 0 | D14: 0 | E14: 0 | F14: 0 | G14: 0 | H14: 0 | I14: 0 | J14: 0 | K14: 0 | L14: 1 | M14: 0 | N14: 0 | O14: 0
A15: 3 | B15: 0 | C15: 0 | D15: 0 | E15: 0 | F15: 0 | G15: 0 | H15: 0 | I15: 3 | J15: 4 | K15: 3 | L15: 0 | M15: 0 | N15: 0 | O15: 0
A16: 4 | B16: 0 | C16: 0 | D16: 0 | E16: 0 | F16: 0 | G16: 0 | H16: 4 | I16: 5 | J16: 0 | K16: 0 | L16: 0 | M16: 0 | N16: 0 | O16: 3
A17: 5 | B17: 0 | C17: 0 | D17: 0 | E17: 0 | F17: 0 | G17: 1 | H17: 0 | I17: 3 | J17: 0 | K17: 6 | L17: 0 | M17: 0 | N17: 0 | O17: 1
A18: 6 | B18: 0 | C18: 0 | D18: 0 | E18: 0 | F18: 0 | G18: 1 | H18: 3 | I18: 4 | J18: 1 | K18: 0 | L18: 0 | M18: 0 | N18: 0 | O18: 0
A19: 7 | B19: 0 | C19: 0 | D19: 0 | E19: 0 | F19: 0 | G19: 2 | H19: 2 | I19: 3 | J19: 2 | K19: 0 | L19: 0 | M19: 0 | N19: 0 | O19: 0
A20: 8 | B20: 0 | C20: 0 | D20: 0 | E20: 0 | F20: 0 | G20: 3 | H20: 1 | I20: 2 | J20: 3 | K20: 0 | L20: 0 | M20: 0 | N20: 0 | O20: 0
A21: 9 | B21: 0 | C21: 0 | D21: 0 | E21: 0 | F21: 0 | G21: 4 | H21: 0 | I21: 1 | J21: 4 | K21: 0 | L21: 0 | M21: 0 | N21: 0 | O21: 0
A22: 10 | B22: 0 | C22: 0 | D22: 0 | E22: 0 | F22: 0 | G22: 5 | H22: 0 | I22: 1 | J22: 0 | K22: 3 | L22: 0 | M22: 0 | N22: 0 | O22: 0
A23: 11 | B23: 0 | C23: 0 | D23: 0 | E23: 0 | F23: 1 | G23: 0 | H23: 2 | I23: 5 | J23: 1 | K23: 0 | L23: 0 | M23: 0 | N23: 0 | O23: 0
A24: 12 | B24: 0 | C24: 0 | D24: 0 | E24: 0 | F24: 1 | G24: 1 | H24: 1 | I24: 4 | J24: 2 | K24: 0 | L24: 0 | M24: 0 | N24: 0 | O24: 0
A25: 13 | B25: 0 | C25: 0 | D25: 0 | E25: 0 | F25: 1 | G25: 2 | H25: 0 | I25: 3 | J25: 3 | K25: 0 | L25: 0 | M25: 0 | N25: 0 | O25: 0
A26: 14 | B26: 0 | C26: 0 | D26: 0 | E26: 0 | F26: 2 | G26: 0 | H26: 0 | I26: 5 | J26: 2 | K26: 0 | L26: 0 | M26: 0 | N26: 0 | O26: 0
A27: 15 | B27: 0 | C27: 0 | D27: 0 | E27: 0 | F27: 4 | G27: 0 | H27: 0 | I27: 0 | J27: 0 | K27: 5 | L27: 0 | M27: 0 | N27: 0 | O27: 0
A28: 16 | B28: 0 | C28: 0 | D28: 0 | E28: 2 | F28: 0 | G28: 0 | H28: 1 | I28: 2 | J28: 2 | K28: 2 | L28: 0 | M28: 0 | N28: 0 | O28: 0
A29: 17 | B29: 0 | C29: 0 | D29: 0 | E29: 2 | F29: 0 | G29: 1 | H29: 0 | I29: 1 | J29: 3 | K29: 2 | L29: 0 | M29: 0 | N29: 0 | O29: 0
A30: 18 | B30: 0 | C30: 0 | D30: 0 | E30: 3 | F30: 0 | G30: 0 | H30: 4 | I30: 1 | J30: 0 | K30: 0 | L30: 0 | M30: 0 | N30: 0 | O30: 11
A31: 19 | B31: 0 | C31: 0 | D31: 0 | E31: 3 | F31: 0 | G31: 1 | H31: 3 | I31: 0 | J31: 1 | K31: 0 | L31: 0 | M31: 0 | N31: 0 | O31: 0
A32: 20 | B32: 0 | C32: 0 | D32: 0 | E32: 3 | F32: 1 | G32: 0 | H32: 2 | I32: 1 | J32: 1 | K32: 0 | L32: 0 | M32: 0 | N32: 0 | O32: 0
A33: 21 | B33: 0 | C33: 0 | D33: 0 | E33: 3 | F33: 1 | G33: 1 | H33: 1 | I33: 0 | J33: 2 | K33: 0 | L33: 0 | M33: 0 | N33: 0 | O33: 0
A34: 22 | B34: 0 | C34: 0 | D34: 0 | E34: 3 | F34: 2 | G34: 0 | H34: 0 | I34: 1 | J34: 2 | K34: 0 | L34: 0 | M34: 0 | N34: 0 | O34: 0
A35: 23 | B35: 0 | C35: 0 | D35: 0 | E35: 4 | F35: 0 | G35: 0 | H35: 2 | I35: 1 | J35: 0 | K35: 1 | L35: 0 | M35: 0 | N35: 0 | O35: 0
A36: 24 | B36: 0 | C36: 0 | D36: 0 | E36: 4 | F36: 0 | G36: 1 | H36: 1 | I36: 0 | J36: 1 | K36: 1 | L36: 0 | M36: 0 | N36: 0 | O36: 0
A37: 25 | B37: 0 | C37: 0 | D37: 0 | E37: 4 | F37: 1 | G37: 0 | H37: 0 | I37: 1 | J37: 1 | K37: 1 | L37: 0 | M37: 0 | N37: 0 | O37: 0
A38: 26 | B38: 0 | C38: 0 | D38: 1 | E38: 0 | F38: 0 | G38: 1 | H38: 1 | I38: 4 | J38: 0 | K38: 2 | L38: 0 | M38: 0 | N38: 0 | O38: 0
A39: 27 | B39: 0 | C39: 0 | D39: 1 | E39: 0 | F39: 0 | G39: 2 | H39: 0 | I39: 3 | J39: 1 | K39: 2 | L39: 0 | M39: 0 | N39: 0 | O39: 0
A40: 28 | B40: 0 | C40: 0 | D40: 1 | E40: 0 | F40: 1 | G40: 0 | H40: 0 | I40: 5 | J40: 0 | K40: 2 | L40: 0 | M40: 0 | N40: 0 | O40: 0
A41: 29 | B41: 0 | C41: 0 | D41: 1 | E41: 1 | F41: 0 | G41: 3 | H41: 2 | I41: 1 | J41: 0 | K41: 0 | L41: 0 | M41: 0 | N41: 0 | O41: 0
A42: 30 | B42: 0 | C42: 0 | D42: 1 | E42: 1 | F42: 0 | G42: 4 | H42: 1 | I42: 0 | J42: 1 | K42: 0 | L42: 0 | M42: 0 | N42: 0 | O42: 0
A43: 31 | B43: 0 | C43: 0 | D43: 1 | E43: 1 | F43: 1 | G43: 2 | H43: 1 | I43: 2 | J43: 0 | K43: 0 | L43: 0 | M43: 0 | N43: 0 | O43: 0
A44: 32 | B44: 0 | C44: 0 | D44: 1 | E44: 1 | F44: 1 | G44: 3 | H44: 0 | I44: 1 | J44: 1 | K44: 0 | L44: 0 | M44: 0 | N44: 0 | O44: 0
A45: 33 | B45: 0 | C45: 0 | D45: 1 | E45: 1 | F45: 2 | G45: 1 | H45: 0 | I45: 3 | J45: 0 | K45: 0 | L45: 0 | M45: 0 | N45: 0 | O45: 0
A46: 34 | B46: 0 | C46: 0 | D46: 1 | E46: 2 | F46: 0 | G46: 3 | H46: 0 | I46: 1 | J46: 0 | K46: 1 | L46: 0 | M46: 0 | N46: 0 | O46: 0
A47: 35 | B47: 0 | C47: 0 | D47: 1 | E47: 3 | F47: 0 | G47: 1 | H47: 1 | I47: 0 | J47: 0 | K47: 2 | L47: 0 | M47: 0 | N47: 0 | O47: 0
A48: 36 | B48: 0 | C48: 0 | D48: 1 | E48: 3 | F48: 1 | G48: 0 | H48: 0 | I48: 1 | J48: 0 | K48: 2 | L48: 0 | M48: 0 | N48: 0 | O48: 1
A49: 37 | B49: 0 | C49: 0 | D49: 2 | E49: 2 | F49: 0 | G49: 0 | H49: 0 | I49: 3 | J49: 1 | K49: 0 | L49: 0 | M49: 0 | N49: 0 | O49: 7
A50: 38 | B50: 0 | C50: 0 | D50: 3 | E50: 1 | F50: 0 | G50: 0 | H50: 0 | I50: 3 | J50: 0 | K50: 1 | L50: 0 | M50: 0 | N50: 0 | O50: 5
A51: 39 | B51: 0 | C51: 1 | D51: 0 | E51: 0 | F51: 0 | G51: 0 | H51: 1 | I51: 4 | J51: 2 | K51: 1 | L51: 0 | M51: 0 | N51: 0 | O51: 0
A52: 40 | B52: 0 | C52: 1 | D52: 0 | E52: 0 | F52: 0 | G52: 1 | H52: 0 | I52: 3 | J52: 3 | K52: 1 | L52: 0 | M52: 0 | N52: 0 | O52: 0
A53: 41 | B53: 0 | C53: 1 | D53: 0 | E53: 2 | F53: 0 | G53: 0 | H53: 2 | I53: 3 | J53: 0 | K53: 0 | L53: 0 | M53: 0 | N53: 0 | O53: 0
A54: 42 | B54: 0 | C54: 1 | D54: 0 | E54: 2 | F54: 0 | G54: 1 | H54: 1 | I54: 2 | J54: 1 | K54: 0 | L54: 0 | M54: 0 | N54: 0 | O54: 0
A55: 43 | B55: 0 | C55: 1 | D55: 0 | E55: 2 | F55: 0 | G55: 2 | H55: 0 | I55: 1 | J55: 2 | K55: 0 | L55: 0 | M55: 0 | N55: 0 | O55: 0
A56: 44 | B56: 0 | C56: 1 | D56: 0 | E56: 2 | F56: 1 | G56: 0 | H56: 0 | I56: 3 | J56: 1 | K56: 0 | L56: 0 | M56: 0 | N56: 0 | O56: 0
A57: 45 | B57: 0 | C57: 1 | D57: 0 | E57: 3 | F57: 0 | G57: 0 | H57: 1 | I57: 0 | J57: 2 | K57: 1 | L57: 0 | M57: 0 | N57: 0 | O57: 0
A58: 46 | B58: 0 | C58: 1 | D58: 1 | E58: 1 | F58: 0 | G58: 1 | H58: 1 | I58: 2 | J58: 0 | K58: 1 | L58: 0 | M58: 0 | N58: 0 | O58: 0
A59: 47 | B59: 0 | C59: 1 | D59: 1 | E59: 1 | F59: 0 | G59: 2 | H59: 0 | I59: 1 | J59: 1 | K59: 1 | L59: 0 | M59: 0 | N59: 0 | O59: 0
A60: 48 | B60: 0 | C60: 1 | D60: 1 | E60: 1 | F60: 1 | G60: 0 | H60: 0 | I60: 3 | J60: 0 | K60: 1 | L60: 0 | M60: 0 | N60: 0 | O60: 0
A61: 49 | B61: 0 | C61: 1 | D61: 3 | E61: 2 | F61: 0 | G61: 0 | H61: 0 | I61: 1 | J61: 0 | K61: 0 | L61: 0 | M61: 0 | N61: 0 | O61: 0
A62: 50 | B62: 0 | C62: 2 | D62: 0 | E62: 1 | F62: 0 | G62: 0 | H62: 1 | I62: 2 | J62: 2 | K62: 0 | L62: 0 | M62: 0 | N62: 0 | O62: 0
A63: 51 | B63: 0 | C63: 2 | D63: 0 | E63: 1 | F63: 0 | G63: 1 | H63: 0 | I63: 1 | J63: 3 | K63: 0 | L63: 0 | M63: 0 | N63: 0 | O63: 0
A64: 52 | B64: 0 | C64: 2 | D64: 1 | E64: 2 | F64: 0 | G64: 1 | H64: 1 | I64: 0 | J64: 0 | K64: 0 | L64: 0 | M64: 0 | N64: 0 | O64: 0
A65: 53 | B65: 0 | C65: 2 | D65: 1 | E65: 2 | F65: 1 | G65: 0 | H65: 0 | I65: 1 | J65: 0 | K65: 0 | L65: 0 | M65: 0 | N65: 0 | O65: 0
A66: 54 | B66: 1 | C66: 0 | D66: 0 | E66: 0 | F66: 0 | G66: 0 | H66: 0 | I66: 5 | J66: 0 | K66: 3 | L66: 0 | M66: 0 | N66: 0 | O66: 0
A67: 55 | B67: 1 | C67: 0 | D67: 0 | E67: 1 | F67: 0 | G67: 2 | H67: 1 | I67: 2 | J67: 0 | K67: 1 | L67: 0 | M67: 0 | N67: 0 | O67: 0
A68: 56 | B68: 1 | C68: 0 | D68: 0 | E68: 1 | F68: 0 | G68: 3 | H68: 0 | I68: 1 | J68: 1 | K68: 1 | L68: 0 | M68: 0 | N68: 0 | O68: 0
A69: 57 | B69: 1 | C69: 0 | D69: 0 | E69: 1 | F69: 1 | G69: 1 | H69: 0 | I69: 3 | J69: 0 | K69: 1 | L69: 0 | M69: 0 | N69: 0 | O69: 0
A70: 58 | B70: 1 | C70: 0 | D70: 0 | E70: 1 | F70: 5 | G70: 0 | H70: 0 | I70: 0 | J70: 0 | K70: 0 | L70: 0 | M70: 0 | N70: 0 | O70: 0
A71: 59 | B71: 1 | C71: 0 | D71: 0 | E71: 3 | F71: 0 | G71: 0 | H71: 0 | I71: 1 | J71: 0 | K71: 3 | L71: 0 | M71: 0 | N71: 0 | O71: 0
A72: 60 | B72: 1 | C72: 0 | D72: 1 | E72: 1 | F72: 0 | G72: 0 | H72: 0 | I72: 3 | J72: 2 | K72: 0 | L72: 0 | M72: 0 | N72: 0 | O72: 0
A73: 61 | B73: 1 | C73: 0 | D73: 2 | E73: 2 | F73: 0 | G73: 1 | H73: 0 | I73: 1 | J73: 0 | K73: 0 | L73: 0 | M73: 0 | N73: 0 | O73: 0
A74: 62 | B74: 1 | C74: 1 | D74: 0 | E74: 1 | F74: 0 | G74: 0 | H74: 0 | I74: 3 | J74: 0 | K74: 2 | L74: 0 | M74: 0 | N74: 0 | O74: 0
A75: 63 | B75: 1 | C75: 1 | D75: 0 | E75: 2 | F75: 0 | G75: 2 | H75: 1 | I75: 0 | J75: 0 | K75: 0 | L75: 0 | M75: 0 | N75: 0 | O75: 8
A76: 64 | B76: 1 | C76: 1 | D76: 0 | E76: 2 | F76: 1 | G76: 1 | H76: 0 | I76: 1 | J76: 0 | K76: 0 | L76: 0 | M76: 0 | N76: 0 | O76: 13
A77: 65 | B77: 1 | C77: 2 | D77: 0 | E77: 2 | F77: 0 | G77: 0 | H77: 0 | I77: 1 | J77: 0 | K77: 1 | L77: 0 | M77: 0 | N77: =IF(SUMPRODUCT($B$6:$M$6,B77:M77)<$P$2,$P$2-SUMPRODUCT($B$6:$M$6,B77:M77),0) -> 0 | O77: 0
A78: 66 | B78: 1 | C78: 3 | D78: 0 | E78: 0 | F78: 0 | G78: 0 | H78: 0 | I78: 3 | J78: 0 | K78: 0 | L78: 0 | M78: 0 | N78: 0 | O78: 0
A79: 67 | B79: 3 | C79: 0 | D79: 2 | E79: 0 | F79: 1 | G79: 0 | H79: 0 | I79: 0 | J79: 0 | K79: 0 | L79: 0 | M79: 0 | N79: 0 | O79: 1
A80: 68 | B80: 3 | C80: 1 | D80: 0 | E80: 0 | F80: 2 | G80: 0 | H80: 0 | I80: 0 | J80: 0 | K80: 0 | L80: 0 | M80: 0 | N80: 0 | O80: 0
A81: 69 | B81: 4 | C81: 0 | D81: 1 | E81: 0 | F81: 0 | G81: 0 | H81: 0 | I81: 0 | J81: 0 | K81: 1 | L81: 0 | M81: 0 | N81: 0 | O81: 1
A82: 70 | B82: 0 | C82: 0 | D82: 0 | E82: 0 | F82: 2 | G82: 5 | H82: 1 | I82: 0 | J82: 0 | K82: 0 | L82: 0 | M82: 0 | N82: 1 | O82: 0
A83: 71 | B83: 0 | C83: 0 | D83: 0 | E83: 0 | F83: 3 | G83: 4 | H83: 0 | I83: 1 | J83: 0 | K83: 0 | L83: 0 | M83: 0 | N83: 1 | O83: 0
A84: 72 | B84: 0 | C84: 0 | D84: 0 | E84: 1 | F84: 0 | G84: 0 | H84: 3 | I84: 2 | J84: 2 | K84: 1 | L84: 0 | M84: 0 | N84: 1 | O84: 0
A85: 73 | B85: 0 | C85: 0 | D85: 0 | E85: 1 | F85: 0 | G85: 1 | H85: 2 | I85: 1 | J85: 3 | K85: 1 | L85: 0 | M85: 0 | N85: 1 | O85: 0
A86: 74 | B86: 0 | C86: 0 | D86: 0 | E86: 1 | F86: 0 | G86: 2 | H86: 1 | I86: 0 | J86: 4 | K86: 1 | L86: 0 | M86: 0 | N86: 1 | O86: 0
A87: 75 | B87: 0 | C87: 0 | D87: 0 | E87: 1 | F87: 0 | G87: 3 | H87: 1 | I87: 0 | J87: 0 | K87: 4 | L87: 0 | M87: 0 | N87: 1 | O87: 0
A88: 76 | B88: 0 | C88: 0 | D88: 0 | E88: 1 | F88: 1 | G88: 0 | H88: 1 | I88: 2 | J88: 3 | K88: 1 | L88: 0 | M88: 0 | N88: 1 | O88: 0
A89: 77 | B89: 0 | C89: 0 | D89: 0 | E89: 1 | F89: 1 | G89: 1 | H89: 0 | I89: 1 | J89: 4 | K89: 1 | L89: 0 | M89: 0 | N89: 1 | O89: 0
A90: 78 | B90: 0 | C90: 0 | D90: 0 | E90: 1 | F90: 1 | G90: 2 | H90: 0 | I90: 1 | J90: 0 | K90: 4 | L90: 0 | M90: 0 | N90: 1 | O90: 0
A91: 79 | B91: 0 | C91: 0 | D91: 1 | E91: 1 | F91: 0 | G91: 0 | H91: 0 | I91: 1 | J91: 6 | K91: 0 | L91: 0 | M91: 0 | N91: 1 | O91: 0
A92: 80 | B92: 0 | C92: 0 | D92: 1 | E92: 1 | F92: 0 | G92: 0 | H92: 1 | I92: 2 | J92: 1 | K92: 3 | L92: 0 | M92: 0 | N92: 1 | O92: 0
A93: 81 | B93: 0 | C93: 0 | D93: 1 | E93: 1 | F93: 0 | G93: 1 | H93: 0 | I93: 1 | J93: 2 | K93: 3 | L93: 0 | M93: 0 | N93: 1 | O93: 0
A94: 82 | B94: 0 | C94: 0 | D94: 2 | E94: 0 | F94: 0 | G94: 4 | H94: 1 | I94: 0 | J94: 0 | K94: 1 | L94: 0 | M94: 0 | N94: 1 | O94: 0
A95: 83 | B95: 0 | C95: 0 | D95: 2 | E95: 0 | F95: 1 | G95: 3 | H95: 0 | I95: 1 | J95: 0 | K95: 1 | L95: 0 | M95: 0 | N95: 1 | O95: 0
A96: 84 | B96: 0 | C96: 0 | D96: 3 | E96: 0 | F96: 0 | G96: 0 | H96: 2 | I96: 3 | J96: 0 | K96: 0 | L96: 0 | M96: 0 | N96: 1 | O96: 0
A97: 85 | B97: 0 | C97: 0 | D97: 3 | E97: 0 | F97: 0 | G97: 1 | H97: 1 | I97: 2 | J97: 1 | K97: 0 | L97: 0 | M97: 0 | N97: 1 | O97: 0
A98: 86 | B98: 0 | C98: 0 | D98: 3 | E98: 0 | F98: 0 | G98: 2 | H98: 0 | I98: 1 | J98: 2 | K98: 0 | L98: 0 | M98: 0 | N98: 1 | O98: 0
A99: 87 | B99: 0 | C99: 0 | D99: 3 | E99: 0 | F99: 1 | G99: 0 | H99: 0 | I99: 3 | J99: 1 | K99: 0 | L99: 0 | M99: 0 | N99: 1 | O99: 0
A100: 88 | B100: 0 | C100: 1 | D100: 0 | E100: 0 | F100: 1 | G100: 4 | H100: 1 | I100: 0 | J100: 0 | K100: 1 | L100: 0 | M100: 0 | N100: 1 | O100: 0
A101: 89 | B101: 0 | C101: 1 | D101: 0 | E101: 0 | F101: 2 | G101: 3 | H101: 0 | I101: 1 | J101: 0 | K101: 1 | L101: 0 | M101: 0 | N101: 1 | O101: 0
A102: 90 | B102: 0 | C102: 1 | D102: 0 | E102: 1 | F102: 0 | G102: 0 | H102: 0 | I102: 1 | J102: 4 | K102: 2 | L102: 0 | M102: 0 | N102: 1 | O102: 0
A103: 91 | B103: 0 | C103: 1 | D103: 0 | E103: 1 | F103: 0 | G103: 1 | H103: 0 | I103: 1 | J103: 0 | K103: 5 | L103: 0 | M103: 0 | N103: 1 | O103: 0
A104: 92 | B104: 0 | C104: 1 | D104: 1 | E104: 0 | F104: 0 | G104: 1 | H104: 3 | I104: 2 | J104: 0 | K104: 0 | L104: 0 | M104: 0 | N104: 1 | O104: 0
A105: 93 | B105: 0 | C105: 1 | D105: 1 | E105: 0 | F105: 0 | G105: 2 | H105: 2 | I105: 1 | J105: 1 | K105: 0 | L105: 0 | M105: 0 | N105: 1 | O105: 0
A106: 94 | B106: 0 | C106: 1 | D106: 1 | E106: 0 | F106: 0 | G106: 3 | H106: 1 | I106: 0 | J106: 2 | K106: 0 | L106: 0 | M106: 0 | N106: 1 | O106: 0
A107: 95 | B107: 0 | C107: 1 | D107: 1 | E107: 0 | F107: 1 | G107: 0 | H107: 2 | I107: 3 | J107: 0 | K107: 0 | L107: 0 | M107: 0 | N107: 1 | O107: 0
A108: 96 | B108: 0 | C108: 1 | D108: 1 | E108: 0 | F108: 1 | G108: 1 | H108: 1 | I108: 2 | J108: 1 | K108: 0 | L108: 0 | M108: 0 | N108: 1 | O108: 0
A109: 97 | B109: 0 | C109: 1 | D109: 1 | E109: 0 | F109: 1 | G109: 2 | H109: 0 | I109: 1 | J109: 2 | K109: 0 | L109: 0 | M109: 0 | N109: 1 | O109: 0
A110: 98 | B110: 0 | C110: 1 | D110: 1 | E110: 0 | F110: 2 | G110: 0 | H110: 0 | I110: 3 | J110: 1 | K110: 0 | L110: 0 | M110: 0 | N110: 1 | O110: 0
A111: 99 | B111: 0 | C111: 1 | D111: 2 | E111: 0 | F111: 0 | G111: 2 | H111: 0 | I111: 1 | J111: 0 | K111: 2 | L111: 0 | M111: 0 | N111: 1 | O111: 0
A112: 100 | B112: 0 | C112: 2 | D112: 0 | E112: 0 | F112: 0 | G112: 3 | H112: 1 | I112: 0 | J112: 0 | K112: 2 | L112: 0 | M112: 0 | N112: 1 | O112: 0
A113: 101 | B113: 0 | C113: 2 | D113: 0 | E113: 0 | F113: 1 | G113: 2 | H113: 0 | I113: 1 | J113: 0 | K113: 2 | L113: 0 | M113: 0 | N113: 1 | O113: 0
A114: 102 | B114: 0 | C114: 2 | D114: 1 | E114: 0 | F114: 0 | G114: 0 | H114: 1 | I114: 2 | J114: 1 | K114: 1 | L114: 0 | M114: 0 | N114: 1 | O114: 0
A115: 103 | B115: 0 | C115: 2 | D115: 1 | E115: 0 | F115: 0 | G115: 1 | H115: 0 | I115: 1 | J115: 2 | K115: 1 | L115: 0 | M115: 0 | N115: 1 | O115: 0
A116: 104 | B116: 0 | C116: 3 | D116: 0 | E116: 0 | F116: 0 | G116: 0 | H116: 0 | I116: 1 | J116: 4 | K116: 0 | L116: 0 | M116: 0 | N116: 1 | O116: 0
A117: 105 | B117: 0 | C117: 3 | D117: 0 | E117: 0 | F117: 0 | G117: 1 | H117: 0 | I117: 1 | J117: 0 | K117: 3 | L117: 0 | M117: 0 | N117: 1 | O117: 0
A118: 106 | B118: 1 | C118: 0 | D118: 0 | E118: 0 | F118: 0 | G118: 2 | H118: 3 | I118: 2 | J118: 0 | K118: 0 | L118: 0 | M118: 0 | N118: 1 | O118: 0
A119: 107 | B119: 1 | C119: 0 | D119: 0 | E119: 0 | F119: 0 | G119: 3 | H119: 2 | I119: 1 | J119: 1 | K119: 0 | L119: 0 | M119: 0 | N119: 1 | O119: 0
A120: 108 | B120: 1 | C120: 0 | D120: 0 | E120: 0 | F120: 0 | G120: 4 | H120: 1 | I120: 0 | J120: 2 | K120: 0 | L120: 0 | M120: 0 | N120: 1 | O120: 0
A121: 109 | B121: 1 | C121: 0 | D121: 0 | E121: 0 | F121: 1 | G121: 1 | H121: 2 | I121: 3 | J121: 0 | K121: 0 | L121: 0 | M121: 0 | N121: 1 | O121: 0
A122: 110 | B122: 1 | C122: 0 | D122: 0 | E122: 0 | F122: 1 | G122: 2 | H122: 1 | I122: 2 | J122: 1 | K122: 0 | L122: 0 | M122: 0 | N122: 1 | O122: 0
A123: 111 | B123: 1 | C123: 0 | D123: 0 | E123: 0 | F123: 1 | G123: 3 | H123: 0 | I123: 1 | J123: 2 | K123: 0 | L123: 0 | M123: 0 | N123: 1 | O123: 0
A124: 112 | B124: 1 | C124: 0 | D124: 0 | E124: 0 | F124: 2 | G124: 0 | H124: 1 | I124: 4 | J124: 0 | K124: 0 | L124: 0 | M124: 0 | N124: 1 | O124: 0
A125: 113 | B125: 1 | C125: 0 | D125: 0 | E125: 0 | F125: 2 | G125: 1 | H125: 0 | I125: 3 | J125: 1 | K125: 0 | L125: 0 | M125: 0 | N125: 1 | O125: 0
A126: 114 | B126: 1 | C126: 0 | D126: 1 | E126: 0 | F126: 0 | G126: 3 | H126: 0 | I126: 1 | J126: 0 | K126: 2 | L126: 0 | M126: 0 | N126: 1 | O126: 0
A127: 115 | B127: 1 | C127: 0 | D127: 2 | E127: 0 | F127: 0 | G127: 0 | H127: 0 | I127: 3 | J127: 1 | K127: 1 | L127: 0 | M127: 0 | N127: 1 | O127: 0
A128: 116 | B128: 1 | C128: 1 | D128: 0 | E128: 0 | F128: 0 | G128: 0 | H128: 2 | I128: 3 | J128: 0 | K128: 1 | L128: 0 | M128: 0 | N128: 1 | O128: 0
A129: 117 | B129: 1 | C129: 1 | D129: 0 | E129: 0 | F129: 0 | G129: 1 | H129: 1 | I129: 2 | J129: 1 | K129: 1 | L129: 0 | M129: 0 | N129: 1 | O129: 0
A130: 118 | B130: 1 | C130: 1 | D130: 0 | E130: 0 | F130: 0 | G130: 2 | H130: 0 | I130: 1 | J130: 2 | K130: 1 | L130: 0 | M130: 0 | N130: 1 | O130: 0
A131: 119 | B131: 1 | C131: 1 | D131: 0 | E131: 0 | F131: 1 | G131: 0 | H131: 0 | I131: 3 | J131: 1 | K131: 1 | L131: 0 | M131: 0 | N131: 1 | O131: 0
A132: 120 | B132: 2 | C132: 0 | D132: 0 | E132: 0 | F132: 0 | G132: 0 | H132: 0 | I132: 3 | J132: 3 | K132: 0 | L132: 0 | M132: 0 | N132: 1 | O132: 0
A133: 121 | B133: 0 | C133: 0 | D133: 1 | E133: 2 | F133: 0 | G133: 1 | H133: 3 | I133: 0 | J133: 0 | K133: 1 | L133: 0 | M133: 0 | N133: 2 | O133: 0
A134: 122 | B134: 0 | C134: 0 | D134: 1 | E134: 2 | F134: 1 | G134: 0 | H134: 2 | I134: 1 | J134: 0 | K134: 1 | L134: 0 | M134: 0 | N134: 2 | O134: 0
A135: 123 | B135: 0 | C135: 0 | D135: 1 | E135: 2 | F135: 1 | G135: 1 | H135: 1 | I135: 0 | J135: 1 | K135: 1 | L135: 0 | M135: 0 | N135: 2 | O135: 0
A136: 124 | B136: 0 | C136: 0 | D136: 1 | E136: 2 | F136: 2 | G136: 0 | H136: 0 | I136: 1 | J136: 1 | K136: 1 | L136: 0 | M136: 0 | N136: 2 | O136: 0
A137: 125 | B137: 0 | C137: 0 | D137: 2 | E137: 2 | F137: 0 | G137: 0 | H137: 1 | I137: 0 | J137: 3 | K137: 0 | L137: 0 | M137: 0 | N137: 2 | O137: 0
A138: 126 | B138: 0 | C138: 1 | D138: 0 | E138: 2 | F138: 0 | G138: 0 | H138: 3 | I138: 0 | J138: 2 | K138: 0 | L138: 0 | M138: 0 | N138: 2 | O138: 0
A139: 127 | B139: 0 | C139: 1 | D139: 0 | E139: 2 | F139: 1 | G139: 0 | H139: 1 | I139: 0 | J139: 3 | K139: 0 | L139: 0 | M139: 0 | N139: 2 | O139: 0
A140: 128 | B140: 0 | C140: 1 | D140: 1 | E140: 2 | F140: 0 | G140: 0 | H140: 1 | I140: 0 | J140: 1 | K140: 2 | L140: 0 | M140: 0 | N140: 2 | O140: 0
A141: 129 | B141: 0 | C141: 3 | D141: 1 | E141: 1 | F141: 0 | G141: 0 | H141: 1 | I141: 0 | J141: 1 | K141: 0 | L141: 0 | M141: 0 | N141: =IF(SUMPRODUCT($B$6:$M$6,B141:M141)<$P$2,$P$2-SUMPRODUCT($B$6:$M$6,B141:M141),0) -> 2 | O141: 0
A142: 130 | B142: 1 | C142: 0 | D142: 0 | E142: 2 | F142: 0 | G142: 0 | H142: 2 | I142: 1 | J142: 0 | K142: 2 | L142: 0 | M142: 0 | N142: 2 | O142: 0
A143: 131 | B143: 1 | C143: 0 | D143: 0 | E143: 2 | F143: 0 | G143: 1 | H143: 1 | I143: 0 | J143: 1 | K143: 2 | L143: 0 | M143: 0 | N143: 2 | O143: 0
A144: 132 | B144: 1 | C144: 0 | D144: 0 | E144: 2 | F144: 1 | G144: 0 | H144: 0 | I144: 1 | J144: 1 | K144: 2 | L144: 0 | M144: 0 | N144: 2 | O144: 0
A145: 133 | B145: 1 | C145: 1 | D145: 2 | E145: 1 | F145: 0 | G145: 0 | H145: 0 | I145: 1 | J145: 1 | K145: 0 | L145: 0 | M145: 0 | N145: 2 | O145: 0
A146: 134 | B146: 1 | C146: 2 | D146: 0 | E146: 1 | F146: 0 | G146: 0 | H146: 2 | I146: 1 | J146: 0 | K146: 0 | L146: 0 | M146: 0 | N146: 2 | O146: 0
A147: 135 | B147: 1 | C147: 2 | D147: 0 | E147: 1 | F147: 0 | G147: 1 | H147: 1 | I147: 0 | J147: 1 | K147: 0 | L147: 0 | M147: 0 | N147: 2 | O147: 0
A148: 136 | B148: 1 | C148: 2 | D148: 0 | E148: 1 | F148: 1 | G148: 0 | H148: 0 | I148: 1 | J148: 1 | K148: 0 | L148: 0 | M148: 0 | N148: 2 | O148: 0
A149: 137 | B149: 2 | C149: 0 | D149: 1 | E149: 1 | F149: 0 | G149: 0 | H149: 1 | I149: 2 | J149: 0 | K149: 0 | L149: 0 | M149: 0 | N149: 2 | O149: 0
A150: 138 | B150: 2 | C150: 0 | D150: 1 | E150: 1 | F150: 0 | G150: 1 | H150: 0 | I150: 1 | J150: 1 | K150: 0 | L150: 0 | M150: 0 | N150: 2 | O150: 0
A151: 139 | B151: 0 | C151: 0 | D151: 0 | E151: 0 | F151: 0 | G151: 0 | H151: 5 | I151: 2 | J151: 2 | K151: 0 | L151: 0 | M151: 0 | N151: 3 | O151: 0
A152: 140 | B152: 0 | C152: 0 | D152: 0 | E152: 0 | F152: 0 | G152: 1 | H152: 4 | I152: 1 | J152: 3 | K152: 0 | L152: 0 | M152: 0 | N152: 3 | O152: 0
A153: 141 | B153: 0 | C153: 0 | D153: 0 | E153: 0 | F153: 0 | G153: 2 | H153: 3 | I153: 0 | J153: 4 | K153: 0 | L153: 0 | M153: 0 | N153: 3 | O153: 0
A154: 142 | B154: 0 | C154: 0 | D154: 0 | E154: 0 | F154: 0 | G154: 3 | H154: 3 | I154: 0 | J154: 0 | K154: 3 | L154: 0 | M154: 0 | N154: 3 | O154: 0
A155: 143 | B155: 0 | C155: 0 | D155: 0 | E155: 0 | F155: 1 | G155: 0 | H155: 3 | I155: 2 | J155: 3 | K155: 0 | L155: 0 | M155: 0 | N155: 3 | O155: 0
A156: 144 | B156: 0 | C156: 0 | D156: 0 | E156: 0 | F156: 1 | G156: 1 | H156: 2 | I156: 1 | J156: 4 | K156: 0 | L156: 0 | M156: 0 | N156: 3 | O156: 0
A157: 145 | B157: 0 | C157: 0 | D157: 0 | E157: 0 | F157: 1 | G157: 2 | H157: 1 | I157: 0 | J157: 5 | K157: 0 | L157: 0 | M157: 0 | N157: 3 | O157: 0
A158: 146 | B158: 0 | C158: 0 | D158: 0 | E158: 0 | F158: 1 | G158: 2 | H158: 2 | I158: 1 | J158: 0 | K158: 3 | L158: 0 | M158: 0 | N158: 3 | O158: 0
A159: 147 | B159: 0 | C159: 0 | D159: 0 | E159: 0 | F159: 1 | G159: 3 | H159: 1 | I159: 0 | J159: 1 | K159: 3 | L159: 0 | M159: 0 | N159: 3 | O159: 0
A160: 148 | B160: 0 | C160: 0 | D160: 0 | E160: 0 | F160: 2 | G160: 0 | H160: 1 | I160: 2 | J160: 4 | K160: 0 | L160: 0 | M160: 0 | N160: 3 | O160: 0
A161: 149 | B161: 0 | C161: 0 | D161: 0 | E161: 0 | F161: 2 | G161: 1 | H161: 0 | I161: 1 | J161: 5 | K161: 0 | L161: 0 | M161: 0 | N161: 3 | O161: 0
A162: 150 | B162: 0 | C162: 0 | D162: 0 | E162: 0 | F162: 2 | G162: 1 | H162: 1 | I162: 2 | J162: 0 | K162: 3 | L162: 0 | M162: 0 | N162: 3 | O162: 0
A163: 151 | B163: 0 | C163: 0 | D163: 0 | E163: 0 | F163: 2 | G163: 2 | H163: 0 | I163: 1 | J163: 1 | K163: 3 | L163: 0 | M163: 0 | N163: 3 | O163: 0
A164: 152 | B164: 0 | C164: 0 | D164: 0 | E164: 0 | F164: 3 | G164: 0 | H164: 0 | I164: 3 | J164: 0 | K164: 3 | L164: 0 | M164: 0 | N164: 3 | O164: 0
A165: 153 | B165: 0 | C165: 0 | D165: 0 | E165: 1 | F165: 0 | G165: 0 | H165: 0 | I165: 1 | J165: 1 | K165: 7 | L165: 0 | M165: 0 | N165: 3 | O165: 0
A166: 154 | B166: 0 | C166: 0 | D166: 1 | E166: 0 | F166: 0 | G166: 0 | H166: 0 | I166: 8 | J166: 0 | K166: 0 | L166: 0 | M166: 0 | N166: 3 | O166: 0
A167: 155 | B167: 0 | C167: 0 | D167: 1 | E167: 0 | F167: 0 | G167: 0 | H167: 3 | I167: 2 | J167: 1 | K167: 2 | L167: 0 | M167: 0 | N167: 3 | O167: 0
A168: 156 | B168: 0 | C168: 0 | D168: 1 | E168: 0 | F168: 0 | G168: 1 | H168: 2 | I168: 1 | J168: 2 | K168: 2 | L168: 0 | M168: 0 | N168: 3 | O168: 0
A169: 157 | B169: 0 | C169: 0 | D169: 1 | E169: 0 | F169: 0 | G169: 2 | H169: 1 | I169: 0 | J169: 3 | K169: 2 | L169: 0 | M169: 0 | N169: 3 | O169: 0
A170: 158 | B170: 0 | C170: 0 | D170: 1 | E170: 0 | F170: 1 | G170: 0 | H170: 1 | I170: 2 | J170: 2 | K170: 2 | L170: 0 | M170: 0 | N170: 3 | O170: 0
A171: 159 | B171: 0 | C171: 0 | D171: 1 | E171: 0 | F171: 1 | G171: 1 | H171: 0 | I171: 1 | J171: 3 | K171: 2 | L171: 0 | M171: 0 | N171: 3 | O171: 0
A172: 160 | B172: 0 | C172: 0 | D172: 2 | E172: 0 | F172: 0 | G172: 0 | H172: 0 | I172: 1 | J172: 5 | K172: 1 | L172: 0 | M172: 0 | N172: 3 | O172: 0
A173: 161 | B173: 0 | C173: 0 | D173: 2 | E173: 0 | F173: 0 | G173: 0 | H173: 1 | I173: 2 | J173: 0 | K173: 4 | L173: 0 | M173: 0 | N173: 3 | O173: 0
A174: 162 | B174: 0 | C174: 0 | D174: 2 | E174: 0 | F174: 0 | G174: 1 | H174: 0 | I174: 1 | J174: 1 | K174: 4 | L174: 0 | M174: 0 | N174: 3 | O174: 0
A175: 163 | B175: 0 | C175: 1 | D175: 0 | E175: 0 | F175: 0 | G175: 0 | H175: 2 | I175: 1 | J175: 4 | K175: 1 | L175: 0 | M175: 0 | N175: 3 | O175: 0
A176: 164 | B176: 0 | C176: 1 | D176: 0 | E176: 0 | F176: 0 | G176: 1 | H176: 1 | I176: 0 | J176: 5 | K176: 1 | L176: 0 | M176: 0 | N176: 3 | O176: 0
A177: 165 | B177: 0 | C177: 1 | D177: 0 | E177: 0 | F177: 0 | G177: 1 | H177: 2 | I177: 1 | J177: 0 | K177: 4 | L177: 0 | M177: 0 | N177: 3 | O177: 0
A178: 166 | B178: 0 | C178: 1 | D178: 0 | E178: 0 | F178: 0 | G178: 2 | H178: 1 | I178: 0 | J178: 1 | K178: 4 | L178: 0 | M178: 0 | N178: 3 | O178: 0
A179: 167 | B179: 0 | C179: 1 | D179: 0 | E179: 0 | F179: 1 | G179: 0 | H179: 0 | I179: 1 | J179: 5 | K179: 1 | L179: 0 | M179: 0 | N179: 3 | O179: 0
A180: 168 | B180: 0 | C180: 1 | D180: 0 | E180: 0 | F180: 1 | G180: 0 | H180: 1 | I180: 2 | J180: 0 | K180: 4 | L180: 0 | M180: 0 | N180: 3 | O180: 0
A181: 169 | B181: 0 | C181: 1 | D181: 0 | E181: 0 | F181: 1 | G181: 1 | H181: 0 | I181: 1 | J181: 1 | K181: 4 | L181: 0 | M181: 0 | N181: 3 | O181: 0
A182: 170 | B182: 0 | C182: 1 | D182: 1 | E182: 0 | F182: 0 | G182: 0 | H182: 0 | I182: 1 | J182: 3 | K182: 3 | L182: 0 | M182: 0 | N182: 3 | O182: 0
A183: 171 | B183: 0 | C183: 2 | D183: 0 | E183: 0 | F183: 0 | G183: 0 | H183: 0 | I183: 1 | J183: 1 | K183: 5 | L183: 0 | M183: 0 | N183: 3 | O183: 0
A184: 172 | B184: 1 | C184: 0 | D184: 0 | E184: 0 | F184: 0 | G184: 0 | H184: 0 | I184: 1 | J184: 7 | K184: 0 | L184: 0 | M184: 0 | N184: 3 | O184: 0
A185: 173 | B185: 1 | C185: 0 | D185: 0 | E185: 0 | F185: 0 | G185: 0 | H185: 1 | I185: 2 | J185: 2 | K185: 3 | L185: 0 | M185: 0 | N185: 3 | O185: 0
A186: 174 | B186: 1 | C186: 0 | D186: 0 | E186: 0 | F186: 0 | G186: 1 | H186: 0 | I186: 1 | J186: 3 | K186: 3 | L186: 0 | M186: 0 | N186: 3 | O186: 0
A187: 175 | B187: 1 | C187: 0 | D187: 0 | E187: 3 | F187: 2 | G187: 0 | H187: 1 | I187: 0 | J187: 0 | K187: 0 | L187: 0 | M187: 0 | N187: 3 | O187: 0
A188: 176 | B188: 0 | C188: 0 | D188: 0 | E188: 1 | F188: 3 | G188: 2 | H188: 1 | I188: 0 | J188: 0 | K188: 1 | L188: 0 | M188: 0 | N188: 4 | O188: 0
A189: 177 | B189: 0 | C189: 0 | D189: 0 | E189: 1 | F189: 4 | G189: 1 | H189: 0 | I189: 1 | J189: 0 | K189: 1 | L189: 0 | M189: 0 | N189: 4 | O189: 0
A190: 178 | B190: 0 | C190: 0 | D190: 0 | E190: 2 | F190: 1 | G190: 0 | H190: 1 | I190: 0 | J190: 0 | K190: 5 | L190: 0 | M190: 0 | N190: 4 | O190: 0
A191: 179 | B191: 0 | C191: 0 | D191: 1 | E191: 1 | F191: 0 | G191: 1 | H191: 5 | I191: 0 | J191: 0 | K191: 0 | L191: 0 | M191: 0 | N191: 4 | O191: 0
A192: 180 | B192: 0 | C192: 0 | D192: 1 | E192: 1 | F192: 1 | G192: 0 | H192: 4 | I192: 1 | J192: 0 | K192: 0 | L192: 0 | M192: 0 | N192: 4 | O192: 0
A193: 181 | B193: 0 | C193: 0 | D193: 1 | E193: 1 | F193: 1 | G193: 1 | H193: 3 | I193: 0 | J193: 1 | K193: 0 | L193: 0 | M193: 0 | N193: 4 | O193: 0
A194: 182 | B194: 0 | C194: 0 | D194: 1 | E194: 1 | F194: 2 | G194: 0 | H194: 2 | I194: 1 | J194: 1 | K194: 0 | L194: 0 | M194: 0 | N194: 4 | O194: 0
A195: 183 | B195: 0 | C195: 0 | D195: 1 | E195: 1 | F195: 2 | G195: 1 | H195: 1 | I195: 0 | J195: 2 | K195: 0 | L195: 0 | M195: 0 | N195: 4 | O195: 0
A196: 184 | B196: 0 | C196: 0 | D196: 1 | E196: 1 | F196: 3 | G196: 0 | H196: 0 | I196: 1 | J196: 2 | K196: 0 | L196: 0 | M196: 0 | N196: 4 | O196: 0
A197: 185 | B197: 0 | C197: 0 | D197: 2 | E197: 1 | F197: 1 | G197: 1 | H197: 1 | I197: 0 | J197: 0 | K197: 2 | L197: 0 | M197: 0 | N197: 4 | O197: 0
A198: 186 | B198: 0 | C198: 0 | D198: 2 | E198: 1 | F198: 2 | G198: 0 | H198: 0 | I198: 1 | J198: 0 | K198: 2 | L198: 0 | M198: 0 | N198: 4 | O198: 0
A199: 187 | B199: 0 | C199: 0 | D199: 3 | E199: 1 | F199: 0 | G199: 0 | H199: 1 | I199: 0 | J199: 2 | K199: 1 | L199: 0 | M199: 0 | N199: 4 | O199: 0
A200: 188 | B200: 0 | C200: 0 | D200: 6 | E200: 0 | F200: 0 | G200: 0 | H200: 0 | I200: 1 | J200: 0 | K200: 0 | L200: 0 | M200: 0 | N200: 4 | O200: 0
A201: 189 | B201: 0 | C201: 1 | D201: 0 | E201: 1 | F201: 2 | G201: 1 | H201: 1 | I201: 0 | J201: 0 | K201: 2 | L201: 0 | M201: 0 | N201: 4 | O201: 0
... 4299 more rows

Sheet МО сум изб <=15
A1: Оптимизация. Варюхин С.Е. 2015 гг | C1: Нарезка труб
B2: 1 | C2: 2 | D2: 3 | E2: 4 | F2: 5 | G2: 6 | H2: 7 | I2: 8 | J2: 9 | K2: 10 | L2: 11 | M2: 12 | N2: Номер детали | P2: 6000 | Q2: = L — длина труб, мм
B3: 28 | C3: 18 | D3: 31 | E3: 96 | F3: 12 | G3: 27 | H3: 63 | I3: 76 | J3: 6 | K3: 14 | L3: 0 | M3: 0 | N3: Количество деталей | O3: =SUM(B3:M3) -> 371
B4: 1135 | C4: 980 | D4: 890 | E4: 847 | F4: 800 | G4: 735 | H4: 700 | I4: 635 | J4: 600 | K4: 555 | L4: 6000 | M4: 6000 | N4: Размеры деталей, мм | P4: 427 | Q4: = Δ - максимальный размер обрезка
P5: 0 | Q5: = Δm - максимальный размер остатка
B6: =B4+$P$6 -> 1138 | C6: 983 | D6: 893 | E6: 850 | F6: 803 | G6: 738 | H6: 703 | I6: 638 | J6: 603 | K6: 558 | L6: 6003 | M6: 6003 | N6: Длина детали + ширина реза | P6: 3 | Q6: = d - ширина реза
A7: вариантов | B7: =SUMPRODUCT(B6:M6,B3:M3)/(P2+P6) -> 48.74396135 | C7: Теоретич. мин. число труб | M7: Суммарная длина обрезков, м = | N7: =SUMPRODUCT(N13:N10014,O13:O10014)/1000 -> 0.000
A8: 10,002 | B8: =SUM(O13:O10014) -> 50 | C8: Количество труб длины L | M8: Суммарная длина остатков, м = | N8: 0.000 | O8: =N7*1000/(P2*B8) -> 0.00% | P8: Процент потерь в обрезки
B10: =SUMPRODUCT(B13:B10014,$O$13:$O$10014) -> 28 | C10: =SUMPRODUCT(C13:C10014,$O$13:$O$10014) -> 18 | D10: 31 | E10: 96 | F10: 12 | G10: 27 | H10: 64 | I10: 77 | J10: 6 | K10: 25 | L10: 0 | M10: 0 | N10: Количество полученных деталей | O10: =SUM(B10:M10) -> 384 | P10: 1.000 | Q10: = макс. суммарная длина обрезков
B11: =B10-B3 -> 0 | C11: 0 | D11: 0 | E11: 0 | F11: 0 | G11: 0 | H11: 1 | I11: 1 | J11: 0 | K11: =K10-K3 -> 11 | L11: 0 | M11: =M10-M3 -> 0 | N11: Количество лишних деталей | O11: =SUM(B11:M11) -> 13 | P11: 15 | Q11: = максимальный избыток деталей
A12: Номер варианта разреза | B12: 1 | C12: 2 | D12: 3 | E12: 4 | F12: 5 | G12: 6 | H12: 7 | I12: 8 | J12: 9 | K12: 10 | L12: 11 | M12: 12 | N12: Обрезок или остаток | O12: Сколько труб так разрезать?
A13: 1 | B13: 0 | C13: 0 | D13: 0 | E13: 0 | F13: 0 | G13: 0 | H13: 0 | I13: 0 | J13: 0 | K13: 0 | L13: 0 | M13: 1 | N13: =IF(SUMPRODUCT($B$6:$M$6,B13:M13)<$P$2,$P$2-SUMPRODUCT($B$6:$M$6,B13:M13),0) -> 0 | O13: 0
A14: 2 | B14: 0 | C14: 0 | D14: 0 | E14: 0 | F14: 0 | G14: 0 | H14: 0 | I14: 0 | J14: 0 | K14: 0 | L14: 1 | M14: 0 | N14: =IF(SUMPRODUCT($B$6:$M$6,B14:M14)<$P$2,$P$2-SUMPRODUCT($B$6:$M$6,B14:M14),0) -> 0 | O14: 0
A15: 3 | B15: 0 | C15: 0 | D15: 1 | E15: 2 | F15: 0 | G15: 3 | H15: 0 | I15: 1 | J15: 0 | K15: 1 | L15: 0 | M15: 0 | N15: =IF(SUMPRODUCT($B$6:$M$6,B15:M15)<$P$2,$P$2-SUMPRODUCT($B$6:$M$6,B15:M15),0) -> 0 | O15: 7
A16: 4 | B16: 0 | C16: 0 | D16: 2 | E16: 2 | F16: 0 | G16: 0 | H16: 0 | I16: 3 | J16: 1 | K16: 0 | L16: 0 | M16: 0 | N16: 0 | O16: 0
A17: 5 | B17: 0 | C17: 1 | D17: 0 | E17: 2 | F17: 0 | G17: 0 | H17: 2 | I17: 3 | J17: 0 | K17: 0 | L17: 0 | M17: 0 | N17: 0 | O17: 0
A18: 6 | B18: 0 | C18: 1 | D18: 0 | E18: 2 | F18: 0 | G18: 1 | H18: 1 | I18: 2 | J18: 1 | K18: 0 | L18: 0 | M18: 0 | N18: 0 | O18: 0
A19: 7 | B19: 0 | C19: 1 | D19: 0 | E19: 2 | F19: 0 | G19: 2 | H19: 0 | I19: 1 | J19: 2 | K19: 0 | L19: 0 | M19: 0 | N19: 0 | O19: 0
A20: 8 | B20: 0 | C20: 1 | D20: 0 | E20: 2 | F20: 1 | G20: 0 | H20: 0 | I20: 3 | J20: 1 | K20: 0 | L20: 0 | M20: 0 | N20: 0 | O20: 0
A21: 9 | B21: 1 | C21: 0 | D21: 0 | E21: 1 | F21: 5 | G21: 0 | H21: 0 | I21: 0 | J21: 0 | K21: 0 | L21: 0 | M21: 0 | N21: 0 | O21: 0
A22: 10 | B22: 3 | C22: 0 | D22: 2 | E22: 0 | F22: 1 | G22: 0 | H22: 0 | I22: 0 | J22: 0 | K22: 0 | L22: 0 | M22: 0 | N22: 0 | O22: 5
A23: 11 | B23: 3 | C23: 1 | D23: 0 | E23: 0 | F23: 2 | G23: 0 | H23: 0 | I23: 0 | J23: 0 | K23: 0 | L23: 0 | M23: 0 | N23: 0 | O23: 1
A24: 12 | B24: 4 | C24: 0 | D24: 1 | E24: 0 | F24: 0 | G24: 0 | H24: 0 | I24: 0 | J24: 0 | K24: 1 | L24: 0 | M24: 0 | N24: 0 | O24: 1
A25: 13 | B25: 0 | C25: 0 | D25: 0 | E25: 0 | F25: 0 | G25: 0 | H25: 4 | I25: 5 | J25: 0 | K25: 0 | L25: 0 | M25: 0 | N25: 0 | O25: 9
A26: 14 | B26: 0 | C26: 0 | D26: 0 | E26: 0 | F26: 0 | G26: 1 | H26: 3 | I26: 4 | J26: 1 | K26: 0 | L26: 0 | M26: 0 | N26: 0 | O26: 0
A27: 15 | B27: 0 | C27: 0 | D27: 0 | E27: 0 | F27: 0 | G27: 2 | H27: 2 | I27: 3 | J27: 2 | K27: 0 | L27: 0 | M27: 0 | N27: 0 | O27: 0
A28: 16 | B28: 0 | C28: 0 | D28: 0 | E28: 0 | F28: 0 | G28: 3 | H28: 1 | I28: 2 | J28: 3 | K28: 0 | L28: 0 | M28: 0 | N28: 0 | O28: 0
A29: 17 | B29: 0 | C29: 0 | D29: 0 | E29: 0 | F29: 0 | G29: 4 | H29: 0 | I29: 1 | J29: 4 | K29: 0 | L29: 0 | M29: 0 | N29: 0 | O29: 0
A30: 18 | B30: 0 | C30: 0 | D30: 0 | E30: 0 | F30: 0 | G30: 5 | H30: 0 | I30: 1 | J30: 0 | K30: 3 | L30: 0 | M30: 0 | N30: 0 | O30: 0
A31: 19 | B31: 0 | C31: 0 | D31: 0 | E31: 0 | F31: 1 | G31: 0 | H31: 2 | I31: 5 | J31: 1 | K31: 0 | L31: 0 | M31: 0 | N31: 0 | O31: 0
A32: 20 | B32: 0 | C32: 0 | D32: 0 | E32: 0 | F32: 1 | G32: 1 | H32: 1 | I32: 4 | J32: 2 | K32: 0 | L32: 0 | M32: 0 | N32: 0 | O32: 0
A33: 21 | B33: 0 | C33: 0 | D33: 0 | E33: 0 | F33: 1 | G33: 2 | H33: 0 | I33: 3 | J33: 3 | K33: 0 | L33: 0 | M33: 0 | N33: 0 | O33: 0
A34: 22 | B34: 0 | C34: 0 | D34: 0 | E34: 0 | F34: 2 | G34: 0 | H34: 0 | I34: 5 | J34: 2 | K34: 0 | L34: 0 | M34: 0 | N34: 0 | O34: 0
A35: 23 | B35: 0 | C35: 0 | D35: 0 | E35: 0 | F35: 4 | G35: 0 | H35: 0 | I35: 0 | J35: 0 | K35: 5 | L35: 0 | M35: 0 | N35: 0 | O35: 0
A36: 24 | B36: 0 | C36: 0 | D36: 0 | E36: 4 | F36: 0 | G36: 0 | H36: 2 | I36: 1 | J36: 0 | K36: 1 | L36: 0 | M36: 0 | N36: 0 | O36: 12
A37: 25 | B37: 0 | C37: 0 | D37: 0 | E37: 4 | F37: 0 | G37: 1 | H37: 1 | I37: 0 | J37: 1 | K37: 1 | L37: 0 | M37: 0 | N37: 0 | O37: 2
A38: 26 | B38: 0 | C38: 0 | D38: 0 | E38: 4 | F38: 1 | G38: 0 | H38: 0 | I38: 1 | J38: 1 | K38: 1 | L38: 0 | M38: 0 | N38: 0 | O38: 0
A39: 27 | B39: 0 | C39: 0 | D39: 1 | E39: 0 | F39: 0 | G39: 1 | H39: 1 | I39: 4 | J39: 0 | K39: 2 | L39: 0 | M39: 0 | N39: 0 | O39: 0
A40: 28 | B40: 0 | C40: 0 | D40: 1 | E40: 0 | F40: 0 | G40: 2 | H40: 0 | I40: 3 | J40: 1 | K40: 2 | L40: 0 | M40: 0 | N40: 0 | O40: 0
A41: 29 | B41: 0 | C41: 0 | D41: 1 | E41: 0 | F41: 1 | G41: 0 | H41: 0 | I41: 5 | J41: 0 | K41: 2 | L41: 0 | M41: 0 | N41: 0 | O41: 0
A42: 30 | B42: 0 | C42: 1 | D42: 0 | E42: 0 | F42: 0 | G42: 0 | H42: 1 | I42: 4 | J42: 2 | K42: 1 | L42: 0 | M42: 0 | N42: 0 | O42: 0
A43: 31 | B43: 0 | C43: 1 | D43: 0 | E43: 0 | F43: 0 | G43: 1 | H43: 0 | I43: 3 | J43: 3 | K43: 1 | L43: 0 | M43: 0 | N43: 0 | O43: 0
A44: 32 | B44: 1 | C44: 0 | D44: 0 | E44: 0 | F44: 0 | G44: 0 | H44: 0 | I44: 5 | J44: 0 | K44: 3 | L44: 0 | M44: 0 | N44: 0 | O44: 0
A45: 33 | B45: 0 | C45: 0 | D45: 0 | E45: 2 | F45: 0 | G45: 0 | H45: 1 | I45: 2 | J45: 2 | K45: 2 | L45: 0 | M45: 0 | N45: 0 | O45: 0
A46: 34 | B46: 0 | C46: 0 | D46: 0 | E46: 2 | F46: 0 | G46: 1 | H46: 0 | I46: 1 | J46: 3 | K46: 2 | L46: 0 | M46: 0 | N46: 0 | O46: 0
A47: 35 | B47: 0 | C47: 0 | D47: 1 | E47: 1 | F47: 0 | G47: 3 | H47: 2 | I47: 1 | J47: 0 | K47: 0 | L47: 0 | M47: 0 | N47: 0 | O47: 0
A48: 36 | B48: 0 | C48: 0 | D48: 1 | E48: 1 | F48: 0 | G48: 4 | H48: 1 | I48: 0 | J48: 1 | K48: 0 | L48: 0 | M48: 0 | N48: 0 | O48: 0
A49: 37 | B49: 0 | C49: 0 | D49: 1 | E49: 1 | F49: 1 | G49: 2 | H49: 1 | I49: 2 | J49: 0 | K49: 0 | L49: 0 | M49: 0 | N49: 0 | O49: 0
A50: 38 | B50: 0 | C50: 0 | D50: 1 | E50: 1 | F50: 1 | G50: 3 | H50: 0 | I50: 1 | J50: 1 | K50: 0 | L50: 0 | M50: 0 | N50: 0 | O50: 0
A51: 39 | B51: 0 | C51: 0 | D51: 1 | E51: 1 | F51: 2 | G51: 1 | H51: 0 | I51: 3 | J51: 0 | K51: 0 | L51: 0 | M51: 0 | N51: 0 | O51: 0
A52: 40 | B52: 0 | C52: 0 | D52: 3 | E52: 1 | F52: 0 | G52: 0 | H52: 0 | I52: 3 | J52: 0 | K52: 1 | L52: 0 | M52: 0 | N52: 0 | O52: 0
A53: 41 | B53: 0 | C53: 1 | D53: 1 | E53: 1 | F53: 0 | G53: 1 | H53: 1 | I53: 2 | J53: 0 | K53: 1 | L53: 0 | M53: 0 | N53: 0 | O53: 0
A54: 42 | B54: 0 | C54: 1 | D54: 1 | E54: 1 | F54: 0 | G54: 2 | H54: 0 | I54: 1 | J54: 1 | K54: 1 | L54: 0 | M54: 0 | N54: 0 | O54: 0
A55: 43 | B55: 0 | C55: 1 | D55: 1 | E55: 1 | F55: 1 | G55: 0 | H55: 0 | I55: 3 | J55: 0 | K55: 1 | L55: 0 | M55: 0 | N55: 0 | O55: 0
A56: 44 | B56: 0 | C56: 2 | D56: 0 | E56: 1 | F56: 0 | G56: 0 | H56: 1 | I56: 2 | J56: 2 | K56: 0 | L56: 0 | M56: 0 | N56: 0 | O56: 0
A57: 45 | B57: 0 | C57: 2 | D57: 0 | E57: 1 | F57: 0 | G57: 1 | H57: 0 | I57: 1 | J57: 3 | K57: 0 | L57: 0 | M57: 0 | N57: 0 | O57: 0
A58: 46 | B58: 1 | C58: 0 | D58: 0 | E58: 1 | F58: 0 | G58: 2 | H58: 1 | I58: 2 | J58: 0 | K58: 1 | L58: 0 | M58: 0 | N58: 0 | O58: 0
A59: 47 | B59: 1 | C59: 0 | D59: 0 | E59: 1 | F59: 0 | G59: 3 | H59: 0 | I59: 1 | J59: 1 | K59: 1 | L59: 0 | M59: 0 | N59: 0 | O59: 0
A60: 48 | B60: 1 | C60: 0 | D60: 0 | E60: 1 | F60: 1 | G60: 1 | H60: 0 | I60: 3 | J60: 0 | K60: 1 | L60: 0 | M60: 0 | N60: 0 | O60: 0
A61: 49 | B61: 1 | C61: 0 | D61: 1 | E61: 1 | F61: 0 | G61: 0 | H61: 0 | I61: 3 | J61: 2 | K61: 0 | L61: 0 | M61: 0 | N61: 0 | O61: 0
A62: 50 | B62: 1 | C62: 1 | D62: 0 | E62: 1 | F62: 0 | G62: 0 | H62: 0 | I62: 3 | J62: 0 | K62: 2 | L62: 0 | M62: 0 | N62: 0 | O62: 0
A63: 51 | B63: 1 | C63: 3 | D63: 0 | E63: 0 | F63: 0 | G63: 0 | H63: 0 | I63: 3 | J63: 0 | K63: 0 | L63: 0 | M63: 0 | N63: 0 | O63: 1
A64: 52 | B64: 0 | C64: 0 | D64: 0 | E64: 0 | F64: 0 | G64: 0 | H64: 0 | I64: 3 | J64: 4 | K64: 3 | L64: 0 | M64: 0 | N64: 0 | O64: 0
A65: 53 | B65: 0 | C65: 0 | D65: 0 | E65: 0 | F65: 0 | G65: 1 | H65: 0 | I65: 3 | J65: 0 | K65: 6 | L65: 0 | M65: 0 | N65: 0 | O65: 0
A66: 54 | B66: 0 | C66: 0 | D66: 0 | E66: 3 | F66: 0 | G66: 0 | H66: 4 | I66: 1 | J66: 0 | K66: 0 | L66: 0 | M66: 0 | N66: 0 | O66: 0
A67: 55 | B67: 0 | C67: 0 | D67: 0 | E67: 3 | F67: 0 | G67: 1 | H67: 3 | I67: 0 | J67: 1 | K67: 0 | L67: 0 | M67: 0 | N67: 0 | O67: 0
A68: 56 | B68: 0 | C68: 0 | D68: 0 | E68: 3 | F68: 1 | G68: 0 | H68: 2 | I68: 1 | J68: 1 | K68: 0 | L68: 0 | M68: 0 | N68: 0 | O68: 0
A69: 57 | B69: 0 | C69: 0 | D69: 0 | E69: 3 | F69: 1 | G69: 1 | H69: 1 | I69: 0 | J69: 2 | K69: 0 | L69: 0 | M69: 0 | N69: 0 | O69: 0
A70: 58 | B70: 0 | C70: 0 | D70: 0 | E70: 3 | F70: 2 | G70: 0 | H70: 0 | I70: 1 | J70: 2 | K70: 0 | L70: 0 | M70: 0 | N70: 0 | O70: 0
A71: 59 | B71: 0 | C71: 0 | D71: 1 | E71: 3 | F71: 0 | G71: 1 | H71: 1 | I71: 0 | J71: 0 | K71: 2 | L71: 0 | M71: 0 | N71: 0 | O71: 0
A72: 60 | B72: 0 | C72: 0 | D72: 1 | E72: 3 | F72: 1 | G72: 0 | H72: 0 | I72: 1 | J72: 0 | K72: 2 | L72: 0 | M72: 0 | N72: 0 | O72: 0
A73: 61 | B73: 0 | C73: 1 | D73: 0 | E73: 3 | F73: 0 | G73: 0 | H73: 1 | I73: 0 | J73: 2 | K73: 1 | L73: 0 | M73: 0 | N73: 0 | O73: 2
A74: 62 | B74: 0 | C74: 1 | D74: 3 | E74: 2 | F74: 0 | G74: 0 | H74: 0 | I74: 1 | J74: 0 | K74: 0 | L74: 0 | M74: 0 | N74: 0 | O74: 0
A75: 63 | B75: 0 | C75: 2 | D75: 1 | E75: 2 | F75: 0 | G75: 1 | H75: 1 | I75: 0 | J75: 0 | K75: 0 | L75: 0 | M75: 0 | N75: 0 | O75: 0
A76: 64 | B76: 0 | C76: 2 | D76: 1 | E76: 2 | F76: 1 | G76: 0 | H76: 0 | I76: 1 | J76: 0 | K76: 0 | L76: 0 | M76: 0 | N76: 0 | O76: 5
A77: 65 | B77: 1 | C77: 0 | D77: 0 | E77: 3 | F77: 0 | G77: 0 | H77: 0 | I77: 1 | J77: 0 | K77: 3 | L77: 0 | M77: 0 | N77: 0 | O77: 0
A78: 66 | B78: 1 | C78: 0 | D78: 2 | E78: 2 | F78: 0 | G78: 1 | H78: 0 | I78: 1 | J78: 0 | K78: 0 | L78: 0 | M78: 0 | N78: =IF(SUMPRODUCT($B$6:$M$6,B78:M78)<$P$2,$P$2-SUMPRODUCT($B$6:$M$6,B78:M78),0) -> 0 | O78: 4
A79: 67 | B79: 1 | C79: 1 | D79: 0 | E79: 2 | F79: 0 | G79: 2 | H79: 1 | I79: 0 | J79: 0 | K79: 0 | L79: 0 | M79: 0 | N79: 0 | O79: 0
A80: 68 | B80: 1 | C80: 1 | D80: 0 | E80: 2 | F80: 1 | G80: 1 | H80: 0 | I80: 1 | J80: 0 | K80: 0 | L80: 0 | M80: 0 | N80: 0 | O80: 0
A81: 69 | B81: 1 | C81: 2 | D81: 0 | E81: 2 | F81: 0 | G81: 0 | H81: 0 | I81: 1 | J81: 0 | K81: 1 | L81: 0 | M81: 0 | N81: 0 | O81: 1
A82: 70 | B82: 0 | C82: 0 | D82: 0 | E82: 0 | F82: 2 | G82: 5 | H82: 1 | I82: 0 | J82: 0 | K82: 0 | L82: 0 | M82: 0 | N82: 1 | O82: 0
A83: 71 | B83: 0 | C83: 0 | D83: 0 | E83: 0 | F83: 3 | G83: 4 | H83: 0 | I83: 1 | J83: 0 | K83: 0 | L83: 0 | M83: 0 | N83: 1 | O83: 0
A84: 72 | B84: 0 | C84: 0 | D84: 0 | E84: 1 | F84: 0 | G84: 0 | H84: 3 | I84: 2 | J84: 2 | K84: 1 | L84: 0 | M84: 0 | N84: 1 | O84: 0
A85: 73 | B85: 0 | C85: 0 | D85: 0 | E85: 1 | F85: 0 | G85: 1 | H85: 2 | I85: 1 | J85: 3 | K85: 1 | L85: 0 | M85: 0 | N85: 1 | O85: 0
A86: 74 | B86: 0 | C86: 0 | D86: 0 | E86: 1 | F86: 0 | G86: 2 | H86: 1 | I86: 0 | J86: 4 | K86: 1 | L86: 0 | M86: 0 | N86: 1 | O86: 0
A87: 75 | B87: 0 | C87: 0 | D87: 0 | E87: 1 | F87: 0 | G87: 3 | H87: 1 | I87: 0 | J87: 0 | K87: 4 | L87: 0 | M87: 0 | N87: 1 | O87: 0
A88: 76 | B88: 0 | C88: 0 | D88: 0 | E88: 1 | F88: 1 | G88: 0 | H88: 1 | I88: 2 | J88: 3 | K88: 1 | L88: 0 | M88: 0 | N88: 1 | O88: 0
A89: 77 | B89: 0 | C89: 0 | D89: 0 | E89: 1 | F89: 1 | G89: 1 | H89: 0 | I89: 1 | J89: 4 | K89: 1 | L89: 0 | M89: 0 | N89: 1 | O89: 0
A90: 78 | B90: 0 | C90: 0 | D90: 0 | E90: 1 | F90: 1 | G90: 2 | H90: 0 | I90: 1 | J90: 0 | K90: 4 | L90: 0 | M90: 0 | N90: 1 | O90: 0
A91: 79 | B91: 0 | C91: 0 | D91: 1 | E91: 1 | F91: 0 | G91: 0 | H91: 0 | I91: 1 | J91: 6 | K91: 0 | L91: 0 | M91: 0 | N91: 1 | O91: 0
A92: 80 | B92: 0 | C92: 0 | D92: 1 | E92: 1 | F92: 0 | G92: 0 | H92: 1 | I92: 2 | J92: 1 | K92: 3 | L92: 0 | M92: 0 | N92: 1 | O92: 0
A93: 81 | B93: 0 | C93: 0 | D93: 1 | E93: 1 | F93: 0 | G93: 1 | H93: 0 | I93: 1 | J93: 2 | K93: 3 | L93: 0 | M93: 0 | N93: 1 | O93: 0
A94: 82 | B94: 0 | C94: 0 | D94: 2 | E94: 0 | F94: 0 | G94: 4 | H94: 1 | I94: 0 | J94: 0 | K94: 1 | L94: 0 | M94: 0 | N94: 1 | O94: 0
A95: 83 | B95: 0 | C95: 0 | D95: 2 | E95: 0 | F95: 1 | G95: 3 | H95: 0 | I95: 1 | J95: 0 | K95: 1 | L95: 0 | M95: 0 | N95: 1 | O95: 0
A96: 84 | B96: 0 | C96: 0 | D96: 3 | E96: 0 | F96: 0 | G96: 0 | H96: 2 | I96: 3 | J96: 0 | K96: 0 | L96: 0 | M96: 0 | N96: 1 | O96: 0
A97: 85 | B97: 0 | C97: 0 | D97: 3 | E97: 0 | F97: 0 | G97: 1 | H97: 1 | I97: 2 | J97: 1 | K97: 0 | L97: 0 | M97: 0 | N97: 1 | O97: 0
A98: 86 | B98: 0 | C98: 0 | D98: 3 | E98: 0 | F98: 0 | G98: 2 | H98: 0 | I98: 1 | J98: 2 | K98: 0 | L98: 0 | M98: 0 | N98: 1 | O98: 0
A99: 87 | B99: 0 | C99: 0 | D99: 3 | E99: 0 | F99: 1 | G99: 0 | H99: 0 | I99: 3 | J99: 1 | K99: 0 | L99: 0 | M99: 0 | N99: 1 | O99: 0
A100: 88 | B100: 0 | C100: 1 | D100: 0 | E100: 0 | F100: 1 | G100: 4 | H100: 1 | I100: 0 | J100: 0 | K100: 1 | L100: 0 | M100: 0 | N100: 1 | O100: 0
A101: 89 | B101: 0 | C101: 1 | D101: 0 | E101: 0 | F101: 2 | G101: 3 | H101: 0 | I101: 1 | J101: 0 | K101: 1 | L101: 0 | M101: 0 | N101: 1 | O101: 0
A102: 90 | B102: 0 | C102: 1 | D102: 0 | E102: 1 | F102: 0 | G102: 0 | H102: 0 | I102: 1 | J102: 4 | K102: 2 | L102: 0 | M102: 0 | N102: 1 | O102: 0
A103: 91 | B103: 0 | C103: 1 | D103: 0 | E103: 1 | F103: 0 | G103: 1 | H103: 0 | I103: 1 | J103: 0 | K103: 5 | L103: 0 | M103: 0 | N103: 1 | O103: 0
A104: 92 | B104: 0 | C104: 1 | D104: 1 | E104: 0 | F104: 0 | G104: 1 | H104: 3 | I104: 2 | J104: 0 | K104: 0 | L104: 0 | M104: 0 | N104: 1 | O104: 0
A105: 93 | B105: 0 | C105: 1 | D105: 1 | E105: 0 | F105: 0 | G105: 2 | H105: 2 | I105: 1 | J105: 1 | K105: 0 | L105: 0 | M105: 0 | N105: 1 | O105: 0
A106: 94 | B106: 0 | C106: 1 | D106: 1 | E106: 0 | F106: 0 | G106: 3 | H106: 1 | I106: 0 | J106: 2 | K106: 0 | L106: 0 | M106: 0 | N106: 1 | O106: 0
A107: 95 | B107: 0 | C107: 1 | D107: 1 | E107: 0 | F107: 1 | G107: 0 | H107: 2 | I107: 3 | J107: 0 | K107: 0 | L107: 0 | M107: 0 | N107: 1 | O107: 0
A108: 96 | B108: 0 | C108: 1 | D108: 1 | E108: 0 | F108: 1 | G108: 1 | H108: 1 | I108: 2 | J108: 1 | K108: 0 | L108: 0 | M108: 0 | N108: 1 | O108: 0
A109: 97 | B109: 0 | C109: 1 | D109: 1 | E109: 0 | F109: 1 | G109: 2 | H109: 0 | I109: 1 | J109: 2 | K109: 0 | L109: 0 | M109: 0 | N109: 1 | O109: 0
A110: 98 | B110: 0 | C110: 1 | D110: 1 | E110: 0 | F110: 2 | G110: 0 | H110: 0 | I110: 3 | J110: 1 | K110: 0 | L110: 0 | M110: 0 | N110: 1 | O110: 0
A111: 99 | B111: 0 | C111: 1 | D111: 2 | E111: 0 | F111: 0 | G111: 2 | H111: 0 | I111: 1 | J111: 0 | K111: 2 | L111: 0 | M111: 0 | N111: 1 | O111: 0
A112: 100 | B112: 0 | C112: 2 | D112: 0 | E112: 0 | F112: 0 | G112: 3 | H112: 1 | I112: 0 | J112: 0 | K112: 2 | L112: 0 | M112: 0 | N112: 1 | O112: 0
A113: 101 | B113: 0 | C113: 2 | D113: 0 | E113: 0 | F113: 1 | G113: 2 | H113: 0 | I113: 1 | J113: 0 | K113: 2 | L113: 0 | M113: 0 | N113: 1 | O113: 0
A114: 102 | B114: 0 | C114: 2 | D114: 1 | E114: 0 | F114: 0 | G114: 0 | H114: 1 | I114: 2 | J114: 1 | K114: 1 | L114: 0 | M114: 0 | N114: 1 | O114: 0
A115: 103 | B115: 0 | C115: 2 | D115: 1 | E115: 0 | F115: 0 | G115: 1 | H115: 0 | I115: 1 | J115: 2 | K115: 1 | L115: 0 | M115: 0 | N115: 1 | O115: 0
A116: 104 | B116: 0 | C116: 3 | D116: 0 | E116: 0 | F116: 0 | G116: 0 | H116: 0 | I116: 1 | J116: 4 | K116: 0 | L116: 0 | M116: 0 | N116: 1 | O116: 0
A117: 105 | B117: 0 | C117: 3 | D117: 0 | E117: 0 | F117: 0 | G117: 1 | H117: 0 | I117: 1 | J117: 0 | K117: 3 | L117: 0 | M117: 0 | N117: 1 | O117: 0
A118: 106 | B118: 1 | C118: 0 | D118: 0 | E118: 0 | F118: 0 | G118: 2 | H118: 3 | I118: 2 | J118: 0 | K118: 0 | L118: 0 | M118: 0 | N118: 1 | O118: 0
A119: 107 | B119: 1 | C119: 0 | D119: 0 | E119: 0 | F119: 0 | G119: 3 | H119: 2 | I119: 1 | J119: 1 | K119: 0 | L119: 0 | M119: 0 | N119: 1 | O119: 0
A120: 108 | B120: 1 | C120: 0 | D120: 0 | E120: 0 | F120: 0 | G120: 4 | H120: 1 | I120: 0 | J120: 2 | K120: 0 | L120: 0 | M120: 0 | N120: 1 | O120: 0
A121: 109 | B121: 1 | C121: 0 | D121: 0 | E121: 0 | F121: 1 | G121: 1 | H121: 2 | I121: 3 | J121: 0 | K121: 0 | L121: 0 | M121: 0 | N121: 1 | O121: 0
A122: 110 | B122: 1 | C122: 0 | D122: 0 | E122: 0 | F122: 1 | G122: 2 | H122: 1 | I122: 2 | J122: 1 | K122: 0 | L122: 0 | M122: 0 | N122: 1 | O122: 0
A123: 111 | B123: 1 | C123: 0 | D123: 0 | E123: 0 | F123: 1 | G123: 3 | H123: 0 | I123: 1 | J123: 2 | K123: 0 | L123: 0 | M123: 0 | N123: 1 | O123: 0
A124: 112 | B124: 1 | C124: 0 | D124: 0 | E124: 0 | F124: 2 | G124: 0 | H124: 1 | I124: 4 | J124: 0 | K124: 0 | L124: 0 | M124: 0 | N124: 1 | O124: 0
A125: 113 | B125: 1 | C125: 0 | D125: 0 | E125: 0 | F125: 2 | G125: 1 | H125: 0 | I125: 3 | J125: 1 | K125: 0 | L125: 0 | M125: 0 | N125: 1 | O125: 0
A126: 114 | B126: 1 | C126: 0 | D126: 1 | E126: 0 | F126: 0 | G126: 3 | H126: 0 | I126: 1 | J126: 0 | K126: 2 | L126: 0 | M126: 0 | N126: 1 | O126: 0
A127: 115 | B127: 1 | C127: 0 | D127: 2 | E127: 0 | F127: 0 | G127: 0 | H127: 0 | I127: 3 | J127: 1 | K127: 1 | L127: 0 | M127: 0 | N127: 1 | O127: 0
A128: 116 | B128: 1 | C128: 1 | D128: 0 | E128: 0 | F128: 0 | G128: 0 | H128: 2 | I128: 3 | J128: 0 | K128: 1 | L128: 0 | M128: 0 | N128: 1 | O128: 0
A129: 117 | B129: 1 | C129: 1 | D129: 0 | E129: 0 | F129: 0 | G129: 1 | H129: 1 | I129: 2 | J129: 1 | K129: 1 | L129: 0 | M129: 0 | N129: 1 | O129: 0
A130: 118 | B130: 1 | C130: 1 | D130: 0 | E130: 0 | F130: 0 | G130: 2 | H130: 0 | I130: 1 | J130: 2 | K130: 1 | L130: 0 | M130: 0 | N130: 1 | O130: 0
A131: 119 | B131: 1 | C131: 1 | D131: 0 | E131: 0 | F131: 1 | G131: 0 | H131: 0 | I131: 3 | J131: 1 | K131: 1 | L131: 0 | M131: 0 | N131: 1 | O131: 0
A132: 120 | B132: 2 | C132: 0 | D132: 0 | E132: 0 | F132: 0 | G132: 0 | H132: 0 | I132: 3 | J132: 3 | K132: 0 | L132: 0 | M132: 0 | N132: 1 | O132: 0
A133: 121 | B133: 0 | C133: 0 | D133: 1 | E133: 2 | F133: 0 | G133: 1 | H133: 3 | I133: 0 | J133: 0 | K133: 1 | L133: 0 | M133: 0 | N133: 2 | O133: 0
A134: 122 | B134: 0 | C134: 0 | D134: 1 | E134: 2 | F134: 1 | G134: 0 | H134: 2 | I134: 1 | J134: 0 | K134: 1 | L134: 0 | M134: 0 | N134: 2 | O134: 0
A135: 123 | B135: 0 | C135: 0 | D135: 1 | E135: 2 | F135: 1 | G135: 1 | H135: 1 | I135: 0 | J135: 1 | K135: 1 | L135: 0 | M135: 0 | N135: 2 | O135: 0
A136: 124 | B136: 0 | C136: 0 | D136: 1 | E136: 2 | F136: 2 | G136: 0 | H136: 0 | I136: 1 | J136: 1 | K136: 1 | L136: 0 | M136: 0 | N136: 2 | O136: 0
A137: 125 | B137: 0 | C137: 0 | D137: 2 | E137: 2 | F137: 0 | G137: 0 | H137: 1 | I137: 0 | J137: 3 | K137: 0 | L137: 0 | M137: 0 | N137: 2 | O137: 0
A138: 126 | B138: 0 | C138: 1 | D138: 0 | E138: 2 | F138: 0 | G138: 0 | H138: 3 | I138: 0 | J138: 2 | K138: 0 | L138: 0 | M138: 0 | N138: 2 | O138: 0
A139: 127 | B139: 0 | C139: 1 | D139: 0 | E139: 2 | F139: 1 | G139: 0 | H139: 1 | I139: 0 | J139: 3 | K139: 0 | L139: 0 | M139: 0 | N139: 2 | O139: 0
A140: 128 | B140: 0 | C140: 1 | D140: 1 | E140: 2 | F140: 0 | G140: 0 | H140: 1 | I140: 0 | J140: 1 | K140: 2 | L140: 0 | M140: 0 | N140: 2 | O140: 0
A141: 129 | B141: 0 | C141: 3 | D141: 1 | E141: 1 | F141: 0 | G141: 0 | H141: 1 | I141: 0 | J141: 1 | K141: 0 | L141: 0 | M141: 0 | N141: 2 | O141: 0
A142: 130 | B142: 1 | C142: 0 | D142: 0 | E142: 2 | F142: 0 | G142: 0 | H142: 2 | I142: 1 | J142: 0 | K142: 2 | L142: 0 | M142: 0 | N142: =IF(SUMPRODUCT($B$6:$M$6,B142:M142)<$P$2,$P$2-SUMPRODUCT($B$6:$M$6,B142:M142),0) -> 2 | O142: 0
A143: 131 | B143: 1 | C143: 0 | D143: 0 | E143: 2 | F143: 0 | G143: 1 | H143: 1 | I143: 0 | J143: 1 | K143: 2 | L143: 0 | M143: 0 | N143: 2 | O143: 0
A144: 132 | B144: 1 | C144: 0 | D144: 0 | E144: 2 | F144: 1 | G144: 0 | H144: 0 | I144: 1 | J144: 1 | K144: 2 | L144: 0 | M144: 0 | N144: 2 | O144: 0
A145: 133 | B145: 1 | C145: 1 | D145: 2 | E145: 1 | F145: 0 | G145: 0 | H145: 0 | I145: 1 | J145: 1 | K145: 0 | L145: 0 | M145: 0 | N145: 2 | O145: 0
A146: 134 | B146: 1 | C146: 2 | D146: 0 | E146: 1 | F146: 0 | G146: 0 | H146: 2 | I146: 1 | J146: 0 | K146: 0 | L146: 0 | M146: 0 | N146: 2 | O146: 0
A147: 135 | B147: 1 | C147: 2 | D147: 0 | E147: 1 | F147: 0 | G147: 1 | H147: 1 | I147: 0 | J147: 1 | K147: 0 | L147: 0 | M147: 0 | N147: 2 | O147: 0
A148: 136 | B148: 1 | C148: 2 | D148: 0 | E148: 1 | F148: 1 | G148: 0 | H148: 0 | I148: 1 | J148: 1 | K148: 0 | L148: 0 | M148: 0 | N148: 2 | O148: 0
A149: 137 | B149: 2 | C149: 0 | D149: 1 | E149: 1 | F149: 0 | G149: 0 | H149: 1 | I149: 2 | J149: 0 | K149: 0 | L149: 0 | M149: 0 | N149: 2 | O149: 0
A150: 138 | B150: 2 | C150: 0 | D150: 1 | E150: 1 | F150: 0 | G150: 1 | H150: 0 | I150: 1 | J150: 1 | K150: 0 | L150: 0 | M150: 0 | N150: 2 | O150: 0
A151: 139 | B151: 0 | C151: 0 | D151: 0 | E151: 0 | F151: 0 | G151: 0 | H151: 5 | I151: 2 | J151: 2 | K151: 0 | L151: 0 | M151: 0 | N151: 3 | O151: 0
A152: 140 | B152: 0 | C152: 0 | D152: 0 | E152: 0 | F152: 0 | G152: 1 | H152: 4 | I152: 1 | J152: 3 | K152: 0 | L152: 0 | M152: 0 | N152: 3 | O152: 0
A153: 141 | B153: 0 | C153: 0 | D153: 0 | E153: 0 | F153: 0 | G153: 2 | H153: 3 | I153: 0 | J153: 4 | K153: 0 | L153: 0 | M153: 0 | N153: 3 | O153: 0
A154: 142 | B154: 0 | C154: 0 | D154: 0 | E154: 0 | F154: 0 | G154: 3 | H154: 3 | I154: 0 | J154: 0 | K154: 3 | L154: 0 | M154: 0 | N154: 3 | O154: 0
A155: 143 | B155: 0 | C155: 0 | D155: 0 | E155: 0 | F155: 1 | G155: 0 | H155: 3 | I155: 2 | J155: 3 | K155: 0 | L155: 0 | M155: 0 | N155: 3 | O155: 0
A156: 144 | B156: 0 | C156: 0 | D156: 0 | E156: 0 | F156: 1 | G156: 1 | H156: 2 | I156: 1 | J156: 4 | K156: 0 | L156: 0 | M156: 0 | N156: 3 | O156: 0
A157: 145 | B157: 0 | C157: 0 | D157: 0 | E157: 0 | F157: 1 | G157: 2 | H157: 1 | I157: 0 | J157: 5 | K157: 0 | L157: 0 | M157: 0 | N157: 3 | O157: 0
A158: 146 | B158: 0 | C158: 0 | D158: 0 | E158: 0 | F158: 1 | G158: 2 | H158: 2 | I158: 1 | J158: 0 | K158: 3 | L158: 0 | M158: 0 | N158: 3 | O158: 0
A159: 147 | B159: 0 | C159: 0 | D159: 0 | E159: 0 | F159: 1 | G159: 3 | H159: 1 | I159: 0 | J159: 1 | K159: 3 | L159: 0 | M159: 0 | N159: 3 | O159: 0
A160: 148 | B160: 0 | C160: 0 | D160: 0 | E160: 0 | F160: 2 | G160: 0 | H160: 1 | I160: 2 | J160: 4 | K160: 0 | L160: 0 | M160: 0 | N160: 3 | O160: 0
A161: 149 | B161: 0 | C161: 0 | D161: 0 | E161: 0 | F161: 2 | G161: 1 | H161: 0 | I161: 1 | J161: 5 | K161: 0 | L161: 0 | M161: 0 | N161: 3 | O161: 0
A162: 150 | B162: 0 | C162: 0 | D162: 0 | E162: 0 | F162: 2 | G162: 1 | H162: 1 | I162: 2 | J162: 0 | K162: 3 | L162: 0 | M162: 0 | N162: 3 | O162: 0
A163: 151 | B163: 0 | C163: 0 | D163: 0 | E163: 0 | F163: 2 | G163: 2 | H163: 0 | I163: 1 | J163: 1 | K163: 3 | L163: 0 | M163: 0 | N163: 3 | O163: 0
A164: 152 | B164: 0 | C164: 0 | D164: 0 | E164: 0 | F164: 3 | G164: 0 | H164: 0 | I164: 3 | J164: 0 | K164: 3 | L164: 0 | M164: 0 | N164: 3 | O164: 0
A165: 153 | B165: 0 | C165: 0 | D165: 0 | E165: 1 | F165: 0 | G165: 0 | H165: 0 | I165: 1 | J165: 1 | K165: 7 | L165: 0 | M165: 0 | N165: 3 | O165: 0
A166: 154 | B166: 0 | C166: 0 | D166: 1 | E166: 0 | F166: 0 | G166: 0 | H166: 0 | I166: 8 | J166: 0 | K166: 0 | L166: 0 | M166: 0 | N166: 3 | O166: 0
A167: 155 | B167: 0 | C167: 0 | D167: 1 | E167: 0 | F167: 0 | G167: 0 | H167: 3 | I167: 2 | J167: 1 | K167: 2 | L167: 0 | M167: 0 | N167: 3 | O167: 0
A168: 156 | B168: 0 | C168: 0 | D168: 1 | E168: 0 | F168: 0 | G168: 1 | H168: 2 | I168: 1 | J168: 2 | K168: 2 | L168: 0 | M168: 0 | N168: 3 | O168: 0
A169: 157 | B169: 0 | C169: 0 | D169: 1 | E169: 0 | F169: 0 | G169: 2 | H169: 1 | I169: 0 | J169: 3 | K169: 2 | L169: 0 | M169: 0 | N169: 3 | O169: 0
A170: 158 | B170: 0 | C170: 0 | D170: 1 | E170: 0 | F170: 1 | G170: 0 | H170: 1 | I170: 2 | J170: 2 | K170: 2 | L170: 0 | M170: 0 | N170: 3 | O170: 0
A171: 159 | B171: 0 | C171: 0 | D171: 1 | E171: 0 | F171: 1 | G171: 1 | H171: 0 | I171: 1 | J171: 3 | K171: 2 | L171: 0 | M171: 0 | N171: 3 | O171: 0
A172: 160 | B172: 0 | C172: 0 | D172: 2 | E172: 0 | F172: 0 | G172: 0 | H172: 0 | I172: 1 | J172: 5 | K172: 1 | L172: 0 | M172: 0 | N172: 3 | O172: 0
A173: 161 | B173: 0 | C173: 0 | D173: 2 | E173: 0 | F173: 0 | G173: 0 | H173: 1 | I173: 2 | J173: 0 | K173: 4 | L173: 0 | M173: 0 | N173: 3 | O173: 0
A174: 162 | B174: 0 | C174: 0 | D174: 2 | E174: 0 | F174: 0 | G174: 1 | H174: 0 | I174: 1 | J174: 1 | K174: 4 | L174: 0 | M174: 0 | N174: 3 | O174: 0
A175: 163 | B175: 0 | C175: 1 | D175: 0 | E175: 0 | F175: 0 | G175: 0 | H175: 2 | I175: 1 | J175: 4 | K175: 1 | L175: 0 | M175: 0 | N175: 3 | O175: 0
A176: 164 | B176: 0 | C176: 1 | D176: 0 | E176: 0 | F176: 0 | G176: 1 | H176: 1 | I176: 0 | J176: 5 | K176: 1 | L176: 0 | M176: 0 | N176: 3 | O176: 0
A177: 165 | B177: 0 | C177: 1 | D177: 0 | E177: 0 | F177: 0 | G177: 1 | H177: 2 | I177: 1 | J177: 0 | K177: 4 | L177: 0 | M177: 0 | N177: 3 | O177: 0
A178: 166 | B178: 0 | C178: 1 | D178: 0 | E178: 0 | F178: 0 | G178: 2 | H178: 1 | I178: 0 | J178: 1 | K178: 4 | L178: 0 | M178: 0 | N178: 3 | O178: 0
A179: 167 | B179: 0 | C179: 1 | D179: 0 | E179: 0 | F179: 1 | G179: 0 | H179: 0 | I179: 1 | J179: 5 | K179: 1 | L179: 0 | M179: 0 | N179: 3 | O179: 0
A180: 168 | B180: 0 | C180: 1 | D180: 0 | E180: 0 | F180: 1 | G180: 0 | H180: 1 | I180: 2 | J180: 0 | K180: 4 | L180: 0 | M180: 0 | N180: 3 | O180: 0
A181: 169 | B181: 0 | C181: 1 | D181: 0 | E181: 0 | F181: 1 | G181: 1 | H181: 0 | I181: 1 | J181: 1 | K181: 4 | L181: 0 | M181: 0 | N181: 3 | O181: 0
A182: 170 | B182: 0 | C182: 1 | D182: 1 | E182: 0 | F182: 0 | G182: 0 | H182: 0 | I182: 1 | J182: 3 | K182: 3 | L182: 0 | M182: 0 | N182: 3 | O182: 0
A183: 171 | B183: 0 | C183: 2 | D183: 0 | E183: 0 | F183: 0 | G183: 0 | H183: 0 | I183: 1 | J183: 1 | K183: 5 | L183: 0 | M183: 0 | N183: 3 | O183: 0
A184: 172 | B184: 1 | C184: 0 | D184: 0 | E184: 0 | F184: 0 | G184: 0 | H184: 0 | I184: 1 | J184: 7 | K184: 0 | L184: 0 | M184: 0 | N184: 3 | O184: 0
A185: 173 | B185: 1 | C185: 0 | D185: 0 | E185: 0 | F185: 0 | G185: 0 | H185: 1 | I185: 2 | J185: 2 | K185: 3 | L185: 0 | M185: 0 | N185: 3 | O185: 0
A186: 174 | B186: 1 | C186: 0 | D186: 0 | E186: 0 | F186: 0 | G186: 1 | H186: 0 | I186: 1 | J186: 3 | K186: 3 | L186: 0 | M186: 0 | N186: 3 | O186: 0
A187: 175 | B187: 1 | C187: 0 | D187: 0 | E187: 3 | F187: 2 | G187: 0 | H187: 1 | I187: 0 | J187: 0 | K187: 0 | L187: 0 | M187: 0 | N187: 3 | O187: 0
A188: 176 | B188: 0 | C188: 0 | D188: 0 | E188: 1 | F188: 3 | G188: 2 | H188: 1 | I188: 0 | J188: 0 | K188: 1 | L188: 0 | M188: 0 | N188: 4 | O188: 0
A189: 177 | B189: 0 | C189: 0 | D189: 0 | E189: 1 | F189: 4 | G189: 1 | H189: 0 | I189: 1 | J189: 0 | K189: 1 | L189: 0 | M189: 0 | N189: 4 | O189: 0
A190: 178 | B190: 0 | C190: 0 | D190: 0 | E190: 2 | F190: 1 | G190: 0 | H190: 1 | I190: 0 | J190: 0 | K190: 5 | L190: 0 | M190: 0 | N190: 4 | O190: 0
A191: 179 | B191: 0 | C191: 0 | D191: 1 | E191: 1 | F191: 0 | G191: 1 | H191: 5 | I191: 0 | J191: 0 | K191: 0 | L191: 0 | M191: 0 | N191: 4 | O191: 0
A192: 180 | B192: 0 | C192: 0 | D192: 1 | E192: 1 | F192: 1 | G192: 0 | H192: 4 | I192: 1 | J192: 0 | K192: 0 | L192: 0 | M192: 0 | N192: 4 | O192: 0
A193: 181 | B193: 0 | C193: 0 | D193: 1 | E193: 1 | F193: 1 | G193: 1 | H193: 3 | I193: 0 | J193: 1 | K193: 0 | L193: 0 | M193: 0 | N193: 4 | O193: 0
A194: 182 | B194: 0 | C194: 0 | D194: 1 | E194: 1 | F194: 2 | G194: 0 | H194: 2 | I194: 1 | J194: 1 | K194: 0 | L194: 0 | M194: 0 | N194: 4 | O194: 0
A195: 183 | B195: 0 | C195: 0 | D195: 1 | E195: 1 | F195: 2 | G195: 1 | H195: 1 | I195: 0 | J195: 2 | K195: 0 | L195: 0 | M195: 0 | N195: 4 | O195: 0
A196: 184 | B196: 0 | C196: 0 | D196: 1 | E196: 1 | F196: 3 | G196: 0 | H196: 0 | I196: 1 | J196: 2 | K196: 0 | L196: 0 | M196: 0 | N196: 4 | O196: 0
A197: 185 | B197: 0 | C197: 0 | D197: 2 | E197: 1 | F197: 1 | G197: 1 | H197: 1 | I197: 0 | J197: 0 | K197: 2 | L197: 0 | M197: 0 | N197: 4 | O197: 0
A198: 186 | B198: 0 | C198: 0 | D198: 2 | E198: 1 | F198: 2 | G198: 0 | H198: 0 | I198: 1 | J198: 0 | K198: 2 | L198: 0 | M198: 0 | N198: 4 | O198: 0
A199: 187 | B199: 0 | C199: 0 | D199: 3 | E199: 1 | F199: 0 | G199: 0 | H199: 1 | I199: 0 | J199: 2 | K199: 1 | L199: 0 | M199: 0 | N199: 4 | O199: 0
A200: 188 | B200: 0 | C200: 0 | D200: 6 | E200: 0 | F200: 0 | G200: 0 | H200: 0 | I200: 1 | J200: 0 | K200: 0 | L200: 0 | M200: 0 | N200: 4 | O200: 0
A201: 189 | B201: 0 | C201: 1 | D201: 0 | E201: 1 | F201: 2 | G201: 1 | H201: 1 | I201: 0 | J201: 0 | K201: 2 | L201: 0 | M201: 0 | N201: 4 | O201: 0
... 4299 more rows

Sheet МО сум изб <=10
A1: Оптимизация. Варюхин С.Е. 2015 гг | C1: Нарезка труб
B2: 1 | C2: 2 | D2: 3 | E2: 4 | F2: 5 | G2: 6 | H2: 7 | I2: 8 | J2: 9 | K2: 10 | L2: 11 | M2: 12 | N2: Номер детали | P2: 6000 | Q2: = L — длина труб, мм
B3: 28 | C3: 18 | D3: 31 | E3: 96 | F3: 12 | G3: 27 | H3: 63 | I3: 76 | J3: 6 | K3: 14 | L3: 0 | M3: 0 | N3: Количество деталей | O3: =SUM(B3:M3) -> 371
B4: 1135 | C4: 980 | D4: 890 | E4: 847 | F4: 800 | G4: 735 | H4: 700 | I4: 635 | J4: 600 | K4: 555 | L4: 6000 | M4: 6000 | N4: Размеры деталей, мм | P4: 427 | Q4: = Δ - максимальный размер обрезка
P5: 0 | Q5: = Δm - максимальный размер остатка
B6: =B4+$P$6 -> 1138 | C6: 983 | D6: 893 | E6: 850 | F6: 803 | G6: 738 | H6: 703 | I6: 638 | J6: 603 | K6: 558 | L6: 6003 | M6: 6003 | N6: Длина детали + ширина реза | P6: 3 | Q6: = d - ширина реза
A7: вариантов | B7: =SUMPRODUCT(B6:M6,B3:M3)/(P2+P6) -> 48.74396135 | C7: Теоретич. мин. число труб | M7: Суммарная длина обрезков, м = | N7: =SUMPRODUCT(N13:N10014,O13:O10014)/1000 -> 0.000
A8: 10,002 | B8: =SUM(O13:O10014) -> 50 | C8: Количество труб длины L | M8: Суммарная длина остатков, м = | N8: 0.000 | O8: =N7*1000/(P2*B8) -> 0.00% | P8: Процент потерь в обрезки
B10: =SUMPRODUCT(B13:B10014,$O$13:$O$10014) -> 28 | C10: =SUMPRODUCT(C13:C10014,$O$13:$O$10014) -> 18 | D10: 32 | E10: 96 | F10: 17 | G10: 27 | H10: 64 | I10: 77 | J10: 8 | K10: 14 | L10: 0 | M10: 0 | N10: Количество полученных деталей | O10: =SUM(B10:M10) -> 381 | P10: 1.000 | Q10: = макс. суммарная длина обрезков
B11: =B10-B3 -> 0 | C11: 0 | D11: 1 | E11: 0 | F11: 5 | G11: 0 | H11: 1 | I11: 1 | J11: 2 | K11: =K10-K3 -> 0 | L11: 0 | M11: =M10-M3 -> 0 | N11: Количество лишних деталей | O11: =SUM(B11:M11) -> 10 | P11: 10 | Q11: = максимальный избыток деталей
A12: Номер варианта разреза | B12: 1 | C12: 2 | D12: 3 | E12: 4 | F12: 5 | G12: 6 | H12: 7 | I12: 8 | J12: 9 | K12: 10 | L12: 11 | M12: 12 | N12: Обрезок или остаток | O12: Сколько труб так разрезать?
A13: 1 | B13: 0 | C13: 0 | D13: 0 | E13: 0 | F13: 0 | G13: 0 | H13: 0 | I13: 0 | J13: 0 | K13: 0 | L13: 0 | M13: 1 | N13: =IF(SUMPRODUCT($B$6:$M$6,B13:M13)<$P$2,$P$2-SUMPRODUCT($B$6:$M$6,B13:M13),0) -> 0 | O13: 0
A14: 2 | B14: 0 | C14: 0 | D14: 0 | E14: 0 | F14: 0 | G14: 0 | H14: 0 | I14: 0 | J14: 0 | K14: 0 | L14: 1 | M14: 0 | N14: =IF(SUMPRODUCT($B$6:$M$6,B14:M14)<$P$2,$P$2-SUMPRODUCT($B$6:$M$6,B14:M14),0) -> 0 | O14: 0
A15: 3 | B15: 0 | C15: 0 | D15: 1 | E15: 2 | F15: 0 | G15: 3 | H15: 0 | I15: 1 | J15: 0 | K15: 1 | L15: 0 | M15: 0 | N15: =IF(SUMPRODUCT($B$6:$M$6,B15:M15)<$P$2,$P$2-SUMPRODUCT($B$6:$M$6,B15:M15),0) -> 0 | O15: 2
A16: 4 | B16: 0 | C16: 0 | D16: 2 | E16: 2 | F16: 0 | G16: 0 | H16: 0 | I16: 3 | J16: 1 | K16: 0 | L16: 0 | M16: 0 | N16: 0 | O16: 0
A17: 5 | B17: 0 | C17: 1 | D17: 0 | E17: 2 | F17: 0 | G17: 0 | H17: 2 | I17: 3 | J17: 0 | K17: 0 | L17: 0 | M17: 0 | N17: 0 | O17: 0
A18: 6 | B18: 0 | C18: 1 | D18: 0 | E18: 2 | F18: 0 | G18: 1 | H18: 1 | I18: 2 | J18: 1 | K18: 0 | L18: 0 | M18: 0 | N18: 0 | O18: 0
A19: 7 | B19: 0 | C19: 1 | D19: 0 | E19: 2 | F19: 0 | G19: 2 | H19: 0 | I19: 1 | J19: 2 | K19: 0 | L19: 0 | M19: 0 | N19: 0 | O19: 0
A20: 8 | B20: 0 | C20: 1 | D20: 0 | E20: 2 | F20: 1 | G20: 0 | H20: 0 | I20: 3 | J20: 1 | K20: 0 | L20: 0 | M20: 0 | N20: 0 | O20: 0
A21: 9 | B21: 1 | C21: 0 | D21: 0 | E21: 1 | F21: 5 | G21: 0 | H21: 0 | I21: 0 | J21: 0 | K21: 0 | L21: 0 | M21: 0 | N21: 0 | O21: 0
A22: 10 | B22: 3 | C22: 0 | D22: 2 | E22: 0 | F22: 1 | G22: 0 | H22: 0 | I22: 0 | J22: 0 | K22: 0 | L22: 0 | M22: 0 | N22: 0 | O22: 2
A23: 11 | B23: 3 | C23: 1 | D23: 0 | E23: 0 | F23: 2 | G23: 0 | H23: 0 | I23: 0 | J23: 0 | K23: 0 | L23: 0 | M23: 0 | N23: 0 | O23: 3
A24: 12 | B24: 4 | C24: 0 | D24: 1 | E24: 0 | F24: 0 | G24: 0 | H24: 0 | I24: 0 | J24: 0 | K24: 1 | L24: 0 | M24: 0 | N24: 0 | O24: 0
A25: 13 | B25: 0 | C25: 0 | D25: 0 | E25: 0 | F25: 0 | G25: 0 | H25: 4 | I25: 5 | J25: 0 | K25: 0 | L25: 0 | M25: 0 | N25: 0 | O25: 9
A26: 14 | B26: 0 | C26: 0 | D26: 0 | E26: 0 | F26: 0 | G26: 1 | H26: 3 | I26: 4 | J26: 1 | K26: 0 | L26: 0 | M26: 0 | N26: 0 | O26: 0
A27: 15 | B27: 0 | C27: 0 | D27: 0 | E27: 0 | F27: 0 | G27: 2 | H27: 2 | I27: 3 | J27: 2 | K27: 0 | L27: 0 | M27: 0 | N27: 0 | O27: 0
A28: 16 | B28: 0 | C28: 0 | D28: 0 | E28: 0 | F28: 0 | G28: 3 | H28: 1 | I28: 2 | J28: 3 | K28: 0 | L28: 0 | M28: 0 | N28: 0 | O28: 0
A29: 17 | B29: 0 | C29: 0 | D29: 0 | E29: 0 | F29: 0 | G29: 4 | H29: 0 | I29: 1 | J29: 4 | K29: 0 | L29: 0 | M29: 0 | N29: 0 | O29: 1
A30: 18 | B30: 0 | C30: 0 | D30: 0 | E30: 0 | F30: 0 | G30: 5 | H30: 0 | I30: 1 | J30: 0 | K30: 3 | L30: 0 | M30: 0 | N30: 0 | O30: 0
A31: 19 | B31: 0 | C31: 0 | D31: 0 | E31: 0 | F31: 1 | G31: 0 | H31: 2 | I31: 5 | J31: 1 | K31: 0 | L31: 0 | M31: 0 | N31: 0 | O31: 0
A32: 20 | B32: 0 | C32: 0 | D32: 0 | E32: 0 | F32: 1 | G32: 1 | H32: 1 | I32: 4 | J32: 2 | K32: 0 | L32: 0 | M32: 0 | N32: 0 | O32: 0
A33: 21 | B33: 0 | C33: 0 | D33: 0 | E33: 0 | F33: 1 | G33: 2 | H33: 0 | I33: 3 | J33: 3 | K33: 0 | L33: 0 | M33: 0 | N33: 0 | O33: 0
A34: 22 | B34: 0 | C34: 0 | D34: 0 | E34: 0 | F34: 2 | G34: 0 | H34: 0 | I34: 5 | J34: 2 | K34: 0 | L34: 0 | M34: 0 | N34: 0 | O34: 0
A35: 23 | B35: 0 | C35: 0 | D35: 0 | E35: 0 | F35: 4 | G35: 0 | H35: 0 | I35: 0 | J35: 0 | K35: 5 | L35: 0 | M35: 0 | N35: 0 | O35: 0
A36: 24 | B36: 0 | C36: 0 | D36: 0 | E36: 4 | F36: 0 | G36: 0 | H36: 2 | I36: 1 | J36: 0 | K36: 1 | L36: 0 | M36: 0 | N36: 0 | O36: 12
A37: 25 | B37: 0 | C37: 0 | D37: 0 | E37: 4 | F37: 0 | G37: 1 | H37: 1 | I37: 0 | J37: 1 | K37: 1 | L37: 0 | M37: 0 | N37: 0 | O37: 0
A38: 26 | B38: 0 | C38: 0 | D38: 0 | E38: 4 | F38: 1 | G38: 0 | H38: 0 | I38: 1 | J38: 1 | K38: 1 | L38: 0 | M38: 0 | N38: 0 | O38: 0
A39: 27 | B39: 0 | C39: 0 | D39: 1 | E39: 0 | F39: 0 | G39: 1 | H39: 1 | I39: 4 | J39: 0 | K39: 2 | L39: 0 | M39: 0 | N39: 0 | O39: 0
A40: 28 | B40: 0 | C40: 0 | D40: 1 | E40: 0 | F40: 0 | G40: 2 | H40: 0 | I40: 3 | J40: 1 | K40: 2 | L40: 0 | M40: 0 | N40: 0 | O40: 0
A41: 29 | B41: 0 | C41: 0 | D41: 1 | E41: 0 | F41: 1 | G41: 0 | H41: 0 | I41: 5 | J41: 0 | K41: 2 | L41: 0 | M41: 0 | N41: 0 | O41: 0
A42: 30 | B42: 0 | C42: 1 | D42: 0 | E42: 0 | F42: 0 | G42: 0 | H42: 1 | I42: 4 | J42: 2 | K42: 1 | L42: 0 | M42: 0 | N42: 0 | O42: 0
A43: 31 | B43: 0 | C43: 1 | D43: 0 | E43: 0 | F43: 0 | G43: 1 | H43: 0 | I43: 3 | J43: 3 | K43: 1 | L43: 0 | M43: 0 | N43: 0 | O43: 0
A44: 32 | B44: 1 | C44: 0 | D44: 0 | E44: 0 | F44: 0 | G44: 0 | H44: 0 | I44: 5 | J44: 0 | K44: 3 | L44: 0 | M44: 0 | N44: 0 | O44: 0
A45: 33 | B45: 0 | C45: 0 | D45: 0 | E45: 2 | F45: 0 | G45: 0 | H45: 1 | I45: 2 | J45: 2 | K45: 2 | L45: 0 | M45: 0 | N45: 0 | O45: 0
A46: 34 | B46: 0 | C46: 0 | D46: 0 | E46: 2 | F46: 0 | G46: 1 | H46: 0 | I46: 1 | J46: 3 | K46: 2 | L46: 0 | M46: 0 | N46: 0 | O46: 0
A47: 35 | B47: 0 | C47: 0 | D47: 1 | E47: 1 | F47: 0 | G47: 3 | H47: 2 | I47: 1 | J47: 0 | K47: 0 | L47: 0 | M47: 0 | N47: 0 | O47: 0
A48: 36 | B48: 0 | C48: 0 | D48: 1 | E48: 1 | F48: 0 | G48: 4 | H48: 1 | I48: 0 | J48: 1 | K48: 0 | L48: 0 | M48: 0 | N48: 0 | O48: 0
A49: 37 | B49: 0 | C49: 0 | D49: 1 | E49: 1 | F49: 1 | G49: 2 | H49: 1 | I49: 2 | J49: 0 | K49: 0 | L49: 0 | M49: 0 | N49: 0 | O49: 0
A50: 38 | B50: 0 | C50: 0 | D50: 1 | E50: 1 | F50: 1 | G50: 3 | H50: 0 | I50: 1 | J50: 1 | K50: 0 | L50: 0 | M50: 0 | N50: 0 | O50: 0
A51: 39 | B51: 0 | C51: 0 | D51: 1 | E51: 1 | F51: 2 | G51: 1 | H51: 0 | I51: 3 | J51: 0 | K51: 0 | L51: 0 | M51: 0 | N51: 0 | O51: 0
A52: 40 | B52: 0 | C52: 0 | D52: 3 | E52: 1 | F52: 0 | G52: 0 | H52: 0 | I52: 3 | J52: 0 | K52: 1 | L52: 0 | M52: 0 | N52: 0 | O52: 0
A53: 41 | B53: 0 | C53: 1 | D53: 1 | E53: 1 | F53: 0 | G53: 1 | H53: 1 | I53: 2 | J53: 0 | K53: 1 | L53: 0 | M53: 0 | N53: 0 | O53: 0
A54: 42 | B54: 0 | C54: 1 | D54: 1 | E54: 1 | F54: 0 | G54: 2 | H54: 0 | I54: 1 | J54: 1 | K54: 1 | L54: 0 | M54: 0 | N54: 0 | O54: 0
A55: 43 | B55: 0 | C55: 1 | D55: 1 | E55: 1 | F55: 1 | G55: 0 | H55: 0 | I55: 3 | J55: 0 | K55: 1 | L55: 0 | M55: 0 | N55: 0 | O55: 0
A56: 44 | B56: 0 | C56: 2 | D56: 0 | E56: 1 | F56: 0 | G56: 0 | H56: 1 | I56: 2 | J56: 2 | K56: 0 | L56: 0 | M56: 0 | N56: 0 | O56: 0
A57: 45 | B57: 0 | C57: 2 | D57: 0 | E57: 1 | F57: 0 | G57: 1 | H57: 0 | I57: 1 | J57: 3 | K57: 0 | L57: 0 | M57: 0 | N57: 0 | O57: 0
A58: 46 | B58: 1 | C58: 0 | D58: 0 | E58: 1 | F58: 0 | G58: 2 | H58: 1 | I58: 2 | J58: 0 | K58: 1 | L58: 0 | M58: 0 | N58: 0 | O58: 0
A59: 47 | B59: 1 | C59: 0 | D59: 0 | E59: 1 | F59: 0 | G59: 3 | H59: 0 | I59: 1 | J59: 1 | K59: 1 | L59: 0 | M59: 0 | N59: 0 | O59: 0
A60: 48 | B60: 1 | C60: 0 | D60: 0 | E60: 1 | F60: 1 | G60: 1 | H60: 0 | I60: 3 | J60: 0 | K60: 1 | L60: 0 | M60: 0 | N60: 0 | O60: 0
A61: 49 | B61: 1 | C61: 0 | D61: 1 | E61: 1 | F61: 0 | G61: 0 | H61: 0 | I61: 3 | J61: 2 | K61: 0 | L61: 0 | M61: 0 | N61: 0 | O61: 0
A62: 50 | B62: 1 | C62: 1 | D62: 0 | E62: 1 | F62: 0 | G62: 0 | H62: 0 | I62: 3 | J62: 0 | K62: 2 | L62: 0 | M62: 0 | N62: 0 | O62: 0
A63: 51 | B63: 1 | C63: 3 | D63: 0 | E63: 0 | F63: 0 | G63: 0 | H63: 0 | I63: 3 | J63: 0 | K63: 0 | L63: 0 | M63: 0 | N63: 0 | O63: 0
A64: 52 | B64: 0 | C64: 0 | D64: 0 | E64: 0 | F64: 0 | G64: 0 | H64: 0 | I64: 3 | J64: 4 | K64: 3 | L64: 0 | M64: 0 | N64: 0 | O64: 0
A65: 53 | B65: 0 | C65: 0 | D65: 0 | E65: 0 | F65: 0 | G65: 1 | H65: 0 | I65: 3 | J65: 0 | K65: 6 | L65: 0 | M65: 0 | N65: 0 | O65: 0
A66: 54 | B66: 0 | C66: 0 | D66: 0 | E66: 3 | F66: 0 | G66: 0 | H66: 4 | I66: 1 | J66: 0 | K66: 0 | L66: 0 | M66: 0 | N66: 0 | O66: 0
A67: 55 | B67: 0 | C67: 0 | D67: 0 | E67: 3 | F67: 0 | G67: 1 | H67: 3 | I67: 0 | J67: 1 | K67: 0 | L67: 0 | M67: 0 | N67: 0 | O67: 0
A68: 56 | B68: 0 | C68: 0 | D68: 0 | E68: 3 | F68: 1 | G68: 0 | H68: 2 | I68: 1 | J68: 1 | K68: 0 | L68: 0 | M68: 0 | N68: 0 | O68: 0
A69: 57 | B69: 0 | C69: 0 | D69: 0 | E69: 3 | F69: 1 | G69: 1 | H69: 1 | I69: 0 | J69: 2 | K69: 0 | L69: 0 | M69: 0 | N69: 0 | O69: 2
A70: 58 | B70: 0 | C70: 0 | D70: 0 | E70: 3 | F70: 2 | G70: 0 | H70: 0 | I70: 1 | J70: 2 | K70: 0 | L70: 0 | M70: 0 | N70: 0 | O70: 0
A71: 59 | B71: 0 | C71: 0 | D71: 1 | E71: 3 | F71: 0 | G71: 1 | H71: 1 | I71: 0 | J71: 0 | K71: 2 | L71: 0 | M71: 0 | N71: 0 | O71: 0
A72: 60 | B72: 0 | C72: 0 | D72: 1 | E72: 3 | F72: 1 | G72: 0 | H72: 0 | I72: 1 | J72: 0 | K72: 2 | L72: 0 | M72: 0 | N72: 0 | O72: 0
A73: 61 | B73: 0 | C73: 1 | D73: 0 | E73: 3 | F73: 0 | G73: 0 | H73: 1 | I73: 0 | J73: 2 | K73: 1 | L73: 0 | M73: 0 | N73: 0 | O73: 0
A74: 62 | B74: 0 | C74: 1 | D74: 3 | E74: 2 | F74: 0 | G74: 0 | H74: 0 | I74: 1 | J74: 0 | K74: 0 | L74: 0 | M74: 0 | N74: 0 | O74: 0
A75: 63 | B75: 0 | C75: 2 | D75: 1 | E75: 2 | F75: 0 | G75: 1 | H75: 1 | I75: 0 | J75: 0 | K75: 0 | L75: 0 | M75: 0 | N75: 0 | O75: 2
A76: 64 | B76: 0 | C76: 2 | D76: 1 | E76: 2 | F76: 1 | G76: 0 | H76: 0 | I76: 1 | J76: 0 | K76: 0 | L76: 0 | M76: 0 | N76: 0 | O76: 4
A77: 65 | B77: 1 | C77: 0 | D77: 0 | E77: 3 | F77: 0 | G77: 0 | H77: 0 | I77: 1 | J77: 0 | K77: 3 | L77: 0 | M77: 0 | N77: 0 | O77: 0
A78: 66 | B78: 1 | C78: 0 | D78: 2 | E78: 2 | F78: 0 | G78: 1 | H78: 0 | I78: 1 | J78: 0 | K78: 0 | L78: 0 | M78: 0 | N78: =IF(SUMPRODUCT($B$6:$M$6,B78:M78)<$P$2,$P$2-SUMPRODUCT($B$6:$M$6,B78:M78),0) -> 0 | O78: 10
A79: 67 | B79: 1 | C79: 1 | D79: 0 | E79: 2 | F79: 0 | G79: 2 | H79: 1 | I79: 0 | J79: 0 | K79: 0 | L79: 0 | M79: 0 | N79: 0 | O79: 0
A80: 68 | B80: 1 | C80: 1 | D80: 0 | E80: 2 | F80: 1 | G80: 1 | H80: 0 | I80: 1 | J80: 0 | K80: 0 | L80: 0 | M80: 0 | N80: 0 | O80: 3
A81: 69 | B81: 1 | C81: 2 | D81: 0 | E81: 2 | F81: 0 | G81: 0 | H81: 0 | I81: 1 | J81: 0 | K81: 1 | L81: 0 | M81: 0 | N81: 0 | O81: 0
A82: 70 | B82: 0 | C82: 0 | D82: 0 | E82: 0 | F82: 2 | G82: 5 | H82: 1 | I82: 0 | J82: 0 | K82: 0 | L82: 0 | M82: 0 | N82: 1 | O82: 0
A83: 71 | B83: 0 | C83: 0 | D83: 0 | E83: 0 | F83: 3 | G83: 4 | H83: 0 | I83: 1 | J83: 0 | K83: 0 | L83: 0 | M83: 0 | N83: 1 | O83: 0
A84: 72 | B84: 0 | C84: 0 | D84: 0 | E84: 1 | F84: 0 | G84: 0 | H84: 3 | I84: 2 | J84: 2 | K84: 1 | L84: 0 | M84: 0 | N84: 1 | O84: 0
A85: 73 | B85: 0 | C85: 0 | D85: 0 | E85: 1 | F85: 0 | G85: 1 | H85: 2 | I85: 1 | J85: 3 | K85: 1 | L85: 0 | M85: 0 | N85: 1 | O85: 0
A86: 74 | B86: 0 | C86: 0 | D86: 0 | E86: 1 | F86: 0 | G86: 2 | H86: 1 | I86: 0 | J86: 4 | K86: 1 | L86: 0 | M86: 0 | N86: 1 | O86: 0
A87: 75 | B87: 0 | C87: 0 | D87: 0 | E87: 1 | F87: 0 | G87: 3 | H87: 1 | I87: 0 | J87: 0 | K87: 4 | L87: 0 | M87: 0 | N87: 1 | O87: 0
A88: 76 | B88: 0 | C88: 0 | D88: 0 | E88: 1 | F88: 1 | G88: 0 | H88: 1 | I88: 2 | J88: 3 | K88: 1 | L88: 0 | M88: 0 | N88: 1 | O88: 0
A89: 77 | B89: 0 | C89: 0 | D89: 0 | E89: 1 | F89: 1 | G89: 1 | H89: 0 | I89: 1 | J89: 4 | K89: 1 | L89: 0 | M89: 0 | N89: 1 | O89: 0
A90: 78 | B90: 0 | C90: 0 | D90: 0 | E90: 1 | F90: 1 | G90: 2 | H90: 0 | I90: 1 | J90: 0 | K90: 4 | L90: 0 | M90: 0 | N90: 1 | O90: 0
A91: 79 | B91: 0 | C91: 0 | D91: 1 | E91: 1 | F91: 0 | G91: 0 | H91: 0 | I91: 1 | J91: 6 | K91: 0 | L91: 0 | M91: 0 | N91: 1 | O91: 0
A92: 80 | B92: 0 | C92: 0 | D92: 1 | E92: 1 | F92: 0 | G92: 0 | H92: 1 | I92: 2 | J92: 1 | K92: 3 | L92: 0 | M92: 0 | N92: 1 | O92: 0
A93: 81 | B93: 0 | C93: 0 | D93: 1 | E93: 1 | F93: 0 | G93: 1 | H93: 0 | I93: 1 | J93: 2 | K93: 3 | L93: 0 | M93: 0 | N93: 1 | O93: 0
A94: 82 | B94: 0 | C94: 0 | D94: 2 | E94: 0 | F94: 0 | G94: 4 | H94: 1 | I94: 0 | J94: 0 | K94: 1 | L94: 0 | M94: 0 | N94: 1 | O94: 0
A95: 83 | B95: 0 | C95: 0 | D95: 2 | E95: 0 | F95: 1 | G95: 3 | H95: 0 | I95: 1 | J95: 0 | K95: 1 | L95: 0 | M95: 0 | N95: 1 | O95: 0
A96: 84 | B96: 0 | C96: 0 | D96: 3 | E96: 0 | F96: 0 | G96: 0 | H96: 2 | I96: 3 | J96: 0 | K96: 0 | L96: 0 | M96: 0 | N96: 1 | O96: 0
A97: 85 | B97: 0 | C97: 0 | D97: 3 | E97: 0 | F97: 0 | G97: 1 | H97: 1 | I97: 2 | J97: 1 | K97: 0 | L97: 0 | M97: 0 | N97: 1 | O97: 0
A98: 86 | B98: 0 | C98: 0 | D98: 3 | E98: 0 | F98: 0 | G98: 2 | H98: 0 | I98: 1 | J98: 2 | K98: 0 | L98: 0 | M98: 0 | N98: 1 | O98: 0
A99: 87 | B99: 0 | C99: 0 | D99: 3 | E99: 0 | F99: 1 | G99: 0 | H99: 0 | I99: 3 | J99: 1 | K99: 0 | L99: 0 | M99: 0 | N99: 1 | O99: 0
A100: 88 | B100: 0 | C100: 1 | D100: 0 | E100: 0 | F100: 1 | G100: 4 | H100: 1 | I100: 0 | J100: 0 | K100: 1 | L100: 0 | M100: 0 | N100: 1 | O100: 0
A101: 89 | B101: 0 | C101: 1 | D101: 0 | E101: 0 | F101: 2 | G101: 3 | H101: 0 | I101: 1 | J101: 0 | K101: 1 | L101: 0 | M101: 0 | N101: 1 | O101: 0
A102: 90 | B102: 0 | C102: 1 | D102: 0 | E102: 1 | F102: 0 | G102: 0 | H102: 0 | I102: 1 | J102: 4 | K102: 2 | L102: 0 | M102: 0 | N102: 1 | O102: 0
A103: 91 | B103: 0 | C103: 1 | D103: 0 | E103: 1 | F103: 0 | G103: 1 | H103: 0 | I103: 1 | J103: 0 | K103: 5 | L103: 0 | M103: 0 | N103: 1 | O103: 0
A104: 92 | B104: 0 | C104: 1 | D104: 1 | E104: 0 | F104: 0 | G104: 1 | H104: 3 | I104: 2 | J104: 0 | K104: 0 | L104: 0 | M104: 0 | N104: 1 | O104: 0
A105: 93 | B105: 0 | C105: 1 | D105: 1 | E105: 0 | F105: 0 | G105: 2 | H105: 2 | I105: 1 | J105: 1 | K105: 0 | L105: 0 | M105: 0 | N105: 1 | O105: 0
A106: 94 | B106: 0 | C106: 1 | D106: 1 | E106: 0 | F106: 0 | G106: 3 | H106: 1 | I106: 0 | J106: 2 | K106: 0 | L106: 0 | M106: 0 | N106: 1 | O106: 0
A107: 95 | B107: 0 | C107: 1 | D107: 1 | E107: 0 | F107: 1 | G107: 0 | H107: 2 | I107: 3 | J107: 0 | K107: 0 | L107: 0 | M107: 0 | N107: 1 | O107: 0
A108: 96 | B108: 0 | C108: 1 | D108: 1 | E108: 0 | F108: 1 | G108: 1 | H108: 1 | I108: 2 | J108: 1 | K108: 0 | L108: 0 | M108: 0 | N108: 1 | O108: 0
A109: 97 | B109: 0 | C109: 1 | D109: 1 | E109: 0 | F109: 1 | G109: 2 | H109: 0 | I109: 1 | J109: 2 | K109: 0 | L109: 0 | M109: 0 | N109: 1 | O109: 0
A110: 98 | B110: 0 | C110: 1 | D110: 1 | E110: 0 | F110: 2 | G110: 0 | H110: 0 | I110: 3 | J110: 1 | K110: 0 | L110: 0 | M110: 0 | N110: 1 | O110: 0
A111: 99 | B111: 0 | C111: 1 | D111: 2 | E111: 0 | F111: 0 | G111: 2 | H111: 0 | I111: 1 | J111: 0 | K111: 2 | L111: 0 | M111: 0 | N111: 1 | O111: 0
A112: 100 | B112: 0 | C112: 2 | D112: 0 | E112: 0 | F112: 0 | G112: 3 | H112: 1 | I112: 0 | J112: 0 | K112: 2 | L112: 0 | M112: 0 | N112: 1 | O112: 0
A113: 101 | B113: 0 | C113: 2 | D113: 0 | E113: 0 | F113: 1 | G113: 2 | H113: 0 | I113: 1 | J113: 0 | K113: 2 | L113: 0 | M113: 0 | N113: 1 | O113: 0
A114: 102 | B114: 0 | C114: 2 | D114: 1 | E114: 0 | F114: 0 | G114: 0 | H114: 1 | I114: 2 | J114: 1 | K114: 1 | L114: 0 | M114: 0 | N114: 1 | O114: 0
A115: 103 | B115: 0 | C115: 2 | D115: 1 | E115: 0 | F115: 0 | G115: 1 | H115: 0 | I115: 1 | J115: 2 | K115: 1 | L115: 0 | M115: 0 | N115: 1 | O115: 0
A116: 104 | B116: 0 | C116: 3 | D116: 0 | E116: 0 | F116: 0 | G116: 0 | H116: 0 | I116: 1 | J116: 4 | K116: 0 | L116: 0 | M116: 0 | N116: 1 | O116: 0
A117: 105 | B117: 0 | C117: 3 | D117: 0 | E117: 0 | F117: 0 | G117: 1 | H117: 0 | I117: 1 | J117: 0 | K117: 3 | L117: 0 | M117: 0 | N117: 1 | O117: 0
A118: 106 | B118: 1 | C118: 0 | D118: 0 | E118: 0 | F118: 0 | G118: 2 | H118: 3 | I118: 2 | J118: 0 | K118: 0 | L118: 0 | M118: 0 | N118: 1 | O118: 0
A119: 107 | B119: 1 | C119: 0 | D119: 0 | E119: 0 | F119: 0 | G119: 3 | H119: 2 | I119: 1 | J119: 1 | K119: 0 | L119: 0 | M119: 0 | N119: 1 | O119: 0
A120: 108 | B120: 1 | C120: 0 | D120: 0 | E120: 0 | F120: 0 | G120: 4 | H120: 1 | I120: 0 | J120: 2 | K120: 0 | L120: 0 | M120: 0 | N120: 1 | O120: 0
A121: 109 | B121: 1 | C121: 0 | D121: 0 | E121: 0 | F121: 1 | G121: 1 | H121: 2 | I121: 3 | J121: 0 | K121: 0 | L121: 0 | M121: 0 | N121: 1 | O121: 0
A122: 110 | B122: 1 | C122: 0 | D122: 0 | E122: 0 | F122: 1 | G122: 2 | H122: 1 | I122: 2 | J122: 1 | K122: 0 | L122: 0 | M122: 0 | N122: 1 | O122: 0
A123: 111 | B123: 1 | C123: 0 | D123: 0 | E123: 0 | F123: 1 | G123: 3 | H123: 0 | I123: 1 | J123: 2 | K123: 0 | L123: 0 | M123: 0 | N123: 1 | O123: 0
A124: 112 | B124: 1 | C124: 0 | D124: 0 | E124: 0 | F124: 2 | G124: 0 | H124: 1 | I124: 4 | J124: 0 | K124: 0 | L124: 0 | M124: 0 | N124: 1 | O124: 0
A125: 113 | B125: 1 | C125: 0 | D125: 0 | E125: 0 | F125: 2 | G125: 1 | H125: 0 | I125: 3 | J125: 1 | K125: 0 | L125: 0 | M125: 0 | N125: 1 | O125: 0
A126: 114 | B126: 1 | C126: 0 | D126: 1 | E126: 0 | F126: 0 | G126: 3 | H126: 0 | I126: 1 | J126: 0 | K126: 2 | L126: 0 | M126: 0 | N126: 1 | O126: 0
A127: 115 | B127: 1 | C127: 0 | D127: 2 | E127: 0 | F127: 0 | G127: 0 | H127: 0 | I127: 3 | J127: 1 | K127: 1 | L127: 0 | M127: 0 | N127: 1 | O127: 0
A128: 116 | B128: 1 | C128: 1 | D128: 0 | E128: 0 | F128: 0 | G128: 0 | H128: 2 | I128: 3 | J128: 0 | K128: 1 | L128: 0 | M128: 0 | N128: 1 | O128: 0
A129: 117 | B129: 1 | C129: 1 | D129: 0 | E129: 0 | F129: 0 | G129: 1 | H129: 1 | I129: 2 | J129: 1 | K129: 1 | L129: 0 | M129: 0 | N129: 1 | O129: 0
A130: 118 | B130: 1 | C130: 1 | D130: 0 | E130: 0 | F130: 0 | G130: 2 | H130: 0 | I130: 1 | J130: 2 | K130: 1 | L130: 0 | M130: 0 | N130: 1 | O130: 0
A131: 119 | B131: 1 | C131: 1 | D131: 0 | E131: 0 | F131: 1 | G131: 0 | H131: 0 | I131: 3 | J131: 1 | K131: 1 | L131: 0 | M131: 0 | N131: 1 | O131: 0
A132: 120 | B132: 2 | C132: 0 | D132: 0 | E132: 0 | F132: 0 | G132: 0 | H132: 0 | I132: 3 | J132: 3 | K132: 0 | L132: 0 | M132: 0 | N132: 1 | O132: 0
A133: 121 | B133: 0 | C133: 0 | D133: 1 | E133: 2 | F133: 0 | G133: 1 | H133: 3 | I133: 0 | J133: 0 | K133: 1 | L133: 0 | M133: 0 | N133: 2 | O133: 0
A134: 122 | B134: 0 | C134: 0 | D134: 1 | E134: 2 | F134: 1 | G134: 0 | H134: 2 | I134: 1 | J134: 0 | K134: 1 | L134: 0 | M134: 0 | N134: 2 | O134: 0
A135: 123 | B135: 0 | C135: 0 | D135: 1 | E135: 2 | F135: 1 | G135: 1 | H135: 1 | I135: 0 | J135: 1 | K135: 1 | L135: 0 | M135: 0 | N135: 2 | O135: 0
A136: 124 | B136: 0 | C136: 0 | D136: 1 | E136: 2 | F136: 2 | G136: 0 | H136: 0 | I136: 1 | J136: 1 | K136: 1 | L136: 0 | M136: 0 | N136: 2 | O136: 0
A137: 125 | B137: 0 | C137: 0 | D137: 2 | E137: 2 | F137: 0 | G137: 0 | H137: 1 | I137: 0 | J137: 3 | K137: 0 | L137: 0 | M137: 0 | N137: 2 | O137: 0
A138: 126 | B138: 0 | C138: 1 | D138: 0 | E138: 2 | F138: 0 | G138: 0 | H138: 3 | I138: 0 | J138: 2 | K138: 0 | L138: 0 | M138: 0 | N138: 2 | O138: 0
A139: 127 | B139: 0 | C139: 1 | D139: 0 | E139: 2 | F139: 1 | G139: 0 | H139: 1 | I139: 0 | J139: 3 | K139: 0 | L139: 0 | M139: 0 | N139: 2 | O139: 0
A140: 128 | B140: 0 | C140: 1 | D140: 1 | E140: 2 | F140: 0 | G140: 0 | H140: 1 | I140: 0 | J140: 1 | K140: 2 | L140: 0 | M140: 0 | N140: 2 | O140: 0
A141: 129 | B141: 0 | C141: 3 | D141: 1 | E141: 1 | F141: 0 | G141: 0 | H141: 1 | I141: 0 | J141: 1 | K141: 0 | L141: 0 | M141: 0 | N141: 2 | O141: 0
A142: 130 | B142: 1 | C142: 0 | D142: 0 | E142: 2 | F142: 0 | G142: 0 | H142: 2 | I142: 1 | J142: 0 | K142: 2 | L142: 0 | M142: 0 | N142: =IF(SUMPRODUCT($B$6:$M$6,B142:M142)<$P$2,$P$2-SUMPRODUCT($B$6:$M$6,B142:M142),0) -> 2 | O142: 0
A143: 131 | B143: 1 | C143: 0 | D143: 0 | E143: 2 | F143: 0 | G143: 1 | H143: 1 | I143: 0 | J143: 1 | K143: 2 | L143: 0 | M143: 0 | N143: 2 | O143: 0
A144: 132 | B144: 1 | C144: 0 | D144: 0 | E144: 2 | F144: 1 | G144: 0 | H144: 0 | I144: 1 | J144: 1 | K144: 2 | L144: 0 | M144: 0 | N144: 2 | O144: 0
A145: 133 | B145: 1 | C145: 1 | D145: 2 | E145: 1 | F145: 0 | G145: 0 | H145: 0 | I145: 1 | J145: 1 | K145: 0 | L145: 0 | M145: 0 | N145: 2 | O145: 0
A146: 134 | B146: 1 | C146: 2 | D146: 0 | E146: 1 | F146: 0 | G146: 0 | H146: 2 | I146: 1 | J146: 0 | K146: 0 | L146: 0 | M146: 0 | N146: 2 | O146: 0
A147: 135 | B147: 1 | C147: 2 | D147: 0 | E147: 1 | F147: 0 | G147: 1 | H147: 1 | I147: 0 | J147: 1 | K147: 0 | L147: 0 | M147: 0 | N147: 2 | O147: 0
A148: 136 | B148: 1 | C148: 2 | D148: 0 | E148: 1 | F148: 1 | G148: 0 | H148: 0 | I148: 1 | J148: 1 | K148: 0 | L148: 0 | M148: 0 | N148: 2 | O148: 0
A149: 137 | B149: 2 | C149: 0 | D149: 1 | E149: 1 | F149: 0 | G149: 0 | H149: 1 | I149: 2 | J149: 0 | K149: 0 | L149: 0 | M149: 0 | N149: 2 | O149: 0
A150: 138 | B150: 2 | C150: 0 | D150: 1 | E150: 1 | F150: 0 | G150: 1 | H150: 0 | I150: 1 | J150: 1 | K150: 0 | L150: 0 | M150: 0 | N150: 2 | O150: 0
A151: 139 | B151: 0 | C151: 0 | D151: 0 | E151: 0 | F151: 0 | G151: 0 | H151: 5 | I151: 2 | J151: 2 | K151: 0 | L151: 0 | M151: 0 | N151: 3 | O151: 0
A152: 140 | B152: 0 | C152: 0 | D152: 0 | E152: 0 | F152: 0 | G152: 1 | H152: 4 | I152: 1 | J152: 3 | K152: 0 | L152: 0 | M152: 0 | N152: 3 | O152: 0
A153: 141 | B153: 0 | C153: 0 | D153: 0 | E153: 0 | F153: 0 | G153: 2 | H153: 3 | I153: 0 | J153: 4 | K153: 0 | L153: 0 | M153: 0 | N153: 3 | O153: 0
A154: 142 | B154: 0 | C154: 0 | D154: 0 | E154: 0 | F154: 0 | G154: 3 | H154: 3 | I154: 0 | J154: 0 | K154: 3 | L154: 0 | M154: 0 | N154: 3 | O154: 0
A155: 143 | B155: 0 | C155: 0 | D155: 0 | E155: 0 | F155: 1 | G155: 0 | H155: 3 | I155: 2 | J155: 3 | K155: 0 | L155: 0 | M155: 0 | N155: 3 | O155: 0
A156: 144 | B156: 0 | C156: 0 | D156: 0 | E156: 0 | F156: 1 | G156: 1 | H156: 2 | I156: 1 | J156: 4 | K156: 0 | L156: 0 | M156: 0 | N156: 3 | O156: 0
A157: 145 | B157: 0 | C157: 0 | D157: 0 | E157: 0 | F157: 1 | G157: 2 | H157: 1 | I157: 0 | J157: 5 | K157: 0 | L157: 0 | M157: 0 | N157: 3 | O157: 0
A158: 146 | B158: 0 | C158: 0 | D158: 0 | E158: 0 | F158: 1 | G158: 2 | H158: 2 | I158: 1 | J158: 0 | K158: 3 | L158: 0 | M158: 0 | N158: 3 | O158: 0
A159: 147 | B159: 0 | C159: 0 | D159: 0 | E159: 0 | F159: 1 | G159: 3 | H159: 1 | I159: 0 | J159: 1 | K159: 3 | L159: 0 | M159: 0 | N159: 3 | O159: 0
A160: 148 | B160: 0 | C160: 0 | D160: 0 | E160: 0 | F160: 2 | G160: 0 | H160: 1 | I160: 2 | J160: 4 | K160: 0 | L160: 0 | M160: 0 | N160: 3 | O160: 0
A161: 149 | B161: 0 | C161: 0 | D161: 0 | E161: 0 | F161: 2 | G161: 1 | H161: 0 | I161: 1 | J161: 5 | K161: 0 | L161: 0 | M161: 0 | N161: 3 | O161: 0
A162: 150 | B162: 0 | C162: 0 | D162: 0 | E162: 0 | F162: 2 | G162: 1 | H162: 1 | I162: 2 | J162: 0 | K162: 3 | L162: 0 | M162: 0 | N162: 3 | O162: 0
A163: 151 | B163: 0 | C163: 0 | D163: 0 | E163: 0 | F163: 2 | G163: 2 | H163: 0 | I163: 1 | J163: 1 | K163: 3 | L163: 0 | M163: 0 | N163: 3 | O163: 0
A164: 152 | B164: 0 | C164: 0 | D164: 0 | E164: 0 | F164: 3 | G164: 0 | H164: 0 | I164: 3 | J164: 0 | K164: 3 | L164: 0 | M164: 0 | N164: 3 | O164: 0
A165: 153 | B165: 0 | C165: 0 | D165: 0 | E165: 1 | F165: 0 | G165: 0 | H165: 0 | I165: 1 | J165: 1 | K165: 7 | L165: 0 | M165: 0 | N165: 3 | O165: 0
A166: 154 | B166: 0 | C166: 0 | D166: 1 | E166: 0 | F166: 0 | G166: 0 | H166: 0 | I166: 8 | J166: 0 | K166: 0 | L166: 0 | M166: 0 | N166: 3 | O166: 0
A167: 155 | B167: 0 | C167: 0 | D167: 1 | E167: 0 | F167: 0 | G167: 0 | H167: 3 | I167: 2 | J167: 1 | K167: 2 | L167: 0 | M167: 0 | N167: 3 | O167: 0
A168: 156 | B168: 0 | C168: 0 | D168: 1 | E168: 0 | F168: 0 | G168: 1 | H168: 2 | I168: 1 | J168: 2 | K168: 2 | L168: 0 | M168: 0 | N168: 3 | O168: 0
A169: 157 | B169: 0 | C169: 0 | D169: 1 | E169: 0 | F169: 0 | G169: 2 | H169: 1 | I169: 0 | J169: 3 | K169: 2 | L169: 0 | M169: 0 | N169: 3 | O169: 0
A170: 158 | B170: 0 | C170: 0 | D170: 1 | E170: 0 | F170: 1 | G170: 0 | H170: 1 | I170: 2 | J170: 2 | K170: 2 | L170: 0 | M170: 0 | N170: 3 | O170: 0
A171: 159 | B171: 0 | C171: 0 | D171: 1 | E171: 0 | F171: 1 | G171: 1 | H171: 0 | I171: 1 | J171: 3 | K171: 2 | L171: 0 | M171: 0 | N171: 3 | O171: 0
A172: 160 | B172: 0 | C172: 0 | D172: 2 | E172: 0 | F172: 0 | G172: 0 | H172: 0 | I172: 1 | J172: 5 | K172: 1 | L172: 0 | M172: 0 | N172: 3 | O172: 0
A173: 161 | B173: 0 | C173: 0 | D173: 2 | E173: 0 | F173: 0 | G173: 0 | H173: 1 | I173: 2 | J173: 0 | K173: 4 | L173: 0 | M173: 0 | N173: 3 | O173: 0
A174: 162 | B174: 0 | C174: 0 | D174: 2 | E174: 0 | F174: 0 | G174: 1 | H174: 0 | I174: 1 | J174: 1 | K174: 4 | L174: 0 | M174: 0 | N174: 3 | O174: 0
A175: 163 | B175: 0 | C175: 1 | D175: 0 | E175: 0 | F175: 0 | G175: 0 | H175: 2 | I175: 1 | J175: 4 | K175: 1 | L175: 0 | M175: 0 | N175: 3 | O175: 0
A176: 164 | B176: 0 | C176: 1 | D176: 0 | E176: 0 | F176: 0 | G176: 1 | H176: 1 | I176: 0 | J176: 5 | K176: 1 | L176: 0 | M176: 0 | N176: 3 | O176: 0
A177: 165 | B177: 0 | C177: 1 | D177: 0 | E177: 0 | F177: 0 | G177: 1 | H177: 2 | I177: 1 | J177: 0 | K177: 4 | L177: 0 | M177: 0 | N177: 3 | O177: 0
A178: 166 | B178: 0 | C178: 1 | D178: 0 | E178: 0 | F178: 0 | G178: 2 | H178: 1 | I178: 0 | J178: 1 | K178: 4 | L178: 0 | M178: 0 | N178: 3 | O178: 0
A179: 167 | B179: 0 | C179: 1 | D179: 0 | E179: 0 | F179: 1 | G179: 0 | H179: 0 | I179: 1 | J179: 5 | K179: 1 | L179: 0 | M179: 0 | N179: 3 | O179: 0
A180: 168 | B180: 0 | C180: 1 | D180: 0 | E180: 0 | F180: 1 | G180: 0 | H180: 1 | I180: 2 | J180: 0 | K180: 4 | L180: 0 | M180: 0 | N180: 3 | O180: 0
A181: 169 | B181: 0 | C181: 1 | D181: 0 | E181: 0 | F181: 1 | G181: 1 | H181: 0 | I181: 1 | J181: 1 | K181: 4 | L181: 0 | M181: 0 | N181: 3 | O181: 0
A182: 170 | B182: 0 | C182: 1 | D182: 1 | E182: 0 | F182: 0 | G182: 0 | H182: 0 | I182: 1 | J182: 3 | K182: 3 | L182: 0 | M182: 0 | N182: 3 | O182: 0
A183: 171 | B183: 0 | C183: 2 | D183: 0 | E183: 0 | F183: 0 | G183: 0 | H183: 0 | I183: 1 | J183: 1 | K183: 5 | L183: 0 | M183: 0 | N183: 3 | O183: 0
A184: 172 | B184: 1 | C184: 0 | D184: 0 | E184: 0 | F184: 0 | G184: 0 | H184: 0 | I184: 1 | J184: 7 | K184: 0 | L184: 0 | M184: 0 | N184: 3 | O184: 0
A185: 173 | B185: 1 | C185: 0 | D185: 0 | E185: 0 | F185: 0 | G185: 0 | H185: 1 | I185: 2 | J185: 2 | K185: 3 | L185: 0 | M185: 0 | N185: 3 | O185: 0
A186: 174 | B186: 1 | C186: 0 | D186: 0 | E186: 0 | F186: 0 | G186: 1 | H186: 0 | I186: 1 | J186: 3 | K186: 3 | L186: 0 | M186: 0 | N186: 3 | O186: 0
A187: 175 | B187: 1 | C187: 0 | D187: 0 | E187: 3 | F187: 2 | G187: 0 | H187: 1 | I187: 0 | J187: 0 | K187: 0 | L187: 0 | M187: 0 | N187: 3 | O187: 0
A188: 176 | B188: 0 | C188: 0 | D188: 0 | E188: 1 | F188: 3 | G188: 2 | H188: 1 | I188: 0 | J188: 0 | K188: 1 | L188: 0 | M188: 0 | N188: 4 | O188: 0
A189: 177 | B189: 0 | C189: 0 | D189: 0 | E189: 1 | F189: 4 | G189: 1 | H189: 0 | I189: 1 | J189: 0 | K189: 1 | L189: 0 | M189: 0 | N189: 4 | O189: 0
A190: 178 | B190: 0 | C190: 0 | D190: 0 | E190: 2 | F190: 1 | G190: 0 | H190: 1 | I190: 0 | J190: 0 | K190: 5 | L190: 0 | M190: 0 | N190: 4 | O190: 0
A191: 179 | B191: 0 | C191: 0 | D191: 1 | E191: 1 | F191: 0 | G191: 1 | H191: 5 | I191: 0 | J191: 0 | K191: 0 | L191: 0 | M191: 0 | N191: 4 | O191: 0
A192: 180 | B192: 0 | C192: 0 | D192: 1 | E192: 1 | F192: 1 | G192: 0 | H192: 4 | I192: 1 | J192: 0 | K192: 0 | L192: 0 | M192: 0 | N192: 4 | O192: 0
A193: 181 | B193: 0 | C193: 0 | D193: 1 | E193: 1 | F193: 1 | G193: 1 | H193: 3 | I193: 0 | J193: 1 | K193: 0 | L193: 0 | M193: 0 | N193: 4 | O193: 0
A194: 182 | B194: 0 | C194: 0 | D194: 1 | E194: 1 | F194: 2 | G194: 0 | H194: 2 | I194: 1 | J194: 1 | K194: 0 | L194: 0 | M194: 0 | N194: 4 | O194: 0
A195: 183 | B195: 0 | C195: 0 | D195: 1 | E195: 1 | F195: 2 | G195: 1 | H195: 1 | I195: 0 | J195: 2 | K195: 0 | L195: 0 | M195: 0 | N195: 4 | O195: 0
A196: 184 | B196: 0 | C196: 0 | D196: 1 | E196: 1 | F196: 3 | G196: 0 | H196: 0 | I196: 1 | J196: 2 | K196: 0 | L196: 0 | M196: 0 | N196: 4 | O196: 0
A197: 185 | B197: 0 | C197: 0 | D197: 2 | E197: 1 | F197: 1 | G197: 1 | H197: 1 | I197: 0 | J197: 0 | K197: 2 | L197: 0 | M197: 0 | N197: 4 | O197: 0
A198: 186 | B198: 0 | C198: 0 | D198: 2 | E198: 1 | F198: 2 | G198: 0 | H198: 0 | I198: 1 | J198: 0 | K198: 2 | L198: 0 | M198: 0 | N198: 4 | O198: 0
A199: 187 | B199: 0 | C199: 0 | D199: 3 | E199: 1 | F199: 0 | G199: 0 | H199: 1 | I199: 0 | J199: 2 | K199: 1 | L199: 0 | M199: 0 | N199: 4 | O199: 0
A200: 188 | B200: 0 | C200: 0 | D200: 6 | E200: 0 | F200: 0 | G200: 0 | H200: 0 | I200: 1 | J200: 0 | K200: 0 | L200: 0 | M200: 0 | N200: 4 | O200: 0
A201: 189 | B201: 0 | C201: 1 | D201: 0 | E201: 1 | F201: 2 | G201: 1 | H201: 1 | I201: 0 | J201: 0 | K201: 2 | L201: 0 | M201: 0 | N201: 4 | O201: 0
... 4299 more rows

Sheet МО сум изб <=8
A1: Оптимизация. Варюхин С.Е. 2015 гг | C1: Нарезка труб
B2: 1 | C2: 2 | D2: 3 | E2: 4 | F2: 5 | G2: 6 | H2: 7 | I2: 8 | J2: 9 | K2: 10 | L2: 11 | M2: 12 | N2: Номер детали | P2: 6000 | Q2: = L — длина труб, мм
B3: 28 | C3: 18 | D3: 31 | E3: 96 | F3: 12 | G3: 27 | H3: 63 | I3: 76 | J3: 6 | K3: 14 | L3: 0 | M3: 0 | N3: Количество деталей | O3: =SUM(B3:M3) -> 371
B4: 1135 | C4: 980 | D4: 890 | E4: 847 | F4: 800 | G4: 735 | H4: 700 | I4: 635 | J4: 600 | K4: 555 | L4: 6000 | M4: 6000 | N4: Размеры деталей, мм | P4: 427 | Q4: = Δ - максимальный размер обрезка
P5: 0 | Q5: = Δm - максимальный размер остатка
B6: =B4+$P$6 -> 1138 | C6: 983 | D6: 893 | E6: 850 | F6: 803 | G6: 738 | H6: 703 | I6: 638 | J6: 603 | K6: 558 | L6: 6003 | M6: 6003 | N6: Длина детали + ширина реза | P6: 3 | Q6: = d - ширина реза
A7: вариантов | B7: =SUMPRODUCT(B6:M6,B3:M3)/(P2+P6) -> 48.74396135 | C7: Теоретич. мин. число труб | M7: Суммарная длина обрезков, м = | N7: =SUMPRODUCT(N13:N10014,O13:O10014)/1000 -> 0.000
A8: 10,002 | B8: =SUM(O13:O10014) -> 50 | C8: Количество труб длины L | M8: Суммарная длина остатков, м = | N8: 0.000 | O8: =N7*1000/(P2*B8) -> 0.00% | P8: Процент потерь в обрезки
B10: =SUMPRODUCT(B13:B10014,$O$13:$O$10014) -> 29 | C10: =SUMPRODUCT(C13:C10014,$O$13:$O$10014) -> 22 | D10: 32 | E10: 96 | F10: 13 | G10: 27 | H10: 64 | I10: 76 | J10: 6 | K10: 14 | L10: 0 | M10: 0 | N10: Количество полученных деталей | O10: =SUM(B10:M10) -> 379 | P10: 1.000 | Q10: = макс. суммарная длина обрезков
B11: =B10-B3 -> 1 | C11: 4 | D11: 1 | E11: 0 | F11: 1 | G11: 0 | H11: 1 | I11: 0 | J11: 0 | K11: =K10-K3 -> 0 | L11: 0 | M11: =M10-M3 -> 0 | N11: Количество лишних деталей | O11: =SUM(B11:M11) -> 8 | P11: 8 | Q11: = максимальный избыток деталей
A12: Номер варианта разреза | B12: 1 | C12: 2 | D12: 3 | E12: 4 | F12: 5 | G12: 6 | H12: 7 | I12: 8 | J12: 9 | K12: 10 | L12: 11 | M12: 12 | N12: Обрезок или остаток | O12: Сколько труб так разрезать?
A13: 1 | B13: 0 | C13: 0 | D13: 0 | E13: 4 | F13: 0 | G13: 0 | H13: 2 | I13: 1 | J13: 0 | K13: 1 | L13: 0 | M13: 0 | N13: =IF(SUMPRODUCT($B$6:$M$6,B13:M13)<$P$2,$P$2-SUMPRODUCT($B$6:$M$6,B13:M13),0) -> 0 | O13: 12
A14: 2 | B14: 1 | C14: 0 | D14: 2 | E14: 2 | F14: 0 | G14: 1 | H14: 0 | I14: 1 | J14: 0 | K14: 0 | L14: 0 | M14: 0 | N14: 0 | O14: 10
A15: 3 | B15: 3 | C15: 1 | D15: 0 | E15: 0 | F15: 2 | G15: 0 | H15: 0 | I15: 0 | J15: 0 | K15: 0 | L15: 0 | M15: 0 | N15: 0 | O15: 6
A16: 4 | B16: 0 | C16: 1 | D16: 0 | E16: 2 | F16: 0 | G16: 0 | H16: 2 | I16: 3 | J16: 0 | K16: 0 | L16: 0 | M16: 0 | N16: 0 | O16: 5
A17: 5 | B17: 0 | C17: 0 | D17: 0 | E17: 0 | F17: 0 | G17: 0 | H17: 4 | I17: 5 | J17: 0 | K17: 0 | L17: 0 | M17: 0 | N17: 0 | O17: 4
A18: 6 | B18: 0 | C18: 0 | D18: 1 | E18: 1 | F18: 0 | G18: 3 | H18: 2 | I18: 1 | J18: 0 | K18: 0 | L18: 0 | M18: 0 | N18: 0 | O18: 3
A19: 7 | B19: 0 | C19: 2 | D19: 1 | E19: 2 | F19: 0 | G19: 1 | H19: 1 | I19: 0 | J19: 0 | K19: 0 | L19: 0 | M19: 0 | N19: 0 | O19: 3
A20: 8 | B20: 0 | C20: 0 | D20: 2 | E20: 2 | F20: 0 | G20: 0 | H20: 0 | I20: 3 | J20: 1 | K20: 0 | L20: 0 | M20: 0 | N20: 0 | O20: 1
A21: 9 | B21: 0 | C21: 1 | D21: 0 | E21: 2 | F21: 0 | G21: 1 | H21: 1 | I21: 2 | J21: 1 | K21: 0 | L21: 0 | M21: 0 | N21: 0 | O21: 1
A22: 10 | B22: 0 | C22: 0 | D22: 0 | E22: 0 | F22: 0 | G22: 4 | H22: 0 | I22: 1 | J22: 4 | K22: 0 | L22: 0 | M22: 0 | N22: 0 | O22: 1
A23: 11 | B23: 0 | C23: 0 | D23: 1 | E23: 0 | F23: 1 | G23: 0 | H23: 0 | I23: 5 | J23: 0 | K23: 2 | L23: 0 | M23: 0 | N23: 0 | O23: 1
A24: 12 | B24: 1 | C24: 3 | D24: 0 | E24: 0 | F24: 0 | G24: 0 | H24: 0 | I24: 3 | J24: 0 | K24: 0 | L24: 0 | M24: 0 | N24: 0 | O24: 1
A25: 13 | B25: 0 | C25: 0 | D25: 0 | E25: 3 | F25: 0 | G25: 0 | H25: 4 | I25: 1 | J25: 0 | K25: 0 | L25: 0 | M25: 0 | N25: 0 | O25: 1
A26: 14 | B26: 0 | C26: 1 | D26: 3 | E26: 2 | F26: 0 | G26: 0 | H26: 0 | I26: 1 | J26: 0 | K26: 0 | L26: 0 | M26: 0 | N26: 0 | O26: 1
A27: 15 | B27: 0 | C27: 0 | D27: 0 | E27: 0 | F27: 0 | G27: 0 | H27: 0 | I27: 0 | J27: 0 | K27: 0 | L27: 0 | M27: 1 | N27: 0 | O27: 0
A28: 16 | B28: 0 | C28: 0 | D28: 0 | E28: 0 | F28: 0 | G28: 0 | H28: 0 | I28: 0 | J28: 0 | K28: 0 | L28: 1 | M28: 0 | N28: 0 | O28: 0
A29: 17 | B29: 0 | C29: 0 | D29: 1 | E29: 2 | F29: 0 | G29: 3 | H29: 0 | I29: 1 | J29: 0 | K29: 1 | L29: 0 | M29: 0 | N29: 0 | O29: 0
A30: 18 | B30: 0 | C30: 1 | D30: 0 | E30: 2 | F30: 0 | G30: 2 | H30: 0 | I30: 1 | J30: 2 | K30: 0 | L30: 0 | M30: 0 | N30: 0 | O30: 0
A31: 19 | B31: 0 | C31: 1 | D31: 0 | E31: 2 | F31: 1 | G31: 0 | H31: 0 | I31: 3 | J31: 1 | K31: 0 | L31: 0 | M31: 0 | N31: 0 | O31: 0
A32: 20 | B32: 1 | C32: 0 | D32: 0 | E32: 1 | F32: 5 | G32: 0 | H32: 0 | I32: 0 | J32: 0 | K32: 0 | L32: 0 | M32: 0 | N32: 0 | O32: 0
A33: 21 | B33: 3 | C33: 0 | D33: 2 | E33: 0 | F33: 1 | G33: 0 | H33: 0 | I33: 0 | J33: 0 | K33: 0 | L33: 0 | M33: 0 | N33: 0 | O33: 0
A34: 22 | B34: 4 | C34: 0 | D34: 1 | E34: 0 | F34: 0 | G34: 0 | H34: 0 | I34: 0 | J34: 0 | K34: 1 | L34: 0 | M34: 0 | N34: 0 | O34: 0
A35: 23 | B35: 0 | C35: 0 | D35: 0 | E35: 0 | F35: 0 | G35: 1 | H35: 3 | I35: 4 | J35: 1 | K35: 0 | L35: 0 | M35: 0 | N35: 0 | O35: 0
A36: 24 | B36: 0 | C36: 0 | D36: 0 | E36: 0 | F36: 0 | G36: 2 | H36: 2 | I36: 3 | J36: 2 | K36: 0 | L36: 0 | M36: 0 | N36: 0 | O36: 0
A37: 25 | B37: 0 | C37: 0 | D37: 0 | E37: 0 | F37: 0 | G37: 3 | H37: 1 | I37: 2 | J37: 3 | K37: 0 | L37: 0 | M37: 0 | N37: 0 | O37: 0
A38: 26 | B38: 0 | C38: 0 | D38: 0 | E38: 0 | F38: 0 | G38: 5 | H38: 0 | I38: 1 | J38: 0 | K38: 3 | L38: 0 | M38: 0 | N38: 0 | O38: 0
A39: 27 | B39: 0 | C39: 0 | D39: 0 | E39: 0 | F39: 1 | G39: 0 | H39: 2 | I39: 5 | J39: 1 | K39: 0 | L39: 0 | M39: 0 | N39: 0 | O39: 0
A40: 28 | B40: 0 | C40: 0 | D40: 0 | E40: 0 | F40: 1 | G40: 1 | H40: 1 | I40: 4 | J40: 2 | K40: 0 | L40: 0 | M40: 0 | N40: 0 | O40: 0
A41: 29 | B41: 0 | C41: 0 | D41: 0 | E41: 0 | F41: 1 | G41: 2 | H41: 0 | I41: 3 | J41: 3 | K41: 0 | L41: 0 | M41: 0 | N41: 0 | O41: 0
A42: 30 | B42: 0 | C42: 0 | D42: 0 | E42: 0 | F42: 2 | G42: 0 | H42: 0 | I42: 5 | J42: 2 | K42: 0 | L42: 0 | M42: 0 | N42: 0 | O42: 0
A43: 31 | B43: 0 | C43: 0 | D43: 0 | E43: 0 | F43: 4 | G43: 0 | H43: 0 | I43: 0 | J43: 0 | K43: 5 | L43: 0 | M43: 0 | N43: 0 | O43: 0
A44: 32 | B44: 0 | C44: 0 | D44: 0 | E44: 4 | F44: 0 | G44: 1 | H44: 1 | I44: 0 | J44: 1 | K44: 1 | L44: 0 | M44: 0 | N44: 0 | O44: 0
A45: 33 | B45: 0 | C45: 0 | D45: 0 | E45: 4 | F45: 1 | G45: 0 | H45: 0 | I45: 1 | J45: 1 | K45: 1 | L45: 0 | M45: 0 | N45: 0 | O45: 0
A46: 34 | B46: 0 | C46: 0 | D46: 1 | E46: 0 | F46: 0 | G46: 1 | H46: 1 | I46: 4 | J46: 0 | K46: 2 | L46: 0 | M46: 0 | N46: 0 | O46: 0
A47: 35 | B47: 0 | C47: 0 | D47: 1 | E47: 0 | F47: 0 | G47: 2 | H47: 0 | I47: 3 | J47: 1 | K47: 2 | L47: 0 | M47: 0 | N47: 0 | O47: 0
A48: 36 | B48: 0 | C48: 1 | D48: 0 | E48: 0 | F48: 0 | G48: 0 | H48: 1 | I48: 4 | J48: 2 | K48: 1 | L48: 0 | M48: 0 | N48: 0 | O48: 0
A49: 37 | B49: 0 | C49: 1 | D49: 0 | E49: 0 | F49: 0 | G49: 1 | H49: 0 | I49: 3 | J49: 3 | K49: 1 | L49: 0 | M49: 0 | N49: 0 | O49: 0
A50: 38 | B50: 1 | C50: 0 | D50: 0 | E50: 0 | F50: 0 | G50: 0 | H50: 0 | I50: 5 | J50: 0 | K50: 3 | L50: 0 | M50: 0 | N50: 0 | O50: 0
A51: 39 | B51: 0 | C51: 0 | D51: 0 | E51: 2 | F51: 0 | G51: 0 | H51: 1 | I51: 2 | J51: 2 | K51: 2 | L51: 0 | M51: 0 | N51: 0 | O51: 0
A52: 40 | B52: 0 | C52: 0 | D52: 0 | E52: 2 | F52: 0 | G52: 1 | H52: 0 | I52: 1 | J52: 3 | K52: 2 | L52: 0 | M52: 0 | N52: 0 | O52: 0
A53: 41 | B53: 0 | C53: 0 | D53: 1 | E53: 1 | F53: 0 | G53: 4 | H53: 1 | I53: 0 | J53: 1 | K53: 0 | L53: 0 | M53: 0 | N53: 0 | O53: 0
A54: 42 | B54: 0 | C54: 0 | D54: 1 | E54: 1 | F54: 1 | G54: 2 | H54: 1 | I54: 2 | J54: 0 | K54: 0 | L54: 0 | M54: 0 | N54: 0 | O54: 0
A55: 43 | B55: 0 | C55: 0 | D55: 1 | E55: 1 | F55: 1 | G55: 3 | H55: 0 | I55: 1 | J55: 1 | K55: 0 | L55: 0 | M55: 0 | N55: 0 | O55: 0
A56: 44 | B56: 0 | C56: 0 | D56: 1 | E56: 1 | F56: 2 | G56: 1 | H56: 0 | I56: 3 | J56: 0 | K56: 0 | L56: 0 | M56: 0 | N56: 0 | O56: 0
A57: 45 | B57: 0 | C57: 0 | D57: 3 | E57: 1 | F57: 0 | G57: 0 | H57: 0 | I57: 3 | J57: 0 | K57: 1 | L57: 0 | M57: 0 | N57: 0 | O57: 0
A58: 46 | B58: 0 | C58: 1 | D58: 1 | E58: 1 | F58: 0 | G58: 1 | H58: 1 | I58: 2 | J58: 0 | K58: 1 | L58: 0 | M58: 0 | N58: 0 | O58: 0
A59: 47 | B59: 0 | C59: 1 | D59: 1 | E59: 1 | F59: 0 | G59: 2 | H59: 0 | I59: 1 | J59: 1 | K59: 1 | L59: 0 | M59: 0 | N59: 0 | O59: 0
A60: 48 | B60: 0 | C60: 1 | D60: 1 | E60: 1 | F60: 1 | G60: 0 | H60: 0 | I60: 3 | J60: 0 | K60: 1 | L60: 0 | M60: 0 | N60: 0 | O60: 0
A61: 49 | B61: 0 | C61: 2 | D61: 0 | E61: 1 | F61: 0 | G61: 0 | H61: 1 | I61: 2 | J61: 2 | K61: 0 | L61: 0 | M61: 0 | N61: 0 | O61: 0
A62: 50 | B62: 0 | C62: 2 | D62: 0 | E62: 1 | F62: 0 | G62: 1 | H62: 0 | I62: 1 | J62: 3 | K62: 0 | L62: 0 | M62: 0 | N62: 0 | O62: 0
A63: 51 | B63: 1 | C63: 0 | D63: 0 | E63: 1 | F63: 0 | G63: 2 | H63: 1 | I63: 2 | J63: 0 | K63: 1 | L63: 0 | M63: 0 | N63: 0 | O63: 0
A64: 52 | B64: 1 | C64: 0 | D64: 0 | E64: 1 | F64: 0 | G64: 3 | H64: 0 | I64: 1 | J64: 1 | K64: 1 | L64: 0 | M64: 0 | N64: 0 | O64: 0
A65: 53 | B65: 1 | C65: 0 | D65: 0 | E65: 1 | F65: 1 | G65: 1 | H65: 0 | I65: 3 | J65: 0 | K65: 1 | L65: 0 | M65: 0 | N65: 0 | O65: 0
A66: 54 | B66: 1 | C66: 0 | D66: 1 | E66: 1 | F66: 0 | G66: 0 | H66: 0 | I66: 3 | J66: 2 | K66: 0 | L66: 0 | M66: 0 | N66: 0 | O66: 0
A67: 55 | B67: 1 | C67: 1 | D67: 0 | E67: 1 | F67: 0 | G67: 0 | H67: 0 | I67: 3 | J67: 0 | K67: 2 | L67: 0 | M67: 0 | N67: 0 | O67: 0
A68: 56 | B68: 0 | C68: 0 | D68: 0 | E68: 0 | F68: 0 | G68: 0 | H68: 0 | I68: 3 | J68: 4 | K68: 3 | L68: 0 | M68: 0 | N68: 0 | O68: 0
A69: 57 | B69: 0 | C69: 0 | D69: 0 | E69: 0 | F69: 0 | G69: 1 | H69: 0 | I69: 3 | J69: 0 | K69: 6 | L69: 0 | M69: 0 | N69: 0 | O69: 0
A70: 58 | B70: 0 | C70: 0 | D70: 0 | E70: 3 | F70: 0 | G70: 1 | H70: 3 | I70: 0 | J70: 1 | K70: 0 | L70: 0 | M70: 0 | N70: 0 | O70: 0
A71: 59 | B71: 0 | C71: 0 | D71: 0 | E71: 3 | F71: 1 | G71: 0 | H71: 2 | I71: 1 | J71: 1 | K71: 0 | L71: 0 | M71: 0 | N71: 0 | O71: 0
A72: 60 | B72: 0 | C72: 0 | D72: 0 | E72: 3 | F72: 1 | G72: 1 | H72: 1 | I72: 0 | J72: 2 | K72: 0 | L72: 0 | M72: 0 | N72: 0 | O72: 0
A73: 61 | B73: 0 | C73: 0 | D73: 0 | E73: 3 | F73: 2 | G73: 0 | H73: 0 | I73: 1 | J73: 2 | K73: 0 | L73: 0 | M73: 0 | N73: 0 | O73: 0
A74: 62 | B74: 0 | C74: 0 | D74: 1 | E74: 3 | F74: 0 | G74: 1 | H74: 1 | I74: 0 | J74: 0 | K74: 2 | L74: 0 | M74: 0 | N74: 0 | O74: 0
A75: 63 | B75: 0 | C75: 0 | D75: 1 | E75: 3 | F75: 1 | G75: 0 | H75: 0 | I75: 1 | J75: 0 | K75: 2 | L75: 0 | M75: 0 | N75: 0 | O75: 0
A76: 64 | B76: 0 | C76: 1 | D76: 0 | E76: 3 | F76: 0 | G76: 0 | H76: 1 | I76: 0 | J76: 2 | K76: 1 | L76: 0 | M76: 0 | N76: 0 | O76: 0
A77: 65 | B77: 0 | C77: 2 | D77: 1 | E77: 2 | F77: 1 | G77: 0 | H77: 0 | I77: 1 | J77: 0 | K77: 0 | L77: 0 | M77: 0 | N77: =IF(SUMPRODUCT($B$6:$M$6,B77:M77)<$P$2,$P$2-SUMPRODUCT($B$6:$M$6,B77:M77),0) -> 0 | O77: 0
A78: 66 | B78: 1 | C78: 0 | D78: 0 | E78: 3 | F78: 0 | G78: 0 | H78: 0 | I78: 1 | J78: 0 | K78: 3 | L78: 0 | M78: 0 | N78: 0 | O78: 0
A79: 67 | B79: 1 | C79: 1 | D79: 0 | E79: 2 | F79: 0 | G79: 2 | H79: 1 | I79: 0 | J79: 0 | K79: 0 | L79: 0 | M79: 0 | N79: 0 | O79: 0
A80: 68 | B80: 1 | C80: 1 | D80: 0 | E80: 2 | F80: 1 | G80: 1 | H80: 0 | I80: 1 | J80: 0 | K80: 0 | L80: 0 | M80: 0 | N80: 0 | O80: 0
A81: 69 | B81: 1 | C81: 2 | D81: 0 | E81: 2 | F81: 0 | G81: 0 | H81: 0 | I81: 1 | J81: 0 | K81: 1 | L81: 0 | M81: 0 | N81: 0 | O81: 0
A82: 70 | B82: 0 | C82: 0 | D82: 0 | E82: 0 | F82: 2 | G82: 5 | H82: 1 | I82: 0 | J82: 0 | K82: 0 | L82: 0 | M82: 0 | N82: 1 | O82: 0
A83: 71 | B83: 0 | C83: 0 | D83: 0 | E83: 0 | F83: 3 | G83: 4 | H83: 0 | I83: 1 | J83: 0 | K83: 0 | L83: 0 | M83: 0 | N83: 1 | O83: 0
A84: 72 | B84: 0 | C84: 0 | D84: 0 | E84: 1 | F84: 0 | G84: 0 | H84: 3 | I84: 2 | J84: 2 | K84: 1 | L84: 0 | M84: 0 | N84: 1 | O84: 0
A85: 73 | B85: 0 | C85: 0 | D85: 0 | E85: 1 | F85: 0 | G85: 1 | H85: 2 | I85: 1 | J85: 3 | K85: 1 | L85: 0 | M85: 0 | N85: 1 | O85: 0
A86: 74 | B86: 0 | C86: 0 | D86: 0 | E86: 1 | F86: 0 | G86: 2 | H86: 1 | I86: 0 | J86: 4 | K86: 1 | L86: 0 | M86: 0 | N86: 1 | O86: 0
A87: 75 | B87: 0 | C87: 0 | D87: 0 | E87: 1 | F87: 0 | G87: 3 | H87: 1 | I87: 0 | J87: 0 | K87: 4 | L87: 0 | M87: 0 | N87: 1 | O87: 0
A88: 76 | B88: 0 | C88: 0 | D88: 0 | E88: 1 | F88: 1 | G88: 0 | H88: 1 | I88: 2 | J88: 3 | K88: 1 | L88: 0 | M88: 0 | N88: 1 | O88: 0
A89: 77 | B89: 0 | C89: 0 | D89: 0 | E89: 1 | F89: 1 | G89: 1 | H89: 0 | I89: 1 | J89: 4 | K89: 1 | L89: 0 | M89: 0 | N89: 1 | O89: 0
A90: 78 | B90: 0 | C90: 0 | D90: 0 | E90: 1 | F90: 1 | G90: 2 | H90: 0 | I90: 1 | J90: 0 | K90: 4 | L90: 0 | M90: 0 | N90: 1 | O90: 0
A91: 79 | B91: 0 | C91: 0 | D91: 1 | E91: 1 | F91: 0 | G91: 0 | H91: 0 | I91: 1 | J91: 6 | K91: 0 | L91: 0 | M91: 0 | N91: 1 | O91: 0
A92: 80 | B92: 0 | C92: 0 | D92: 1 | E92: 1 | F92: 0 | G92: 0 | H92: 1 | I92: 2 | J92: 1 | K92: 3 | L92: 0 | M92: 0 | N92: 1 | O92: 0
A93: 81 | B93: 0 | C93: 0 | D93: 1 | E93: 1 | F93: 0 | G93: 1 | H93: 0 | I93: 1 | J93: 2 | K93: 3 | L93: 0 | M93: 0 | N93: 1 | O93: 0
A94: 82 | B94: 0 | C94: 0 | D94: 2 | E94: 0 | F94: 0 | G94: 4 | H94: 1 | I94: 0 | J94: 0 | K94: 1 | L94: 0 | M94: 0 | N94: 1 | O94: 0
A95: 83 | B95: 0 | C95: 0 | D95: 2 | E95: 0 | F95: 1 | G95: 3 | H95: 0 | I95: 1 | J95: 0 | K95: 1 | L95: 0 | M95: 0 | N95: 1 | O95: 0
A96: 84 | B96: 0 | C96: 0 | D96: 3 | E96: 0 | F96: 0 | G96: 0 | H96: 2 | I96: 3 | J96: 0 | K96: 0 | L96: 0 | M96: 0 | N96: 1 | O96: 0
A97: 85 | B97: 0 | C97: 0 | D97: 3 | E97: 0 | F97: 0 | G97: 1 | H97: 1 | I97: 2 | J97: 1 | K97: 0 | L97: 0 | M97: 0 | N97: 1 | O97: 0
A98: 86 | B98: 0 | C98: 0 | D98: 3 | E98: 0 | F98: 0 | G98: 2 | H98: 0 | I98: 1 | J98: 2 | K98: 0 | L98: 0 | M98: 0 | N98: 1 | O98: 0
A99: 87 | B99: 0 | C99: 0 | D99: 3 | E99: 0 | F99: 1 | G99: 0 | H99: 0 | I99: 3 | J99: 1 | K99: 0 | L99: 0 | M99: 0 | N99: 1 | O99: 0
A100: 88 | B100: 0 | C100: 1 | D100: 0 | E100: 0 | F100: 1 | G100: 4 | H100: 1 | I100: 0 | J100: 0 | K100: 1 | L100: 0 | M100: 0 | N100: 1 | O100: 0
A101: 89 | B101: 0 | C101: 1 | D101: 0 | E101: 0 | F101: 2 | G101: 3 | H101: 0 | I101: 1 | J101: 0 | K101: 1 | L101: 0 | M101: 0 | N101: 1 | O101: 0
A102: 90 | B102: 0 | C102: 1 | D102: 0 | E102: 1 | F102: 0 | G102: 0 | H102: 0 | I102: 1 | J102: 4 | K102: 2 | L102: 0 | M102: 0 | N102: 1 | O102: 0
A103: 91 | B103: 0 | C103: 1 | D103: 0 | E103: 1 | F103: 0 | G103: 1 | H103: 0 | I103: 1 | J103: 0 | K103: 5 | L103: 0 | M103: 0 | N103: 1 | O103: 0
A104: 92 | B104: 0 | C104: 1 | D104: 1 | E104: 0 | F104: 0 | G104: 1 | H104: 3 | I104: 2 | J104: 0 | K104: 0 | L104: 0 | M104: 0 | N104: 1 | O104: 0
A105: 93 | B105: 0 | C105: 1 | D105: 1 | E105: 0 | F105: 0 | G105: 2 | H105: 2 | I105: 1 | J105: 1 | K105: 0 | L105: 0 | M105: 0 | N105: 1 | O105: 0
A106: 94 | B106: 0 | C106: 1 | D106: 1 | E106: 0 | F106: 0 | G106: 3 | H106: 1 | I106: 0 | J106: 2 | K106: 0 | L106: 0 | M106: 0 | N106: 1 | O106: 0
A107: 95 | B107: 0 | C107: 1 | D107: 1 | E107: 0 | F107: 1 | G107: 0 | H107: 2 | I107: 3 | J107: 0 | K107: 0 | L107: 0 | M107: 0 | N107: 1 | O107: 0
A108: 96 | B108: 0 | C108: 1 | D108: 1 | E108: 0 | F108: 1 | G108: 1 | H108: 1 | I108: 2 | J108: 1 | K108: 0 | L108: 0 | M108: 0 | N108: 1 | O108: 0
A109: 97 | B109: 0 | C109: 1 | D109: 1 | E109: 0 | F109: 1 | G109: 2 | H109: 0 | I109: 1 | J109: 2 | K109: 0 | L109: 0 | M109: 0 | N109: 1 | O109: 0
A110: 98 | B110: 0 | C110: 1 | D110: 1 | E110: 0 | F110: 2 | G110: 0 | H110: 0 | I110: 3 | J110: 1 | K110: 0 | L110: 0 | M110: 0 | N110: 1 | O110: 0
A111: 99 | B111: 0 | C111: 1 | D111: 2 | E111: 0 | F111: 0 | G111: 2 | H111: 0 | I111: 1 | J111: 0 | K111: 2 | L111: 0 | M111: 0 | N111: 1 | O111: 0
A112: 100 | B112: 0 | C112: 2 | D112: 0 | E112: 0 | F112: 0 | G112: 3 | H112: 1 | I112: 0 | J112: 0 | K112: 2 | L112: 0 | M112: 0 | N112: 1 | O112: 0
A113: 101 | B113: 0 | C113: 2 | D113: 0 | E113: 0 | F113: 1 | G113: 2 | H113: 0 | I113: 1 | J113: 0 | K113: 2 | L113: 0 | M113: 0 | N113: 1 | O113: 0
A114: 102 | B114: 0 | C114: 2 | D114: 1 | E114: 0 | F114: 0 | G114: 0 | H114: 1 | I114: 2 | J114: 1 | K114: 1 | L114: 0 | M114: 0 | N114: 1 | O114: 0
A115: 103 | B115: 0 | C115: 2 | D115: 1 | E115: 0 | F115: 0 | G115: 1 | H115: 0 | I115: 1 | J115: 2 | K115: 1 | L115: 0 | M115: 0 | N115: 1 | O115: 0
A116: 104 | B116: 0 | C116: 3 | D116: 0 | E116: 0 | F116: 0 | G116: 0 | H116: 0 | I116: 1 | J116: 4 | K116: 0 | L116: 0 | M116: 0 | N116: 1 | O116: 0
A117: 105 | B117: 0 | C117: 3 | D117: 0 | E117: 0 | F117: 0 | G117: 1 | H117: 0 | I117: 1 | J117: 0 | K117: 3 | L117: 0 | M117: 0 | N117: 1 | O117: 0
A118: 106 | B118: 1 | C118: 0 | D118: 0 | E118: 0 | F118: 0 | G118: 2 | H118: 3 | I118: 2 | J118: 0 | K118: 0 | L118: 0 | M118: 0 | N118: 1 | O118: 0
A119: 107 | B119: 1 | C119: 0 | D119: 0 | E119: 0 | F119: 0 | G119: 3 | H119: 2 | I119: 1 | J119: 1 | K119: 0 | L119: 0 | M119: 0 | N119: 1 | O119: 0
A120: 108 | B120: 1 | C120: 0 | D120: 0 | E120: 0 | F120: 0 | G120: 4 | H120: 1 | I120: 0 | J120: 2 | K120: 0 | L120: 0 | M120: 0 | N120: 1 | O120: 0
A121: 109 | B121: 1 | C121: 0 | D121: 0 | E121: 0 | F121: 1 | G121: 1 | H121: 2 | I121: 3 | J121: 0 | K121: 0 | L121: 0 | M121: 0 | N121: 1 | O121: 0
A122: 110 | B122: 1 | C122: 0 | D122: 0 | E122: 0 | F122: 1 | G122: 2 | H122: 1 | I122: 2 | J122: 1 | K122: 0 | L122: 0 | M122: 0 | N122: 1 | O122: 0
A123: 111 | B123: 1 | C123: 0 | D123: 0 | E123: 0 | F123: 1 | G123: 3 | H123: 0 | I123: 1 | J123: 2 | K123: 0 | L123: 0 | M123: 0 | N123: 1 | O123: 0
A124: 112 | B124: 1 | C124: 0 | D124: 0 | E124: 0 | F124: 2 | G124: 0 | H124: 1 | I124: 4 | J124: 0 | K124: 0 | L124: 0 | M124: 0 | N124: 1 | O124: 0
A125: 113 | B125: 1 | C125: 0 | D125: 0 | E125: 0 | F125: 2 | G125: 1 | H125: 0 | I125: 3 | J125: 1 | K125: 0 | L125: 0 | M125: 0 | N125: 1 | O125: 0
A126: 114 | B126: 1 | C126: 0 | D126: 1 | E126: 0 | F126: 0 | G126: 3 | H126: 0 | I126: 1 | J126: 0 | K126: 2 | L126: 0 | M126: 0 | N126: 1 | O126: 0
A127: 115 | B127: 1 | C127: 0 | D127: 2 | E127: 0 | F127: 0 | G127: 0 | H127: 0 | I127: 3 | J127: 1 | K127: 1 | L127: 0 | M127: 0 | N127: 1 | O127: 0
A128: 116 | B128: 1 | C128: 1 | D128: 0 | E128: 0 | F128: 0 | G128: 0 | H128: 2 | I128: 3 | J128: 0 | K128: 1 | L128: 0 | M128: 0 | N128: 1 | O128: 0
A129: 117 | B129: 1 | C129: 1 | D129: 0 | E129: 0 | F129: 0 | G129: 1 | H129: 1 | I129: 2 | J129: 1 | K129: 1 | L129: 0 | M129: 0 | N129: 1 | O129: 0
A130: 118 | B130: 1 | C130: 1 | D130: 0 | E130: 0 | F130: 0 | G130: 2 | H130: 0 | I130: 1 | J130: 2 | K130: 1 | L130: 0 | M130: 0 | N130: 1 | O130: 0
A131: 119 | B131: 1 | C131: 1 | D131: 0 | E131: 0 | F131: 1 | G131: 0 | H131: 0 | I131: 3 | J131: 1 | K131: 1 | L131: 0 | M131: 0 | N131: 1 | O131: 0
A132: 120 | B132: 2 | C132: 0 | D132: 0 | E132: 0 | F132: 0 | G132: 0 | H132: 0 | I132: 3 | J132: 3 | K132: 0 | L132: 0 | M132: 0 | N132: 1 | O132: 0
A133: 121 | B133: 0 | C133: 0 | D133: 1 | E133: 2 | F133: 0 | G133: 1 | H133: 3 | I133: 0 | J133: 0 | K133: 1 | L133: 0 | M133: 0 | N133: 2 | O133: 0
A134: 122 | B134: 0 | C134: 0 | D134: 1 | E134: 2 | F134: 1 | G134: 0 | H134: 2 | I134: 1 | J134: 0 | K134: 1 | L134: 0 | M134: 0 | N134: 2 | O134: 0
A135: 123 | B135: 0 | C135: 0 | D135: 1 | E135: 2 | F135: 1 | G135: 1 | H135: 1 | I135: 0 | J135: 1 | K135: 1 | L135: 0 | M135: 0 | N135: 2 | O135: 0
A136: 124 | B136: 0 | C136: 0 | D136: 1 | E136: 2 | F136: 2 | G136: 0 | H136: 0 | I136: 1 | J136: 1 | K136: 1 | L136: 0 | M136: 0 | N136: 2 | O136: 0
A137: 125 | B137: 0 | C137: 0 | D137: 2 | E137: 2 | F137: 0 | G137: 0 | H137: 1 | I137: 0 | J137: 3 | K137: 0 | L137: 0 | M137: 0 | N137: 2 | O137: 0
A138: 126 | B138: 0 | C138: 1 | D138: 0 | E138: 2 | F138: 0 | G138: 0 | H138: 3 | I138: 0 | J138: 2 | K138: 0 | L138: 0 | M138: 0 | N138: 2 | O138: 0
A139: 127 | B139: 0 | C139: 1 | D139: 0 | E139: 2 | F139: 1 | G139: 0 | H139: 1 | I139: 0 | J139: 3 | K139: 0 | L139: 0 | M139: 0 | N139: 2 | O139: 0
A140: 128 | B140: 0 | C140: 1 | D140: 1 | E140: 2 | F140: 0 | G140: 0 | H140: 1 | I140: 0 | J140: 1 | K140: 2 | L140: 0 | M140: 0 | N140: 2 | O140: 0
A141: 129 | B141: 0 | C141: 3 | D141: 1 | E141: 1 | F141: 0 | G141: 0 | H141: 1 | I141: 0 | J141: 1 | K141: 0 | L141: 0 | M141: 0 | N141: =IF(SUMPRODUCT($B$6:$M$6,B141:M141)<$P$2,$P$2-SUMPRODUCT($B$6:$M$6,B141:M141),0) -> 2 | O141: 0
A142: 130 | B142: 1 | C142: 0 | D142: 0 | E142: 2 | F142: 0 | G142: 0 | H142: 2 | I142: 1 | J142: 0 | K142: 2 | L142: 0 | M142: 0 | N142: 2 | O142: 0
A143: 131 | B143: 1 | C143: 0 | D143: 0 | E143: 2 | F143: 0 | G143: 1 | H143: 1 | I143: 0 | J143: 1 | K143: 2 | L143: 0 | M143: 0 | N143: 2 | O143: 0
A144: 132 | B144: 1 | C144: 0 | D144: 0 | E144: 2 | F144: 1 | G144: 0 | H144: 0 | I144: 1 | J144: 1 | K144: 2 | L144: 0 | M144: 0 | N144: 2 | O144: 0
A145: 133 | B145: 1 | C145: 1 | D145: 2 | E145: 1 | F145: 0 | G145: 0 | H145: 0 | I145: 1 | J145: 1 | K145: 0 | L145: 0 | M145: 0 | N145: 2 | O145: 0
A146: 134 | B146: 1 | C146: 2 | D146: 0 | E146: 1 | F146: 0 | G146: 0 | H146: 2 | I146: 1 | J146: 0 | K146: 0 | L146: 0 | M146: 0 | N146: 2 | O146: 0
A147: 135 | B147: 1 | C147: 2 | D147: 0 | E147: 1 | F147: 0 | G147: 1 | H147: 1 | I147: 0 | J147: 1 | K147: 0 | L147: 0 | M147: 0 | N147: 2 | O147: 0
A148: 136 | B148: 1 | C148: 2 | D148: 0 | E148: 1 | F148: 1 | G148: 0 | H148: 0 | I148: 1 | J148: 1 | K148: 0 | L148: 0 | M148: 0 | N148: 2 | O148: 0
A149: 137 | B149: 2 | C149: 0 | D149: 1 | E149: 1 | F149: 0 | G149: 0 | H149: 1 | I149: 2 | J149: 0 | K149: 0 | L149: 0 | M149: 0 | N149: 2 | O149: 0
A150: 138 | B150: 2 | C150: 0 | D150: 1 | E150: 1 | F150: 0 | G150: 1 | H150: 0 | I150: 1 | J150: 1 | K150: 0 | L150: 0 | M150: 0 | N150: 2 | O150: 0
A151: 139 | B151: 0 | C151: 0 | D151: 0 | E151: 0 | F151: 0 | G151: 0 | H151: 5 | I151: 2 | J151: 2 | K151: 0 | L151: 0 | M151: 0 | N151: 3 | O151: 0
A152: 140 | B152: 0 | C152: 0 | D152: 0 | E152: 0 | F152: 0 | G152: 1 | H152: 4 | I152: 1 | J152: 3 | K152: 0 | L152: 0 | M152: 0 | N152: 3 | O152: 0
A153: 141 | B153: 0 | C153: 0 | D153: 0 | E153: 0 | F153: 0 | G153: 2 | H153: 3 | I153: 0 | J153: 4 | K153: 0 | L153: 0 | M153: 0 | N153: 3 | O153: 0
A154: 142 | B154: 0 | C154: 0 | D154: 0 | E154: 0 | F154: 0 | G154: 3 | H154: 3 | I154: 0 | J154: 0 | K154: 3 | L154: 0 | M154: 0 | N154: 3 | O154: 0
A155: 143 | B155: 0 | C155: 0 | D155: 0 | E155: 0 | F155: 1 | G155: 0 | H155: 3 | I155: 2 | J155: 3 | K155: 0 | L155: 0 | M155: 0 | N155: 3 | O155: 0
A156: 144 | B156: 0 | C156: 0 | D156: 0 | E156: 0 | F156: 1 | G156: 1 | H156: 2 | I156: 1 | J156: 4 | K156: 0 | L156: 0 | M156: 0 | N156: 3 | O156: 0
A157: 145 | B157: 0 | C157: 0 | D157: 0 | E157: 0 | F157: 1 | G157: 2 | H157: 1 | I157: 0 | J157: 5 | K157: 0 | L157: 0 | M157: 0 | N157: 3 | O157: 0
A158: 146 | B158: 0 | C158: 0 | D158: 0 | E158: 0 | F158: 1 | G158: 2 | H158: 2 | I158: 1 | J158: 0 | K158: 3 | L158: 0 | M158: 0 | N158: 3 | O158: 0
A159: 147 | B159: 0 | C159: 0 | D159: 0 | E159: 0 | F159: 1 | G159: 3 | H159: 1 | I159: 0 | J159: 1 | K159: 3 | L159: 0 | M159: 0 | N159: 3 | O159: 0
A160: 148 | B160: 0 | C160: 0 | D160: 0 | E160: 0 | F160: 2 | G160: 0 | H160: 1 | I160: 2 | J160: 4 | K160: 0 | L160: 0 | M160: 0 | N160: 3 | O160: 0
A161: 149 | B161: 0 | C161: 0 | D161: 0 | E161: 0 | F161: 2 | G161: 1 | H161: 0 | I161: 1 | J161: 5 | K161: 0 | L161: 0 | M161: 0 | N161: 3 | O161: 0
A162: 150 | B162: 0 | C162: 0 | D162: 0 | E162: 0 | F162: 2 | G162: 1 | H162: 1 | I162: 2 | J162: 0 | K162: 3 | L162: 0 | M162: 0 | N162: 3 | O162: 0
A163: 151 | B163: 0 | C163: 0 | D163: 0 | E163: 0 | F163: 2 | G163: 2 | H163: 0 | I163: 1 | J163: 1 | K163: 3 | L163: 0 | M163: 0 | N163: 3 | O163: 0
A164: 152 | B164: 0 | C164: 0 | D164: 0 | E164: 0 | F164: 3 | G164: 0 | H164: 0 | I164: 3 | J164: 0 | K164: 3 | L164: 0 | M164: 0 | N164: 3 | O164: 0
A165: 153 | B165: 0 | C165: 0 | D165: 0 | E165: 1 | F165: 0 | G165: 0 | H165: 0 | I165: 1 | J165: 1 | K165: 7 | L165: 0 | M165: 0 | N165: 3 | O165: 0
A166: 154 | B166: 0 | C166: 0 | D166: 1 | E166: 0 | F166: 0 | G166: 0 | H166: 0 | I166: 8 | J166: 0 | K166: 0 | L166: 0 | M166: 0 | N166: 3 | O166: 0
A167: 155 | B167: 0 | C167: 0 | D167: 1 | E167: 0 | F167: 0 | G167: 0 | H167: 3 | I167: 2 | J167: 1 | K167: 2 | L167: 0 | M167: 0 | N167: 3 | O167: 0
A168: 156 | B168: 0 | C168: 0 | D168: 1 | E168: 0 | F168: 0 | G168: 1 | H168: 2 | I168: 1 | J168: 2 | K168: 2 | L168: 0 | M168: 0 | N168: 3 | O168: 0
A169: 157 | B169: 0 | C169: 0 | D169: 1 | E169: 0 | F169: 0 | G169: 2 | H169: 1 | I169: 0 | J169: 3 | K169: 2 | L169: 0 | M169: 0 | N169: 3 | O169: 0
A170: 158 | B170: 0 | C170: 0 | D170: 1 | E170: 0 | F170: 1 | G170: 0 | H170: 1 | I170: 2 | J170: 2 | K170: 2 | L170: 0 | M170: 0 | N170: 3 | O170: 0
A171: 159 | B171: 0 | C171: 0 | D171: 1 | E171: 0 | F171: 1 | G171: 1 | H171: 0 | I171: 1 | J171: 3 | K171: 2 | L171: 0 | M171: 0 | N171: 3 | O171: 0
A172: 160 | B172: 0 | C172: 0 | D172: 2 | E172: 0 | F172: 0 | G172: 0 | H172: 0 | I172: 1 | J172: 5 | K172: 1 | L172: 0 | M172: 0 | N172: 3 | O172: 0
A173: 161 | B173: 0 | C173: 0 | D173: 2 | E173: 0 | F173: 0 | G173: 0 | H173: 1 | I173: 2 | J173: 0 | K173: 4 | L173: 0 | M173: 0 | N173: 3 | O173: 0
A174: 162 | B174: 0 | C174: 0 | D174: 2 | E174: 0 | F174: 0 | G174: 1 | H174: 0 | I174: 1 | J174: 1 | K174: 4 | L174: 0 | M174: 0 | N174: 3 | O174: 0
A175: 163 | B175: 0 | C175: 1 | D175: 0 | E175: 0 | F175: 0 | G175: 0 | H175: 2 | I175: 1 | J175: 4 | K175: 1 | L175: 0 | M175: 0 | N175: 3 | O175: 0
A176: 164 | B176: 0 | C176: 1 | D176: 0 | E176: 0 | F176: 0 | G176: 1 | H176: 1 | I176: 0 | J176: 5 | K176: 1 | L176: 0 | M176: 0 | N176: 3 | O176: 0
A177: 165 | B177: 0 | C177: 1 | D177: 0 | E177: 0 | F177: 0 | G177: 1 | H177: 2 | I177: 1 | J177: 0 | K177: 4 | L177: 0 | M177: 0 | N177: 3 | O177: 0
A178: 166 | B178: 0 | C178: 1 | D178: 0 | E178: 0 | F178: 0 | G178: 2 | H178: 1 | I178: 0 | J178: 1 | K178: 4 | L178: 0 | M178: 0 | N178: 3 | O178: 0
A179: 167 | B179: 0 | C179: 1 | D179: 0 | E179: 0 | F179: 1 | G179: 0 | H179: 0 | I179: 1 | J179: 5 | K179: 1 | L179: 0 | M179: 0 | N179: 3 | O179: 0
A180: 168 | B180: 0 | C180: 1 | D180: 0 | E180: 0 | F180: 1 | G180: 0 | H180: 1 | I180: 2 | J180: 0 | K180: 4 | L180: 0 | M180: 0 | N180: 3 | O180: 0
A181: 169 | B181: 0 | C181: 1 | D181: 0 | E181: 0 | F181: 1 | G181: 1 | H181: 0 | I181: 1 | J181: 1 | K181: 4 | L181: 0 | M181: 0 | N181: 3 | O181: 0
A182: 170 | B182: 0 | C182: 1 | D182: 1 | E182: 0 | F182: 0 | G182: 0 | H182: 0 | I182: 1 | J182: 3 | K182: 3 | L182: 0 | M182: 0 | N182: 3 | O182: 0
A183: 171 | B183: 0 | C183: 2 | D183: 0 | E183: 0 | F183: 0 | G183: 0 | H183: 0 | I183: 1 | J183: 1 | K183: 5 | L183: 0 | M183: 0 | N183: 3 | O183: 0
A184: 172 | B184: 1 | C184: 0 | D184: 0 | E184: 0 | F184: 0 | G184: 0 | H184: 0 | I184: 1 | J184: 7 | K184: 0 | L184: 0 | M184: 0 | N184: 3 | O184: 0
A185: 173 | B185: 1 | C185: 0 | D185: 0 | E185: 0 | F185: 0 | G185: 0 | H185: 1 | I185: 2 | J185: 2 | K185: 3 | L185: 0 | M185: 0 | N185: 3 | O185: 0
A186: 174 | B186: 1 | C186: 0 | D186: 0 | E186: 0 | F186: 0 | G186: 1 | H186: 0 | I186: 1 | J186: 3 | K186: 3 | L186: 0 | M186: 0 | N186: 3 | O186: 0
A187: 175 | B187: 1 | C187: 0 | D187: 0 | E187: 3 | F187: 2 | G187: 0 | H187: 1 | I187: 0 | J187: 0 | K187: 0 | L187: 0 | M187: 0 | N187: 3 | O187: 0
A188: 176 | B188: 0 | C188: 0 | D188: 0 | E188: 1 | F188: 3 | G188: 2 | H188: 1 | I188: 0 | J188: 0 | K188: 1 | L188: 0 | M188: 0 | N188: 4 | O188: 0
A189: 177 | B189: 0 | C189: 0 | D189: 0 | E189: 1 | F189: 4 | G189: 1 | H189: 0 | I189: 1 | J189: 0 | K189: 1 | L189: 0 | M189: 0 | N189: 4 | O189: 0
A190: 178 | B190: 0 | C190: 0 | D190: 0 | E190: 2 | F190: 1 | G190: 0 | H190: 1 | I190: 0 | J190: 0 | K190: 5 | L190: 0 | M190: 0 | N190: 4 | O190: 0
A191: 179 | B191: 0 | C191: 0 | D191: 1 | E191: 1 | F191: 0 | G191: 1 | H191: 5 | I191: 0 | J191: 0 | K191: 0 | L191: 0 | M191: 0 | N191: 4 | O191: 0
A192: 180 | B192: 0 | C192: 0 | D192: 1 | E192: 1 | F192: 1 | G192: 0 | H192: 4 | I192: 1 | J192: 0 | K192: 0 | L192: 0 | M192: 0 | N192: 4 | O192: 0
A193: 181 | B193: 0 | C193: 0 | D193: 1 | E193: 1 | F193: 1 | G193: 1 | H193: 3 | I193: 0 | J193: 1 | K193: 0 | L193: 0 | M193: 0 | N193: 4 | O193: 0
A194: 182 | B194: 0 | C194: 0 | D194: 1 | E194: 1 | F194: 2 | G194: 0 | H194: 2 | I194: 1 | J194: 1 | K194: 0 | L194: 0 | M194: 0 | N194: 4 | O194: 0
A195: 183 | B195: 0 | C195: 0 | D195: 1 | E195: 1 | F195: 2 | G195: 1 | H195: 1 | I195: 0 | J195: 2 | K195: 0 | L195: 0 | M195: 0 | N195: 4 | O195: 0
A196: 184 | B196: 0 | C196: 0 | D196: 1 | E196: 1 | F196: 3 | G196: 0 | H196: 0 | I196: 1 | J196: 2 | K196: 0 | L196: 0 | M196: 0 | N196: 4 | O196: 0
A197: 185 | B197: 0 | C197: 0 | D197: 2 | E197: 1 | F197: 1 | G197: 1 | H197: 1 | I197: 0 | J197: 0 | K197: 2 | L197: 0 | M197: 0 | N197: 4 | O197: 0
A198: 186 | B198: 0 | C198: 0 | D198: 2 | E198: 1 | F198: 2 | G198: 0 | H198: 0 | I198: 1 | J198: 0 | K198: 2 | L198: 0 | M198: 0 | N198: 4 | O198: 0
A199: 187 | B199: 0 | C199: 0 | D199: 3 | E199: 1 | F199: 0 | G199: 0 | H199: 1 | I199: 0 | J199: 2 | K199: 1 | L199: 0 | M199: 0 | N199: 4 | O199: 0
A200: 188 | B200: 0 | C200: 0 | D200: 6 | E200: 0 | F200: 0 | G200: 0 | H200: 0 | I200: 1 | J200: 0 | K200: 0 | L200: 0 | M200: 0 | N200: 4 | O200: 0
A201: 189 | B201: 0 | C201: 1 | D201: 0 | E201: 1 | F201: 2 | G201: 1 | H201: 1 | I201: 0 | J201: 0 | K201: 2 | L201: 0 | M201: 0 | N201: 4 | O201: 0
... 4299 more rows

Sheet мин деталей t=5%
A1: Оптимизация. Варюхин С.Е. 2015 гг | C1: Нарезка труб
B2: 1 | C2: 2 | D2: 3 | E2: 4 | F2: 5 | G2: 6 | H2: 7 | I2: 8 | J2: 9 | K2: 10 | L2: 11 | M2: 12 | N2: Номер детали | P2: 6000 | Q2: = L — длина труб, мм
B3: 28 | C3: 18 | D3: 31 | E3: 96 | F3: 12 | G3: 27 | H3: 63 | I3: 76 | J3: 6 | K3: 14 | L3: 0 | M3: 0 | N3: Количество деталей | O3: =SUM(B3:M3) -> 371
B4: 1135 | C4: 980 | D4: 890 | E4: 847 | F4: 800 | G4: 735 | H4: 700 | I4: 635 | J4: 600 | K4: 555 | L4: 6000 | M4: 6000 | N4: Размеры деталей, мм | P4: 427 | Q4: = Δ - максимальный размер обрезка
P5: 0 | Q5: = Δm - максимальный размер остатка
B6: =B4+$P$6 -> 1138 | C6: 983 | D6: 893 | E6: 850 | F6: 803 | G6: 738 | H6: 703 | I6: 638 | J6: 603 | K6: 558 | L6: 6003 | M6: 6003 | N6: Длина детали + ширина реза | P6: 3 | Q6: = d - ширина реза
A7: вариантов | B7: =SUMPRODUCT(B6:M6,B3:M3)/(P2+P6) -> 48.74396135 | C7: Теоретич. мин. число труб | M7: Суммарная длина обрезков, м = | N7: =SUMPRODUCT(N13:N10014,O13:O10014)/1000 -> 10.346
A8: 10,002 | B8: =SUM(O13:O10014) -> 52 | C8: Количество труб длины L | M8: Суммарная длина остатков, м = | N8: 0.000 | O8: =N7*1000/(P2*B8) -> 3.32% | P8: Процент потерь в обрезки
B10: =SUMPRODUCT(B13:B10014,$O$13:$O$10014) -> 32 | C10: =SUMPRODUCT(C13:C10014,$O$13:$O$10014) -> 18 | D10: 32 | E10: 98 | F10: 12 | G10: 28 | H10: 63 | I10: 76 | J10: 7 | K10: 15 | L10: 0 | M10: 0 | N10: Количество полученных деталей | O10: =SUM(B10:M10) -> 381 | P10: 1.000 | Q10: = макс. суммарная длина обрезков
B11: =B10-B3 -> 4 | C11: 0 | D11: 1 | E11: 2 | F11: 0 | G11: 1 | H11: 0 | I11: 0 | J11: 1 | K11: =K10-K3 -> 1 | L11: 0 | M11: =M10-M3 -> 0 | N11: Количество лишних деталей | O11: =SUM(B11:M11) -> 10 | P11: 8 | Q11: = максимальный избыток деталей
A12: Номер варианта разреза | B12: 1 | C12: 2 | D12: 3 | E12: 4 | F12: 5 | G12: 6 | H12: 7 | I12: 8 | J12: 9 | K12: 10 | L12: 11 | M12: 12 | N12: Обрезок или остаток | O12: Сколько труб так разрезать?
A13: 1 | B13: 0 | C13: 0 | D13: 0 | E13: 7 | F13: 0 | G13: 0 | H13: 0 | I13: 0 | J13: 0 | K13: 0 | L13: 0 | M13: 0 | N13: =IF(SUMPRODUCT($B$6:$M$6,B13:M13)<$P$2,$P$2-SUMPRODUCT($B$6:$M$6,B13:M13),0) -> 50 | O13: 12
A14: 2 | B14: 1 | C14: 0 | D14: 2 | E14: 1 | F14: 0 | G14: 0 | H14: 1 | I14: 1 | J14: 0 | K14: 1 | L14: 0 | M14: 0 | N14: 327 | O14: 10
A15: 3 | B15: 2 | C15: 2 | D15: 0 | E15: 0 | F15: 2 | G15: 0 | H15: 0 | I15: 0 | J15: 0 | K15: 0 | L15: 0 | M15: 0 | N15: 152 | O15: 6
A16: 4 | B16: 0 | C16: 0 | D16: 0 | E16: 0 | F16: 0 | G16: 0 | H16: 0 | I16: 9 | J16: 0 | K16: 0 | L16: 0 | M16: 0 | N16: 258 | O16: 6
A17: 5 | B17: 0 | C17: 0 | D17: 0 | E17: 0 | F17: 0 | G17: 0 | H17: 8 | I17: 0 | J17: 0 | K17: 0 | L17: 0 | M17: 0 | N17: 376 | O17: 6
A18: 6 | B18: 1 | C18: 0 | D18: 0 | E18: 1 | F18: 0 | G18: 1 | H18: 1 | I18: 2 | J18: 1 | K18: 1 | L18: 0 | M18: 0 | N18: 134 | O18: 4
A19: 7 | B19: 0 | C19: 0 | D19: 0 | E19: 0 | F19: 0 | G19: 8 | H19: 0 | I19: 0 | J19: 0 | K19: 0 | L19: 0 | M19: 0 | N19: 96 | O19: 3
A20: 8 | B20: 0 | C20: 0 | D20: 5 | E20: 0 | F20: 0 | G20: 0 | H20: 0 | I20: 2 | J20: 0 | K20: 0 | L20: 0 | M20: 0 | N20: 259 | O20: 2
A21: 9 | B21: 1 | C21: 0 | D21: 2 | E21: 0 | F21: 0 | G21: 0 | H21: 1 | I21: 0 | J21: 3 | K21: 1 | L21: 0 | M21: 0 | N21: 6 | O21: 1
A22: 10 | B22: 0 | C22: 6 | D22: 0 | E22: 0 | F22: 0 | G22: 0 | H22: 0 | I22: 0 | J22: 0 | K22: 0 | L22: 0 | M22: 0 | N22: 102 | O22: 1
A23: 11 | B23: 5 | C23: 0 | D23: 0 | E23: 0 | F23: 0 | G23: 0 | H23: 0 | I23: 0 | J23: 0 | K23: 0 | L23: 0 | M23: 0 | N23: 310 | O23: 1
A24: 12 | B24: 0 | C24: 0 | D24: 0 | E24: 0 | F24: 0 | G24: 0 | H24: 0 | I24: 0 | J24: 0 | K24: 0 | L24: 0 | M24: 1 | N24: 0 | O24: 0
A25: 13 | B25: 0 | C25: 0 | D25: 0 | E25: 0 | F25: 0 | G25: 0 | H25: 0 | I25: 0 | J25: 0 | K25: 0 | L25: 1 | M25: 0 | N25: 0 | O25: 0
A26: 14 | B26: 0 | C26: 0 | D26: 0 | E26: 0 | F26: 0 | G26: 0 | H26: 0 | I26: 3 | J26: 4 | K26: 3 | L26: 0 | M26: 0 | N26: 0 | O26: 0
A27: 15 | B27: 0 | C27: 0 | D27: 0 | E27: 0 | F27: 0 | G27: 0 | H27: 4 | I27: 5 | J27: 0 | K27: 0 | L27: 0 | M27: 0 | N27: 0 | O27: 0
A28: 16 | B28: 0 | C28: 0 | D28: 0 | E28: 0 | F28: 0 | G28: 1 | H28: 0 | I28: 3 | J28: 0 | K28: 6 | L28: 0 | M28: 0 | N28: 0 | O28: 0
A29: 17 | B29: 0 | C29: 0 | D29: 0 | E29: 0 | F29: 0 | G29: 1 | H29: 3 | I29: 4 | J29: 1 | K29: 0 | L29: 0 | M29: 0 | N29: 0 | O29: 0
A30: 18 | B30: 0 | C30: 0 | D30: 0 | E30: 0 | F30: 0 | G30: 2 | H30: 2 | I30: 3 | J30: 2 | K30: 0 | L30: 0 | M30: 0 | N30: 0 | O30: 0
A31: 19 | B31: 0 | C31: 0 | D31: 0 | E31: 0 | F31: 0 | G31: 3 | H31: 1 | I31: 2 | J31: 3 | K31: 0 | L31: 0 | M31: 0 | N31: 0 | O31: 0
A32: 20 | B32: 0 | C32: 0 | D32: 0 | E32: 0 | F32: 0 | G32: 4 | H32: 0 | I32: 1 | J32: 4 | K32: 0 | L32: 0 | M32: 0 | N32: 0 | O32: 0
A33: 21 | B33: 0 | C33: 0 | D33: 0 | E33: 0 | F33: 0 | G33: 5 | H33: 0 | I33: 1 | J33: 0 | K33: 3 | L33: 0 | M33: 0 | N33: 0 | O33: 0
A34: 22 | B34: 0 | C34: 0 | D34: 0 | E34: 0 | F34: 1 | G34: 0 | H34: 2 | I34: 5 | J34: 1 | K34: 0 | L34: 0 | M34: 0 | N34: 0 | O34: 0
A35: 23 | B35: 0 | C35: 0 | D35: 0 | E35: 0 | F35: 1 | G35: 1 | H35: 1 | I35: 4 | J35: 2 | K35: 0 | L35: 0 | M35: 0 | N35: 0 | O35: 0
A36: 24 | B36: 0 | C36: 0 | D36: 0 | E36: 0 | F36: 1 | G36: 2 | H36: 0 | I36: 3 | J36: 3 | K36: 0 | L36: 0 | M36: 0 | N36: 0 | O36: 0
A37: 25 | B37: 0 | C37: 0 | D37: 0 | E37: 0 | F37: 2 | G37: 0 | H37: 0 | I37: 5 | J37: 2 | K37: 0 | L37: 0 | M37: 0 | N37: 0 | O37: 0
A38: 26 | B38: 0 | C38: 0 | D38: 0 | E38: 0 | F38: 4 | G38: 0 | H38: 0 | I38: 0 | J38: 0 | K38: 5 | L38: 0 | M38: 0 | N38: 0 | O38: 0
A39: 27 | B39: 0 | C39: 0 | D39: 0 | E39: 2 | F39: 0 | G39: 0 | H39: 1 | I39: 2 | J39: 2 | K39: 2 | L39: 0 | M39: 0 | N39: 0 | O39: 0
A40: 28 | B40: 0 | C40: 0 | D40: 0 | E40: 2 | F40: 0 | G40: 1 | H40: 0 | I40: 1 | J40: 3 | K40: 2 | L40: 0 | M40: 0 | N40: 0 | O40: 0
A41: 29 | B41: 0 | C41: 0 | D41: 0 | E41: 3 | F41: 0 | G41: 0 | H41: 4 | I41: 1 | J41: 0 | K41: 0 | L41: 0 | M41: 0 | N41: 0 | O41: 0
A42: 30 | B42: 0 | C42: 0 | D42: 0 | E42: 3 | F42: 0 | G42: 1 | H42: 3 | I42: 0 | J42: 1 | K42: 0 | L42: 0 | M42: 0 | N42: 0 | O42: 0
A43: 31 | B43: 0 | C43: 0 | D43: 0 | E43: 3 | F43: 1 | G43: 0 | H43: 2 | I43: 1 | J43: 1 | K43: 0 | L43: 0 | M43: 0 | N43: 0 | O43: 0
A44: 32 | B44: 0 | C44: 0 | D44: 0 | E44: 3 | F44: 1 | G44: 1 | H44: 1 | I44: 0 | J44: 2 | K44: 0 | L44: 0 | M44: 0 | N44: 0 | O44: 0
A45: 33 | B45: 0 | C45: 0 | D45: 0 | E45: 3 | F45: 2 | G45: 0 | H45: 0 | I45: 1 | J45: 2 | K45: 0 | L45: 0 | M45: 0 | N45: 0 | O45: 0
A46: 34 | B46: 0 | C46: 0 | D46: 0 | E46: 4 | F46: 0 | G46: 0 | H46: 2 | I46: 1 | J46: 0 | K46: 1 | L46: 0 | M46: 0 | N46: 0 | O46: 0
A47: 35 | B47: 0 | C47: 0 | D47: 0 | E47: 4 | F47: 0 | G47: 1 | H47: 1 | I47: 0 | J47: 1 | K47: 1 | L47: 0 | M47: 0 | N47: 0 | O47: 0
A48: 36 | B48: 0 | C48: 0 | D48: 0 | E48: 4 | F48: 1 | G48: 0 | H48: 0 | I48: 1 | J48: 1 | K48: 1 | L48: 0 | M48: 0 | N48: 0 | O48: 0
A49: 37 | B49: 0 | C49: 0 | D49: 1 | E49: 0 | F49: 0 | G49: 1 | H49: 1 | I49: 4 | J49: 0 | K49: 2 | L49: 0 | M49: 0 | N49: 0 | O49: 0
A50: 38 | B50: 0 | C50: 0 | D50: 1 | E50: 0 | F50: 0 | G50: 2 | H50: 0 | I50: 3 | J50: 1 | K50: 2 | L50: 0 | M50: 0 | N50: 0 | O50: 0
A51: 39 | B51: 0 | C51: 0 | D51: 1 | E51: 0 | F51: 1 | G51: 0 | H51: 0 | I51: 5 | J51: 0 | K51: 2 | L51: 0 | M51: 0 | N51: 0 | O51: 0
A52: 40 | B52: 0 | C52: 0 | D52: 1 | E52: 1 | F52: 0 | G52: 3 | H52: 2 | I52: 1 | J52: 0 | K52: 0 | L52: 0 | M52: 0 | N52: 0 | O52: 0
A53: 41 | B53: 0 | C53: 0 | D53: 1 | E53: 1 | F53: 0 | G53: 4 | H53: 1 | I53: 0 | J53: 1 | K53: 0 | L53: 0 | M53: 0 | N53: 0 | O53: 0
A54: 42 | B54: 0 | C54: 0 | D54: 1 | E54: 1 | F54: 1 | G54: 2 | H54: 1 | I54: 2 | J54: 0 | K54: 0 | L54: 0 | M54: 0 | N54: 0 | O54: 0
A55: 43 | B55: 0 | C55: 0 | D55: 1 | E55: 1 | F55: 1 | G55: 3 | H55: 0 | I55: 1 | J55: 1 | K55: 0 | L55: 0 | M55: 0 | N55: 0 | O55: 0
A56: 44 | B56: 0 | C56: 0 | D56: 1 | E56: 1 | F56: 2 | G56: 1 | H56: 0 | I56: 3 | J56: 0 | K56: 0 | L56: 0 | M56: 0 | N56: 0 | O56: 0
A57: 45 | B57: 0 | C57: 0 | D57: 1 | E57: 2 | F57: 0 | G57: 3 | H57: 0 | I57: 1 | J57: 0 | K57: 1 | L57: 0 | M57: 0 | N57: 0 | O57: 0
A58: 46 | B58: 0 | C58: 0 | D58: 1 | E58: 3 | F58: 0 | G58: 1 | H58: 1 | I58: 0 | J58: 0 | K58: 2 | L58: 0 | M58: 0 | N58: 0 | O58: 0
A59: 47 | B59: 0 | C59: 0 | D59: 1 | E59: 3 | F59: 1 | G59: 0 | H59: 0 | I59: 1 | J59: 0 | K59: 2 | L59: 0 | M59: 0 | N59: 0 | O59: 0
A60: 48 | B60: 0 | C60: 0 | D60: 2 | E60: 2 | F60: 0 | G60: 0 | H60: 0 | I60: 3 | J60: 1 | K60: 0 | L60: 0 | M60: 0 | N60: 0 | O60: 0
A61: 49 | B61: 0 | C61: 0 | D61: 3 | E61: 1 | F61: 0 | G61: 0 | H61: 0 | I61: 3 | J61: 0 | K61: 1 | L61: 0 | M61: 0 | N61: 0 | O61: 0
A62: 50 | B62: 0 | C62: 1 | D62: 0 | E62: 0 | F62: 0 | G62: 0 | H62: 1 | I62: 4 | J62: 2 | K62: 1 | L62: 0 | M62: 0 | N62: 0 | O62: 0
A63: 51 | B63: 0 | C63: 1 | D63: 0 | E63: 0 | F63: 0 | G63: 1 | H63: 0 | I63: 3 | J63: 3 | K63: 1 | L63: 0 | M63: 0 | N63: 0 | O63: 0
A64: 52 | B64: 0 | C64: 1 | D64: 0 | E64: 2 | F64: 0 | G64: 0 | H64: 2 | I64: 3 | J64: 0 | K64: 0 | L64: 0 | M64: 0 | N64: 0 | O64: 0
A65: 53 | B65: 0 | C65: 1 | D65: 0 | E65: 2 | F65: 0 | G65: 1 | H65: 1 | I65: 2 | J65: 1 | K65: 0 | L65: 0 | M65: 0 | N65: 0 | O65: 0
A66: 54 | B66: 0 | C66: 1 | D66: 0 | E66: 2 | F66: 0 | G66: 2 | H66: 0 | I66: 1 | J66: 2 | K66: 0 | L66: 0 | M66: 0 | N66: 0 | O66: 0
A67: 55 | B67: 0 | C67: 1 | D67: 0 | E67: 2 | F67: 1 | G67: 0 | H67: 0 | I67: 3 | J67: 1 | K67: 0 | L67: 0 | M67: 0 | N67: 0 | O67: 0
A68: 56 | B68: 0 | C68: 1 | D68: 0 | E68: 3 | F68: 0 | G68: 0 | H68: 1 | I68: 0 | J68: 2 | K68: 1 | L68: 0 | M68: 0 | N68: 0 | O68: 0
A69: 57 | B69: 0 | C69: 1 | D69: 1 | E69: 1 | F69: 0 | G69: 1 | H69: 1 | I69: 2 | J69: 0 | K69: 1 | L69: 0 | M69: 0 | N69: 0 | O69: 0
A70: 58 | B70: 0 | C70: 1 | D70: 1 | E70: 1 | F70: 0 | G70: 2 | H70: 0 | I70: 1 | J70: 1 | K70: 1 | L70: 0 | M70: 0 | N70: 0 | O70: 0
A71: 59 | B71: 0 | C71: 1 | D71: 1 | E71: 1 | F71: 1 | G71: 0 | H71: 0 | I71: 3 | J71: 0 | K71: 1 | L71: 0 | M71: 0 | N71: 0 | O71: 0
A72: 60 | B72: 0 | C72: 1 | D72: 3 | E72: 2 | F72: 0 | G72: 0 | H72: 0 | I72: 1 | J72: 0 | K72: 0 | L72: 0 | M72: 0 | N72: 0 | O72: 0
A73: 61 | B73: 0 | C73: 2 | D73: 0 | E73: 1 | F73: 0 | G73: 0 | H73: 1 | I73: 2 | J73: 2 | K73: 0 | L73: 0 | M73: 0 | N73: 0 | O73: 0
A74: 62 | B74: 0 | C74: 2 | D74: 0 | E74: 1 | F74: 0 | G74: 1 | H74: 0 | I74: 1 | J74: 3 | K74: 0 | L74: 0 | M74: 0 | N74: 0 | O74: 0
A75: 63 | B75: 0 | C75: 2 | D75: 1 | E75: 2 | F75: 0 | G75: 1 | H75: 1 | I75: 0 | J75: 0 | K75: 0 | L75: 0 | M75: 0 | N75: 0 | O75: 0
A76: 64 | B76: 0 | C76: 2 | D76: 1 | E76: 2 | F76: 1 | G76: 0 | H76: 0 | I76: 1 | J76: 0 | K76: 0 | L76: 0 | M76: 0 | N76: 0 | O76: 0
A77: 65 | B77: 1 | C77: 0 | D77: 0 | E77: 0 | F77: 0 | G77: 0 | H77: 0 | I77: 5 | J77: 0 | K77: 3 | L77: 0 | M77: 0 | N77: =IF(SUMPRODUCT($B$6:$M$6,B77:M77)<$P$2,$P$2-SUMPRODUCT($B$6:$M$6,B77:M77),0) -> 0 | O77: 0
A78: 66 | B78: 1 | C78: 0 | D78: 0 | E78: 1 | F78: 0 | G78: 2 | H78: 1 | I78: 2 | J78: 0 | K78: 1 | L78: 0 | M78: 0 | N78: 0 | O78: 0
A79: 67 | B79: 1 | C79: 0 | D79: 0 | E79: 1 | F79: 0 | G79: 3 | H79: 0 | I79: 1 | J79: 1 | K79: 1 | L79: 0 | M79: 0 | N79: 0 | O79: 0
A80: 68 | B80: 1 | C80: 0 | D80: 0 | E80: 1 | F80: 1 | G80: 1 | H80: 0 | I80: 3 | J80: 0 | K80: 1 | L80: 0 | M80: 0 | N80: 0 | O80: 0
A81: 69 | B81: 1 | C81: 0 | D81: 0 | E81: 1 | F81: 5 | G81: 0 | H81: 0 | I81: 0 | J81: 0 | K81: 0 | L81: 0 | M81: 0 | N81: 0 | O81: 0
A82: 70 | B82: 1 | C82: 0 | D82: 0 | E82: 3 | F82: 0 | G82: 0 | H82: 0 | I82: 1 | J82: 0 | K82: 3 | L82: 0 | M82: 0 | N82: 0 | O82: 0
A83: 71 | B83: 1 | C83: 0 | D83: 1 | E83: 1 | F83: 0 | G83: 0 | H83: 0 | I83: 3 | J83: 2 | K83: 0 | L83: 0 | M83: 0 | N83: 0 | O83: 0
A84: 72 | B84: 1 | C84: 0 | D84: 2 | E84: 2 | F84: 0 | G84: 1 | H84: 0 | I84: 1 | J84: 0 | K84: 0 | L84: 0 | M84: 0 | N84: 0 | O84: 0
A85: 73 | B85: 1 | C85: 1 | D85: 0 | E85: 1 | F85: 0 | G85: 0 | H85: 0 | I85: 3 | J85: 0 | K85: 2 | L85: 0 | M85: 0 | N85: 0 | O85: 0
A86: 74 | B86: 1 | C86: 1 | D86: 0 | E86: 2 | F86: 0 | G86: 2 | H86: 1 | I86: 0 | J86: 0 | K86: 0 | L86: 0 | M86: 0 | N86: 0 | O86: 0
A87: 75 | B87: 1 | C87: 1 | D87: 0 | E87: 2 | F87: 1 | G87: 1 | H87: 0 | I87: 1 | J87: 0 | K87: 0 | L87: 0 | M87: 0 | N87: 0 | O87: 0
A88: 76 | B88: 1 | C88: 2 | D88: 0 | E88: 2 | F88: 0 | G88: 0 | H88: 0 | I88: 1 | J88: 0 | K88: 1 | L88: 0 | M88: 0 | N88: 0 | O88: 0
A89: 77 | B89: 1 | C89: 3 | D89: 0 | E89: 0 | F89: 0 | G89: 0 | H89: 0 | I89: 3 | J89: 0 | K89: 0 | L89: 0 | M89: 0 | N89: 0 | O89: 0
A90: 78 | B90: 3 | C90: 0 | D90: 2 | E90: 0 | F90: 1 | G90: 0 | H90: 0 | I90: 0 | J90: 0 | K90: 0 | L90: 0 | M90: 0 | N90: 0 | O90: 0
A91: 79 | B91: 3 | C91: 1 | D91: 0 | E91: 0 | F91: 2 | G91: 0 | H91: 0 | I91: 0 | J91: 0 | K91: 0 | L91: 0 | M91: 0 | N91: 0 | O91: 0
A92: 80 | B92: 4 | C92: 0 | D92: 1 | E92: 0 | F92: 0 | G92: 0 | H92: 0 | I92: 0 | J92: 0 | K92: 1 | L92: 0 | M92: 0 | N92: 0 | O92: 0
A93: 81 | B93: 0 | C93: 0 | D93: 0 | E93: 0 | F93: 2 | G93: 5 | H93: 1 | I93: 0 | J93: 0 | K93: 0 | L93: 0 | M93: 0 | N93: 1 | O93: 0
A94: 82 | B94: 0 | C94: 0 | D94: 0 | E94: 0 | F94: 3 | G94: 4 | H94: 0 | I94: 1 | J94: 0 | K94: 0 | L94: 0 | M94: 0 | N94: 1 | O94: 0
A95: 83 | B95: 0 | C95: 0 | D95: 0 | E95: 1 | F95: 0 | G95: 0 | H95: 3 | I95: 2 | J95: 2 | K95: 1 | L95: 0 | M95: 0 | N95: 1 | O95: 0
A96: 84 | B96: 0 | C96: 0 | D96: 0 | E96: 1 | F96: 0 | G96: 1 | H96: 2 | I96: 1 | J96: 3 | K96: 1 | L96: 0 | M96: 0 | N96: 1 | O96: 0
A97: 85 | B97: 0 | C97: 0 | D97: 0 | E97: 1 | F97: 0 | G97: 2 | H97: 1 | I97: 0 | J97: 4 | K97: 1 | L97: 0 | M97: 0 | N97: 1 | O97: 0
A98: 86 | B98: 0 | C98: 0 | D98: 0 | E98: 1 | F98: 0 | G98: 3 | H98: 1 | I98: 0 | J98: 0 | K98: 4 | L98: 0 | M98: 0 | N98: 1 | O98: 0
A99: 87 | B99: 0 | C99: 0 | D99: 0 | E99: 1 | F99: 1 | G99: 0 | H99: 1 | I99: 2 | J99: 3 | K99: 1 | L99: 0 | M99: 0 | N99: 1 | O99: 0
A100: 88 | B100: 0 | C100: 0 | D100: 0 | E100: 1 | F100: 1 | G100: 1 | H100: 0 | I100: 1 | J100: 4 | K100: 1 | L100: 0 | M100: 0 | N100: 1 | O100: 0
A101: 89 | B101: 0 | C101: 0 | D101: 0 | E101: 1 | F101: 1 | G101: 2 | H101: 0 | I101: 1 | J101: 0 | K101: 4 | L101: 0 | M101: 0 | N101: 1 | O101: 0
A102: 90 | B102: 0 | C102: 0 | D102: 1 | E102: 1 | F102: 0 | G102: 0 | H102: 0 | I102: 1 | J102: 6 | K102: 0 | L102: 0 | M102: 0 | N102: 1 | O102: 0
A103: 91 | B103: 0 | C103: 0 | D103: 1 | E103: 1 | F103: 0 | G103: 0 | H103: 1 | I103: 2 | J103: 1 | K103: 3 | L103: 0 | M103: 0 | N103: 1 | O103: 0
A104: 92 | B104: 0 | C104: 0 | D104: 1 | E104: 1 | F104: 0 | G104: 1 | H104: 0 | I104: 1 | J104: 2 | K104: 3 | L104: 0 | M104: 0 | N104: 1 | O104: 0
A105: 93 | B105: 0 | C105: 0 | D105: 2 | E105: 0 | F105: 0 | G105: 4 | H105: 1 | I105: 0 | J105: 0 | K105: 1 | L105: 0 | M105: 0 | N105: 1 | O105: 0
A106: 94 | B106: 0 | C106: 0 | D106: 2 | E106: 0 | F106: 1 | G106: 3 | H106: 0 | I106: 1 | J106: 0 | K106: 1 | L106: 0 | M106: 0 | N106: 1 | O106: 0
A107: 95 | B107: 0 | C107: 0 | D107: 3 | E107: 0 | F107: 0 | G107: 0 | H107: 2 | I107: 3 | J107: 0 | K107: 0 | L107: 0 | M107: 0 | N107: 1 | O107: 0
A108: 96 | B108: 0 | C108: 0 | D108: 3 | E108: 0 | F108: 0 | G108: 1 | H108: 1 | I108: 2 | J108: 1 | K108: 0 | L108: 0 | M108: 0 | N108: 1 | O108: 0
A109: 97 | B109: 0 | C109: 0 | D109: 3 | E109: 0 | F109: 0 | G109: 2 | H109: 0 | I109: 1 | J109: 2 | K109: 0 | L109: 0 | M109: 0 | N109: 1 | O109: 0
A110: 98 | B110: 0 | C110: 0 | D110: 3 | E110: 0 | F110: 1 | G110: 0 | H110: 0 | I110: 3 | J110: 1 | K110: 0 | L110: 0 | M110: 0 | N110: 1 | O110: 0
A111: 99 | B111: 0 | C111: 1 | D111: 0 | E111: 0 | F111: 1 | G111: 4 | H111: 1 | I111: 0 | J111: 0 | K111: 1 | L111: 0 | M111: 0 | N111: 1 | O111: 0
A112: 100 | B112: 0 | C112: 1 | D112: 0 | E112: 0 | F112: 2 | G112: 3 | H112: 0 | I112: 1 | J112: 0 | K112: 1 | L112: 0 | M112: 0 | N112: 1 | O112: 0
A113: 101 | B113: 0 | C113: 1 | D113: 0 | E113: 1 | F113: 0 | G113: 0 | H113: 0 | I113: 1 | J113: 4 | K113: 2 | L113: 0 | M113: 0 | N113: 1 | O113: 0
A114: 102 | B114: 0 | C114: 1 | D114: 0 | E114: 1 | F114: 0 | G114: 1 | H114: 0 | I114: 1 | J114: 0 | K114: 5 | L114: 0 | M114: 0 | N114: 1 | O114: 0
A115: 103 | B115: 0 | C115: 1 | D115: 1 | E115: 0 | F115: 0 | G115: 1 | H115: 3 | I115: 2 | J115: 0 | K115: 0 | L115: 0 | M115: 0 | N115: 1 | O115: 0
A116: 104 | B116: 0 | C116: 1 | D116: 1 | E116: 0 | F116: 0 | G116: 2 | H116: 2 | I116: 1 | J116: 1 | K116: 0 | L116: 0 | M116: 0 | N116: 1 | O116: 0
A117: 105 | B117: 0 | C117: 1 | D117: 1 | E117: 0 | F117: 0 | G117: 3 | H117: 1 | I117: 0 | J117: 2 | K117: 0 | L117: 0 | M117: 0 | N117: 1 | O117: 0
A118: 106 | B118: 0 | C118: 1 | D118: 1 | E118: 0 | F118: 1 | G118: 0 | H118: 2 | I118: 3 | J118: 0 | K118: 0 | L118: 0 | M118: 0 | N118: 1 | O118: 0
A119: 107 | B119: 0 | C119: 1 | D119: 1 | E119: 0 | F119: 1 | G119: 1 | H119: 1 | I119: 2 | J119: 1 | K119: 0 | L119: 0 | M119: 0 | N119: 1 | O119: 0
A120: 108 | B120: 0 | C120: 1 | D120: 1 | E120: 0 | F120: 1 | G120: 2 | H120: 0 | I120: 1 | J120: 2 | K120: 0 | L120: 0 | M120: 0 | N120: 1 | O120: 0
A121: 109 | B121: 0 | C121: 1 | D121: 1 | E121: 0 | F121: 2 | G121: 0 | H121: 0 | I121: 3 | J121: 1 | K121: 0 | L121: 0 | M121: 0 | N121: 1 | O121: 0
A122: 110 | B122: 0 | C122: 1 | D122: 2 | E122: 0 | F122: 0 | G122: 2 | H122: 0 | I122: 1 | J122: 0 | K122: 2 | L122: 0 | M122: 0 | N122: 1 | O122: 0
A123: 111 | B123: 0 | C123: 2 | D123: 0 | E123: 0 | F123: 0 | G123: 3 | H123: 1 | I123: 0 | J123: 0 | K123: 2 | L123: 0 | M123: 0 | N123: 1 | O123: 0
A124: 112 | B124: 0 | C124: 2 | D124: 0 | E124: 0 | F124: 1 | G124: 2 | H124: 0 | I124: 1 | J124: 0 | K124: 2 | L124: 0 | M124: 0 | N124: 1 | O124: 0
A125: 113 | B125: 0 | C125: 2 | D125: 1 | E125: 0 | F125: 0 | G125: 0 | H125: 1 | I125: 2 | J125: 1 | K125: 1 | L125: 0 | M125: 0 | N125: 1 | O125: 0
A126: 114 | B126: 0 | C126: 2 | D126: 1 | E126: 0 | F126: 0 | G126: 1 | H126: 0 | I126: 1 | J126: 2 | K126: 1 | L126: 0 | M126: 0 | N126: 1 | O126: 0
A127: 115 | B127: 0 | C127: 3 | D127: 0 | E127: 0 | F127: 0 | G127: 0 | H127: 0 | I127: 1 | J127: 4 | K127: 0 | L127: 0 | M127: 0 | N127: 1 | O127: 0
A128: 116 | B128: 0 | C128: 3 | D128: 0 | E128: 0 | F128: 0 | G128: 1 | H128: 0 | I128: 1 | J128: 0 | K128: 3 | L128: 0 | M128: 0 | N128: 1 | O128: 0
A129: 117 | B129: 1 | C129: 0 | D129: 0 | E129: 0 | F129: 0 | G129: 2 | H129: 3 | I129: 2 | J129: 0 | K129: 0 | L129: 0 | M129: 0 | N129: 1 | O129: 0
A130: 118 | B130: 1 | C130: 0 | D130: 0 | E130: 0 | F130: 0 | G130: 3 | H130: 2 | I130: 1 | J130: 1 | K130: 0 | L130: 0 | M130: 0 | N130: 1 | O130: 0
A131: 119 | B131: 1 | C131: 0 | D131: 0 | E131: 0 | F131: 0 | G131: 4 | H131: 1 | I131: 0 | J131: 2 | K131: 0 | L131: 0 | M131: 0 | N131: 1 | O131: 0
A132: 120 | B132: 1 | C132: 0 | D132: 0 | E132: 0 | F132: 1 | G132: 1 | H132: 2 | I132: 3 | J132: 0 | K132: 0 | L132: 0 | M132: 0 | N132: 1 | O132: 0
A133: 121 | B133: 1 | C133: 0 | D133: 0 | E133: 0 | F133: 1 | G133: 2 | H133: 1 | I133: 2 | J133: 1 | K133: 0 | L133: 0 | M133: 0 | N133: 1 | O133: 0
A134: 122 | B134: 1 | C134: 0 | D134: 0 | E134: 0 | F134: 1 | G134: 3 | H134: 0 | I134: 1 | J134: 2 | K134: 0 | L134: 0 | M134: 0 | N134: 1 | O134: 0
A135: 123 | B135: 1 | C135: 0 | D135: 0 | E135: 0 | F135: 2 | G135: 0 | H135: 1 | I135: 4 | J135: 0 | K135: 0 | L135: 0 | M135: 0 | N135: 1 | O135: 0
A136: 124 | B136: 1 | C136: 0 | D136: 0 | E136: 0 | F136: 2 | G136: 1 | H136: 0 | I136: 3 | J136: 1 | K136: 0 | L136: 0 | M136: 0 | N136: 1 | O136: 0
A137: 125 | B137: 1 | C137: 0 | D137: 1 | E137: 0 | F137: 0 | G137: 3 | H137: 0 | I137: 1 | J137: 0 | K137: 2 | L137: 0 | M137: 0 | N137: 1 | O137: 0
A138: 126 | B138: 1 | C138: 0 | D138: 2 | E138: 0 | F138: 0 | G138: 0 | H138: 0 | I138: 3 | J138: 1 | K138: 1 | L138: 0 | M138: 0 | N138: 1 | O138: 0
A139: 127 | B139: 1 | C139: 1 | D139: 0 | E139: 0 | F139: 0 | G139: 0 | H139: 2 | I139: 3 | J139: 0 | K139: 1 | L139: 0 | M139: 0 | N139: 1 | O139: 0
A140: 128 | B140: 1 | C140: 1 | D140: 0 | E140: 0 | F140: 0 | G140: 1 | H140: 1 | I140: 2 | J140: 1 | K140: 1 | L140: 0 | M140: 0 | N140: 1 | O140: 0
A141: 129 | B141: 1 | C141: 1 | D141: 0 | E141: 0 | F141: 0 | G141: 2 | H141: 0 | I141: 1 | J141: 2 | K141: 1 | L141: 0 | M141: 0 | N141: =IF(SUMPRODUCT($B$6:$M$6,B141:M141)<$P$2,$P$2-SUMPRODUCT($B$6:$M$6,B141:M141),0) -> 1 | O141: 0
A142: 130 | B142: 1 | C142: 1 | D142: 0 | E142: 0 | F142: 1 | G142: 0 | H142: 0 | I142: 3 | J142: 1 | K142: 1 | L142: 0 | M142: 0 | N142: 1 | O142: 0
A143: 131 | B143: 2 | C143: 0 | D143: 0 | E143: 0 | F143: 0 | G143: 0 | H143: 0 | I143: 3 | J143: 3 | K143: 0 | L143: 0 | M143: 0 | N143: 1 | O143: 0
A144: 132 | B144: 0 | C144: 0 | D144: 1 | E144: 2 | F144: 0 | G144: 1 | H144: 3 | I144: 0 | J144: 0 | K144: 1 | L144: 0 | M144: 0 | N144: 2 | O144: 0
A145: 133 | B145: 0 | C145: 0 | D145: 1 | E145: 2 | F145: 1 | G145: 0 | H145: 2 | I145: 1 | J145: 0 | K145: 1 | L145: 0 | M145: 0 | N145: 2 | O145: 0
A146: 134 | B146: 0 | C146: 0 | D146: 1 | E146: 2 | F146: 1 | G146: 1 | H146: 1 | I146: 0 | J146: 1 | K146: 1 | L146: 0 | M146: 0 | N146: 2 | O146: 0
A147: 135 | B147: 0 | C147: 0 | D147: 1 | E147: 2 | F147: 2 | G147: 0 | H147: 0 | I147: 1 | J147: 1 | K147: 1 | L147: 0 | M147: 0 | N147: 2 | O147: 0
A148: 136 | B148: 0 | C148: 0 | D148: 2 | E148: 2 | F148: 0 | G148: 0 | H148: 1 | I148: 0 | J148: 3 | K148: 0 | L148: 0 | M148: 0 | N148: 2 | O148: 0
A149: 137 | B149: 0 | C149: 1 | D149: 0 | E149: 2 | F149: 0 | G149: 0 | H149: 3 | I149: 0 | J149: 2 | K149: 0 | L149: 0 | M149: 0 | N149: 2 | O149: 0
A150: 138 | B150: 0 | C150: 1 | D150: 0 | E150: 2 | F150: 1 | G150: 0 | H150: 1 | I150: 0 | J150: 3 | K150: 0 | L150: 0 | M150: 0 | N150: 2 | O150: 0
A151: 139 | B151: 0 | C151: 1 | D151: 1 | E151: 2 | F151: 0 | G151: 0 | H151: 1 | I151: 0 | J151: 1 | K151: 2 | L151: 0 | M151: 0 | N151: 2 | O151: 0
A152: 140 | B152: 0 | C152: 3 | D152: 1 | E152: 1 | F152: 0 | G152: 0 | H152: 1 | I152: 0 | J152: 1 | K152: 0 | L152: 0 | M152: 0 | N152: 2 | O152: 0
A153: 141 | B153: 1 | C153: 0 | D153: 0 | E153: 2 | F153: 0 | G153: 0 | H153: 2 | I153: 1 | J153: 0 | K153: 2 | L153: 0 | M153: 0 | N153: 2 | O153: 0
A154: 142 | B154: 1 | C154: 0 | D154: 0 | E154: 2 | F154: 0 | G154: 1 | H154: 1 | I154: 0 | J154: 1 | K154: 2 | L154: 0 | M154: 0 | N154: 2 | O154: 0
A155: 143 | B155: 1 | C155: 0 | D155: 0 | E155: 2 | F155: 1 | G155: 0 | H155: 0 | I155: 1 | J155: 1 | K155: 2 | L155: 0 | M155: 0 | N155: 2 | O155: 0
A156: 144 | B156: 1 | C156: 1 | D156: 2 | E156: 1 | F156: 0 | G156: 0 | H156: 0 | I156: 1 | J156: 1 | K156: 0 | L156: 0 | M156: 0 | N156: 2 | O156: 0
A157: 145 | B157: 1 | C157: 2 | D157: 0 | E157: 1 | F157: 0 | G157: 0 | H157: 2 | I157: 1 | J157: 0 | K157: 0 | L157: 0 | M157: 0 | N157: 2 | O157: 0
A158: 146 | B158: 1 | C158: 2 | D158: 0 | E158: 1 | F158: 0 | G158: 1 | H158: 1 | I158: 0 | J158: 1 | K158: 0 | L158: 0 | M158: 0 | N158: 2 | O158: 0
A159: 147 | B159: 1 | C159: 2 | D159: 0 | E159: 1 | F159: 1 | G159: 0 | H159: 0 | I159: 1 | J159: 1 | K159: 0 | L159: 0 | M159: 0 | N159: 2 | O159: 0
A160: 148 | B160: 2 | C160: 0 | D160: 1 | E160: 1 | F160: 0 | G160: 0 | H160: 1 | I160: 2 | J160: 0 | K160: 0 | L160: 0 | M160: 0 | N160: 2 | O160: 0
A161: 149 | B161: 2 | C161: 0 | D161: 1 | E161: 1 | F161: 0 | G161: 1 | H161: 0 | I161: 1 | J161: 1 | K161: 0 | L161: 0 | M161: 0 | N161: 2 | O161: 0
A162: 150 | B162: 0 | C162: 0 | D162: 0 | E162: 0 | F162: 0 | G162: 0 | H162: 5 | I162: 2 | J162: 2 | K162: 0 | L162: 0 | M162: 0 | N162: 3 | O162: 0
A163: 151 | B163: 0 | C163: 0 | D163: 0 | E163: 0 | F163: 0 | G163: 1 | H163: 4 | I163: 1 | J163: 3 | K163: 0 | L163: 0 | M163: 0 | N163: 3 | O163: 0
A164: 152 | B164: 0 | C164: 0 | D164: 0 | E164: 0 | F164: 0 | G164: 2 | H164: 3 | I164: 0 | J164: 4 | K164: 0 | L164: 0 | M164: 0 | N164: 3 | O164: 0
A165: 153 | B165: 0 | C165: 0 | D165: 0 | E165: 0 | F165: 0 | G165: 3 | H165: 3 | I165: 0 | J165: 0 | K165: 3 | L165: 0 | M165: 0 | N165: 3 | O165: 0
A166: 154 | B166: 0 | C166: 0 | D166: 0 | E166: 0 | F166: 1 | G166: 0 | H166: 3 | I166: 2 | J166: 3 | K166: 0 | L166: 0 | M166: 0 | N166: 3 | O166: 0
A167: 155 | B167: 0 | C167: 0 | D167: 0 | E167: 0 | F167: 1 | G167: 1 | H167: 2 | I167: 1 | J167: 4 | K167: 0 | L167: 0 | M167: 0 | N167: 3 | O167: 0
A168: 156 | B168: 0 | C168: 0 | D168: 0 | E168: 0 | F168: 1 | G168: 2 | H168: 1 | I168: 0 | J168: 5 | K168: 0 | L168: 0 | M168: 0 | N168: 3 | O168: 0
A169: 157 | B169: 0 | C169: 0 | D169: 0 | E169: 0 | F169: 1 | G169: 2 | H169: 2 | I169: 1 | J169: 0 | K169: 3 | L169: 0 | M169: 0 | N169: 3 | O169: 0
A170: 158 | B170: 0 | C170: 0 | D170: 0 | E170: 0 | F170: 1 | G170: 3 | H170: 1 | I170: 0 | J170: 1 | K170: 3 | L170: 0 | M170: 0 | N170: 3 | O170: 0
A171: 159 | B171: 0 | C171: 0 | D171: 0 | E171: 0 | F171: 2 | G171: 0 | H171: 1 | I171: 2 | J171: 4 | K171: 0 | L171: 0 | M171: 0 | N171: 3 | O171: 0
A172: 160 | B172: 0 | C172: 0 | D172: 0 | E172: 0 | F172: 2 | G172: 1 | H172: 0 | I172: 1 | J172: 5 | K172: 0 | L172: 0 | M172: 0 | N172: 3 | O172: 0
A173: 161 | B173: 0 | C173: 0 | D173: 0 | E173: 0 | F173: 2 | G173: 1 | H173: 1 | I173: 2 | J173: 0 | K173: 3 | L173: 0 | M173: 0 | N173: 3 | O173: 0
A174: 162 | B174: 0 | C174: 0 | D174: 0 | E174: 0 | F174: 2 | G174: 2 | H174: 0 | I174: 1 | J174: 1 | K174: 3 | L174: 0 | M174: 0 | N174: 3 | O174: 0
A175: 163 | B175: 0 | C175: 0 | D175: 0 | E175: 0 | F175: 3 | G175: 0 | H175: 0 | I175: 3 | J175: 0 | K175: 3 | L175: 0 | M175: 0 | N175: 3 | O175: 0
A176: 164 | B176: 0 | C176: 0 | D176: 0 | E176: 1 | F176: 0 | G176: 0 | H176: 0 | I176: 1 | J176: 1 | K176: 7 | L176: 0 | M176: 0 | N176: 3 | O176: 0
A177: 165 | B177: 0 | C177: 0 | D177: 1 | E177: 0 | F177: 0 | G177: 0 | H177: 0 | I177: 8 | J177: 0 | K177: 0 | L177: 0 | M177: 0 | N177: 3 | O177: 0
A178: 166 | B178: 0 | C178: 0 | D178: 1 | E178: 0 | F178: 0 | G178: 0 | H178: 3 | I178: 2 | J178: 1 | K178: 2 | L178: 0 | M178: 0 | N178: 3 | O178: 0
A179: 167 | B179: 0 | C179: 0 | D179: 1 | E179: 0 | F179: 0 | G179: 1 | H179: 2 | I179: 1 | J179: 2 | K179: 2 | L179: 0 | M179: 0 | N179: 3 | O179: 0
A180: 168 | B180: 0 | C180: 0 | D180: 1 | E180: 0 | F180: 0 | G180: 2 | H180: 1 | I180: 0 | J180: 3 | K180: 2 | L180: 0 | M180: 0 | N180: 3 | O180: 0
A181: 169 | B181: 0 | C181: 0 | D181: 1 | E181: 0 | F181: 1 | G181: 0 | H181: 1 | I181: 2 | J181: 2 | K181: 2 | L181: 0 | M181: 0 | N181: 3 | O181: 0
A182: 170 | B182: 0 | C182: 0 | D182: 1 | E182: 0 | F182: 1 | G182: 1 | H182: 0 | I182: 1 | J182: 3 | K182: 2 | L182: 0 | M182: 0 | N182: 3 | O182: 0
A183: 171 | B183: 0 | C183: 0 | D183: 2 | E183: 0 | F183: 0 | G183: 0 | H183: 0 | I183: 1 | J183: 5 | K183: 1 | L183: 0 | M183: 0 | N183: 3 | O183: 0
A184: 172 | B184: 0 | C184: 0 | D184: 2 | E184: 0 | F184: 0 | G184: 0 | H184: 1 | I184: 2 | J184: 0 | K184: 4 | L184: 0 | M184: 0 | N184: 3 | O184: 0
A185: 173 | B185: 0 | C185: 0 | D185: 2 | E185: 0 | F185: 0 | G185: 1 | H185: 0 | I185: 1 | J185: 1 | K185: 4 | L185: 0 | M185: 0 | N185: 3 | O185: 0
A186: 174 | B186: 0 | C186: 1 | D186: 0 | E186: 0 | F186: 0 | G186: 0 | H186: 2 | I186: 1 | J186: 4 | K186: 1 | L186: 0 | M186: 0 | N186: 3 | O186: 0
A187: 175 | B187: 0 | C187: 1 | D187: 0 | E187: 0 | F187: 0 | G187: 1 | H187: 1 | I187: 0 | J187: 5 | K187: 1 | L187: 0 | M187: 0 | N187: 3 | O187: 0
A188: 176 | B188: 0 | C188: 1 | D188: 0 | E188: 0 | F188: 0 | G188: 1 | H188: 2 | I188: 1 | J188: 0 | K188: 4 | L188: 0 | M188: 0 | N188: 3 | O188: 0
A189: 177 | B189: 0 | C189: 1 | D189: 0 | E189: 0 | F189: 0 | G189: 2 | H189: 1 | I189: 0 | J189: 1 | K189: 4 | L189: 0 | M189: 0 | N189: 3 | O189: 0
A190: 178 | B190: 0 | C190: 1 | D190: 0 | E190: 0 | F190: 1 | G190: 0 | H190: 0 | I190: 1 | J190: 5 | K190: 1 | L190: 0 | M190: 0 | N190: 3 | O190: 0
A191: 179 | B191: 0 | C191: 1 | D191: 0 | E191: 0 | F191: 1 | G191: 0 | H191: 1 | I191: 2 | J191: 0 | K191: 4 | L191: 0 | M191: 0 | N191: 3 | O191: 0
A192: 180 | B192: 0 | C192: 1 | D192: 0 | E192: 0 | F192: 1 | G192: 1 | H192: 0 | I192: 1 | J192: 1 | K192: 4 | L192: 0 | M192: 0 | N192: 3 | O192: 0
A193: 181 | B193: 0 | C193: 1 | D193: 1 | E193: 0 | F193: 0 | G193: 0 | H193: 0 | I193: 1 | J193: 3 | K193: 3 | L193: 0 | M193: 0 | N193: 3 | O193: 0
A194: 182 | B194: 0 | C194: 2 | D194: 0 | E194: 0 | F194: 0 | G194: 0 | H194: 0 | I194: 1 | J194: 1 | K194: 5 | L194: 0 | M194: 0 | N194: 3 | O194: 0
A195: 183 | B195: 1 | C195: 0 | D195: 0 | E195: 0 | F195: 0 | G195: 0 | H195: 0 | I195: 1 | J195: 7 | K195: 0 | L195: 0 | M195: 0 | N195: 3 | O195: 0
A196: 184 | B196: 1 | C196: 0 | D196: 0 | E196: 0 | F196: 0 | G196: 0 | H196: 1 | I196: 2 | J196: 2 | K196: 3 | L196: 0 | M196: 0 | N196: 3 | O196: 0
A197: 185 | B197: 1 | C197: 0 | D197: 0 | E197: 0 | F197: 0 | G197: 1 | H197: 0 | I197: 1 | J197: 3 | K197: 3 | L197: 0 | M197: 0 | N197: 3 | O197: 0
A198: 186 | B198: 1 | C198: 0 | D198: 0 | E198: 3 | F198: 2 | G198: 0 | H198: 1 | I198: 0 | J198: 0 | K198: 0 | L198: 0 | M198: 0 | N198: 3 | O198: 0
A199: 187 | B199: 0 | C199: 0 | D199: 0 | E199: 1 | F199: 3 | G199: 2 | H199: 1 | I199: 0 | J199: 0 | K199: 1 | L199: 0 | M199: 0 | N199: 4 | O199: 0
A200: 188 | B200: 0 | C200: 0 | D200: 0 | E200: 1 | F200: 4 | G200: 1 | H200: 0 | I200: 1 | J200: 0 | K200: 1 | L200: 0 | M200: 0 | N200: 4 | O200: 0
A201: 189 | B201: 0 | C201: 0 | D201: 0 | E201: 2 | F201: 1 | G201: 0 | H201: 1 | I201: 0 | J201: 0 | K201: 5 | L201: 0 | M201: 0 | N201: 4 | O201: 0
... 4299 more rows

Sheet мин деталей t=1%
A1: Оптимизация. Варюхин С.Е. 2015 гг | C1: Нарезка труб
B2: 1 | C2: 2 | D2: 3 | E2: 4 | F2: 5 | G2: 6 | H2: 7 | I2: 8 | J2: 9 | K2: 10 | L2: 11 | M2: 12 | N2: Номер детали | P2: 6000 | Q2: = L — длина труб, мм
B3: 28 | C3: 18 | D3: 31 | E3: 96 | F3: 12 | G3: 27 | H3: 63 | I3: 76 | J3: 6 | K3: 14 | L3: 0 | M3: 0 | N3: Количество деталей | O3: =SUM(B3:M3) -> 371
B4: 1135 | C4: 980 | D4: 890 | E4: 847 | F4: 800 | G4: 735 | H4: 700 | I4: 635 | J4: 600 | K4: 555 | L4: 6000 | M4: 6000 | N4: Размеры деталей, мм | P4: 427 | Q4: = Δ - максимальный размер обрезка
P5: 0 | Q5: = Δm - максимальный размер остатка
B6: =B4+$P$6 -> 1138 | C6: 983 | D6: 893 | E6: 850 | F6: 803 | G6: 738 | H6: 703 | I6: 638 | J6: 603 | K6: 558 | L6: 6003 | M6: 6003 | N6: Длина детали + ширина реза | P6: 3 | Q6: = d - ширина реза
A7: вариантов | B7: =SUMPRODUCT(B6:M6,B3:M3)/(P2+P6) -> 48.74396135 | C7: Теоретич. мин. число труб | M7: Суммарная длина обрезков, м = | N7: =SUMPRODUCT(N13:N10014,O13:O10014)/1000 -> 7.390
A8: 10,002 | B8: =SUM(O13:O10014) -> 50 | C8: Количество труб длины L | M8: Суммарная длина остатков, м = | N8: 0.000 | O8: =N7*1000/(P2*B8) -> 2.46% | P8: Процент потерь в обрезки
B10: =SUMPRODUCT(B13:B10014,$O$13:$O$10014) -> 28 | C10: =SUMPRODUCT(C13:C10014,$O$13:$O$10014) -> 18 | D10: 31 | E10: 96 | F10: 12 | G10: 27 | H10: 63 | I10: 76 | J10: 6 | K10: 14 | L10: 0 | M10: 0 | N10: Количество полученных деталей | O10: =SUM(B10:M10) -> 371 | P10: 1.000 | Q10: = макс. суммарная длина обрезков
B11: =B10-B3 -> 0 | C11: 0 | D11: 0 | E11: 0 | F11: 0 | G11: 0 | H11: 0 | I11: 0 | J11: 0 | K11: =K10-K3 -> 0 | L11: 0 | M11: =M10-M3 -> 0 | N11: Количество лишних деталей | O11: =SUM(B11:M11) -> 0 | P11: 8 | Q11: = максимальный избыток деталей
A12: Номер варианта разреза | B12: 1 | C12: 2 | D12: 3 | E12: 4 | F12: 5 | G12: 6 | H12: 7 | I12: 8 | J12: 9 | K12: 10 | L12: 11 | M12: 12 | N12: Обрезок или остаток | O12: Сколько труб так разрезать?
A13: 1 | B13: 0 | C13: 0 | D13: 0 | E13: 0 | F13: 0 | G13: 0 | H13: 0 | I13: 0 | J13: 0 | K13: 0 | L13: 0 | M13: 1 | N13: =IF(SUMPRODUCT($B$6:$M$6,B13:M13)<$P$2,$P$2-SUMPRODUCT($B$6:$M$6,B13:M13),0) -> 0 | O13: 0
A14: 2 | B14: 0 | C14: 0 | D14: 0 | E14: 0 | F14: 0 | G14: 0 | H14: 0 | I14: 0 | J14: 0 | K14: 0 | L14: 1 | M14: 0 | N14: 0 | O14: 0
A15: 3 | B15: 0 | C15: 0 | D15: 0 | E15: 0 | F15: 0 | G15: 0 | H15: 0 | I15: 3 | J15: 4 | K15: 3 | L15: 0 | M15: 0 | N15: 0 | O15: 0
A16: 4 | B16: 0 | C16: 0 | D16: 0 | E16: 0 | F16: 0 | G16: 0 | H16: 4 | I16: 5 | J16: 0 | K16: 0 | L16: 0 | M16: 0 | N16: 0 | O16: 0
A17: 5 | B17: 0 | C17: 0 | D17: 0 | E17: 0 | F17: 0 | G17: 1 | H17: 0 | I17: 3 | J17: 0 | K17: 6 | L17: 0 | M17: 0 | N17: 0 | O17: 0
A18: 6 | B18: 0 | C18: 0 | D18: 0 | E18: 0 | F18: 0 | G18: 1 | H18: 3 | I18: 4 | J18: 1 | K18: 0 | L18: 0 | M18: 0 | N18: 0 | O18: 0
A19: 7 | B19: 0 | C19: 0 | D19: 0 | E19: 0 | F19: 0 | G19: 2 | H19: 2 | I19: 3 | J19: 2 | K19: 0 | L19: 0 | M19: 0 | N19: 0 | O19: 0
A20: 8 | B20: 0 | C20: 0 | D20: 0 | E20: 0 | F20: 0 | G20: 3 | H20: 1 | I20: 2 | J20: 3 | K20: 0 | L20: 0 | M20: 0 | N20: 0 | O20: 0
A21: 9 | B21: 0 | C21: 0 | D21: 0 | E21: 0 | F21: 0 | G21: 4 | H21: 0 | I21: 1 | J21: 4 | K21: 0 | L21: 0 | M21: 0 | N21: 0 | O21: 0
A22: 10 | B22: 0 | C22: 0 | D22: 0 | E22: 0 | F22: 0 | G22: 5 | H22: 0 | I22: 1 | J22: 0 | K22: 3 | L22: 0 | M22: 0 | N22: 0 | O22: 0
A23: 11 | B23: 0 | C23: 0 | D23: 0 | E23: 0 | F23: 1 | G23: 0 | H23: 2 | I23: 5 | J23: 1 | K23: 0 | L23: 0 | M23: 0 | N23: 0 | O23: 0
A24: 12 | B24: 0 | C24: 0 | D24: 0 | E24: 0 | F24: 1 | G24: 1 | H24: 1 | I24: 4 | J24: 2 | K24: 0 | L24: 0 | M24: 0 | N24: 0 | O24: 0
A25: 13 | B25: 0 | C25: 0 | D25: 0 | E25: 0 | F25: 1 | G25: 2 | H25: 0 | I25: 3 | J25: 3 | K25: 0 | L25: 0 | M25: 0 | N25: 0 | O25: 0
A26: 14 | B26: 0 | C26: 0 | D26: 0 | E26: 0 | F26: 2 | G26: 0 | H26: 0 | I26: 5 | J26: 2 | K26: 0 | L26: 0 | M26: 0 | N26: 0 | O26: 0
A27: 15 | B27: 0 | C27: 0 | D27: 0 | E27: 0 | F27: 4 | G27: 0 | H27: 0 | I27: 0 | J27: 0 | K27: 5 | L27: 0 | M27: 0 | N27: 0 | O27: 0
A28: 16 | B28: 0 | C28: 0 | D28: 0 | E28: 2 | F28: 0 | G28: 0 | H28: 1 | I28: 2 | J28: 2 | K28: 2 | L28: 0 | M28: 0 | N28: 0 | O28: 0
A29: 17 | B29: 0 | C29: 0 | D29: 0 | E29: 2 | F29: 0 | G29: 1 | H29: 0 | I29: 1 | J29: 3 | K29: 2 | L29: 0 | M29: 0 | N29: 0 | O29: 0
A30: 18 | B30: 0 | C30: 0 | D30: 0 | E30: 3 | F30: 0 | G30: 0 | H30: 4 | I30: 1 | J30: 0 | K30: 0 | L30: 0 | M30: 0 | N30: 0 | O30: 0
A31: 19 | B31: 0 | C31: 0 | D31: 0 | E31: 3 | F31: 0 | G31: 1 | H31: 3 | I31: 0 | J31: 1 | K31: 0 | L31: 0 | M31: 0 | N31: 0 | O31: 0
A32: 20 | B32: 0 | C32: 0 | D32: 0 | E32: 3 | F32: 1 | G32: 0 | H32: 2 | I32: 1 | J32: 1 | K32: 0 | L32: 0 | M32: 0 | N32: 0 | O32: 0
A33: 21 | B33: 0 | C33: 0 | D33: 0 | E33: 3 | F33: 1 | G33: 1 | H33: 1 | I33: 0 | J33: 2 | K33: 0 | L33: 0 | M33: 0 | N33: 0 | O33: 0
A34: 22 | B34: 0 | C34: 0 | D34: 0 | E34: 3 | F34: 2 | G34: 0 | H34: 0 | I34: 1 | J34: 2 | K34: 0 | L34: 0 | M34: 0 | N34: 0 | O34: 0
A35: 23 | B35: 0 | C35: 0 | D35: 0 | E35: 4 | F35: 0 | G35: 0 | H35: 2 | I35: 1 | J35: 0 | K35: 1 | L35: 0 | M35: 0 | N35: 0 | O35: 0
A36: 24 | B36: 0 | C36: 0 | D36: 0 | E36: 4 | F36: 0 | G36: 1 | H36: 1 | I36: 0 | J36: 1 | K36: 1 | L36: 0 | M36: 0 | N36: 0 | O36: 0
A37: 25 | B37: 0 | C37: 0 | D37: 0 | E37: 4 | F37: 1 | G37: 0 | H37: 0 | I37: 1 | J37: 1 | K37: 1 | L37: 0 | M37: 0 | N37: 0 | O37: 0
A38: 26 | B38: 0 | C38: 0 | D38: 1 | E38: 0 | F38: 0 | G38: 1 | H38: 1 | I38: 4 | J38: 0 | K38: 2 | L38: 0 | M38: 0 | N38: 0 | O38: 0
A39: 27 | B39: 0 | C39: 0 | D39: 1 | E39: 0 | F39: 0 | G39: 2 | H39: 0 | I39: 3 | J39: 1 | K39: 2 | L39: 0 | M39: 0 | N39: 0 | O39: 0
A40: 28 | B40: 0 | C40: 0 | D40: 1 | E40: 0 | F40: 1 | G40: 0 | H40: 0 | I40: 5 | J40: 0 | K40: 2 | L40: 0 | M40: 0 | N40: 0 | O40: 0
A41: 29 | B41: 0 | C41: 0 | D41: 1 | E41: 1 | F41: 0 | G41: 3 | H41: 2 | I41: 1 | J41: 0 | K41: 0 | L41: 0 | M41: 0 | N41: 0 | O41: 0
A42: 30 | B42: 0 | C42: 0 | D42: 1 | E42: 1 | F42: 0 | G42: 4 | H42: 1 | I42: 0 | J42: 1 | K42: 0 | L42: 0 | M42: 0 | N42: 0 | O42: 0
A43: 31 | B43: 0 | C43: 0 | D43: 1 | E43: 1 | F43: 1 | G43: 2 | H43: 1 | I43: 2 | J43: 0 | K43: 0 | L43: 0 | M43: 0 | N43: 0 | O43: 0
A44: 32 | B44: 0 | C44: 0 | D44: 1 | E44: 1 | F44: 1 | G44: 3 | H44: 0 | I44: 1 | J44: 1 | K44: 0 | L44: 0 | M44: 0 | N44: 0 | O44: 0
A45: 33 | B45: 0 | C45: 0 | D45: 1 | E45: 1 | F45: 2 | G45: 1 | H45: 0 | I45: 3 | J45: 0 | K45: 0 | L45: 0 | M45: 0 | N45: 0 | O45: 0
A46: 34 | B46: 0 | C46: 0 | D46: 1 | E46: 2 | F46: 0 | G46: 3 | H46: 0 | I46: 1 | J46: 0 | K46: 1 | L46: 0 | M46: 0 | N46: 0 | O46: 0
A47: 35 | B47: 0 | C47: 0 | D47: 1 | E47: 3 | F47: 0 | G47: 1 | H47: 1 | I47: 0 | J47: 0 | K47: 2 | L47: 0 | M47: 0 | N47: 0 | O47: 0
A48: 36 | B48: 0 | C48: 0 | D48: 1 | E48: 3 | F48: 1 | G48: 0 | H48: 0 | I48: 1 | J48: 0 | K48: 2 | L48: 0 | M48: 0 | N48: 0 | O48: 0
A49: 37 | B49: 0 | C49: 0 | D49: 2 | E49: 2 | F49: 0 | G49: 0 | H49: 0 | I49: 3 | J49: 1 | K49: 0 | L49: 0 | M49: 0 | N49: 0 | O49: 0
A50: 38 | B50: 0 | C50: 0 | D50: 3 | E50: 1 | F50: 0 | G50: 0 | H50: 0 | I50: 3 | J50: 0 | K50: 1 | L50: 0 | M50: 0 | N50: 0 | O50: 0
A51: 39 | B51: 0 | C51: 1 | D51: 0 | E51: 0 | F51: 0 | G51: 0 | H51: 1 | I51: 4 | J51: 2 | K51: 1 | L51: 0 | M51: 0 | N51: 0 | O51: 0
A52: 40 | B52: 0 | C52: 1 | D52: 0 | E52: 0 | F52: 0 | G52: 1 | H52: 0 | I52: 3 | J52: 3 | K52: 1 | L52: 0 | M52: 0 | N52: 0 | O52: 0
A53: 41 | B53: 0 | C53: 1 | D53: 0 | E53: 2 | F53: 0 | G53: 0 | H53: 2 | I53: 3 | J53: 0 | K53: 0 | L53: 0 | M53: 0 | N53: 0 | O53: 0
A54: 42 | B54: 0 | C54: 1 | D54: 0 | E54: 2 | F54: 0 | G54: 1 | H54: 1 | I54: 2 | J54: 1 | K54: 0 | L54: 0 | M54: 0 | N54: 0 | O54: 0
A55: 43 | B55: 0 | C55: 1 | D55: 0 | E55: 2 | F55: 0 | G55: 2 | H55: 0 | I55: 1 | J55: 2 | K55: 0 | L55: 0 | M55: 0 | N55: 0 | O55: 0
A56: 44 | B56: 0 | C56: 1 | D56: 0 | E56: 2 | F56: 1 | G56: 0 | H56: 0 | I56: 3 | J56: 1 | K56: 0 | L56: 0 | M56: 0 | N56: 0 | O56: 0
A57: 45 | B57: 0 | C57: 1 | D57: 0 | E57: 3 | F57: 0 | G57: 0 | H57: 1 | I57: 0 | J57: 2 | K57: 1 | L57: 0 | M57: 0 | N57: 0 | O57: 0
A58: 46 | B58: 0 | C58: 1 | D58: 1 | E58: 1 | F58: 0 | G58: 1 | H58: 1 | I58: 2 | J58: 0 | K58: 1 | L58: 0 | M58: 0 | N58: 0 | O58: 0
A59: 47 | B59: 0 | C59: 1 | D59: 1 | E59: 1 | F59: 0 | G59: 2 | H59: 0 | I59: 1 | J59: 1 | K59: 1 | L59: 0 | M59: 0 | N59: 0 | O59: 0
A60: 48 | B60: 0 | C60: 1 | D60: 1 | E60: 1 | F60: 1 | G60: 0 | H60: 0 | I60: 3 | J60: 0 | K60: 1 | L60: 0 | M60: 0 | N60: 0 | O60: 0
A61: 49 | B61: 0 | C61: 1 | D61: 3 | E61: 2 | F61: 0 | G61: 0 | H61: 0 | I61: 1 | J61: 0 | K61: 0 | L61: 0 | M61: 0 | N61: 0 | O61: 0
A62: 50 | B62: 0 | C62: 2 | D62: 0 | E62: 1 | F62: 0 | G62: 0 | H62: 1 | I62: 2 | J62: 2 | K62: 0 | L62: 0 | M62: 0 | N62: 0 | O62: 0
A63: 51 | B63: 0 | C63: 2 | D63: 0 | E63: 1 | F63: 0 | G63: 1 | H63: 0 | I63: 1 | J63: 3 | K63: 0 | L63: 0 | M63: 0 | N63: 0 | O63: 0
A64: 52 | B64: 0 | C64: 2 | D64: 1 | E64: 2 | F64: 0 | G64: 1 | H64: 1 | I64: 0 | J64: 0 | K64: 0 | L64: 0 | M64: 0 | N64: 0 | O64: 0
A65: 53 | B65: 0 | C65: 2 | D65: 1 | E65: 2 | F65: 1 | G65: 0 | H65: 0 | I65: 1 | J65: 0 | K65: 0 | L65: 0 | M65: 0 | N65: 0 | O65: 0
A66: 54 | B66: 1 | C66: 0 | D66: 0 | E66: 0 | F66: 0 | G66: 0 | H66: 0 | I66: 5 | J66: 0 | K66: 3 | L66: 0 | M66: 0 | N66: 0 | O66: 0
A67: 55 | B67: 1 | C67: 0 | D67: 0 | E67: 1 | F67: 0 | G67: 2 | H67: 1 | I67: 2 | J67: 0 | K67: 1 | L67: 0 | M67: 0 | N67: 0 | O67: 0
A68: 56 | B68: 1 | C68: 0 | D68: 0 | E68: 1 | F68: 0 | G68: 3 | H68: 0 | I68: 1 | J68: 1 | K68: 1 | L68: 0 | M68: 0 | N68: 0 | O68: 0
A69: 57 | B69: 1 | C69: 0 | D69: 0 | E69: 1 | F69: 1 | G69: 1 | H69: 0 | I69: 3 | J69: 0 | K69: 1 | L69: 0 | M69: 0 | N69: 0 | O69: 0
A70: 58 | B70: 1 | C70: 0 | D70: 0 | E70: 1 | F70: 5 | G70: 0 | H70: 0 | I70: 0 | J70: 0 | K70: 0 | L70: 0 | M70: 0 | N70: 0 | O70: 0
A71: 59 | B71: 1 | C71: 0 | D71: 0 | E71: 3 | F71: 0 | G71: 0 | H71: 0 | I71: 1 | J71: 0 | K71: 3 | L71: 0 | M71: 0 | N71: 0 | O71: 0
A72: 60 | B72: 1 | C72: 0 | D72: 1 | E72: 1 | F72: 0 | G72: 0 | H72: 0 | I72: 3 | J72: 2 | K72: 0 | L72: 0 | M72: 0 | N72: 0 | O72: 0
A73: 61 | B73: 1 | C73: 0 | D73: 2 | E73: 2 | F73: 0 | G73: 1 | H73: 0 | I73: 1 | J73: 0 | K73: 0 | L73: 0 | M73: 0 | N73: 0 | O73: 0
A74: 62 | B74: 1 | C74: 1 | D74: 0 | E74: 1 | F74: 0 | G74: 0 | H74: 0 | I74: 3 | J74: 0 | K74: 2 | L74: 0 | M74: 0 | N74: 0 | O74: 0
A75: 63 | B75: 1 | C75: 1 | D75: 0 | E75: 2 | F75: 0 | G75: 2 | H75: 1 | I75: 0 | J75: 0 | K75: 0 | L75: 0 | M75: 0 | N75: 0 | O75: 0
A76: 64 | B76: 1 | C76: 1 | D76: 0 | E76: 2 | F76: 1 | G76: 1 | H76: 0 | I76: 1 | J76: 0 | K76: 0 | L76: 0 | M76: 0 | N76: 0 | O76: 0
A77: 65 | B77: 1 | C77: 2 | D77: 0 | E77: 2 | F77: 0 | G77: 0 | H77: 0 | I77: 1 | J77: 0 | K77: 1 | L77: 0 | M77: 0 | N77: =IF(SUMPRODUCT($B$6:$M$6,B77:M77)<$P$2,$P$2-SUMPRODUCT($B$6:$M$6,B77:M77),0) -> 0 | O77: 0
A78: 66 | B78: 1 | C78: 3 | D78: 0 | E78: 0 | F78: 0 | G78: 0 | H78: 0 | I78: 3 | J78: 0 | K78: 0 | L78: 0 | M78: 0 | N78: 0 | O78: 0
A79: 67 | B79: 3 | C79: 0 | D79: 2 | E79: 0 | F79: 1 | G79: 0 | H79: 0 | I79: 0 | J79: 0 | K79: 0 | L79: 0 | M79: 0 | N79: 0 | O79: 0
A80: 68 | B80: 3 | C80: 1 | D80: 0 | E80: 0 | F80: 2 | G80: 0 | H80: 0 | I80: 0 | J80: 0 | K80: 0 | L80: 0 | M80: 0 | N80: 0 | O80: 0
A81: 69 | B81: 4 | C81: 0 | D81: 1 | E81: 0 | F81: 0 | G81: 0 | H81: 0 | I81: 0 | J81: 0 | K81: 1 | L81: 0 | M81: 0 | N81: 0 | O81: 0
A82: 70 | B82: 0 | C82: 0 | D82: 0 | E82: 0 | F82: 2 | G82: 5 | H82: 1 | I82: 0 | J82: 0 | K82: 0 | L82: 0 | M82: 0 | N82: 1 | O82: 0
A83: 71 | B83: 0 | C83: 0 | D83: 0 | E83: 0 | F83: 3 | G83: 4 | H83: 0 | I83: 1 | J83: 0 | K83: 0 | L83: 0 | M83: 0 | N83: 1 | O83: 0
A84: 72 | B84: 0 | C84: 0 | D84: 0 | E84: 1 | F84: 0 | G84: 0 | H84: 3 | I84: 2 | J84: 2 | K84: 1 | L84: 0 | M84: 0 | N84: 1 | O84: 0
A85: 73 | B85: 0 | C85: 0 | D85: 0 | E85: 1 | F85: 0 | G85: 1 | H85: 2 | I85: 1 | J85: 3 | K85: 1 | L85: 0 | M85: 0 | N85: 1 | O85: 0
A86: 74 | B86: 0 | C86: 0 | D86: 0 | E86: 1 | F86: 0 | G86: 2 | H86: 1 | I86: 0 | J86: 4 | K86: 1 | L86: 0 | M86: 0 | N86: 1 | O86: 0
A87: 75 | B87: 0 | C87: 0 | D87: 0 | E87: 1 | F87: 0 | G87: 3 | H87: 1 | I87: 0 | J87: 0 | K87: 4 | L87: 0 | M87: 0 | N87: 1 | O87: 0
A88: 76 | B88: 0 | C88: 0 | D88: 0 | E88: 1 | F88: 1 | G88: 0 | H88: 1 | I88: 2 | J88: 3 | K88: 1 | L88: 0 | M88: 0 | N88: 1 | O88: 0
A89: 77 | B89: 0 | C89: 0 | D89: 0 | E89: 1 | F89: 1 | G89: 1 | H89: 0 | I89: 1 | J89: 4 | K89: 1 | L89: 0 | M89: 0 | N89: 1 | O89: 0
A90: 78 | B90: 0 | C90: 0 | D90: 0 | E90: 1 | F90: 1 | G90: 2 | H90: 0 | I90: 1 | J90: 0 | K90: 4 | L90: 0 | M90: 0 | N90: 1 | O90: 0
A91: 79 | B91: 0 | C91: 0 | D91: 1 | E91: 1 | F91: 0 | G91: 0 | H91: 0 | I91: 1 | J91: 6 | K91: 0 | L91: 0 | M91: 0 | N91: 1 | O91: 0
A92: 80 | B92: 0 | C92: 0 | D92: 1 | E92: 1 | F92: 0 | G92: 0 | H92: 1 | I92: 2 | J92: 1 | K92: 3 | L92: 0 | M92: 0 | N92: 1 | O92: 0
A93: 81 | B93: 0 | C93: 0 | D93: 1 | E93: 1 | F93: 0 | G93: 1 | H93: 0 | I93: 1 | J93: 2 | K93: 3 | L93: 0 | M93: 0 | N93: 1 | O93: 0
A94: 82 | B94: 0 | C94: 0 | D94: 2 | E94: 0 | F94: 0 | G94: 4 | H94: 1 | I94: 0 | J94: 0 | K94: 1 | L94: 0 | M94: 0 | N94: 1 | O94: 0
A95: 83 | B95: 0 | C95: 0 | D95: 2 | E95: 0 | F95: 1 | G95: 3 | H95: 0 | I95: 1 | J95: 0 | K95: 1 | L95: 0 | M95: 0 | N95: 1 | O95: 0
A96: 84 | B96: 0 | C96: 0 | D96: 3 | E96: 0 | F96: 0 | G96: 0 | H96: 2 | I96: 3 | J96: 0 | K96: 0 | L96: 0 | M96: 0 | N96: 1 | O96: 0
A97: 85 | B97: 0 | C97: 0 | D97: 3 | E97: 0 | F97: 0 | G97: 1 | H97: 1 | I97: 2 | J97: 1 | K97: 0 | L97: 0 | M97: 0 | N97: 1 | O97: 0
A98: 86 | B98: 0 | C98: 0 | D98: 3 | E98: 0 | F98: 0 | G98: 2 | H98: 0 | I98: 1 | J98: 2 | K98: 0 | L98: 0 | M98: 0 | N98: 1 | O98: 0
A99: 87 | B99: 0 | C99: 0 | D99: 3 | E99: 0 | F99: 1 | G99: 0 | H99: 0 | I99: 3 | J99: 1 | K99: 0 | L99: 0 | M99: 0 | N99: 1 | O99: 0
A100: 88 | B100: 0 | C100: 1 | D100: 0 | E100: 0 | F100: 1 | G100: 4 | H100: 1 | I100: 0 | J100: 0 | K100: 1 | L100: 0 | M100: 0 | N100: 1 | O100: 0
A101: 89 | B101: 0 | C101: 1 | D101: 0 | E101: 0 | F101: 2 | G101: 3 | H101: 0 | I101: 1 | J101: 0 | K101: 1 | L101: 0 | M101: 0 | N101: 1 | O101: 0
A102: 90 | B102: 0 | C102: 1 | D102: 0 | E102: 1 | F102: 0 | G102: 0 | H102: 0 | I102: 1 | J102: 4 | K102: 2 | L102: 0 | M102: 0 | N102: 1 | O102: 0
A103: 91 | B103: 0 | C103: 1 | D103: 0 | E103: 1 | F103: 0 | G103: 1 | H103: 0 | I103: 1 | J103: 0 | K103: 5 | L103: 0 | M103: 0 | N103: 1 | O103: 0
A104: 92 | B104: 0 | C104: 1 | D104: 1 | E104: 0 | F104: 0 | G104: 1 | H104: 3 | I104: 2 | J104: 0 | K104: 0 | L104: 0 | M104: 0 | N104: 1 | O104: 0
A105: 93 | B105: 0 | C105: 1 | D105: 1 | E105: 0 | F105: 0 | G105: 2 | H105: 2 | I105: 1 | J105: 1 | K105: 0 | L105: 0 | M105: 0 | N105: 1 | O105: 0
A106: 94 | B106: 0 | C106: 1 | D106: 1 | E106: 0 | F106: 0 | G106: 3 | H106: 1 | I106: 0 | J106: 2 | K106: 0 | L106: 0 | M106: 0 | N106: 1 | O106: 0
A107: 95 | B107: 0 | C107: 1 | D107: 1 | E107: 0 | F107: 1 | G107: 0 | H107: 2 | I107: 3 | J107: 0 | K107: 0 | L107: 0 | M107: 0 | N107: 1 | O107: 0
A108: 96 | B108: 0 | C108: 1 | D108: 1 | E108: 0 | F108: 1 | G108: 1 | H108: 1 | I108: 2 | J108: 1 | K108: 0 | L108: 0 | M108: 0 | N108: 1 | O108: 0
A109: 97 | B109: 0 | C109: 1 | D109: 1 | E109: 0 | F109: 1 | G109: 2 | H109: 0 | I109: 1 | J109: 2 | K109: 0 | L109: 0 | M109: 0 | N109: 1 | O109: 0
A110: 98 | B110: 0 | C110: 1 | D110: 1 | E110: 0 | F110: 2 | G110: 0 | H110: 0 | I110: 3 | J110: 1 | K110: 0 | L110: 0 | M110: 0 | N110: 1 | O110: 0
A111: 99 | B111: 0 | C111: 1 | D111: 2 | E111: 0 | F111: 0 | G111: 2 | H111: 0 | I111: 1 | J111: 0 | K111: 2 | L111: 0 | M111: 0 | N111: 1 | O111: 0
A112: 100 | B112: 0 | C112: 2 | D112: 0 | E112: 0 | F112: 0 | G112: 3 | H112: 1 | I112: 0 | J112: 0 | K112: 2 | L112: 0 | M112: 0 | N112: 1 | O112: 0
A113: 101 | B113: 0 | C113: 2 | D113: 0 | E113: 0 | F113: 1 | G113: 2 | H113: 0 | I113: 1 | J113: 0 | K113: 2 | L113: 0 | M113: 0 | N113: 1 | O113: 0
A114: 102 | B114: 0 | C114: 2 | D114: 1 | E114: 0 | F114: 0 | G114: 0 | H114: 1 | I114: 2 | J114: 1 | K114: 1 | L114: 0 | M114: 0 | N114: 1 | O114: 0
A115: 103 | B115: 0 | C115: 2 | D115: 1 | E115: 0 | F115: 0 | G115: 1 | H115: 0 | I115: 1 | J115: 2 | K115: 1 | L115: 0 | M115: 0 | N115: 1 | O115: 0
A116: 104 | B116: 0 | C116: 3 | D116: 0 | E116: 0 | F116: 0 | G116: 0 | H116: 0 | I116: 1 | J116: 4 | K116: 0 | L116: 0 | M116: 0 | N116: 1 | O116: 0
A117: 105 | B117: 0 | C117: 3 | D117: 0 | E117: 0 | F117: 0 | G117: 1 | H117: 0 | I117: 1 | J117: 0 | K117: 3 | L117: 0 | M117: 0 | N117: 1 | O117: 0
A118: 106 | B118: 1 | C118: 0 | D118: 0 | E118: 0 | F118: 0 | G118: 2 | H118: 3 | I118: 2 | J118: 0 | K118: 0 | L118: 0 | M118: 0 | N118: 1 | O118: 0
A119: 107 | B119: 1 | C119: 0 | D119: 0 | E119: 0 | F119: 0 | G119: 3 | H119: 2 | I119: 1 | J119: 1 | K119: 0 | L119: 0 | M119: 0 | N119: 1 | O119: 0
A120: 108 | B120: 1 | C120: 0 | D120: 0 | E120: 0 | F120: 0 | G120: 4 | H120: 1 | I120: 0 | J120: 2 | K120: 0 | L120: 0 | M120: 0 | N120: 1 | O120: 0
A121: 109 | B121: 1 | C121: 0 | D121: 0 | E121: 0 | F121: 1 | G121: 1 | H121: 2 | I121: 3 | J121: 0 | K121: 0 | L121: 0 | M121: 0 | N121: 1 | O121: 0
A122: 110 | B122: 1 | C122: 0 | D122: 0 | E122: 0 | F122: 1 | G122: 2 | H122: 1 | I122: 2 | J122: 1 | K122: 0 | L122: 0 | M122: 0 | N122: 1 | O122: 0
A123: 111 | B123: 1 | C123: 0 | D123: 0 | E123: 0 | F123: 1 | G123: 3 | H123: 0 | I123: 1 | J123: 2 | K123: 0 | L123: 0 | M123: 0 | N123: 1 | O123: 0
A124: 112 | B124: 1 | C124: 0 | D124: 0 | E124: 0 | F124: 2 | G124: 0 | H124: 1 | I124: 4 | J124: 0 | K124: 0 | L124: 0 | M124: 0 | N124: 1 | O124: 0
A125: 113 | B125: 1 | C125: 0 | D125: 0 | E125: 0 | F125: 2 | G125: 1 | H125: 0 | I125: 3 | J125: 1 | K125: 0 | L125: 0 | M125: 0 | N125: 1 | O125: 0
A126: 114 | B126: 1 | C126: 0 | D126: 1 | E126: 0 | F126: 0 | G126: 3 | H126: 0 | I126: 1 | J126: 0 | K126: 2 | L126: 0 | M126: 0 | N126: 1 | O126: 0
A127: 115 | B127: 1 | C127: 0 | D127: 2 | E127: 0 | F127: 0 | G127: 0 | H127: 0 | I127: 3 | J127: 1 | K127: 1 | L127: 0 | M127: 0 | N127: 1 | O127: 0
A128: 116 | B128: 1 | C128: 1 | D128: 0 | E128: 0 | F128: 0 | G128: 0 | H128: 2 | I128: 3 | J128: 0 | K128: 1 | L128: 0 | M128: 0 | N128: 1 | O128: 0
A129: 117 | B129: 1 | C129: 1 | D129: 0 | E129: 0 | F129: 0 | G129: 1 | H129: 1 | I129: 2 | J129: 1 | K129: 1 | L129: 0 | M129: 0 | N129: 1 | O129: 0
A130: 118 | B130: 1 | C130: 1 | D130: 0 | E130: 0 | F130: 0 | G130: 2 | H130: 0 | I130: 1 | J130: 2 | K130: 1 | L130: 0 | M130: 0 | N130: 1 | O130: 0
A131: 119 | B131: 1 | C131: 1 | D131: 0 | E131: 0 | F131: 1 | G131: 0 | H131: 0 | I131: 3 | J131: 1 | K131: 1 | L131: 0 | M131: 0 | N131: 1 | O131: 0
A132: 120 | B132: 2 | C132: 0 | D132: 0 | E132: 0 | F132: 0 | G132: 0 | H132: 0 | I132: 3 | J132: 3 | K132: 0 | L132: 0 | M132: 0 | N132: 1 | O132: 0
A133: 121 | B133: 0 | C133: 0 | D133: 1 | E133: 2 | F133: 0 | G133: 1 | H133: 3 | I133: 0 | J133: 0 | K133: 1 | L133: 0 | M133: 0 | N133: 2 | O133: 0
A134: 122 | B134: 0 | C134: 0 | D134: 1 | E134: 2 | F134: 1 | G134: 0 | H134: 2 | I134: 1 | J134: 0 | K134: 1 | L134: 0 | M134: 0 | N134: 2 | O134: 0
A135: 123 | B135: 0 | C135: 0 | D135: 1 | E135: 2 | F135: 1 | G135: 1 | H135: 1 | I135: 0 | J135: 1 | K135: 1 | L135: 0 | M135: 0 | N135: 2 | O135: 0
A136: 124 | B136: 0 | C136: 0 | D136: 1 | E136: 2 | F136: 2 | G136: 0 | H136: 0 | I136: 1 | J136: 1 | K136: 1 | L136: 0 | M136: 0 | N136: 2 | O136: 0
A137: 125 | B137: 0 | C137: 0 | D137: 2 | E137: 2 | F137: 0 | G137: 0 | H137: 1 | I137: 0 | J137: 3 | K137: 0 | L137: 0 | M137: 0 | N137: 2 | O137: 0
A138: 126 | B138: 0 | C138: 1 | D138: 0 | E138: 2 | F138: 0 | G138: 0 | H138: 3 | I138: 0 | J138: 2 | K138: 0 | L138: 0 | M138: 0 | N138: 2 | O138: 0
A139: 127 | B139: 0 | C139: 1 | D139: 0 | E139: 2 | F139: 1 | G139: 0 | H139: 1 | I139: 0 | J139: 3 | K139: 0 | L139: 0 | M139: 0 | N139: 2 | O139: 0
A140: 128 | B140: 0 | C140: 1 | D140: 1 | E140: 2 | F140: 0 | G140: 0 | H140: 1 | I140: 0 | J140: 1 | K140: 2 | L140: 0 | M140: 0 | N140: 2 | O140: 0
A141: 129 | B141: 0 | C141: 3 | D141: 1 | E141: 1 | F141: 0 | G141: 0 | H141: 1 | I141: 0 | J141: 1 | K141: 0 | L141: 0 | M141: 0 | N141: =IF(SUMPRODUCT($B$6:$M$6,B141:M141)<$P$2,$P$2-SUMPRODUCT($B$6:$M$6,B141:M141),0) -> 2 | O141: 0
A142: 130 | B142: 1 | C142: 0 | D142: 0 | E142: 2 | F142: 0 | G142: 0 | H142: 2 | I142: 1 | J142: 0 | K142: 2 | L142: 0 | M142: 0 | N142: 2 | O142: 0
A143: 131 | B143: 1 | C143: 0 | D143: 0 | E143: 2 | F143: 0 | G143: 1 | H143: 1 | I143: 0 | J143: 1 | K143: 2 | L143: 0 | M143: 0 | N143: 2 | O143: 0
A144: 132 | B144: 1 | C144: 0 | D144: 0 | E144: 2 | F144: 1 | G144: 0 | H144: 0 | I144: 1 | J144: 1 | K144: 2 | L144: 0 | M144: 0 | N144: 2 | O144: 0
A145: 133 | B145: 1 | C145: 1 | D145: 2 | E145: 1 | F145: 0 | G145: 0 | H145: 0 | I145: 1 | J145: 1 | K145: 0 | L145: 0 | M145: 0 | N145: 2 | O145: 0
A146: 134 | B146: 1 | C146: 2 | D146: 0 | E146: 1 | F146: 0 | G146: 0 | H146: 2 | I146: 1 | J146: 0 | K146: 0 | L146: 0 | M146: 0 | N146: 2 | O146: 0
A147: 135 | B147: 1 | C147: 2 | D147: 0 | E147: 1 | F147: 0 | G147: 1 | H147: 1 | I147: 0 | J147: 1 | K147: 0 | L147: 0 | M147: 0 | N147: 2 | O147: 0
A148: 136 | B148: 1 | C148: 2 | D148: 0 | E148: 1 | F148: 1 | G148: 0 | H148: 0 | I148: 1 | J148: 1 | K148: 0 | L148: 0 | M148: 0 | N148: 2 | O148: 0
A149: 137 | B149: 2 | C149: 0 | D149: 1 | E149: 1 | F149: 0 | G149: 0 | H149: 1 | I149: 2 | J149: 0 | K149: 0 | L149: 0 | M149: 0 | N149: 2 | O149: 0
A150: 138 | B150: 2 | C150: 0 | D150: 1 | E150: 1 | F150: 0 | G150: 1 | H150: 0 | I150: 1 | J150: 1 | K150: 0 | L150: 0 | M150: 0 | N150: 2 | O150: 0
A151: 139 | B151: 0 | C151: 0 | D151: 0 | E151: 0 | F151: 0 | G151: 0 | H151: 5 | I151: 2 | J151: 2 | K151: 0 | L151: 0 | M151: 0 | N151: 3 | O151: 0
A152: 140 | B152: 0 | C152: 0 | D152: 0 | E152: 0 | F152: 0 | G152: 1 | H152: 4 | I152: 1 | J152: 3 | K152: 0 | L152: 0 | M152: 0 | N152: 3 | O152: 0
A153: 141 | B153: 0 | C153: 0 | D153: 0 | E153: 0 | F153: 0 | G153: 2 | H153: 3 | I153: 0 | J153: 4 | K153: 0 | L153: 0 | M153: 0 | N153: 3 | O153: 0
A154: 142 | B154: 0 | C154: 0 | D154: 0 | E154: 0 | F154: 0 | G154: 3 | H154: 3 | I154: 0 | J154: 0 | K154: 3 | L154: 0 | M154: 0 | N154: 3 | O154: 0
A155: 143 | B155: 0 | C155: 0 | D155: 0 | E155: 0 | F155: 1 | G155: 0 | H155: 3 | I155: 2 | J155: 3 | K155: 0 | L155: 0 | M155: 0 | N155: 3 | O155: 0
A156: 144 | B156: 0 | C156: 0 | D156: 0 | E156: 0 | F156: 1 | G156: 1 | H156: 2 | I156: 1 | J156: 4 | K156: 0 | L156: 0 | M156: 0 | N156: 3 | O156: 0
A157: 145 | B157: 0 | C157: 0 | D157: 0 | E157: 0 | F157: 1 | G157: 2 | H157: 1 | I157: 0 | J157: 5 | K157: 0 | L157: 0 | M157: 0 | N157: 3 | O157: 0
A158: 146 | B158: 0 | C158: 0 | D158: 0 | E158: 0 | F158: 1 | G158: 2 | H158: 2 | I158: 1 | J158: 0 | K158: 3 | L158: 0 | M158: 0 | N158: 3 | O158: 0
A159: 147 | B159: 0 | C159: 0 | D159: 0 | E159: 0 | F159: 1 | G159: 3 | H159: 1 | I159: 0 | J159: 1 | K159: 3 | L159: 0 | M159: 0 | N159: 3 | O159: 0
A160: 148 | B160: 0 | C160: 0 | D160: 0 | E160: 0 | F160: 2 | G160: 0 | H160: 1 | I160: 2 | J160: 4 | K160: 0 | L160: 0 | M160: 0 | N160: 3 | O160: 0
A161: 149 | B161: 0 | C161: 0 | D161: 0 | E161: 0 | F161: 2 | G161: 1 | H161: 0 | I161: 1 | J161: 5 | K161: 0 | L161: 0 | M161: 0 | N161: 3 | O161: 0
A162: 150 | B162: 0 | C162: 0 | D162: 0 | E162: 0 | F162: 2 | G162: 1 | H162: 1 | I162: 2 | J162: 0 | K162: 3 | L162: 0 | M162: 0 | N162: 3 | O162: 0
A163: 151 | B163: 0 | C163: 0 | D163: 0 | E163: 0 | F163: 2 | G163: 2 | H163: 0 | I163: 1 | J163: 1 | K163: 3 | L163: 0 | M163: 0 | N163: 3 | O163: 0
A164: 152 | B164: 0 | C164: 0 | D164: 0 | E164: 0 | F164: 3 | G164: 0 | H164: 0 | I164: 3 | J164: 0 | K164: 3 | L164: 0 | M164: 0 | N164: 3 | O164: 0
A165: 153 | B165: 0 | C165: 0 | D165: 0 | E165: 1 | F165: 0 | G165: 0 | H165: 0 | I165: 1 | J165: 1 | K165: 7 | L165: 0 | M165: 0 | N165: 3 | O165: 0
A166: 154 | B166: 0 | C166: 0 | D166: 1 | E166: 0 | F166: 0 | G166: 0 | H166: 0 | I166: 8 | J166: 0 | K166: 0 | L166: 0 | M166: 0 | N166: 3 | O166: 0
A167: 155 | B167: 0 | C167: 0 | D167: 1 | E167: 0 | F167: 0 | G167: 0 | H167: 3 | I167: 2 | J167: 1 | K167: 2 | L167: 0 | M167: 0 | N167: 3 | O167: 0
A168: 156 | B168: 0 | C168: 0 | D168: 1 | E168: 0 | F168: 0 | G168: 1 | H168: 2 | I168: 1 | J168: 2 | K168: 2 | L168: 0 | M168: 0 | N168: 3 | O168: 0
A169: 157 | B169: 0 | C169: 0 | D169: 1 | E169: 0 | F169: 0 | G169: 2 | H169: 1 | I169: 0 | J169: 3 | K169: 2 | L169: 0 | M169: 0 | N169: 3 | O169: 0
A170: 158 | B170: 0 | C170: 0 | D170: 1 | E170: 0 | F170: 1 | G170: 0 | H170: 1 | I170: 2 | J170: 2 | K170: 2 | L170: 0 | M170: 0 | N170: 3 | O170: 0
A171: 159 | B171: 0 | C171: 0 | D171: 1 | E171: 0 | F171: 1 | G171: 1 | H171: 0 | I171: 1 | J171: 3 | K171: 2 | L171: 0 | M171: 0 | N171: 3 | O171: 0
A172: 160 | B172: 0 | C172: 0 | D172: 2 | E172: 0 | F172: 0 | G172: 0 | H172: 0 | I172: 1 | J172: 5 | K172: 1 | L172: 0 | M172: 0 | N172: 3 | O172: 0
A173: 161 | B173: 0 | C173: 0 | D173: 2 | E173: 0 | F173: 0 | G173: 0 | H173: 1 | I173: 2 | J173: 0 | K173: 4 | L173: 0 | M173: 0 | N173: 3 | O173: 0
A174: 162 | B174: 0 | C174: 0 | D174: 2 | E174: 0 | F174: 0 | G174: 1 | H174: 0 | I174: 1 | J174: 1 | K174: 4 | L174: 0 | M174: 0 | N174: 3 | O174: 0
A175: 163 | B175: 0 | C175: 1 | D175: 0 | E175: 0 | F175: 0 | G175: 0 | H175: 2 | I175: 1 | J175: 4 | K175: 1 | L175: 0 | M175: 0 | N175: 3 | O175: 0
A176: 164 | B176: 0 | C176: 1 | D176: 0 | E176: 0 | F176: 0 | G176: 1 | H176: 1 | I176: 0 | J176: 5 | K176: 1 | L176: 0 | M176: 0 | N176: 3 | O176: 0
A177: 165 | B177: 0 | C177: 1 | D177: 0 | E177: 0 | F177: 0 | G177: 1 | H177: 2 | I177: 1 | J177: 0 | K177: 4 | L177: 0 | M177: 0 | N177: 3 | O177: 0
A178: 166 | B178: 0 | C178: 1 | D178: 0 | E178: 0 | F178: 0 | G178: 2 | H178: 1 | I178: 0 | J178: 1 | K178: 4 | L178: 0 | M178: 0 | N178: 3 | O178: 0
A179: 167 | B179: 0 | C179: 1 | D179: 0 | E179: 0 | F179: 1 | G179: 0 | H179: 0 | I179: 1 | J179: 5 | K179: 1 | L179: 0 | M179: 0 | N179: 3 | O179: 0
A180: 168 | B180: 0 | C180: 1 | D180: 0 | E180: 0 | F180: 1 | G180: 0 | H180: 1 | I180: 2 | J180: 0 | K180: 4 | L180: 0 | M180: 0 | N180: 3 | O180: 0
A181: 169 | B181: 0 | C181: 1 | D181: 0 | E181: 0 | F181: 1 | G181: 1 | H181: 0 | I181: 1 | J181: 1 | K181: 4 | L181: 0 | M181: 0 | N181: 3 | O181: 0
A182: 170 | B182: 0 | C182: 1 | D182: 1 | E182: 0 | F182: 0 | G182: 0 | H182: 0 | I182: 1 | J182: 3 | K182: 3 | L182: 0 | M182: 0 | N182: 3 | O182: 0
A183: 171 | B183: 0 | C183: 2 | D183: 0 | E183: 0 | F183: 0 | G183: 0 | H183: 0 | I183: 1 | J183: 1 | K183: 5 | L183: 0 | M183: 0 | N183: 3 | O183: 0
A184: 172 | B184: 1 | C184: 0 | D184: 0 | E184: 0 | F184: 0 | G184: 0 | H184: 0 | I184: 1 | J184: 7 | K184: 0 | L184: 0 | M184: 0 | N184: 3 | O184: 0
A185: 173 | B185: 1 | C185: 0 | D185: 0 | E185: 0 | F185: 0 | G185: 0 | H185: 1 | I185: 2 | J185: 2 | K185: 3 | L185: 0 | M185: 0 | N185: 3 | O185: 0
A186: 174 | B186: 1 | C186: 0 | D186: 0 | E186: 0 | F186: 0 | G186: 1 | H186: 0 | I186: 1 | J186: 3 | K186: 3 | L186: 0 | M186: 0 | N186: 3 | O186: 0
A187: 175 | B187: 1 | C187: 0 | D187: 0 | E187: 3 | F187: 2 | G187: 0 | H187: 1 | I187: 0 | J187: 0 | K187: 0 | L187: 0 | M187: 0 | N187: 3 | O187: 0
A188: 176 | B188: 0 | C188: 0 | D188: 0 | E188: 1 | F188: 3 | G188: 2 | H188: 1 | I188: 0 | J188: 0 | K188: 1 | L188: 0 | M188: 0 | N188: 4 | O188: 0
A189: 177 | B189: 0 | C189: 0 | D189: 0 | E189: 1 | F189: 4 | G189: 1 | H189: 0 | I189: 1 | J189: 0 | K189: 1 | L189: 0 | M189: 0 | N189: 4 | O189: 0
A190: 178 | B190: 0 | C190: 0 | D190: 0 | E190: 2 | F190: 1 | G190: 0 | H190: 1 | I190: 0 | J190: 0 | K190: 5 | L190: 0 | M190: 0 | N190: 4 | O190: 0
A191: 179 | B191: 0 | C191: 0 | D191: 1 | E191: 1 | F191: 0 | G191: 1 | H191: 5 | I191: 0 | J191: 0 | K191: 0 | L191: 0 | M191: 0 | N191: 4 | O191: 0
A192: 180 | B192: 0 | C192: 0 | D192: 1 | E192: 1 | F192: 1 | G192: 0 | H192: 4 | I192: 1 | J192: 0 | K192: 0 | L192: 0 | M192: 0 | N192: 4 | O192: 0
A193: 181 | B193: 0 | C193: 0 | D193: 1 | E193: 1 | F193: 1 | G193: 1 | H193: 3 | I193: 0 | J193: 1 | K193: 0 | L193: 0 | M193: 0 | N193: 4 | O193: 0
A194: 182 | B194: 0 | C194: 0 | D194: 1 | E194: 1 | F194: 2 | G194: 0 | H194: 2 | I194: 1 | J194: 1 | K194: 0 | L194: 0 | M194: 0 | N194: 4 | O194: 0
A195: 183 | B195: 0 | C195: 0 | D195: 1 | E195: 1 | F195: 2 | G195: 1 | H195: 1 | I195: 0 | J195: 2 | K195: 0 | L195: 0 | M195: 0 | N195: 4 | O195: 0
A196: 184 | B196: 0 | C196: 0 | D196: 1 | E196: 1 | F196: 3 | G196: 0 | H196: 0 | I196: 1 | J196: 2 | K196: 0 | L196: 0 | M196: 0 | N196: 4 | O196: 0
A197: 185 | B197: 0 | C197: 0 | D197: 2 | E197: 1 | F197: 1 | G197: 1 | H197: 1 | I197: 0 | J197: 0 | K197: 2 | L197: 0 | M197: 0 | N197: 4 | O197: 0
A198: 186 | B198: 0 | C198: 0 | D198: 2 | E198: 1 | F198: 2 | G198: 0 | H198: 0 | I198: 1 | J198: 0 | K198: 2 | L198: 0 | M198: 0 | N198: 4 | O198: 0
A199: 187 | B199: 0 | C199: 0 | D199: 3 | E199: 1 | F199: 0 | G199: 0 | H199: 1 | I199: 0 | J199: 2 | K199: 1 | L199: 0 | M199: 0 | N199: 4 | O199: 0
A200: 188 | B200: 0 | C200: 0 | D200: 6 | E200: 0 | F200: 0 | G200: 0 | H200: 0 | I200: 1 | J200: 0 | K200: 0 | L200: 0 | M200: 0 | N200: 4 | O200: 0
A201: 189 | B201: 0 | C201: 1 | D201: 0 | E201: 1 | F201: 2 | G201: 1 | H201: 1 | I201: 0 | J201: 0 | K201: 2 | L201: 0 | M201: 0 | N201: 4 | O201: 0
... 4299 more rows

Sheet мин деталей t=1% огр на обрезки
A1: Оптимизация. Варюхин С.Е. 2015 гг | C1: Нарезка труб
B2: 1 | C2: 2 | D2: 3 | E2: 4 | F2: 5 | G2: 6 | H2: 7 | I2: 8 | J2: 9 | K2: 10 | L2: 11 | M2: 12 | N2: Номер детали | P2: 6000 | Q2: = L — длина труб, мм
B3: 28 | C3: 18 | D3: 31 | E3: 96 | F3: 12 | G3: 27 | H3: 63 | I3: 76 | J3: 6 | K3: 14 | L3: 0 | M3: 0 | N3: Количество деталей | O3: =SUM(B3:M3) -> 371
B4: 1135 | C4: 980 | D4: 890 | E4: 847 | F4: 800 | G4: 735 | H4: 700 | I4: 635 | J4: 600 | K4: 555 | L4: 6000 | M4: 6000 | N4: Размеры деталей, мм | P4: 427 | Q4: = Δ - максимальный размер обрезка
P5: 0 | Q5: = Δm - максимальный размер остатка
B6: =B4+$P$6 -> 1138 | C6: 983 | D6: 893 | E6: 850 | F6: 803 | G6: 738 | H6: 703 | I6: 638 | J6: 603 | K6: 558 | L6: 6003 | M6: 6003 | N6: Длина детали + ширина реза | P6: 3 | Q6: = d - ширина реза
A7: вариантов | B7: =SUMPRODUCT(B6:M6,B3:M3)/(P2+P6) -> 48.74396135 | C7: Теоретич. мин. число труб | M7: Суммарная длина обрезков, м = | N7: =SUMPRODUCT(N13:N10014,O13:O10014)/1000 -> 0.588
A8: 10,002 | B8: =SUM(O13:O10014) -> 49 | C8: Количество труб длины L | M8: Суммарная длина остатков, м = | N8: 0.000 | O8: =N7*1000/(P2*B8) -> 0.20% | P8: Процент потерь в обрезки
B10: =SUMPRODUCT(B13:B10014,$O$13:$O$10014) -> 28 | C10: =SUMPRODUCT(C13:C10014,$O$13:$O$10014) -> 18 | D10: 31 | E10: 97 | F10: 12 | G10: 27 | H10: 63 | I10: 76 | J10: 6 | K10: 14 | L10: 0 | M10: 0 | N10: Количество полученных деталей | O10: =SUM(B10:M10) -> 372 | P10: 1.000 | Q10: = макс. суммарная длина обрезков
B11: =B10-B3 -> 0 | C11: 0 | D11: 0 | E11: 1 | F11: 0 | G11: 0 | H11: 0 | I11: 0 | J11: 0 | K11: =K10-K3 -> 0 | L11: 0 | M11: =M10-M3 -> 0 | N11: Количество лишних деталей | O11: =SUM(B11:M11) -> 1 | P11: 8 | Q11: = максимальный избыток деталей
A12: Номер варианта разреза | B12: 1 | C12: 2 | D12: 3 | E12: 4 | F12: 5 | G12: 6 | H12: 7 | I12: 8 | J12: 9 | K12: 10 | L12: 11 | M12: 12 | N12: Обрезок или остаток | O12: Сколько труб так разрезать?
A13: 1 | B13: 0 | C13: 1 | D13: 0 | E13: 2 | F13: 0 | G13: 0 | H13: 2 | I13: 3 | J13: 0 | K13: 0 | L13: 0 | M13: 0 | N13: =IF(SUMPRODUCT($B$6:$M$6,B13:M13)<$P$2,$P$2-SUMPRODUCT($B$6:$M$6,B13:M13),0) -> 0 | O13: 14
A14: 2 | B14: 0 | C14: 0 | D14: 1 | E14: 1 | F14: 1 | G14: 2 | H14: 1 | I14: 2 | J14: 0 | K14: 0 | L14: 0 | M14: 0 | N14: 0 | O14: 6
A15: 3 | B15: 3 | C15: 0 | D15: 0 | E15: 3 | F15: 0 | G15: 0 | H15: 0 | I15: 0 | J15: 0 | K15: 0 | L15: 0 | M15: 0 | N15: 36 | O15: 6
A16: 4 | B16: 0 | C16: 0 | D16: 1 | E16: 2 | F16: 0 | G16: 0 | H16: 3 | I16: 2 | J16: 0 | K16: 0 | L16: 0 | M16: 0 | N16: 22 | O16: 5
A17: 5 | B17: 0 | C17: 0 | D17: 1 | E17: 3 | F17: 0 | G17: 1 | H17: 1 | I17: 0 | J17: 0 | K17: 2 | L17: 0 | M17: 0 | N17: 0 | O17: 4
A18: 6 | B18: 0 | C18: 0 | D18: 3 | E18: 3 | F18: 0 | G18: 1 | H18: 0 | I18: 0 | J18: 0 | K18: 0 | L18: 0 | M18: 0 | N18: 33 | O18: 4
A19: 7 | B19: 0 | C19: 0 | D19: 0 | E19: 1 | F19: 0 | G19: 1 | H19: 2 | I19: 2 | J19: 1 | K19: 2 | L19: 0 | M19: 0 | N19: 11 | O19: 3
A20: 8 | B20: 0 | C20: 0 | D20: 0 | E20: 2 | F20: 3 | G20: 0 | H20: 0 | I20: 2 | J20: 1 | K20: 0 | L20: 0 | M20: 0 | N20: 12 | O20: 2
A21: 9 | B21: 2 | C21: 0 | D21: 1 | E21: 0 | F21: 0 | G21: 2 | H21: 1 | I21: 1 | J21: 0 | K21: 0 | L21: 0 | M21: 0 | N21: 14 | O21: 2
A22: 10 | B22: 2 | C22: 2 | D22: 1 | E22: 1 | F22: 0 | G22: 0 | H22: 0 | I22: 0 | J22: 0 | K22: 0 | L22: 0 | M22: 0 | N22: 15 | O22: 2
A23: 11 | B23: 2 | C23: 0 | D23: 0 | E23: 2 | F23: 0 | G23: 0 | H23: 2 | I23: 0 | J23: 1 | K23: 0 | L23: 0 | M23: 0 | N23: 15 | O23: 1
A24: 12 | B24: 0 | C24: 0 | D24: 0 | E24: 0 | F24: 0 | G24: 0 | H24: 0 | I24: 0 | J24: 0 | K24: 0 | L24: 0 | M24: 1 | N24: 0 | O24: 0
A25: 13 | B25: 0 | C25: 0 | D25: 0 | E25: 0 | F25: 0 | G25: 0 | H25: 0 | I25: 0 | J25: 0 | K25: 0 | L25: 1 | M25: 0 | N25: 0 | O25: 0
A26: 14 | B26: 0 | C26: 0 | D26: 0 | E26: 0 | F26: 0 | G26: 0 | H26: 0 | I26: 3 | J26: 4 | K26: 3 | L26: 0 | M26: 0 | N26: 0 | O26: 0
A27: 15 | B27: 0 | C27: 0 | D27: 0 | E27: 0 | F27: 0 | G27: 0 | H27: 4 | I27: 5 | J27: 0 | K27: 0 | L27: 0 | M27: 0 | N27: 0 | O27: 0
A28: 16 | B28: 0 | C28: 0 | D28: 0 | E28: 0 | F28: 0 | G28: 1 | H28: 0 | I28: 3 | J28: 0 | K28: 6 | L28: 0 | M28: 0 | N28: 0 | O28: 0
A29: 17 | B29: 0 | C29: 0 | D29: 0 | E29: 0 | F29: 0 | G29: 1 | H29: 3 | I29: 4 | J29: 1 | K29: 0 | L29: 0 | M29: 0 | N29: 0 | O29: 0
A30: 18 | B30: 0 | C30: 0 | D30: 0 | E30: 0 | F30: 0 | G30: 2 | H30: 2 | I30: 3 | J30: 2 | K30: 0 | L30: 0 | M30: 0 | N30: 0 | O30: 0
A31: 19 | B31: 0 | C31: 0 | D31: 0 | E31: 0 | F31: 0 | G31: 3 | H31: 1 | I31: 2 | J31: 3 | K31: 0 | L31: 0 | M31: 0 | N31: 0 | O31: 0
A32: 20 | B32: 0 | C32: 0 | D32: 0 | E32: 0 | F32: 0 | G32: 4 | H32: 0 | I32: 1 | J32: 4 | K32: 0 | L32: 0 | M32: 0 | N32: 0 | O32: 0
A33: 21 | B33: 0 | C33: 0 | D33: 0 | E33: 0 | F33: 0 | G33: 5 | H33: 0 | I33: 1 | J33: 0 | K33: 3 | L33: 0 | M33: 0 | N33: 0 | O33: 0
A34: 22 | B34: 0 | C34: 0 | D34: 0 | E34: 0 | F34: 1 | G34: 0 | H34: 2 | I34: 5 | J34: 1 | K34: 0 | L34: 0 | M34: 0 | N34: 0 | O34: 0
A35: 23 | B35: 0 | C35: 0 | D35: 0 | E35: 0 | F35: 1 | G35: 1 | H35: 1 | I35: 4 | J35: 2 | K35: 0 | L35: 0 | M35: 0 | N35: 0 | O35: 0
A36: 24 | B36: 0 | C36: 0 | D36: 0 | E36: 0 | F36: 1 | G36: 2 | H36: 0 | I36: 3 | J36: 3 | K36: 0 | L36: 0 | M36: 0 | N36: 0 | O36: 0
A37: 25 | B37: 0 | C37: 0 | D37: 0 | E37: 0 | F37: 2 | G37: 0 | H37: 0 | I37: 5 | J37: 2 | K37: 0 | L37: 0 | M37: 0 | N37: 0 | O37: 0
A38: 26 | B38: 0 | C38: 0 | D38: 0 | E38: 0 | F38: 4 | G38: 0 | H38: 0 | I38: 0 | J38: 0 | K38: 5 | L38: 0 | M38: 0 | N38: 0 | O38: 0
A39: 27 | B39: 0 | C39: 0 | D39: 0 | E39: 2 | F39: 0 | G39: 0 | H39: 1 | I39: 2 | J39: 2 | K39: 2 | L39: 0 | M39: 0 | N39: 0 | O39: 0
A40: 28 | B40: 0 | C40: 0 | D40: 0 | E40: 2 | F40: 0 | G40: 1 | H40: 0 | I40: 1 | J40: 3 | K40: 2 | L40: 0 | M40: 0 | N40: 0 | O40: 0
A41: 29 | B41: 0 | C41: 0 | D41: 0 | E41: 3 | F41: 0 | G41: 0 | H41: 4 | I41: 1 | J41: 0 | K41: 0 | L41: 0 | M41: 0 | N41: 0 | O41: 0
A42: 30 | B42: 0 | C42: 0 | D42: 0 | E42: 3 | F42: 0 | G42: 1 | H42: 3 | I42: 0 | J42: 1 | K42: 0 | L42: 0 | M42: 0 | N42: 0 | O42: 0
A43: 31 | B43: 0 | C43: 0 | D43: 0 | E43: 3 | F43: 1 | G43: 0 | H43: 2 | I43: 1 | J43: 1 | K43: 0 | L43: 0 | M43: 0 | N43: 0 | O43: 0
A44: 32 | B44: 0 | C44: 0 | D44: 0 | E44: 3 | F44: 1 | G44: 1 | H44: 1 | I44: 0 | J44: 2 | K44: 0 | L44: 0 | M44: 0 | N44: 0 | O44: 0
